Workbook

Sheet Main
A2: EFM NCI Reporting
F4: * Please sheet(s) to print | H4: * For pivot table listing control
F5: Sheet | G5: YES/NO | H5: Start Row | I5: Last Col
B6: Company : | C6: NOMURA ASSET MANAGEMENT MALAYSIA SDN BHD | D6: =VLOOKUP(FundCode,InFund!A2:G75,7,0) -> NI | F6: Descriptions | G6: YES
B7: Fund : | C7: EPF-SHASIA | D7: =VLOOKUP(FundCode,InFund!A2:G76,6,0) -> 2020-12-31 | F7: 1) List of Reclassed Securities | G7: YES | H7: 77 | I7: 12
B8: Fund Name : | C8: =VLOOKUP(FundCode,InFund!A2:G75,2,0) -> EPF SHARIAH ASIA NOMURA ISLAMIC | F8: 2) ITM Reclassed Securities | G8: YES | H8: 31 | I8: 40
B9: End Date: | C9: 2022-05-19 | F9: 3) OTM Reclassed Securities | G9: YES | H9: 10 | I9: 35
B10: Email Address : | F10: 4) Reclassed Sec Not Disposed | G10: YES | H10: 77 | I10: 13
F11: 5) Cash Account Interest | G11: YES | H11: 56 | I11: 8
D13: http://192.168.82.6:8099/RiskkSvc
D14: =VLOOKUP(FundCode,InFund!A2:H75,8,0) -> 1
D16: =VLOOKUP(FundCode,InFund!A:I,9) -> USD

Sheet Template
A1: 1) List of Reclassed Securities
A2: Note :
A4: All transactions are in USD unless stated otherwise.
A6: 1. Total no. of shares are as at ending of the Reclass Date.
A8: 2. Reclass Date = Effective date of reclassification (MMYYYY) based on the periodic review by the shariah index used as performance benchmark as stated in the mandate (i.e. FTSE and MSCI).
A10: 3. Reclass Price = Closing market price on Reclass Date.
A12: 4. Investment Cost = Original investment cost excluding impairment.
A14: 2) ITM Reclassed Securities
A15: Important:
A16: When the reclassed securities are "in-the-money" on the Reclass Date, all holdings need to be disposed immediately.
A17: Disposal in stages is allowed only if there is no liquidity in the market or any other reasons that could prevent the Portfolio Manager from trading on the Reclass Date and any entitlement of shares resulting from corporate action must be disposed immediately.
A19: Note :
A21: All transactions are in USD unless stated otherwise.
A23: 1. Except for corporate action involving dividend, exchange rate is based on the rate on the transaction date. For dividend, exchange rate is based on the payment date.
A25: 2. Average Investment Cost Per Share should reflect the latest (adjusted, if any) average investment cost excluding impairment.
A27: 3. Any capital gain up to Reclass Price is deemed shariah-compliant.
A29: 4. Dividend income (net of withholding tax) are deemed shariah-compliant if the ex-date is before/on the Reclass Date
A31: 5. Any excess capital gain above Reclass Price is considered as NCI.
A33: 6. Dividend income (net of withholding tax) is deemed as NCI when the Ex-Date is after the Reclass Date
A35: 3) OTM Reclassed Securities
A36: Note :
A37: All transactions are in USD unless stated otherwise.
A39: 1. Except for corporate action involving dividend, exchange rate is based on the rate on the transaction date. For dividend, exchange rate is based on the payment date.
A41: 2. Current Average Investment Cost Per Share should reflect the latest (adjusted, if any) average investment cost excluding impairment.
A43: 3. Dividend income (net of withholding tax) are deemed shariah-compliant until the total investment cost is fully recovered.
A45: 4. Any capital gain is considered as NCI.
A47: 5. Dividend income (net of withholding tax) are deemed as NCI if it is received when the total investment cost has been fully recovered.
A49: 4) Reclassed Sec Not Disposed
A50: Note :
A51: All transactions are in USD unless stated otherwise.
A53: 1. Current Average Investment Cost Per Share should reflect the latest (adjusted, if any) average investment cost excluding impairment.
A55: 5) Cash Account Interest
B56: Cash Sweep Service Fees (If applicable) | F56: Cash Sweep Fees
F57: USD | G57: RM
A58: 1 | B58: 212392 | C58: EPF-SHASIA-USD (Jun & Jul 2018) | D58: 2018-08-28 | E58: 4.0955 | F58: 1000 | G58: 4095.5
A59: 2 | B59: 212392 | C59: EPF-SHASIA-USD (Aug 2018) | D59: 2018-09-28 | E59: 4.1365 | F59: 500 | G59: 2068.25
A60: 3 | B60: 212392 | C60: EPF-SHASIA-USD (Sep 2018) | D60: 2018-10-29 | E60: 4.18 | F60: 500 | G60: 2090
A61: 4 | B61: 212392 | C61: EPF-SHASIA-USD (Jan 2020) | D61: 2020-02-28 | E61: 4.217 | F61: 266.67 | G61: 1124.54739
A62: 5 | B62: 212392 | C62: EPF-SHASIA-USD (Feb 2020) | D62: 2020-03-30 | E62: 4.335 | F62: 500 | G62: 2167.5
A63: 6 | B63: 212392 | C63: EPF-SHASIA-USD (Mar 2020) | D63: 2020-04-28 | E63: 4.367 | F63: 500 | G63: 2183.5
A64: 7 | B64: 212392 | C64: EPF-SHASIA-USD (Apr 2020) | D64: 2020-05-28 | E64: 4.357 | F64: 500 | G64: 2178.5
A65: Total NCI | F65: 100744.14 | G65: 418206.6915
A68: Note :
A70: 1. Exchange rate is based on the rate on the payment date.
A71: 2. Cash sweep service fees will be deducted from total interest income on cash account.

Sheet InTrn (hidden)
A1: CustNo | B1: qStockCode | C1: StockName | D1: TranType | E1: ExRate | F1: BeginUFV | G1: BeginCostPrice | H1: BeginCostFC | I1: TradeDate | J1: UnitFaceValue | K1: TranPrice | L1: FCNetProceed | M1: FCGrossProceed | N1: PayDate | O1: MVPrice | P1: ReclassDt | Q1: ReclassPrice | R1: ReClassMV | S1: qTrnCode | T1: TranDesc | U1: MarketValueFC | V1: OutMoney | W1: SeqName | X1: row_num | Y1: ImportCost | Z1: Remarks | AA1: Sold | AB1: sold Date | AC1: ShowRecord | AD1: ImportCostPrice | AE1: FilterInOut
A2: 212392 | B2: B08X163 | C2: SEMBCORP INDUSTRIES LTD | D2: Dividend | E2: 4.3825 | F2: 130000 | G2: 1.510880231 | H2: 187780.93 | I2: 2022-04-26 | J2: 0 | K2: 0.02157264589 | L2: 2804.444 | M2: 2804.444 | N2: 2022-05-10 | O2: 2.115469385 | P2: 2016-03-01 | Q2: 1.293837231 | R2: 168198.84 | S2: SI | T2: Share Income-Dividend | U2: 275011.02 | V2: 1 | W2: 201603_B08X163 | X2: 1 | Y2: =IF(X2<>1,0,ROUND(SUMIFS(BNYM_NAV_HistCost_RCdate!$AA:$AA,BNYM_NAV_HistCost_RCdate!C:C,P2,BNYM_NAV_HistCost_RCdate!I:I,B2),2)) -> 880403.92 | Z2: =VLOOKUP(B2,'4) Reclassed Sec Not Disposed'!D8:N500,11,0) -> Market value is below average investment cost | AA2: =OR(COUNTIF(Z2,"*sold*"),COUNTIF(Z2,"*dispose*")) -> FALSE | AB2: =IF(AA2=TRUE,DATEVALUE(RIGHT(Z2,8)),0) -> 00:00:00 | AC2: =IF(AA2=FALSE,1,IF(EDATE(AB2,1)>I2,1,0)) -> 1 | AD2: =SUMIFS(BNYM_NAV_HistCost_RCdate!$AA:$AA,BNYM_NAV_HistCost_RCdate!C:C,P2,BNYM_NAV_HistCost_RCdate!I:I,B2)/SUMIFS(BNYM_NAV_HistCost_RCdate!$W:$W,BNYM_NAV_HistCost_RCdate!C:C,P2,BNYM_NAV_HistCost_RCdate!I:I,B2) -> 4.31570549 | AE2: =IF(ISERROR(IF(AD2>Q2,1,0)),V1,IF(AD2>Q2,1,0)) -> 1
A3: 212392 | B3: 6889106 | C3: TAIWAN SEMICONDUCTOR MANUFAC | D3: Dividend | E3: 4.2115 | F3: 5003000 | G3: 20.20509027 | H3: 98954478.69 | I3: 2022-03-16 | J3: 0 | K3: 0.09484557416 | L3: 374864.8192 | M3: 474512.4075 | N3: 2022-04-14 | O3: 19.49276881 | P3: 2018-06-01 | Q3: 18.86255249 | R3: 81505089.33 | S3: SI | T3: Share Income-Dividend | U3: 97522322.36 | V3: 0 | W3: 201806_6889106 | X3: 1 | Y3: =IF(X3<>1,0,ROUND(SUMIFS(BNYM_NAV_HistCost_RCdate!$AA:$AA,BNYM_NAV_HistCost_RCdate!C:C,P3,BNYM_NAV_HistCost_RCdate!I:I,B3),2)) -> 8765389.66 | Z3: =VLOOKUP(B3,'4) Reclassed Sec Not Disposed'!D9:N501,11,0) -> Sold entire holding in Aug-2018 | AA3: =OR(COUNTIF(Z3,"*sold*"),COUNTIF(Z3,"*dispose*")) -> TRUE | AB3: =IF(AA3=TRUE,DATEVALUE(RIGHT(Z3,8)),0) -> 2018-08-01 | AC3: =IF(AA3=FALSE,1,IF(EDATE(AB3,1)>I3,1,0)) -> 0 | AD3: =SUMIFS(BNYM_NAV_HistCost_RCdate!$AA:$AA,BNYM_NAV_HistCost_RCdate!C:C,P3,BNYM_NAV_HistCost_RCdate!I:I,B3)/SUMIFS(BNYM_NAV_HistCost_RCdate!$W:$W,BNYM_NAV_HistCost_RCdate!C:C,P3,BNYM_NAV_HistCost_RCdate!I:I,B3) -> 8.347990152 | AE3: =IF(ISERROR(IF(AD3>Q3,1,0)),V2,IF(AD3>Q3,1,0)) -> 0
A4: 212392 | B4: 6434915 | C4: HONGKONG LAND HOLDINGS LTD | D4: Dividend | E4: 4.3765 | F4: 196900 | G4: 7.218657643 | H4: 1421353.69 | I4: 2022-03-17 | J4: 0 | K4: 0.16 | L4: 31504 | M4: 31504 | N4: 2022-05-11 | O4: 4.85 | P4: 2019-05-29 | Q4: 4.13 | R4: 813197 | S4: SI | T4: Share Income-Dividend | U4: 954965 | V4: 1 | W4: 201905_6434915 | X4: 1 | Y4: =IF(X4<>1,0,ROUND(SUMIFS(BNYM_NAV_HistCost_RCdate!$AA:$AA,BNYM_NAV_HistCost_RCdate!C:C,P4,BNYM_NAV_HistCost_RCdate!I:I,B4),2)) -> 1421353.69 | Z4: =VLOOKUP(B4,'4) Reclassed Sec Not Disposed'!D10:N502,11,0) -> Market value is below average investment cost | AA4: FALSE | AB4: 00:00:00 | AC4: 1 | AD4: =SUMIFS(BNYM_NAV_HistCost_RCdate!$AA:$AA,BNYM_NAV_HistCost_RCdate!C:C,P4,BNYM_NAV_HistCost_RCdate!I:I,B4)/SUMIFS(BNYM_NAV_HistCost_RCdate!$W:$W,BNYM_NAV_HistCost_RCdate!C:C,P4,BNYM_NAV_HistCost_RCdate!I:I,B4) -> 7.218657643 | AE4: 1
A5: 212392 | B5: B1VQ5C0 | C5: KEPPEL CORP LTD | D5: Dividend | E5: 4.3923 | F5: 263000 | G5: 5.631416236 | H5: 1404220.92 | I5: 2022-04-28 | J5: 0 | K5: 0.1505484264 | L5: 39594.2361 | M5: 39594.2361 | N5: 2022-05-12 | O5: 4.822068555 | P5: 2019-08-28 | Q5: 4.07066924 | R5: 1070586.01 | S5: SI | T5: Share Income-Dividend | U5: 1268204.03 | V5: 1 | W5: 201908_B1VQ5C0 | X5: 1 | Y5: =IF(X5<>1,0,ROUND(SUMIFS(BNYM_NAV_HistCost_RCdate!$AA:$AA,BNYM_NAV_HistCost_RCdate!C:C,P5,BNYM_NAV_HistCost_RCdate!I:I,B5),2)) -> 1481750.99 | Z5: =VLOOKUP(B5,'4) Reclassed Sec Not Disposed'!D11:N503,11,0) -> Market value is below average investment cost | AA5: FALSE | AB5: 00:00:00 | AC5: 1 | AD5: =SUMIFS(BNYM_NAV_HistCost_RCdate!$AA:$AA,BNYM_NAV_HistCost_RCdate!C:C,P5,BNYM_NAV_HistCost_RCdate!I:I,B5)/SUMIFS(BNYM_NAV_HistCost_RCdate!$W:$W,BNYM_NAV_HistCost_RCdate!C:C,P5,BNYM_NAV_HistCost_RCdate!I:I,B5) -> 5.634034183 | AE5: 1
A6: 212392 | B6: 6283979 | C6: INDOFOOD SUKSES MAKMUR TBK P | D6: Dividend | E6: 4.1845 | F6: 4158729 | G6: 0.5019407444 | H6: 2014532.11 | I6: 2021-09-07 | J6: 0 | K6: 0.0194780184 | L6: 72801.3991 | M6: 80890.4434 | N6: 2021-09-29 | O6: 0.455264546 | P6: 2021-03-01 | Q6: 0.427920028 | R6: 1779603.43 | S6: SI | T6: Share Income-Dividend | U6: 1893321.87 | V6: 1 | W6: 202103_6283979 | X6: 1 | Y6: =IF(X6<>1,0,ROUND(SUMIFS(BNYM_NAV_HistCost_RCdate!$AA:$AA,BNYM_NAV_HistCost_RCdate!C:C,P6,BNYM_NAV_HistCost_RCdate!I:I,B6),2)) -> 2087435.53 | Z6: =VLOOKUP(B6,'4) Reclassed Sec Not Disposed'!D12:N504,11,0) -> Market value is below average investment cost | AA6: FALSE | AB6: 00:00:00 | AC6: 1 | AD6: =SUMIFS(BNYM_NAV_HistCost_RCdate!$AA:$AA,BNYM_NAV_HistCost_RCdate!C:C,P6,BNYM_NAV_HistCost_RCdate!I:I,B6)/SUMIFS(BNYM_NAV_HistCost_RCdate!$W:$W,BNYM_NAV_HistCost_RCdate!C:C,P6,BNYM_NAV_HistCost_RCdate!I:I,B6) -> 0.5019407444 | AE6: 1
A7: 212392 | B7: B03VZ37 | C7: MITRA ADIPERKASA TBK PT | D7: SELL | E7: 4.1715 | F7: 28535022 | G7: 0.063006878 | H7: 1797902.65 | I7: 2021-10-19 | J7: 3553500 | K7: 0.06324144166 | L7: 224159.9 | M7: 224728.463 | N7: 2021-10-19 | O7: 0.06272147398 | P7: 2021-03-01 | Q7: 0.06068046312 | R7: 1731518.35 | S7: SS | T7: Share Sale | U7: 1789758.64 | V7: 1 | W7: 202103_B03VZ37 | X7: 1 | Y7: =IF(X7<>1,0,ROUND(SUMIFS(BNYM_NAV_HistCost_RCdate!$AA:$AA,BNYM_NAV_HistCost_RCdate!C:C,P7,BNYM_NAV_HistCost_RCdate!I:I,B7),2)) -> 1797902.65 | Z7: =VLOOKUP(B7,'4) Reclassed Sec Not Disposed'!D13:N505,11,0) -> Sold entire holding in Apr-2022 | AA7: TRUE | AB7: 2022-04-01 | AC7: 1 | AD7: =SUMIFS(BNYM_NAV_HistCost_RCdate!$AA:$AA,BNYM_NAV_HistCost_RCdate!C:C,P7,BNYM_NAV_HistCost_RCdate!I:I,B7)/SUMIFS(BNYM_NAV_HistCost_RCdate!$W:$W,BNYM_NAV_HistCost_RCdate!C:C,P7,BNYM_NAV_HistCost_RCdate!I:I,B7) -> 0.063006878 | AE7: 1
A8: 212392 | B8: B03VZ37 | C8: MITRA ADIPERKASA TBK PT | D8: SELL | E8: 4.158 | F8: 24981522 | G8: 0.06300687804 | H8: 1574007.71 | I8: 2021-10-21 | J8: 6534000 | K8: 0.06329270307 | L8: 412516.5 | M8: 413554.5219 | N8: 2021-10-21 | O8: 0.06322145264 | P8: 2021-03-01 | Q8: 0.06068046312 | R8: 1731518.35 | S8: SS | T8: Share Sale | U8: 1579368.11 | V8: 1 | W8: 202103_B03VZ37 | X8: 2 | Y8: =IF(X8<>1,0,ROUND(SUMIFS(BNYM_NAV_HistCost_RCdate!$AA:$AA,BNYM_NAV_HistCost_RCdate!C:C,P8,BNYM_NAV_HistCost_RCdate!I:I,B8),2)) -> 0 | Z8: =VLOOKUP(B8,'4) Reclassed Sec Not Disposed'!D14:N506,11,0) -> Sold entire holding in Apr-2022 | AA8: TRUE | AB8: 2022-04-01 | AC8: 1 | AD8: =SUMIFS(BNYM_NAV_HistCost_RCdate!$AA:$AA,BNYM_NAV_HistCost_RCdate!C:C,P8,BNYM_NAV_HistCost_RCdate!I:I,B8)/SUMIFS(BNYM_NAV_HistCost_RCdate!$W:$W,BNYM_NAV_HistCost_RCdate!C:C,P8,BNYM_NAV_HistCost_RCdate!I:I,B8) -> 0.063006878 | AE8: 1
A9: 212392 | B9: B03VZ37 | C9: MITRA ADIPERKASA TBK PT | D9: SELL | E9: 4.1515 | F9: 18447522 | G9: 0.06300687811 | H9: 1162320.77 | I9: 2021-11-01 | J9: 2987700 | K9: 0.0634129702 | L9: 188979.6 | M9: 189458.9311 | N9: 2021-11-01 | O9: 0.06211399341 | P9: 2021-03-01 | Q9: 0.06068046312 | R9: 1731518.35 | S9: SS | T9: Share Sale | U9: 1145849.26 | V9: 1 | W9: 202103_B03VZ37 | X9: 3 | Y9: =IF(X9<>1,0,ROUND(SUMIFS(BNYM_NAV_HistCost_RCdate!$AA:$AA,BNYM_NAV_HistCost_RCdate!C:C,P9,BNYM_NAV_HistCost_RCdate!I:I,B9),2)) -> 0 | Z9: =VLOOKUP(B9,'4) Reclassed Sec Not Disposed'!D15:N507,11,0) -> Sold entire holding in Apr-2022 | AA9: TRUE | AB9: 2022-04-01 | AC9: 1 | AD9: =SUMIFS(BNYM_NAV_HistCost_RCdate!$AA:$AA,BNYM_NAV_HistCost_RCdate!C:C,P9,BNYM_NAV_HistCost_RCdate!I:I,B9)/SUMIFS(BNYM_NAV_HistCost_RCdate!$W:$W,BNYM_NAV_HistCost_RCdate!C:C,P9,BNYM_NAV_HistCost_RCdate!I:I,B9) -> 0.063006878 | AE9: 1
A10: 212392 | B10: B03VZ37 | C10: MITRA ADIPERKASA TBK PT | D10: SELL | E10: 4.1535 | F10: 15459822 | G10: 0.06300688261 | H10: 974075.19 | I10: 2021-11-03 | J10: 1519200 | K10: 0.06294806849 | L10: 95388.76 | M10: 95630.7057 | N10: 2021-11-03 | O10: 0.06244518533 | P10: 2021-03-01 | Q10: 0.06068046312 | R10: 1731518.35 | S10: SS | T10: Share Sale | U10: 965391.45 | V10: 1 | W10: 202103_B03VZ37 | X10: 4 | Y10: =IF(X10<>1,0,ROUND(SUMIFS(BNYM_NAV_HistCost_RCdate!$AA:$AA,BNYM_NAV_HistCost_RCdate!C:C,P10,BNYM_NAV_HistCost_RCdate!I:I,B10),2)) -> 0 | Z10: =VLOOKUP(B10,'4) Reclassed Sec Not Disposed'!D16:N508,11,0) -> Sold entire holding in Apr-2022 | AA10: TRUE | AB10: 2022-04-01 | AC10: 1 | AD10: =SUMIFS(BNYM_NAV_HistCost_RCdate!$AA:$AA,BNYM_NAV_HistCost_RCdate!C:C,P10,BNYM_NAV_HistCost_RCdate!I:I,B10)/SUMIFS(BNYM_NAV_HistCost_RCdate!$W:$W,BNYM_NAV_HistCost_RCdate!C:C,P10,BNYM_NAV_HistCost_RCdate!I:I,B10) -> 0.063006878 | AE10: 1
A11: 212392 | B11: B03VZ37 | C11: MITRA ADIPERKASA TBK PT | D11: SELL | E11: 4.2545 | F11: 13940622 | G11: 0.06300689596 | H11: 878355.32 | I11: 2022-04-19 | J11: 6810600 | K11: 0.06305082384 | L11: 428333.7501 | M11: 429413.9409 | N11: 2022-04-19 | O11: 0.06200578281 | P11: 2021-03-01 | Q11: 0.06068046312 | R11: 1731518.35 | S11: SS | T11: Share Sale | U11: 864399.18 | V11: 1 | W11: 202103_B03VZ37 | X11: 5 | Y11: =IF(X11<>1,0,ROUND(SUMIFS(BNYM_NAV_HistCost_RCdate!$AA:$AA,BNYM_NAV_HistCost_RCdate!C:C,P11,BNYM_NAV_HistCost_RCdate!I:I,B11),2)) -> 0 | Z11: =VLOOKUP(B11,'4) Reclassed Sec Not Disposed'!D17:N509,11,0) -> Sold entire holding in Apr-2022 | AA11: TRUE | AB11: 2022-04-01 | AC11: 1 | AD11: =SUMIFS(BNYM_NAV_HistCost_RCdate!$AA:$AA,BNYM_NAV_HistCost_RCdate!C:C,P11,BNYM_NAV_HistCost_RCdate!I:I,B11)/SUMIFS(BNYM_NAV_HistCost_RCdate!$W:$W,BNYM_NAV_HistCost_RCdate!C:C,P11,BNYM_NAV_HistCost_RCdate!I:I,B11) -> 0.063006878 | AE11: 1
A12: 212392 | B12: B03VZ37 | C12: MITRA ADIPERKASA TBK PT | D12: SELL | E12: 4.291 | F12: 7130022 | G12: 0.06300689535 | H12: 449240.55 | I12: 2022-04-21 | J12: 3993200 | K12: 0.06413831567 | L12: 255471.4509 | M12: 256117.1221 | N12: 2022-04-21 | O12: 0.06165528802 | P12: 2021-03-01 | Q12: 0.06068046312 | R12: 1731518.35 | S12: SS | T12: Share Sale | U12: 439603.56 | V12: 1 | W12: 202103_B03VZ37 | X12: 6 | Y12: =IF(X12<>1,0,ROUND(SUMIFS(BNYM_NAV_HistCost_RCdate!$AA:$AA,BNYM_NAV_HistCost_RCdate!C:C,P12,BNYM_NAV_HistCost_RCdate!I:I,B12),2)) -> 0 | Z12: =VLOOKUP(B12,'4) Reclassed Sec Not Disposed'!D18:N510,11,0) -> Sold entire holding in Apr-2022 | AA12: TRUE | AB12: 2022-04-01 | AC12: 1 | AD12: =SUMIFS(BNYM_NAV_HistCost_RCdate!$AA:$AA,BNYM_NAV_HistCost_RCdate!C:C,P12,BNYM_NAV_HistCost_RCdate!I:I,B12)/SUMIFS(BNYM_NAV_HistCost_RCdate!$W:$W,BNYM_NAV_HistCost_RCdate!C:C,P12,BNYM_NAV_HistCost_RCdate!I:I,B12) -> 0.063006878 | AE12: 1
A13: 212392 | B13: B03VZ37 | C13: MITRA ADIPERKASA TBK PT | D13: SELL | E13: 4.323 | F13: 3136822 | G13: 0.06300689679 | H13: 197641.42 | I13: 2022-04-22 | J13: 3136822 | K13: 0.06431050359 | L13: 201222.0396 | M13: 201730.6025 | N13: 2022-04-22 | O13: 0.06413831579 | P13: 2021-03-01 | Q13: 0.06068046312 | R13: 1731518.35 | S13: SS | T13: Share Sale | U13: 201190.48 | V13: 1 | W13: 202103_B03VZ37 | X13: 7 | Y13: =IF(X13<>1,0,ROUND(SUMIFS(BNYM_NAV_HistCost_RCdate!$AA:$AA,BNYM_NAV_HistCost_RCdate!C:C,P13,BNYM_NAV_HistCost_RCdate!I:I,B13),2)) -> 0 | Z13: =VLOOKUP(B13,'4) Reclassed Sec Not Disposed'!D19:N511,11,0) -> Sold entire holding in Apr-2022 | AA13: TRUE | AB13: 2022-04-01 | AC13: 1 | AD13: =SUMIFS(BNYM_NAV_HistCost_RCdate!$AA:$AA,BNYM_NAV_HistCost_RCdate!C:C,P13,BNYM_NAV_HistCost_RCdate!I:I,B13)/SUMIFS(BNYM_NAV_HistCost_RCdate!$W:$W,BNYM_NAV_HistCost_RCdate!C:C,P13,BNYM_NAV_HistCost_RCdate!I:I,B13) -> 0.063006878 | AE13: 1
A14: 212392 | B14: BYWPGC4 | C14: CHINA YUHUA EDUCATION CORP L | D14: SELL | E14: 4.10425 | F14: 628000 | G14: 0.9761559076 | H14: 613025.91 | I14: 2021-05-03 | J14: 22000 | K14: 0.9579665566 | L14: 21039.88 | M14: 21075.2642 | N14: 2021-05-03 | O14: 0.9489046338 | P14: 2021-03-01 | Q14: 0.8418311465 | R14: 528669.96 | S14: SS | T14: Share Sale | U14: 595912.11 | V14: 1 | W14: 202103_BYWPGC4 | X14: 1 | Y14: =IF(X14<>1,0,ROUND(SUMIFS(BNYM_NAV_HistCost_RCdate!$AA:$AA,BNYM_NAV_HistCost_RCdate!C:C,P14,BNYM_NAV_HistCost_RCdate!I:I,B14),2)) -> 613025.91 | Z14: =VLOOKUP(B14,'4) Reclassed Sec Not Disposed'!D20:N512,11,0) -> Sold entire holding in May-2021 | AA14: TRUE | AB14: 2021-05-01 | AC14: 1 | AD14: =SUMIFS(BNYM_NAV_HistCost_RCdate!$AA:$AA,BNYM_NAV_HistCost_RCdate!C:C,P14,BNYM_NAV_HistCost_RCdate!I:I,B14)/SUMIFS(BNYM_NAV_HistCost_RCdate!$W:$W,BNYM_NAV_HistCost_RCdate!C:C,P14,BNYM_NAV_HistCost_RCdate!I:I,B14) -> 0.9761559076 | AE14: 1
A15: 212392 | B15: BYWPGC4 | C15: CHINA YUHUA EDUCATION CORP L | D15: SELL | E15: 4.1175 | F15: 606000 | G15: 0.9761559076 | H15: 591550.48 | I15: 2021-05-05 | J15: 118000 | K15: 0.9581569287 | L15: 112872.84 | M15: 113062.5176 | N15: 2021-05-05 | O15: 0.9539380528 | P15: 2021-03-01 | Q15: 0.8418311465 | R15: 528669.96 | S15: SS | T15: Share Sale | U15: 578086.46 | V15: 1 | W15: 202103_BYWPGC4 | X15: 2 | Y15: =IF(X15<>1,0,ROUND(SUMIFS(BNYM_NAV_HistCost_RCdate!$AA:$AA,BNYM_NAV_HistCost_RCdate!C:C,P15,BNYM_NAV_HistCost_RCdate!I:I,B15),2)) -> 0 | Z15: =VLOOKUP(B15,'4) Reclassed Sec Not Disposed'!D21:N513,11,0) -> Sold entire holding in May-2021 | AA15: TRUE | AB15: 2021-05-01 | AC15: 1 | AD15: =SUMIFS(BNYM_NAV_HistCost_RCdate!$AA:$AA,BNYM_NAV_HistCost_RCdate!C:C,P15,BNYM_NAV_HistCost_RCdate!I:I,B15)/SUMIFS(BNYM_NAV_HistCost_RCdate!$W:$W,BNYM_NAV_HistCost_RCdate!C:C,P15,BNYM_NAV_HistCost_RCdate!I:I,B15) -> 0.9761559076 | AE15: 1
A16: 212392 | B16: BYWPGC4 | C16: CHINA YUHUA EDUCATION CORP L | D16: SELL | E16: 4.122 | F16: 488000 | G16: 0.9761559016 | H16: 476364.08 | I16: 2021-05-06 | J16: 278000 | K16: 0.9643094055 | L16: 267628.38 | M16: 268078.0147 | N16: 2021-05-06 | O16: 0.9472939139 | P16: 2021-03-01 | Q16: 0.8418311465 | R16: 528669.96 | S16: SS | T16: Share Sale | U16: 462279.43 | V16: 1 | W16: 202103_BYWPGC4 | X16: 3 | Y16: =IF(X16<>1,0,ROUND(SUMIFS(BNYM_NAV_HistCost_RCdate!$AA:$AA,BNYM_NAV_HistCost_RCdate!C:C,P16,BNYM_NAV_HistCost_RCdate!I:I,B16),2)) -> 0 | Z16: =VLOOKUP(B16,'4) Reclassed Sec Not Disposed'!D22:N514,11,0) -> Sold entire holding in May-2021 | AA16: TRUE | AB16: 2021-05-01 | AC16: 1 | AD16: =SUMIFS(BNYM_NAV_HistCost_RCdate!$AA:$AA,BNYM_NAV_HistCost_RCdate!C:C,P16,BNYM_NAV_HistCost_RCdate!I:I,B16)/SUMIFS(BNYM_NAV_HistCost_RCdate!$W:$W,BNYM_NAV_HistCost_RCdate!C:C,P16,BNYM_NAV_HistCost_RCdate!I:I,B16) -> 0.9761559076 | AE16: 1
A17: 212392 | B17: BYWPGC4 | C17: CHINA YUHUA EDUCATION CORP L | D17: SELL | E17: 4.1185 | F17: 210000 | G17: 0.9761559048 | H17: 204992.74 | I17: 2021-05-11 | J17: 210000 | K17: 0.9579658926 | L17: 200835.42 | M17: 201172.8374 | N17: 2021-05-11 | O17: 0.9130303333 | P17: 2021-03-01 | Q17: 0.8418311465 | R17: 528669.96 | S17: SS | T17: Share Sale | U17: 191736.37 | V17: 1 | W17: 202103_BYWPGC4 | X17: 4 | Y17: =IF(X17<>1,0,ROUND(SUMIFS(BNYM_NAV_HistCost_RCdate!$AA:$AA,BNYM_NAV_HistCost_RCdate!C:C,P17,BNYM_NAV_HistCost_RCdate!I:I,B17),2)) -> 0 | Z17: =VLOOKUP(B17,'4) Reclassed Sec Not Disposed'!D23:N515,11,0) -> Sold entire holding in May-2021 | AA17: TRUE | AB17: 2021-05-01 | AC17: 1 | AD17: =SUMIFS(BNYM_NAV_HistCost_RCdate!$AA:$AA,BNYM_NAV_HistCost_RCdate!C:C,P17,BNYM_NAV_HistCost_RCdate!I:I,B17)/SUMIFS(BNYM_NAV_HistCost_RCdate!$W:$W,BNYM_NAV_HistCost_RCdate!C:C,P17,BNYM_NAV_HistCost_RCdate!I:I,B17) -> 0.9761559076 | AE17: 1
A18: 212392 | B18: 6420129 | C18: CAPITALAND INTEGRATED COMMER | D18: Dividend | E18: 4.148 | F18: 1882800 | G18: 1.688891518 | H18: 3114373.94 | I18: 2021-08-04 | J18: 0 | K18: 0.03857898051 | L18: 65471.0136 | M18: 72636.5085 | N18: 2021-09-09 | O18: 1.582489091 | P18: 2021-05-28 | Q18: 1.549274485 | R18: 2916974 | S18: SI | T18: Share Income-Dividend | U18: 2979510.46 | V18: 1 | W18: 202105_6420129 | X18: 1 | Y18: =IF(X18<>1,0,ROUND(SUMIFS(BNYM_NAV_HistCost_RCdate!$AA:$AA,BNYM_NAV_HistCost_RCdate!C:C,P18,BNYM_NAV_HistCost_RCdate!I:I,B18),2)) -> 3179842.8 | Z18: =VLOOKUP(B18,'4) Reclassed Sec Not Disposed'!D24:N516,11,0) -> Sold entire holding in Mar-2022 | AA18: TRUE | AB18: 2022-03-01 | AC18: 1 | AD18: =SUMIFS(BNYM_NAV_HistCost_RCdate!$AA:$AA,BNYM_NAV_HistCost_RCdate!C:C,P18,BNYM_NAV_HistCost_RCdate!I:I,B18)/SUMIFS(BNYM_NAV_HistCost_RCdate!$W:$W,BNYM_NAV_HistCost_RCdate!C:C,P18,BNYM_NAV_HistCost_RCdate!I:I,B18) -> 1.688890376 | AE18: 1
A19: 212392 | B19: 6420129 | C19: CAPITALAND INTEGRATED COMMER | D19: Dividend | E19: 4.196 | F19: 1882800 | G19: 1.688891518 | H19: 3054023.73 | I19: 2021-12-14 | J19: 0 | K19: 0.03540404409 | L19: 60977.836 | M19: 67351.9693 | N19: 2022-01-28 | O19: 1.490519853 | P19: 2021-05-28 | Q19: 1.549274485 | R19: 2916974 | S19: SI | T19: Share Income-Dividend | U19: 2806350.78 | V19: 1 | W19: 202105_6420129 | X19: 2 | Y19: =IF(X19<>1,0,ROUND(SUMIFS(BNYM_NAV_HistCost_RCdate!$AA:$AA,BNYM_NAV_HistCost_RCdate!C:C,P19,BNYM_NAV_HistCost_RCdate!I:I,B19),2)) -> 0 | Z19: =VLOOKUP(B19,'4) Reclassed Sec Not Disposed'!D25:N517,11,0) -> Sold entire holding in Mar-2022 | AA19: TRUE | AB19: 2022-03-01 | AC19: 1 | AD19: =SUMIFS(BNYM_NAV_HistCost_RCdate!$AA:$AA,BNYM_NAV_HistCost_RCdate!C:C,P19,BNYM_NAV_HistCost_RCdate!I:I,B19)/SUMIFS(BNYM_NAV_HistCost_RCdate!$W:$W,BNYM_NAV_HistCost_RCdate!C:C,P19,BNYM_NAV_HistCost_RCdate!I:I,B19) -> 1.688890376 | AE19: 1
A20: 212392 | B20: 6420129 | C20: CAPITALAND INTEGRATED COMMER | D20: Dividend | E20: 4.209 | F20: 1882800 | G20: 1.688891518 | H20: 3049296.4 | I20: 2022-02-08 | J20: 0 | K20: 0.002708440085 | L20: 4727.326 | M20: 5099.451 | N20: 2022-03-15 | O20: 1.525354366 | P20: 2021-05-28 | Q20: 1.549274485 | R20: 2916974 | S20: SI | T20: Share Income-Dividend | U20: 2871937.2 | V20: 1 | W20: 202105_6420129 | X20: 3 | Y20: =IF(X20<>1,0,ROUND(SUMIFS(BNYM_NAV_HistCost_RCdate!$AA:$AA,BNYM_NAV_HistCost_RCdate!C:C,P20,BNYM_NAV_HistCost_RCdate!I:I,B20),2)) -> 0 | Z20: =VLOOKUP(B20,'4) Reclassed Sec Not Disposed'!D26:N518,11,0) -> Sold entire holding in Mar-2022 | AA20: TRUE | AB20: 2022-03-01 | AC20: 1 | AD20: =SUMIFS(BNYM_NAV_HistCost_RCdate!$AA:$AA,BNYM_NAV_HistCost_RCdate!C:C,P20,BNYM_NAV_HistCost_RCdate!I:I,B20)/SUMIFS(BNYM_NAV_HistCost_RCdate!$W:$W,BNYM_NAV_HistCost_RCdate!C:C,P20,BNYM_NAV_HistCost_RCdate!I:I,B20) -> 1.688890376 | AE20: 1
A21: 212392 | B21: 6420129 | C21: CAPITALAND INTEGRATED COMMER | D21: SELL | E21: 4.2045 | F21: 1882800 | G21: 1.688891518 | H21: 3049296.4 | I21: 2022-03-21 | J21: 376000 | K21: 1.639201505 | L21: 615723.4272 | M21: 616339.7661 | N21: 2022-03-21 | O21: 1.614925154 | P21: 2021-05-28 | Q21: 1.549274485 | R21: 2916974 | S21: SS | T21: Share Sale | U21: 3040581.08 | V21: 1 | W21: 202105_6420129 | X21: 4 | Y21: =IF(X21<>1,0,ROUND(SUMIFS(BNYM_NAV_HistCost_RCdate!$AA:$AA,BNYM_NAV_HistCost_RCdate!C:C,P21,BNYM_NAV_HistCost_RCdate!I:I,B21),2)) -> 0 | Z21: =VLOOKUP(B21,'4) Reclassed Sec Not Disposed'!D27:N519,11,0) -> Sold entire holding in Mar-2022 | AA21: TRUE | AB21: 2022-03-01 | AC21: 1 | AD21: =SUMIFS(BNYM_NAV_HistCost_RCdate!$AA:$AA,BNYM_NAV_HistCost_RCdate!C:C,P21,BNYM_NAV_HistCost_RCdate!I:I,B21)/SUMIFS(BNYM_NAV_HistCost_RCdate!$W:$W,BNYM_NAV_HistCost_RCdate!C:C,P21,BNYM_NAV_HistCost_RCdate!I:I,B21) -> 1.688890376 | AE21: 1
A22: 212392 | B22: 6420129 | C22: CAPITALAND INTEGRATED COMMER | D22: SELL | E22: 4.2175 | F22: 1506800 | G22: 1.688891518 | H22: 2414273.19 | I22: 2022-03-29 | J22: 376700 | K22: 1.666912524 | L22: 627345.1173 | M22: 627925.9478 | N22: 2022-03-29 | O22: 1.63826036 | P22: 2021-05-28 | Q22: 1.549274485 | R22: 2916974 | S22: SS | T22: Share Sale | U22: 2468530.71 | V22: 1 | W22: 202105_6420129 | X22: 5 | Y22: =IF(X22<>1,0,ROUND(SUMIFS(BNYM_NAV_HistCost_RCdate!$AA:$AA,BNYM_NAV_HistCost_RCdate!C:C,P22,BNYM_NAV_HistCost_RCdate!I:I,B22),2)) -> 0 | Z22: =VLOOKUP(B22,'4) Reclassed Sec Not Disposed'!D28:N520,11,0) -> Sold entire holding in Mar-2022 | AA22: TRUE | AB22: 2022-03-01 | AC22: 1 | AD22: =SUMIFS(BNYM_NAV_HistCost_RCdate!$AA:$AA,BNYM_NAV_HistCost_RCdate!C:C,P22,BNYM_NAV_HistCost_RCdate!I:I,B22)/SUMIFS(BNYM_NAV_HistCost_RCdate!$W:$W,BNYM_NAV_HistCost_RCdate!C:C,P22,BNYM_NAV_HistCost_RCdate!I:I,B22) -> 1.688890376 | AE22: 1
A23: 212392 | B23: 6420129 | C23: CAPITALAND INTEGRATED COMMER | D23: SELL | E23: 4.2045 | F23: 1130100 | G23: 1.688891514 | H23: 1778067.75 | I23: 2022-03-30 | J23: 1130100 | K23: 1.677657844 | L23: 1894167.411 | M23: 1895921.13 | N23: 2022-03-30 | O23: 2.184347146 | P23: 2021-05-28 | Q23: 1.549274485 | R23: 2916974 | S23: SS | T23: Share Sale | U23: 2468530.71 | V23: 1 | W23: 202105_6420129 | X23: 6 | Y23: =IF(X23<>1,0,ROUND(SUMIFS(BNYM_NAV_HistCost_RCdate!$AA:$AA,BNYM_NAV_HistCost_RCdate!C:C,P23,BNYM_NAV_HistCost_RCdate!I:I,B23),2)) -> 0 | Z23: =VLOOKUP(B23,'4) Reclassed Sec Not Disposed'!D29:N521,11,0) -> Sold entire holding in Mar-2022 | AA23: TRUE | AB23: 2022-03-01 | AC23: 1 | AD23: =SUMIFS(BNYM_NAV_HistCost_RCdate!$AA:$AA,BNYM_NAV_HistCost_RCdate!C:C,P23,BNYM_NAV_HistCost_RCdate!I:I,B23)/SUMIFS(BNYM_NAV_HistCost_RCdate!$W:$W,BNYM_NAV_HistCost_RCdate!C:C,P23,BNYM_NAV_HistCost_RCdate!I:I,B23) -> 1.688890376 | AE23: 1
A24: 212392 | B24: BGHH0L6 | C24: WUXI APPTEC CO LTD-H | D24: SELL | E24: 4.1245 | F24: 196440 | G24: 16.69775718 | H24: 3271805.19 | I24: 2021-05-31 | J24: 163700 | K24: 21.21229692 | L24: 3466629.67 | M24: 3472453.006 | N24: 2021-05-31 | O24: 20.70476069 | P24: 2021-05-28 | Q24: 20.70476069 | R24: 4067243.19 | S24: SS | T24: Share Sale | U24: 4067243.19 | V24: 0 | W24: 202105_BGHH0L6 | X24: 1 | Y24: =IF(X24<>1,0,ROUND(SUMIFS(BNYM_NAV_HistCost_RCdate!$AA:$AA,BNYM_NAV_HistCost_RCdate!C:C,P24,BNYM_NAV_HistCost_RCdate!I:I,B24),2)) -> 3280107.43 | Z24: =VLOOKUP(B24,'4) Reclassed Sec Not Disposed'!D30:N522,11,0) -> Sold entire holding in Jun-2021 | AA24: TRUE | AB24: 2021-06-01 | AC24: 1 | AD24: =SUMIFS(BNYM_NAV_HistCost_RCdate!$AA:$AA,BNYM_NAV_HistCost_RCdate!C:C,P24,BNYM_NAV_HistCost_RCdate!I:I,B24)/SUMIFS(BNYM_NAV_HistCost_RCdate!$W:$W,BNYM_NAV_HistCost_RCdate!C:C,P24,BNYM_NAV_HistCost_RCdate!I:I,B24) -> 16.69775723 | AE24: 0
A25: 212392 | B25: BGHH0L6 | C25: WUXI APPTEC CO LTD-H | D25: Corporate Action | E25: 0 | F25: 163700 | G25: 20.03730861 | H25: 3271805.19 | I25: 2021-05-28 | J25: 32740 | K25: 0.02577402623 | L25: 0 | M25: 0 | N25: 2021-06-08 | O25: 25.2482617 | P25: 2021-05-28 | Q25: 20.70476069 | R25: 4067243.19 | S25: SB | T25: Bonus Issue | U25: 4133140.44 | V25: 0 | W25: 202105_BGHH0L6 | X25: 2 | Y25: =IF(X25<>1,0,ROUND(SUMIFS(BNYM_NAV_HistCost_RCdate!$AA:$AA,BNYM_NAV_HistCost_RCdate!C:C,P25,BNYM_NAV_HistCost_RCdate!I:I,B25),2)) -> 0 | Z25: =VLOOKUP(B25,'4) Reclassed Sec Not Disposed'!D31:N523,11,0) -> Sold entire holding in Jun-2021 | AA25: TRUE | AB25: 2021-06-01 | AC25: 1 | AD25: =SUMIFS(BNYM_NAV_HistCost_RCdate!$AA:$AA,BNYM_NAV_HistCost_RCdate!C:C,P25,BNYM_NAV_HistCost_RCdate!I:I,B25)/SUMIFS(BNYM_NAV_HistCost_RCdate!$W:$W,BNYM_NAV_HistCost_RCdate!C:C,P25,BNYM_NAV_HistCost_RCdate!I:I,B25) -> 16.69775723 | AE25: 0
A26: 212392 | B26: BGHH0L6 | C26: WUXI APPTEC CO LTD-H | D26: SELL | E26: 4.1175 | F26: 32740 | G26: 16.69775657 | H26: 538382.32 | I26: 2021-06-09 | J26: 32740 | K26: 21.60243288 | L26: 706360.39 | M26: 707263.6523 | N26: 2021-06-09 | O26: 21.48265089 | P26: 2021-05-28 | Q26: 20.70476069 | R26: 4067243.19 | S26: SS | T26: Share Sale | U26: 703341.99 | V26: 0 | W26: 202105_BGHH0L6 | X26: 3 | Y26: =IF(X26<>1,0,ROUND(SUMIFS(BNYM_NAV_HistCost_RCdate!$AA:$AA,BNYM_NAV_HistCost_RCdate!C:C,P26,BNYM_NAV_HistCost_RCdate!I:I,B26),2)) -> 0 | Z26: =VLOOKUP(B26,'4) Reclassed Sec Not Disposed'!D32:N524,11,0) -> Sold entire holding in Jun-2021 | AA26: TRUE | AB26: 2021-06-01 | AC26: 1 | AD26: =SUMIFS(BNYM_NAV_HistCost_RCdate!$AA:$AA,BNYM_NAV_HistCost_RCdate!C:C,P26,BNYM_NAV_HistCost_RCdate!I:I,B26)/SUMIFS(BNYM_NAV_HistCost_RCdate!$W:$W,BNYM_NAV_HistCost_RCdate!C:C,P26,BNYM_NAV_HistCost_RCdate!I:I,B26) -> 16.69775723 | AE26: 0
A27: 212392 | B27: 6099875 | C27: ESCORTS LTD | D27: SELL | E27: 4.158 | F27: 85051 | G27: 18.83267251 | H27: 1601737.63 | I27: 2021-09-02 | J27: 85051 | K27: 17.80878266 | L27: 1511776.93 | M27: 1514654.774 | N27: 2021-09-02 | O27: 18.44122526 | P27: 2021-09-01 | Q27: 18.44122526 | R27: 1568444.65 | S27: SS | T27: Share Sale | U27: 1568444.65 | V27: 1 | W27: 202109_6099875 | X27: 1 | Y27: =IF(X27<>1,0,ROUND(SUMIFS(BNYM_NAV_HistCost_RCdate!$AA:$AA,BNYM_NAV_HistCost_RCdate!C:C,P27,BNYM_NAV_HistCost_RCdate!I:I,B27),2)) -> 1601737.63 | Z27: =VLOOKUP(B27,'4) Reclassed Sec Not Disposed'!D33:N525,11,0) -> Sold entire holding in Sep-2021 | AA27: TRUE | AB27: 2021-09-01 | AC27: 1 | AD27: =SUMIFS(BNYM_NAV_HistCost_RCdate!$AA:$AA,BNYM_NAV_HistCost_RCdate!C:C,P27,BNYM_NAV_HistCost_RCdate!I:I,B27)/SUMIFS(BNYM_NAV_HistCost_RCdate!$W:$W,BNYM_NAV_HistCost_RCdate!C:C,P27,BNYM_NAV_HistCost_RCdate!I:I,B27) -> 18.83267251 | AE27: 1
A28: 212392 | B28: 6139340 | C28: TITAN CO LTD | D28: SELL | E28: 4.158 | F28: 106008 | G28: 20.55851332 | H28: 2179366.88 | I28: 2021-09-02 | J28: 106008 | K28: 26.90870376 | L28: 2848544.31 | M28: 2852537.868 | N28: 2021-09-02 | O28: 26.53577107 | P28: 2021-09-01 | Q28: 26.53577107 | R28: 2813004.02 | S28: SS | T28: Share Sale | U28: 2813004.02 | V28: 0 | W28: 202109_6139340 | X28: 1 | Y28: =IF(X28<>1,0,ROUND(SUMIFS(BNYM_NAV_HistCost_RCdate!$AA:$AA,BNYM_NAV_HistCost_RCdate!C:C,P28,BNYM_NAV_HistCost_RCdate!I:I,B28),2)) -> 2179366.87 | Z28: =VLOOKUP(B28,'4) Reclassed Sec Not Disposed'!D34:N526,11,0) -> Sold entire holding in Sep-2021 | AA28: TRUE | AB28: 2021-09-01 | AC28: 1 | AD28: =SUMIFS(BNYM_NAV_HistCost_RCdate!$AA:$AA,BNYM_NAV_HistCost_RCdate!C:C,P28,BNYM_NAV_HistCost_RCdate!I:I,B28)/SUMIFS(BNYM_NAV_HistCost_RCdate!$W:$W,BNYM_NAV_HistCost_RCdate!C:C,P28,BNYM_NAV_HistCost_RCdate!I:I,B28) -> 20.55851323 | AE28: 0
A29: 212392 | B29: 6771720 | C29: SAMSUNG ELECTRONICS CO LTD | D29: SELL | E29: 4.188 | F29: 767261 | G29: 71.94648818 | H29: 55201734.47 | I29: 2021-09-27 | J29: 15789 | K29: 65.93873446 | L29: 1037775.14 | M29: 1041106.678 | N29: 2021-09-27 | O29: 65.70056522 | P29: 2021-09-01 | Q29: 66.36996068 | R29: 50923082.4 | S29: SS | T29: Share Sale | U29: 50409481.37 | V29: 1 | W29: 202109_6771720 | X29: 1 | Y29: =IF(X29<>1,0,ROUND(SUMIFS(BNYM_NAV_HistCost_RCdate!$AA:$AA,BNYM_NAV_HistCost_RCdate!C:C,P29,BNYM_NAV_HistCost_RCdate!I:I,B29),2)) -> 55202618.87 | Z29: =VLOOKUP(B29,'4) Reclassed Sec Not Disposed'!D35:N527,11,0) -> This stock will be included as a constituent of the BM upon 4Q rebalancing effective from 1-Dec-2021. | AA29: FALSE | AB29: 00:00:00 | AC29: 1 | AD29: =SUMIFS(BNYM_NAV_HistCost_RCdate!$AA:$AA,BNYM_NAV_HistCost_RCdate!C:C,P29,BNYM_NAV_HistCost_RCdate!I:I,B29)/SUMIFS(BNYM_NAV_HistCost_RCdate!$W:$W,BNYM_NAV_HistCost_RCdate!C:C,P29,BNYM_NAV_HistCost_RCdate!I:I,B29) -> 71.94764085 | AE29: 1
A30: 212392 | B30: 6771720 | C30: SAMSUNG ELECTRONICS CO LTD | D30: Dividend | E30: 4.179 | F30: 751472 | G30: 71.94648819 | H30: 53870769.94 | I30: 2021-09-29 | J30: 0 | K30: 0.3052854109 | L30: 195001.4309 | M30: 229413.4393 | N30: 2021-11-17 | O30: 64.42352346 | P30: 2021-09-01 | Q30: 66.36996068 | R30: 50923082.4 | S30: SI | T30: Share Income-Dividend | U30: 48412474.02 | V30: 1 | W30: 202109_6771720 | X30: 2 | Y30: =IF(X30<>1,0,ROUND(SUMIFS(BNYM_NAV_HistCost_RCdate!$AA:$AA,BNYM_NAV_HistCost_RCdate!C:C,P30,BNYM_NAV_HistCost_RCdate!I:I,B30),2)) -> 0 | Z30: =VLOOKUP(B30,'4) Reclassed Sec Not Disposed'!D36:N528,11,0) -> This stock will be included as a constituent of the BM upon 4Q rebalancing effective from 1-Dec-2021. | AA30: FALSE | AB30: 00:00:00 | AC30: 1 | AD30: =SUMIFS(BNYM_NAV_HistCost_RCdate!$AA:$AA,BNYM_NAV_HistCost_RCdate!C:C,P30,BNYM_NAV_HistCost_RCdate!I:I,B30)/SUMIFS(BNYM_NAV_HistCost_RCdate!$W:$W,BNYM_NAV_HistCost_RCdate!C:C,P30,BNYM_NAV_HistCost_RCdate!I:I,B30) -> 71.94764085 | AE30: 1
A31: 212392 | B31: B736PF3 | C31: PTT GLOBAL CHEMICAL PCL-FOR | D31: Dividend | E31: 4.1925 | F31: 1109100 | G31: 2.068871184 | H31: 2232887.43 | I31: 2021-09-03 | J31: 0 | K31: 0.06180947515 | L31: 59684.7416 | M31: 66316.3795 | N31: 2021-09-22 | O31: 1.956404526 | P31: 2021-09-01 | Q31: 1.939272194 | R31: 2150846.79 | S31: SI | T31: Share Income-Dividend | U31: 2169848.26 | V31: 1 | W31: 202109_B736PF3 | X31: 1 | Y31: =IF(X31<>1,0,ROUND(SUMIFS(BNYM_NAV_HistCost_RCdate!$AA:$AA,BNYM_NAV_HistCost_RCdate!C:C,P31,BNYM_NAV_HistCost_RCdate!I:I,B31),2)) -> 2300278.3 | Z31: =VLOOKUP(B31,'4) Reclassed Sec Not Disposed'!D37:N529,11,0) -> Market value is below average investment cost | AA31: FALSE | AB31: 00:00:00 | AC31: 1 | AD31: =SUMIFS(BNYM_NAV_HistCost_RCdate!$AA:$AA,BNYM_NAV_HistCost_RCdate!C:C,P31,BNYM_NAV_HistCost_RCdate!I:I,B31)/SUMIFS(BNYM_NAV_HistCost_RCdate!$W:$W,BNYM_NAV_HistCost_RCdate!C:C,P31,BNYM_NAV_HistCost_RCdate!I:I,B31) -> 2.074004418 | AE31: 1
A32: 212392 | B32: B736PF3 | C32: PTT GLOBAL CHEMICAL PCL-FOR | D32: Dividend | E32: 4.323 | F32: 1109100 | G32: 2.068871184 | H32: 2181979.78 | I32: 2022-02-28 | J32: 0 | K32: 0.05099996357 | L32: 51456.882 | M32: 57174.3133 | N32: 2022-04-22 | O32: 1.692828564 | P32: 2021-09-01 | Q32: 1.939272194 | R32: 2150846.79 | S32: SI | T32: Share Income-Dividend | U32: 1877516.16 | V32: 1 | W32: 202109_B736PF3 | X32: 2 | Y32: =IF(X32<>1,0,ROUND(SUMIFS(BNYM_NAV_HistCost_RCdate!$AA:$AA,BNYM_NAV_HistCost_RCdate!C:C,P32,BNYM_NAV_HistCost_RCdate!I:I,B32),2)) -> 0 | Z32: =VLOOKUP(B32,'4) Reclassed Sec Not Disposed'!D38:N530,11,0) -> Market value is below average investment cost | AA32: FALSE | AB32: 00:00:00 | AC32: 1 | AD32: =SUMIFS(BNYM_NAV_HistCost_RCdate!$AA:$AA,BNYM_NAV_HistCost_RCdate!C:C,P32,BNYM_NAV_HistCost_RCdate!I:I,B32)/SUMIFS(BNYM_NAV_HistCost_RCdate!$W:$W,BNYM_NAV_HistCost_RCdate!C:C,P32,BNYM_NAV_HistCost_RCdate!I:I,B32) -> 2.074004418 | AE32: 1
A33: 212392 | B33: 6230845 | C33: UNITED TRACTORS TBK PT | D33: SELL | E33: 4.201 | F33: 1212300 | G33: 1.712077176 | H33: 2075551.16 | I33: 2022-02-24 | J33: 1212300 | K33: 1.729050652 | L33: 2090877.304 | M33: 2096128.105 | N33: 2022-02-24 | O33: 1.673931997 | P33: 2021-12-01 | Q33: 1.535645805 | R33: 1861663.41 | S33: SS | T33: Share Sale | U33: 2029307.76 | V33: 1 | W33: 202112_6230845 | X33: 1 | Y33: =IF(X33<>1,0,ROUND(SUMIFS(BNYM_NAV_HistCost_RCdate!$AA:$AA,BNYM_NAV_HistCost_RCdate!C:C,P33,BNYM_NAV_HistCost_RCdate!I:I,B33),2)) -> 2075551.16 | Z33: =VLOOKUP(B33,'4) Reclassed Sec Not Disposed'!D39:N531,11,0) -> Disposed by Feb-2022 | AA33: TRUE | AB33: 2022-02-01 | AC33: 1 | AD33: =SUMIFS(BNYM_NAV_HistCost_RCdate!$AA:$AA,BNYM_NAV_HistCost_RCdate!C:C,P33,BNYM_NAV_HistCost_RCdate!I:I,B33)/SUMIFS(BNYM_NAV_HistCost_RCdate!$W:$W,BNYM_NAV_HistCost_RCdate!C:C,P33,BNYM_NAV_HistCost_RCdate!I:I,B33) -> 1.712077176 | AE33: 1
A34: 212392 | B34: BS7JP33 | C34: GLOBALWAFERS CO LTD | D34: SELL | E34: 4.2065 | F34: 10000 | G34: 29.687173 | H34: 296871.73 | I34: 2021-12-16 | J34: 10000 | K34: 29.66398755 | L34: 295482.98 | M34: 296639.8755 | N34: 2021-12-16 | O34: 28.708134 | P34: 2021-12-01 | Q34: 29.293075 | R34: 292930.75 | S34: SS | T34: Share Sale | U34: 287081.34 | V34: 1 | W34: 202112_BS7JP33 | X34: 1 | Y34: =IF(X34<>1,0,ROUND(SUMIFS(BNYM_NAV_HistCost_RCdate!$AA:$AA,BNYM_NAV_HistCost_RCdate!C:C,P34,BNYM_NAV_HistCost_RCdate!I:I,B34),2)) -> 296868.44 | Z34: =VLOOKUP(B34,'4) Reclassed Sec Not Disposed'!D40:N532,11,0) -> Sold entire holding in Dec-2021 | AA34: TRUE | AB34: 2021-12-01 | AC34: 1 | AD34: =SUMIFS(BNYM_NAV_HistCost_RCdate!$AA:$AA,BNYM_NAV_HistCost_RCdate!C:C,P34,BNYM_NAV_HistCost_RCdate!I:I,B34)/SUMIFS(BNYM_NAV_HistCost_RCdate!$W:$W,BNYM_NAV_HistCost_RCdate!C:C,P34,BNYM_NAV_HistCost_RCdate!I:I,B34) -> 29.686844 | AE34: 1

Sheet InFund (hidden)
A1: qFundCode | B1: FundName | C1: qFundType | D1: Islamic | E1: FinanceYrStart | F1: FinanceYrEnd | G1: qCompanyID | H1: RollEOYFlag | I1: Fundcurrency
A2: AJC-MASHAREQ | B2: ALJAZIRA JAPANESE EQUITY FUND | C2: 1 | D2: 1 | E2: 2013-03-01 | F2: 2020-12-31 | G2: NI | H2: 1 | I2: USD
A3: BNM-ICLIF | B3: IFM ICLIF SHARIAH EQUITY NOMURA-I | C3: 1 | D3: 1 | E3: 2013-08-26 | F3: 2020-12-31 | G3: NI | H3: 1 | I3: MYR
A4: BNM-ICLIF-FI2 | B4: IFM ICLIF CORP BOND NOMURA | C4: 2 | D4: 0 | E4: 2021-01-04 | F4: 2020-12-31 | G4: NM | H4: 1 | I4: MYR
A5: BNM-INCEIF | B5: IFM INCEIF SHARIAH EQUITY NOMURA-I | C5: 1 | D5: 1 | E5: 2013-08-26 | F5: 2020-12-31 | G5: NI | H5: 1 | I5: MYR
A6: BNM-INCEIF-FI | B6: IFM INCEIF SUKUK NOMURA-I | C6: 2 | D6: 1 | E6: 2016-11-28 | F6: 2020-12-31 | G6: NI | H6: 1 | I6: MYR
A7: BNM-MEDF-FI | B7: IFM MEDF CORP BOND NOMURA | C7: 2 | D7: 0 | E7: 2016-11-28 | F7: 2020-12-31 | G7: NM | H7: 1 | I7: MYR
A8: BNMMF | B8: IFM MEDF CONV EQUITY NOMURA | C8: 1 | D8: 0 | E8: 2011-08-08 | F8: 2020-12-31 | G8: NM | H8: 1 | I8: MYR
A9: BNM-NTF | B9: IFM NTF CONV EQUITY NOMURA | C9: 1 | D9: 0 | E9: 2020-09-17 | F9: 2020-12-31 | G9: NM | H9: 1 | I9: MYR
A10: BNM-NTF-FI | B10: IFM NTF CORP BOND NOMURA | C10: 2 | D10: 0 | E10: 2016-11-28 | F10: 2020-12-31 | G10: NM | H10: 1 | I10: MYR
A11: CGC | B11: CREDIT GUARANTEE CORPORATION MALAYSIA BERHAD | C11: 2 | D11: 0 | E11: 2017-03-16 | F11: 2020-12-31 | G11: NM | H11: 1 | I11: MYR
A12: EPF | B12: EMPLOYEES PROVIDENT FUND BOARD | C12: 1 | D12: 0 | E12: 1994-07-05 | F12: 2020-12-31 | G12: NM | H12: 1 | I12: MYR
A13: EPF-ASEAN | B13: EPF ASEAN 40 EX MALAYSIA EQUITY | C13: 1 | D13: 0 | E13: 2007-01-23 | F13: 2020-12-31 | G13: NM | H13: 1 | I13: USD
A14: EPF-ASIA | B14: EPF-ASIA EX JAPAN EX MALAYSIA EQUITY | C14: 1 | D14: 0 | E14: 2007-05-24 | F14: 2020-12-31 | G14: NM | H14: 1 | I14: USD
A15: EPF-DMSUKUK | B15: EMPLOYEES PROVIDENT FUND BOARD (NIAM-FI RR) - IC | C15: 2 | D15: 1 | E15: 2013-07-16 | F15: 2020-12-31 | G15: NI | H15: 1 | I15: MYR
A16: EPF-GLOBAL | B16: NOMURA FOR EPF GLOBAL EQUITY FUND | C16: 1 | D16: 0 | E16: 2007-12-10 | F16: 2020-12-31 | G16: NM | H16: 1 | I16: USD
A17: EPFMSIANFI | B17: EMPLOYEES PROVIDENT FUND BOARD (NAM-FI RR) | C17: 3 | D17: 0 | E17: 2010-04-23 | F17: 2020-12-31 | G17: NM | H17: 1 | I17: MYR
A18: EPF-NIAMEQ | B18: EMPLOYEES PROVIDENT FUND BOARD (NIAM EQ) | C18: 1 | D18: 1 | E18: 2018-11-01 | F18: 2020-12-31 | G18: NI | H18: 1 | I18: MYR
A19: EPF-SHASIA | B19: EPF SHARIAH ASIA NOMURA ISLAMIC | C19: 1 | D19: 1 | E19: 2010-09-20 | F19: 2020-12-31 | G19: NI | H19: 1 | I19: USD
A20: EPF-SHWORLD | B20: EPF SHARIAH WORLD NOMURA ISLAMIC | C20: 1 | D20: 1 | E20: 2010-09-15 | F20: 2020-12-31 | G20: NI | H20: 1 | I20: USD
A21: i-CASH | B21: NOMURA i-CASH FUND | C21: 4 | D21: 1 | E21: 2012-11-07 | F21: 2020-04-30 | G21: NI | H21: 1 | I21: MYR
A22: i-INCOME2 | B22: NOMURA I-INCOME FUND 2 | C22: 2 | D22: 1 | E22: 2021-06-30 | F22: 2022-10-31 | G22: NM | H22: 0 | I22: MYR
A23: i-INCOME2H | B23: NOMURA I-INCOME FUND 2 - CLASS H | C23: 2 | D23: 1 | E23: 2021-06-30 | F23: 2022-10-31 | G23: NM | H23: 0 | I23: MYR
A24: i-INCOME2I | B24: NOMURA I-INCOME FUND 2 - CLASS I | C24: 2 | D24: 1 | E24: 2021-06-30 | F24: 2022-10-31 | G24: NM | H24: 0 | I24: MYR
A25: i-INCOME2S | B25: NOMURA I-INCOME FUND 2 - CLASS S | C25: 2 | D25: 1 | E25: 2021-06-30 | F25: 2022-10-31 | G25: NM | H25: 0 | I25: MYR
A26: i-MONEY | B26: NOMURA i-INCOME FUND | C26: 2 | D26: 1 | E26: 2012-11-07 | F26: 2020-12-31 | G26: NI | H26: 1 | I26: MYR
A27: KWAP | B27: KUMPULAN WANG PERSARAAN | C27: 1 | D27: 0 | E27: 2007-09-10 | F27: 2020-12-31 | G27: NM | H27: 1 | I27: MYR
A28: KWAP-NIAM | B28: KWAP (NOMURA ISLAMIC AM) | C28: 2 | D28: 1 | E28: 2014-07-23 | F28: 2020-12-31 | G28: NI | H28: 1 | I28: MYR
A29: LAB-NGBF | B29: LABUAN RE - NOMURA-GLOBAL BALANCED FUND | C29: 3 | D29: 0 | E29: 2015-06-08 | F29: 2020-12-31 | G29: NM | H29: 1 | I29: USD
A30: MHILJP-EQ | B30: BHT05 (MT HATTON INVT LTD JP PORTFOLIO) | C30: 1 | D30: 0 | E30: 2020-08-04 | F30: 2020-12-31 | G30: NM | H30: 1 | I30: JPY
A31: MSIG-EQ | B31: NOMURA FOR MSIG INSURANCE (MALAYSIA)BHD (EQ) | C31: 1 | D31: 0 | E31: 2021-05-03 | F31: 2021-12-31 | G31: NM | H31: 1 | I31: MYR
A32: NAM-CO(CIMB) | B32: NOMURA ASSET MANAGEMENT MALAYSIA SDN BHD – COLLECT | C32: 1 | D32: 0 | E32: 1994-07-05 | F32: 2020-12-31 | G32: NM | H32: 1 | I32: MYR
A33: NAM-CO(DEUT) | B33: NOMURA ASSET MGMT MY SDN BHD – CTA (COLLECTION) | C33: 1 | D33: 0 | E33: 1994-07-05 | F33: 2020-12-31 | G33: NM | H33: 1 | I33: MYR
A34: NGAWAF | B34: NOMURA GLOBAL ALL WEATHER (ACCUMULATION) FUND | C34: 1 | D34: 0 | E34: 2021-12-28 | F34: 2021-10-31 | G34: NM | H34: 1 | I34: MYR
A35: NGAWDF | B35: NOMURA GLOBAL ALL WEATHER (DECUMULATION) FUND | C35: 1 | D35: 0 | E35: 2021-12-28 | F35: 2021-10-31 | G35: NM | H35: 1 | I35: MYR
A36: NGDBF | B36: NOMURA GLOBAL DYNAMIC BOND FUND | C36: 2 | D36: 0 | E36: 2021-02-02 | F36: 2020-01-31 | G36: NM | H36: 1 | I36: USD
A37: NGDBFM | B37: NOMURA GLOBAL DYNAMIC BOND FUND - CLASS MYR | C37: 2 | D37: 0 | E37: 2021-02-02 | F37: 2020-01-31 | G37: NM | H37: 1 | I37: USD
A38: NGDBFU | B38: NOMURA GLOBAL DYNAMIC BOND FUND - CLASS USD | C38: 2 | D38: 0 | E38: 2021-02-02 | F38: 2020-01-31 | G38: NM | H38: 1 | I38: USD
A39: NGHC | B39: NOMURA GLOBAL HIGH CONVICTION FUND | C39: 1 | D39: 0 | E39: 2016-12-13 | F39: 2020-08-31 | G39: NM | H39: 1 | I39: USD
A40: NGHM | B40: NOMURA GLOBAL HIGH CONVICTION FUND - CLASS MYR | C40: 1 | D40: 0 | E40: 2016-12-13 | F40: 2020-08-31 | G40: NM | H40: 1 | I40: USD
A41: NGHU | B41: NOMURA GLOBAL HIGH CONVICTION FUND - CLASS USD | C41: 1 | D41: 0 | E41: 2016-12-13 | F41: 2020-08-31 | G41: NM | H41: 1 | I41: USD
A42: NGSEF | B42: NOMURA GLOBAL SUSTAINABLE EQUITY FUND | C42: 1 | D42: 0 | E42: 2021-06-18 | F42: 2021-07-31 | G42: NM | H42: 0 | I42: USD
A43: NGSEFA | B43: NOMURA GLOBAL SUSTAINABLE EQUITY FUND-MYR CLASS A | C43: 1 | D43: 0 | E43: 2021-06-18 | F43: 2021-07-31 | G43: NM | H43: 0 | I43: USD
A44: NGSEFB | B44: NOMURA GLOBAL SUSTAINABLE EQUITY FUND-MYR CLASS B | C44: 1 | D44: 0 | E44: 2021-06-18 | F44: 2021-07-31 | G44: NM | H44: 0 | I44: USD
A45: NGSEFU | B45: NOMURA GLOBAL SUSTAINABLE EQUITY FUND-USD CLASS | C45: 1 | D45: 0 | E45: 2021-06-18 | F45: 2021-07-31 | G45: NM | H45: 0 | I45: USD
A46: NGSSEF | B46: NOMURA GLOBAL SHARIAH SUSTAINABLE EQUITY | C46: 1 | D46: 1 | E46: 2022-05-23 | F46: 2023-05-31 | G46: NM | H46: 1 | I46: USD
A47: NGSSEFMA | B47: NOMURA GLOBAL SHARIAH SUSTAINABLE EQUITY FUND | C47: 1 | D47: 1 | E47: 2022-05-23 | F47: 2023-05-31 | G47: NM | H47: 1 | I47: USD
A48: NGSSEFUA | B48: NOMURA GLOBAL SHARIAH SUSTAINABLE EQUITY FUND | C48: 1 | D48: 1 | E48: 2022-05-23 | F48: 2023-05-31 | G48: NM | H48: 1 | I48: USD
A49: NGSSGF | B49: NOMURA GLOBAL SHARIAH STRATEGIC GROWTH FUND | C49: 1 | D49: 1 | E49: 2020-05-22 | F49: 2020-09-30 | G49: NM | H49: 1 | I49: MYR
A50: NGSSGFA | B50: NOMURA GLOBAL SHARIAH STRATEGIC GROWTH FUND A | C50: 1 | D50: 1 | E50: 2020-05-22 | F50: 2020-09-30 | G50: NM | H50: 1 | I50: MYR
A51: NGSSGFB | B51: NOMURA GLOBAL SHARIAH STRATEGIC GROWTH FUND B | C51: 1 | D51: 1 | E51: 2020-05-22 | F51: 2020-09-30 | G51: NM | H51: 1 | I51: MYR
A52: NIAM-CO(DEUT) | B52: NOMURA ISLAMIC ASSET MANAGEMENT SDN BHD – CLIENT T | C52: 1 | D52: 0 | E52: 1994-07-05 | F52: 2020-12-31 | G52: NM | H52: 1 | I52: MYR
A53: NRBF1 | B53: NOMURA RINGGIT BOND FUND 1 | C53: 2 | D53: 0 | E53: 2019-07-01 | F53: 2020-12-31 | G53: NM | H53: 1 | I53: MYR
A54: NRBF2 | B54: NOMURA RINGGIT BOND FUND 2 | C54: 2 | D54: 0 | E54: 2020-07-28 | F54: 2020-03-31 | G54: NM | H54: 1 | I54: MYR
A55: PET-ACF | B55: PETRONAS EFM (ACF-NOMURA-FI) | C55: 2 | D55: 0 | E55: 3000-01-01 | F55: 2020-12-31 | G55: NM | H55: 1 | I55: MYR
A56: PET-FI | B56: PETRONAS EFM (NOMURA-FI) | C56: 2 | D56: 0 | E56: 2019-04-15 | F56: 2020-12-31 | G56: NM | H56: 1 | I56: MYR
A57: RHBI-GDMF | B57: RHB ISLAMIC GLOBAL DEVELOPED MARKETS FUND | C57: 1 | D57: 1 | E57: 2015-05-28 | F57: 2020-12-31 | G57: NI | H57: 1 | I57: MYR
A58: SLMAB-LFNP | B58: SUN LIFE (LIFE FUND NON PAR-NA) | C58: 1 | D58: 0 | E58: 2016-04-01 | F58: 2020-12-31 | G58: NM | H58: 1 | I58: MYR
A59: SLMAB-LNUL | B59: SUN LIFE (LNUL-NA) | C59: 1 | D59: 0 | E59: 3000-01-01 | F59: 2020-12-31 | G59: NM | H59: 1 | I59: MYR
A60: SLMTB-FTFPA | B60: SUN LIFE TAKAFUL(FTFPA) | C60: 1 | D60: 1 | E60: 2016-04-01 | F60: 2020-12-31 | G60: NI | H60: 1 | I60: MYR
A61: SOCSO | B61: PERTUBUHAN KESELAMATAN SOSIAL(SOCSO) | C61: 1 | D61: 0 | E61: 2009-11-16 | F61: 2020-12-31 | G61: NM | H61: 1 | I61: MYR
A62: TNB-RBTF | B62: TNB RETIREMENT BENEFIT TRUST FUND | C62: 1 | D62: 0 | E62: 2010-12-15 | F62: 2020-12-31 | G62: NM | H62: 1 | I62: MYR
A63: TNB-RBTFI | B63: MTRUSTEE BHD FOR NOMURA TNB RBTF (EQ) | C63: 1 | D63: 1 | E63: 2021-09-15 | F63: 2021-04-30 | G63: NI | H63: 1 | I63: MYR
A64: UJSB-EQ1 | B64: URUSHARTA JAMAAH SDN BHD (NOMURA 1) | C64: 1 | D64: 1 | E64: 2020-03-26 | F64: 2020-12-31 | G64: NI | H64: 1 | I64: MYR
A65: UJSB-EQ2 | B65: URUSHARTA JAMAAH SDN BHD (NOMURA 2) | C65: 1 | D65: 1 | E65: 2020-03-26 | F65: 2020-12-31 | G65: NI | H65: 1 | I65: MYR
A66: WB-EQ | B66: WARBA BANK K.S.C | C66: 1 | D66: 1 | E66: 2020-02-13 | F66: 2020-12-31 | G66: NM | H66: 1 | I66: USD
A5001: PS5195 | B5001: MR MOHD HAZMI BIN KASMIN | C5001: 10 | D5001: 1 | E5001: 3000-01-01 | F5001: 2020-12-31 | G5001: IP | H5001: 0 | I5001: USD
A5002: PS5196 | B5002: MR NOOR KAMAL ARIFIN BIN OSMAN | C5002: 10 | D5002: 1 | E5002: 3000-01-01 | F5002: 2020-12-31 | G5002: IP | H5002: 0 | I5002: USD
A5003: PS5197 | B5003: MS INTAN MASTURA BINTI RAZALY | C5003: 10 | D5003: 1 | E5003: 3000-01-01 | F5003: 2020-12-31 | G5003: IP | H5003: 0 | I5003: USD
A5004: PS5198 | B5004: TAN SRI HUSSIN BIN HAJI ISMAIL | C5004: 10 | D5004: 1 | E5004: 3000-01-01 | F5004: 2020-12-31 | G5004: IP | H5004: 0 | I5004: USD
A5005: PS5199 | B5005: ANUAR BIN HARON | C5005: 10 | D5005: 1 | E5005: 3000-01-01 | F5005: 2020-12-31 | G5005: IP | H5005: 0 | I5005: USD
A5006: PS5200 | B5006: DATO' MOHD HILMEY BIN MOHD TAIB | C5006: 10 | D5006: 1 | E5006: 3000-01-01 | F5006: 2020-12-31 | G5006: IP | H5006: 0 | I5006: USD
A5007: PS5201 | B5007: MDM WAN FAIZAH BINTI ZAKARIA | C5007: 10 | D5007: 1 | E5007: 3000-01-01 | F5007: 2020-12-31 | G5007: IP | H5007: 0 | I5007: USD
A5008: PS5202 | B5008: MS YUZLIFAH BINTI MOHAMMED YUSOFF | C5008: 10 | D5008: 1 | E5008: 3000-01-01 | F5008: 2020-12-31 | G5008: IP | H5008: 0 | I5008: USD
A5009: PS5203 | B5009: MS NUR SHAZREN BINTI MOHD SHAH | C5009: 10 | D5009: 1 | E5009: 3000-01-01 | F5009: 2020-12-31 | G5009: IP | H5009: 0 | I5009: USD
A5010: PS5204 | B5010: DATO'SERI AHMAD SAMSURI BIN MOKHTAR | C5010: 10 | D5010: 1 | E5010: 3000-01-01 | F5010: 2020-12-31 | G5010: IP | H5010: 0 | I5010: USD
A5011: PS5206 | B5011: MR AHMAD FADLI BIN SAAD | C5011: 10 | D5011: 1 | E5011: 3000-01-01 | F5011: 2020-12-31 | G5011: IP | H5011: 0 | I5011: USD
A5012: PS5207 | B5012: MS JUSLINA BINTI YACOB | C5012: 10 | D5012: 1 | E5012: 3000-01-01 | F5012: 2020-12-31 | G5012: IP | H5012: 0 | I5012: USD
A5013: PS5208 | B5013: ROHANA BINTI MOHD YUSOFF | C5013: 10 | D5013: 1 | E5013: 3000-01-01 | F5013: 2020-12-31 | G5013: IP | H5013: 0 | I5013: USD
A5014: PS5209 | B5014: TAN SRI NORIAN BIN MAI | C5014: 10 | D5014: 1 | E5014: 3000-01-01 | F5014: 2020-12-31 | G5014: IP | H5014: 0 | I5014: USD
A5015: PS5210 | B5015: MS ZAKIAH BINTI JA'AFAR | C5015: 10 | D5015: 1 | E5015: 3000-01-01 | F5015: 2020-12-31 | G5015: IP | H5015: 0 | I5015: USD
A5016: PS5211 | B5016: MUHAMMAD SANUSI BIN AWANG | C5016: 10 | D5016: 1 | E5016: 3000-01-01 | F5016: 2020-12-31 | G5016: IP | H5016: 0 | I5016: USD
A5017: PS5212 | B5017: MR MOHMAD ESA BIN SARBAN | C5017: 10 | D5017: 1 | E5017: 3000-01-01 | F5017: 2020-12-31 | G5017: IP | H5017: 0 | I5017: USD
A5018: PS5213 | B5018: MR AHMAD RAZLAN BIN ABU BAKAR | C5018: 10 | D5018: 1 | E5018: 3000-01-01 | F5018: 2020-12-31 | G5018: IP | H5018: 0 | I5018: USD
A5019: PS5214 | B5019: MR MOHD FADZLY BIN AHMAD ZAWAWI & MS SURAYA BINTI | C5019: 10 | D5019: 1 | E5019: 3000-01-01 | F5019: 2020-12-31 | G5019: IP | H5019: 0 | I5019: USD
A5020: PS5215 | B5020: MS ERLY YUSNITA BINTI NASARUDDIN | C5020: 10 | D5020: 1 | E5020: 3000-01-01 | F5020: 2020-12-31 | G5020: IP | H5020: 0 | I5020: USD
A5021: PS5216 | B5021: MS ROHAYA BINTI ABDUL GANI | C5021: 10 | D5021: 1 | E5021: 3000-01-01 | F5021: 2020-12-31 | G5021: IP | H5021: 0 | I5021: USD
A5022: PS5217 | B5022: MOHD MUSRYZAL BIN MOHAMED ARIFFIN | C5022: 10 | D5022: 1 | E5022: 3000-01-01 | F5022: 2020-12-31 | G5022: IP | H5022: 0 | I5022: USD
A5023: PS5218 | B5023: Mohd Faizal Bin Md Nor | C5023: 10 | D5023: 1 | E5023: 3000-01-01 | F5023: 2020-12-31 | G5023: IP | H5023: 0 | I5023: USD
A5024: PS5219 | B5024: Surita Binti Abdul Rahman | C5024: 10 | D5024: 1 | E5024: 3000-01-01 | F5024: 2020-12-31 | G5024: IP | H5024: 0 | I5024: USD
A5025: PS5220 | B5025: Sarimah Binti Nasir | C5025: 10 | D5025: 1 | E5025: 3000-01-01 | F5025: 2020-12-31 | G5025: IP | H5025: 0 | I5025: USD
A5026: PS5221 | B5026: Siti Balqish Binti Sabar | C5026: 10 | D5026: 1 | E5026: 3000-01-01 | F5026: 2020-12-31 | G5026: IP | H5026: 0 | I5026: USD
A5027: PS5222 | B5027: Daniel Quek Bin Razman Quek | C5027: 10 | D5027: 1 | E5027: 3000-01-01 | F5027: 2020-12-31 | G5027: IP | H5027: 0 | I5027: USD
A5028: PS5223 | B5028: Sharifuddin Bin Abdul Kudus | C5028: 10 | D5028: 1 | E5028: 3000-01-01 | F5028: 2020-12-31 | G5028: IP | H5028: 0 | I5028: USD
A5029: PS5224 | B5029: Mohmad Azman Bin Theeran | C5029: 10 | D5029: 1 | E5029: 3000-01-01 | F5029: 2020-12-31 | G5029: IP | H5029: 0 | I5029: USD
A5030: PS5225 | B5030: Raehamiizwan George @ Mohd Syahmi'Izzad | C5030: 10 | D5030: 1 | E5030: 3000-01-01 | F5030: 2020-12-31 | G5030: IP | H5030: 0 | I5030: USD
A5031: PS5226 | B5031: Zunidi Bin Ramli & Rosmaizan Binti Ibrahim | C5031: 10 | D5031: 1 | E5031: 3000-01-01 | F5031: 2020-12-31 | G5031: IP | H5031: 0 | I5031: USD
A5032: PS5227 | B5032: Hasim Bin Omar | C5032: 10 | D5032: 1 | E5032: 3000-01-01 | F5032: 2020-12-31 | G5032: IP | H5032: 0 | I5032: USD
A5033: PS5228 | B5033: NUR DIYANAH BINTI ROSLAN | C5033: 10 | D5033: 1 | E5033: 3000-01-01 | F5033: 2020-12-31 | G5033: IP | H5033: 0 | I5033: USD
A5034: PS5229 | B5034: Ismanuzie Binti Iberahim & Abu Bin Othman | C5034: 10 | D5034: 1 | E5034: 3000-01-01 | F5034: 2020-12-31 | G5034: IP | H5034: 0 | I5034: USD
A5035: PS5230 | B5035: Muhamad Azmeer Bin Zakaria | C5035: 10 | D5035: 1 | E5035: 3000-01-01 | F5035: 2020-12-31 | G5035: IP | H5035: 0 | I5035: USD
A5036: PS5231 | B5036: Ahmad Syukri Bin Mohmad Samiri | C5036: 10 | D5036: 1 | E5036: 3000-01-01 | F5036: 2020-12-31 | G5036: IP | H5036: 0 | I5036: USD
A5037: PS5232 | B5037: Mohd Nor Bin Sharif | C5037: 10 | D5037: 1 | E5037: 3000-01-01 | F5037: 2020-12-31 | G5037: IP | H5037: 0 | I5037: USD
A5038: PS5233 | B5038: Badiu'Zaman Bin Mat Hashim | C5038: 10 | D5038: 1 | E5038: 3000-01-01 | F5038: 2020-12-31 | G5038: IP | H5038: 0 | I5038: USD
A5039: PS5234 | B5039: Abdul Rahman Bin Faruok | C5039: 10 | D5039: 1 | E5039: 3000-01-01 | F5039: 2020-12-31 | G5039: IP | H5039: 0 | I5039: USD
A5040: PS5235 | B5040: Suriati Binti Azman | C5040: 10 | D5040: 1 | E5040: 3000-01-01 | F5040: 2020-12-31 | G5040: IP | H5040: 0 | I5040: USD
A5041: PS5236 | B5041: SHAH HAFIZUL MANZAR BIN BORHANNUDIN | C5041: 10 | D5041: 1 | E5041: 3000-01-01 | F5041: 2020-12-31 | G5041: IP | H5041: 0 | I5041: USD
A5042: PS5237 | B5042: Rohana Binti Mat Ali | C5042: 10 | D5042: 1 | E5042: 3000-01-01 | F5042: 2020-12-31 | G5042: IP | H5042: 0 | I5042: USD
A5043: PS5238 | B5043: Fazaruddin Bin Zainal | C5043: 10 | D5043: 1 | E5043: 3000-01-01 | F5043: 2020-12-31 | G5043: IP | H5043: 0 | I5043: USD
A5044: PS5239 | B5044: Nafizah Binti Mohamad | C5044: 10 | D5044: 1 | E5044: 3000-01-01 | F5044: 2020-12-31 | G5044: IP | H5044: 0 | I5044: USD
A5045: PS5240 | B5045: Mohd Na'Eim Bin Ajis | C5045: 10 | D5045: 1 | E5045: 3000-01-01 | F5045: 2020-12-31 | G5045: IP | H5045: 0 | I5045: USD
A5046: PS5241 | B5046: Che' Zahari Bin Che' Nik | C5046: 10 | D5046: 1 | E5046: 3000-01-01 | F5046: 2020-12-31 | G5046: IP | H5046: 0 | I5046: USD
A5047: PS5242 | B5047: SHAMSHUL BAHARI BIN ASMAN | C5047: 10 | D5047: 1 | E5047: 3000-01-01 | F5047: 2020-12-31 | G5047: IP | H5047: 0 | I5047: USD
A5048: PS5243 | B5048: Jamaluddin Bin Nasir | C5048: 10 | D5048: 1 | E5048: 3000-01-01 | F5048: 2020-12-31 | G5048: IP | H5048: 0 | I5048: USD
A5049: PS5244 | B5049: Ahmad Solahuddin Bin Zulkefli | C5049: 10 | D5049: 1 | E5049: 3000-01-01 | F5049: 2020-12-31 | G5049: IP | H5049: 0 | I5049: USD
A5050: PS5245 | B5050: NUR ZAMANAH BINTI BASHEER AHAMED | C5050: 10 | D5050: 1 | E5050: 3000-01-01 | F5050: 2020-12-31 | G5050: IP | H5050: 0 | I5050: USD
A5051: PS5246 | B5051: Airullisan Bin Ali | C5051: 10 | D5051: 1 | E5051: 3000-01-01 | F5051: 2020-12-31 | G5051: IP | H5051: 0 | I5051: USD
A5052: PS5247 | B5052: MOHD IMRAN BIN AHMAD | C5052: 10 | D5052: 1 | E5052: 3000-01-01 | F5052: 2020-12-31 | G5052: IP | H5052: 0 | I5052: USD
A5053: PS5248 | B5053: YAMUNNAI A/P RAJA GOPAL | C5053: 10 | D5053: 1 | E5053: 3000-01-01 | F5053: 2020-12-31 | G5053: IP | H5053: 0 | I5053: USD
A5054: PS5249 | B5054: SALIHIN BIN SAMSURI | C5054: 10 | D5054: 1 | E5054: 3000-01-01 | F5054: 2020-12-31 | G5054: IP | H5054: 0 | I5054: USD
A5055: PS5250 | B5055: Faezah Binti Abdullah | C5055: 10 | D5055: 1 | E5055: 3000-01-01 | F5055: 2020-12-31 | G5055: IP | H5055: 0 | I5055: USD
A5056: PS5251 | B5056: Aishah Radhaih Binti Adanan | C5056: 10 | D5056: 1 | E5056: 3000-01-01 | F5056: 2020-12-31 | G5056: IP | H5056: 0 | I5056: USD
A5057: PS5252 | B5057: Gunawan Bin A Fattah | C5057: 10 | D5057: 1 | E5057: 3000-01-01 | F5057: 2020-12-31 | G5057: IP | H5057: 0 | I5057: USD
A5058: PS5253 | B5058: Mohamad Fareed Bin Mohd Lotfi | C5058: 10 | D5058: 1 | E5058: 3000-01-01 | F5058: 2020-12-31 | G5058: IP | H5058: 0 | I5058: USD
A5059: PS5254 | B5059: Mohd Ikbal Bin Hassan | C5059: 10 | D5059: 1 | E5059: 3000-01-01 | F5059: 2020-12-31 | G5059: IP | H5059: 0 | I5059: USD
A5060: PS5255 | B5060: Ahmad Zain Bin Lokiman | C5060: 10 | D5060: 1 | E5060: 3000-01-01 | F5060: 2020-12-31 | G5060: IP | H5060: 0 | I5060: USD
A5061: PS5256 | B5061: Mohamad Najib Bin Mohamed | C5061: 10 | D5061: 1 | E5061: 3000-01-01 | F5061: 2020-12-31 | G5061: IP | H5061: 0 | I5061: USD
A5062: PS5257 | B5062: PS5257 | C5062: 10 | D5062: 1 | E5062: 3000-01-01 | F5062: 2020-12-31 | G5062: IP | H5062: 0 | I5062: USD
A5063: PS5258 | B5063: NOOR HAFIZAH BINTI ABD GANI | C5063: 10 | D5063: 1 | E5063: 3000-01-01 | F5063: 2020-12-31 | G5063: IP | H5063: 0 | I5063: USD
A5064: PS5259 | B5064: Badrulzaman Bin Hussin | C5064: 10 | D5064: 1 | E5064: 3000-01-01 | F5064: 2020-12-31 | G5064: IP | H5064: 0 | I5064: USD
A5065: PS5261 | B5065: Izhar Hadafi Bin Abdul Halim | C5065: 10 | D5065: 1 | E5065: 3000-01-01 | F5065: 2020-12-31 | G5065: IP | H5065: 0 | I5065: USD
A5066: PS5262 | B5066: Rosni Binti Md Rasib | C5066: 10 | D5066: 1 | E5066: 3000-01-01 | F5066: 2020-12-31 | G5066: IP | H5066: 0 | I5066: USD
A5067: PS5263 | B5067: Komarudin Bin Mustapha | C5067: 10 | D5067: 1 | E5067: 3000-01-01 | F5067: 2020-12-31 | G5067: IP | H5067: 0 | I5067: USD
A5068: PS5264 | B5068: Ahmad Falahdini Bin Baharudin & Liana Irawati Bint | C5068: 10 | D5068: 1 | E5068: 3000-01-01 | F5068: 2020-12-31 | G5068: IP | H5068: 0 | I5068: USD
A5069: PS5265 | B5069: Hasnah Binti Abd Rahman | C5069: 10 | D5069: 1 | E5069: 3000-01-01 | F5069: 2020-12-31 | G5069: IP | H5069: 0 | I5069: USD
A5070: PS5266 | B5070: Nor Zahira Binti Zamahshari | C5070: 10 | D5070: 1 | E5070: 3000-01-01 | F5070: 2020-12-31 | G5070: IP | H5070: 0 | I5070: USD
A5071: PS5267 | B5071: FAIRUS BINTI ABDUL MANAF | C5071: 10 | D5071: 1 | E5071: 3000-01-01 | F5071: 2020-12-31 | G5071: IP | H5071: 0 | I5071: USD
A5072: PS5268 | B5072: Mohamad Amran Bin Jasmani | C5072: 10 | D5072: 1 | E5072: 3000-01-01 | F5072: 2020-12-31 | G5072: IP | H5072: 0 | I5072: USD
A5073: PS5269 | B5073: Mohd Faizfahmi Bin Che Ibrahim | C5073: 10 | D5073: 1 | E5073: 3000-01-01 | F5073: 2020-12-31 | G5073: IP | H5073: 0 | I5073: USD
A5074: PS5270 | B5074: Othman Bin Dzulkifli | C5074: 10 | D5074: 1 | E5074: 3000-01-01 | F5074: 2020-12-31 | G5074: IP | H5074: 0 | I5074: USD
A5075: PS5271 | B5075: Mohd Suhaimi Bin Abdullah | C5075: 10 | D5075: 1 | E5075: 3000-01-01 | F5075: 2020-12-31 | G5075: IP | H5075: 0 | I5075: USD
A5076: PS5272 | B5076: Ruhani Binti Hasan | C5076: 10 | D5076: 1 | E5076: 3000-01-01 | F5076: 2020-12-31 | G5076: IP | H5076: 0 | I5076: USD
A5077: PS5273 | B5077: Robitoh Binti Mohd Khir | C5077: 10 | D5077: 1 | E5077: 3000-01-01 | F5077: 2020-12-31 | G5077: IP | H5077: 0 | I5077: USD
A5078: PS5274 | B5078: AHMAD NAJMI BIN AMRAN | C5078: 10 | D5078: 1 | E5078: 3000-01-01 | F5078: 2020-12-31 | G5078: IP | H5078: 0 | I5078: USD
A5079: PS5275 | B5079: MOHD IZHAR BIN MOSLIM | C5079: 10 | D5079: 1 | E5079: 3000-01-01 | F5079: 2020-12-31 | G5079: IP | H5079: 0 | I5079: USD
A5080: PS5276 | B5080: Faridah Binti Mohamad Nor | C5080: 10 | D5080: 1 | E5080: 3000-01-01 | F5080: 2020-12-31 | G5080: IP | H5080: 0 | I5080: USD
A5081: PS5277 | B5081: Falzial Bin Suparman | C5081: 10 | D5081: 1 | E5081: 3000-01-01 | F5081: 2020-12-31 | G5081: IP | H5081: 0 | I5081: USD
A5082: PS5278 | B5082: Amran Bin Yahya | C5082: 10 | D5082: 1 | E5082: 3000-01-01 | F5082: 2020-12-31 | G5082: IP | H5082: 0 | I5082: USD
A5083: PS5279 | B5083: Mohd Syahril Bin Mohamad Sadali | C5083: 10 | D5083: 1 | E5083: 3000-01-01 | F5083: 2020-12-31 | G5083: IP | H5083: 0 | I5083: USD
A5084: PS5280 | B5084: Mohd Izmir Alfasah Bin Zainal | C5084: 10 | D5084: 1 | E5084: 3000-01-01 | F5084: 2020-12-31 | G5084: IP | H5084: 0 | I5084: USD
A5085: PS5281 | B5085: Arzatul Ekhsan Binti Ahmad | C5085: 10 | D5085: 1 | E5085: 3000-01-01 | F5085: 2020-12-31 | G5085: IP | H5085: 0 | I5085: USD
A5086: PS5282 | B5086: Rethanathan A/L Anthony | C5086: 10 | D5086: 1 | E5086: 3000-01-01 | F5086: 2020-12-31 | G5086: IP | H5086: 0 | I5086: USD
A5087: PS5283 | B5087: Thamil Selvan A/L Veloo | C5087: 10 | D5087: 1 | E5087: 3000-01-01 | F5087: 2020-12-31 | G5087: IP | H5087: 0 | I5087: USD
A5088: PS5284 | B5088: Firdaus Effendy Bin Mokhtar | C5088: 10 | D5088: 1 | E5088: 3000-01-01 | F5088: 2020-12-31 | G5088: IP | H5088: 0 | I5088: USD
A5089: PS5285 | B5089: NURFARAHIN BINTI JAMSARI | C5089: 10 | D5089: 1 | E5089: 3000-01-01 | F5089: 2020-12-31 | G5089: IP | H5089: 0 | I5089: USD
A5090: PS5286 | B5090: Aishah Binti Othman | C5090: 10 | D5090: 1 | E5090: 3000-01-01 | F5090: 2020-12-31 | G5090: IP | H5090: 0 | I5090: USD
A5091: PS5287 | B5091: Nasution Sa'Ad Putra Bin Sa'Ad | C5091: 10 | D5091: 1 | E5091: 3000-01-01 | F5091: 2020-12-31 | G5091: IP | H5091: 0 | I5091: USD
A5092: PS5288 | B5092: Fahizah Binti Yakof | C5092: 10 | D5092: 1 | E5092: 3000-01-01 | F5092: 2020-12-31 | G5092: IP | H5092: 0 | I5092: USD
A5093: PS5289 | B5093: Drahman Bin Sait | C5093: 10 | D5093: 1 | E5093: 3000-01-01 | F5093: 2020-12-31 | G5093: IP | H5093: 0 | I5093: USD
A5094: PS5290 | B5094: Hizal Bin Ismail | C5094: 10 | D5094: 1 | E5094: 3000-01-01 | F5094: 2020-12-31 | G5094: IP | H5094: 0 | I5094: USD
A5095: PS5291 | B5095: Abd Jalil Bin Mohamad | C5095: 10 | D5095: 1 | E5095: 3000-01-01 | F5095: 2020-12-31 | G5095: IP | H5095: 0 | I5095: USD
A5096: PS5292 | B5096: Mohd Rafiq Bin Zakaria | C5096: 10 | D5096: 1 | E5096: 3000-01-01 | F5096: 2020-12-31 | G5096: IP | H5096: 0 | I5096: USD
A5097: PS5293 | B5097: Yazam Bin Andut | C5097: 10 | D5097: 1 | E5097: 3000-01-01 | F5097: 2020-12-31 | G5097: IP | H5097: 0 | I5097: USD
A5098: PS5294 | B5098: Jamal Abdol Nasir Bin Taharim | C5098: 10 | D5098: 1 | E5098: 3000-01-01 | F5098: 2020-12-31 | G5098: IP | H5098: 0 | I5098: USD
A5099: PS5295 | B5099: Ab Rahman Bin Jahya | C5099: 10 | D5099: 1 | E5099: 3000-01-01 | F5099: 2020-12-31 | G5099: IP | H5099: 0 | I5099: USD
A5100: PS5296 | B5100: Norizan Binti Ramli | C5100: 10 | D5100: 1 | E5100: 3000-01-01 | F5100: 2020-12-31 | G5100: IP | H5100: 0 | I5100: USD
A5101: PS5297 | B5101: Anuyi @ Zawawi Bin Muhammad | C5101: 10 | D5101: 1 | E5101: 3000-01-01 | F5101: 2020-12-31 | G5101: IP | H5101: 0 | I5101: USD
A5102: PS5298 | B5102: Azilah Binti Khamis & Azmi Bin Haji Yaacob | C5102: 10 | D5102: 1 | E5102: 3000-01-01 | F5102: 2020-12-31 | G5102: IP | H5102: 0 | I5102: USD
A5103: PS5299 | B5103: Mohammed Feroz Bin Abdul Karim | C5103: 10 | D5103: 1 | E5103: 3000-01-01 | F5103: 2020-12-31 | G5103: IP | H5103: 0 | I5103: USD
A5104: PS5300 | B5104: AMIR AZFAR BIN ARIF HAMZAN | C5104: 10 | D5104: 1 | E5104: 3000-01-01 | F5104: 2020-12-31 | G5104: IP | H5104: 0 | I5104: USD
A5105: PS5301 | B5105: Nor Azmi Bin Senawi | C5105: 10 | D5105: 1 | E5105: 3000-01-01 | F5105: 2020-12-31 | G5105: IP | H5105: 0 | I5105: USD
A5106: PS5302 | B5106: Mohammad Rahmat Bin Kamarudin | C5106: 10 | D5106: 1 | E5106: 3000-01-01 | F5106: 2020-12-31 | G5106: IP | H5106: 0 | I5106: USD
A5107: PS5303 | B5107: Shakeel Ahmad Khan | C5107: 10 | D5107: 1 | E5107: 3000-01-01 | F5107: 2020-12-31 | G5107: IP | H5107: 0 | I5107: USD
A5108: PS5304 | B5108: Hasimah Binti Hashim | C5108: 10 | D5108: 1 | E5108: 3000-01-01 | F5108: 2020-12-31 | G5108: IP | H5108: 0 | I5108: USD
A5109: PS5305 | B5109: Norihan Binti Abu Bakar | C5109: 10 | D5109: 1 | E5109: 3000-01-01 | F5109: 2020-12-31 | G5109: IP | H5109: 0 | I5109: USD
A5110: PS5306 | B5110: Shahrul Faiz Bin Mohd Aziz | C5110: 10 | D5110: 1 | E5110: 3000-01-01 | F5110: 2020-12-31 | G5110: IP | H5110: 0 | I5110: USD
A5111: PS5307 | B5111: Rozilah Binti Zainal Abidin | C5111: 10 | D5111: 1 | E5111: 3000-01-01 | F5111: 2020-12-31 | G5111: IP | H5111: 0 | I5111: USD
A5112: PS5308 | B5112: Normah Binti Amiruddin | C5112: 10 | D5112: 1 | E5112: 3000-01-01 | F5112: 2020-12-31 | G5112: IP | H5112: 0 | I5112: USD
A5113: PS5309 | B5113: Rosmalinda Binti Abdul Malek | C5113: 10 | D5113: 1 | E5113: 3000-01-01 | F5113: 2020-12-31 | G5113: IP | H5113: 0 | I5113: USD
A5114: PS5310 | B5114: Siti Zulaikha Binti Ahmad Shadzli | C5114: 10 | D5114: 1 | E5114: 3000-01-01 | F5114: 2020-12-31 | G5114: IP | H5114: 0 | I5114: USD
A5115: PS5311 | B5115: Fatimah Binti Haron | C5115: 10 | D5115: 1 | E5115: 3000-01-01 | F5115: 2020-12-31 | G5115: IP | H5115: 0 | I5115: USD
A5116: PS5312 | B5116: Noran Fauziah Binti Yaakub | C5116: 10 | D5116: 1 | E5116: 3000-01-01 | F5116: 2020-12-31 | G5116: IP | H5116: 0 | I5116: USD
A5117: PS5313 | B5117: Noraliza Binti Ismail | C5117: 10 | D5117: 1 | E5117: 3000-01-01 | F5117: 2020-12-31 | G5117: IP | H5117: 0 | I5117: USD
A5118: PS5314 | B5118: Badarudin Bin Taha | C5118: 10 | D5118: 1 | E5118: 3000-01-01 | F5118: 2020-12-31 | G5118: IP | H5118: 0 | I5118: USD
A5119: PS5315 | B5119: Noraishah Binti Sulaiman | C5119: 10 | D5119: 1 | E5119: 3000-01-01 | F5119: 2020-12-31 | G5119: IP | H5119: 0 | I5119: USD
A5120: PS5316 | B5120: Arjunamuda Bin Mohd Ismail | C5120: 10 | D5120: 1 | E5120: 3000-01-01 | F5120: 2020-12-31 | G5120: IP | H5120: 0 | I5120: USD
A5121: PS5317 | B5121: SARASWATHY A/P MANIAM | C5121: 10 | D5121: 1 | E5121: 3000-01-01 | F5121: 2020-12-31 | G5121: IP | H5121: 0 | I5121: USD
A5122: PS5318 | B5122: VESUVANATHAN A/L KRISHNASAMY | C5122: 10 | D5122: 1 | E5122: 3000-01-01 | F5122: 2020-12-31 | G5122: IP | H5122: 0 | I5122: USD
A5123: PS5319 | B5123: EDLIN FAZLY BIN ARIFFIN | C5123: 10 | D5123: 1 | E5123: 3000-01-01 | F5123: 2020-12-31 | G5123: IP | H5123: 0 | I5123: USD
A5124: PS5320 | B5124: MOHD ZAWAWI BIN YAZID | C5124: 10 | D5124: 1 | E5124: 3000-01-01 | F5124: 2020-12-31 | G5124: IP | H5124: 0 | I5124: USD
A5125: PS5321 | B5125: Amirul Hijjas Bin Ahmad Ridzwan | C5125: 10 | D5125: 1 | E5125: 3000-01-01 | F5125: 2020-12-31 | G5125: IP | H5125: 0 | I5125: USD
A5126: PS5322 | B5126: Ismail Bin Meli | C5126: 10 | D5126: 1 | E5126: 3000-01-01 | F5126: 2020-12-31 | G5126: IP | H5126: 0 | I5126: USD
A5127: PS5323 | B5127: Hakimy Sien Cheng Hing & Sharan Bin Hussein | C5127: 10 | D5127: 1 | E5127: 3000-01-01 | F5127: 2020-12-31 | G5127: IP | H5127: 0 | I5127: USD
A5128: PS5324 | B5128: Mohd Saufi Bin Kassim | C5128: 10 | D5128: 1 | E5128: 3000-01-01 | F5128: 2020-12-31 | G5128: IP | H5128: 0 | I5128: USD
A5129: PS5325 | B5129: Mohamad Azaini Bin Ibrahim | C5129: 10 | D5129: 1 | E5129: 3000-01-01 | F5129: 2020-12-31 | G5129: IP | H5129: 0 | I5129: USD
A5130: PS5326 | B5130: Zainuddin Bin Abd Rahman & Nor Zaemah Binti Zainud | C5130: 10 | D5130: 1 | E5130: 3000-01-01 | F5130: 2020-12-31 | G5130: IP | H5130: 0 | I5130: USD
A5131: PS5327 | B5131: Mohd Adnan Bin Alias | C5131: 10 | D5131: 1 | E5131: 3000-01-01 | F5131: 2020-12-31 | G5131: IP | H5131: 0 | I5131: USD
A5132: PS5328 | B5132: Haslinda Binti Haron Kamar | C5132: 10 | D5132: 1 | E5132: 3000-01-01 | F5132: 2020-12-31 | G5132: IP | H5132: 0 | I5132: USD
A5133: PS5329 | B5133: Faizah Ainal Binti Yahya | C5133: 10 | D5133: 1 | E5133: 3000-01-01 | F5133: 2020-12-31 | G5133: IP | H5133: 0 | I5133: USD
A5134: PS5330 | B5134: NUR EZZA FAZLEEN BINTI MOHD FATHIL | C5134: 10 | D5134: 1 | E5134: 3000-01-01 | F5134: 2020-12-31 | G5134: IP | H5134: 0 | I5134: USD
... 2231 more rows

Sheet InIntRec (hidden)
A1: CustNo | B1: AccName | C1: accdate | D1: ExRateSCUSD | E1: ExRateUSDMYR | F1: qCurrencyCode | G1: Amount

Sheet InHolding (hidden)
A1: HistoryDate | B1: qStockCode | C1: StockName | D1: UnitFaceValue | E1: costfc | F1: MarketValueFC | G1: ExchgRate | H1: StockCurrency | I1: CustNo | J1: CostPrice | K1: MVPrice | L1: MthEndPrice | M1: MthEndMV | N1: MthEndUint | O1: MthEndCost | P1: ISINCode | Q1: OtherCode1 | R1: CostSC | S1: MarketValueSC | T1: Price | U1: AccIntSC | V1: AccIntFC | W1: curUFV
A2: 2021-12-01 | B2: 6230845 | C2: UNITED TRACTORS TBK PT | D2: 1212300 | E2: 2075551.16 | F2: 1861663.41 | G2: 14342.5 | H2: IDR | I2: 212392 | J2: 1.712077176 | K2: 1.535645805 | P2: ID1000058407 | Q2: UNTR IJ | R2: 29532678908 | S2: 26700907500 | T2: 22025 | U2: 0 | V2: 0
A3: 2021-12-01 | B3: BDFLHY1 | C3: AIRPORTS OF THAILAND PCL-FOR | D3: 1309400 | E3: 2818229.31 | F3: 2329547.81 | G3: 33.725 | H3: THB | I3: 212392 | J3: 2.152305873 | K3: 1.779095624 | L3: 1.948905109 | M3: 2551896.35 | N3: 1309400 | O3: 2818229.31 | P3: TH0765010Z16 | Q3: AOT/F TB | R3: 88727692.18 | S3: 78564000 | T3: 60 | U3: 0 | V3: 0 | W3: 1309400
A4: 2021-12-01 | B4: BS7JP33 | C4: GLOBALWAFERS CO LTD | D4: 10000 | E4: 296871.73 | F4: 292930.75 | G4: 27.754 | H4: TWD | I4: 212392 | J4: 29.687173 | K4: 29.293075 | P4: TW0006488000 | Q4: 6488 TT | R4: 8245792.89 | S4: 8130000 | T4: 813 | U4: 0 | V4: 0
A5: 2022-03-01 | B5: B58Y4R3 | C5: GUDENG PRECISION INDUSTRIAL | D5: 80000 | E5: 840314.14 | F5: 761524.48 | G5: 28.049 | H5: TWD | I5: 212392 | J5: 10.50392675 | K5: 9.519056 | L5: 7.2941935 | M5: 583535.48 | N5: 80000 | O5: 840314.14 | P5: TW0003680005 | Q5: 3680 TT | R5: 23352498 | S5: 21360000 | T5: 267 | U5: 0 | V5: 0 | W5: 80000

Sheet OTM (hidden)
A1: =IF(AO1="","",AO1) ->  | B1: =IF(AND(AP1="",E1<>""),1,"") ->  | C1: =IF(OR(AO1="",AQ1=""),"",AQ1) ->  | D1: =IF(OR(AO1="",AR1=""),"",AR1) ->  | E1: =IF(OR(AO1="",AS1=""),"",AS1) ->  | F1: =IF(OR(AT1="",AT1="(blank)"),"",AT1) ->  | G1: =IF(OR(AU1="",AU1=0),"",AU1) ->  | H1: =IF(AV1="","",IF(F1="Corporate Action",AY1,AV1)) ->  | I1: =IF(BF1="","",IF(BF1=1,AW1,AW1)) ->  | J1: =IF(H1="","",H1*I1) ->  | K1: =IF(OR(BC1="",BD1<>"SS"),"",BC1) ->  | L1: =IF(OR(AY1="",BD1<>"SS"),"",AY1) ->  | M1: =IF(OR(AZ1="",BD1<>"SS"),"",AZ1) ->  | N1: =IF(OR(BB1="",BD1<>"SS"),"",BB1) ->  | O1: =IF(L1="","",L1*I1) ->  | P1: =IF(OR(BB1="",BD1<>"SS"),"",BB1-BA1) ->  | Q1: =IF(OR(BC1="",BD1<>"SI"),"",BC1) ->  | R1: =IF(OR(AP1="",BD1<>"SI"),"",AP1) ->  | S1: =IF(OR(AZ1="",BD1<>"SI"),"",T1/H1) ->  | T1: =IF(OR(BA1="",BD1<>"SI"),"",BA1) ->  | U1: =IF(OR(BE1="",BE1="(blank)",BD1="SI",BD1="SS"),"",BE1) ->  | V1: =IF(OR(BC1="",BC1="(blank)",BD1="SI",BD1="SS",BE1="(blank)"),"",BC1) ->  | W1: =IF(OR(AY1="",AY1="(blank)",BD1="SI",BD1="SS",BE1="(blank)"),"",AY1) ->  | X1: =IF(OR(BA1="",BA1="(blank)",BD1="SI",BD1="SS",BE1="(blank)"),"",BA1) ->  | Y1: =IF(N1="","",N1-O1-P1) ->  | Z1: =IF(T1="","",T1) ->  | AA1: =IF(Z1="","",IF(J1>0,Z1,"")) ->  | AB1: =IF(Y1="","",IF(Y1>=0,Y1,"")) ->  | AC1: =IF(AB1="","",IF(G1="","",AB1*G1)) ->  | AD1: =IF(Z1="","",IF(J1<=0,Z1,"")) ->  | AE1: =IF(AD1="","",IF(G1="","",AD1*G1)) ->  | AF1: =IF(H1="","",IF(BD1="SS",H1-L1,IF(F1="","",H1))) ->  | AG1: =IF($F1="","",IF($F1="Dividend",$AH1/$AF1,IF($F1="SELL",$I1,($J1-IF($X1="",0,$X1))/$AF1))) ->  | AH1: =IF($F1="","",IF($F1="Dividend",$AX1,AG1*AF1)) ->  | AJ1: =IF(K1="",IF(V1="",IF(R1="","",R1),V1),K1) ->  | AK1: =IF(BF1="","",BF1) ->  | AL1: =IF(BG1="","",BG1) ->  | AN1: =IF(A1="","",IF(ISNA(VLOOKUP(A1,$AQ$9:$AR$53,2,0)),100,VLOOKUP(A1,$AQ$9:$AR$53,2,0))) -> 
B2: ="TRANSACTIONS OF THE OUT-OF-THE-MONEY (OTM) RECLASSED SECURITIES FOR THE MONTH OF "&UPPER(TEXT(EndDate,"MMMm-yyyy")) -> TRANSACTIONS OF THE OUT-OF-THE-MONEY (OTM) RECLASSED SECURITIES FOR THE MONTH OF MAY-2022
A9: SeqName | B9: No. | C9: AccNo | D9: StockCode | E9: StockName | F9: TranType | G9: ExRate | H9: BeginUFV | I9: BeginCostPrice | J9: BeginCost | K9: DisposeDt | L9: DisposeShare | M9: DisposePrice | N9: DisposeValue | O9: DisposeCost | P9: DisposeExpense | Q9: DivExDt | R9: DivPayDt | S9: DivPrice | T9: DivValue | U9: CorpType | V9: CorpDt | W9: CorpShare | X9: CorpValue | Y9: TotalGnL | Z9: TotalIncome | AA9: ShariahIncome | AB9: FundCurGain | AC9: RMGain | AD9: FundCurIncome | AE9: RMIncome | AF9: EndUFV | AG9: EndCostPrice | AH9: EndCost | AI9: Remarks | AJ9: TradeDT | AK9: row_num | AL9: ImportCost | AM9: ReclassDt | AN9: Seq | AQ9: 201507_B4X3RF7 | AR9: 1
A10: 201507_B4X3RF7 | B10: 1 | C10: 212392 | D10: B4X3RF7 | E10: SIHUAN PHARMACEUTICAL HLDGS | F10: Dividend | G10: 4.3465 | H10: 1000000 | I10: 0.66442027 | J10: 664420.27 | O10: N/A | Q10: 2015-09-11 | R10: 2015-09-23 | S10: 0.00219353 | T10: 2193.53 | Z10: 2193.53 | AA10: 2193.53 | AF10: 1000000 | AG10: 0.66222674 | AH10: 662226.74 | AJ10: =IF(K10="",IF(V10="",IF(R10="","",R10),V10),K10) -> 2015-09-23 | AM10: 2015-07-01 | AN10: 1 | AQ10: 201603_6582483 | AR10: 2
A11: 201507_B4X3RF7 | B11: 1 | C11: 212392 | D11: B4X3RF7 | E11: SIHUAN PHARMACEUTICAL HLDGS | F11: Dividend | G11: 4.292 | H11: 1000000 | I11: 0.66222674 | J11: 662226.74 | O11: N/A | Q11: 2015-12-17 | R11: 2015-12-30 | S11: 0.00206428 | T11: 2064.28 | Z11: 2064.28 | AA11: 2064.28 | AF11: 1000000 | AG11: 0.66016246 | AH11: 660162.46 | AJ11: =IF(K11="",IF(V11="",IF(R11="","",R11),V11),K11) -> 2015-12-30 | AM11: 2015-07-01 | AN11: 1 | AQ11: 201603_BDGN274 | AR11: 3
A12: 201507_B4X3RF7 | B12: 1 | C12: 212392 | D12: B4X3RF7 | E12: SIHUAN PHARMACEUTICAL HLDGS | F12: Dividend | G12: 3.9715 | H12: 1000000 | I12: 0.66016246 | J12: 660162.46 | O12: N/A | Q12: 2016-06-30 | R12: 2016-07-13 | S12: 0.00683298 | T12: 6832.98 | Z12: 6832.98 | AA12: 6832.98 | AF12: 1000000 | AG12: 0.65332948 | AH12: 653329.48 | AJ12: 2016-07-13 | AM12: 2015-07-01 | AN12: 1 | AQ12: 201603_B08X163 | AR12: 4
A13: 201507_B4X3RF7 | B13: 1 | C13: 212392 | D13: B4X3RF7 | E13: SIHUAN PHARMACEUTICAL HLDGS | F13: Dividend | G13: 4.1445 | H13: 1000000 | I13: 0.65332948 | J13: 653329.48 | O13: N/A | Q13: 2016-09-05 | R13: 2016-09-15 | S13: 0.00206219 | T13: 2062.19 | Z13: 2062.19 | AA13: 2062.19 | AF13: 1000000 | AG13: 0.65126729 | AH13: 651267.29 | AJ13: 2016-09-15 | AM13: 2015-07-01 | AN13: 1 | AQ13: 201606_6490928 | AR13: 5
A14: 201507_B4X3RF7 | B14: 1 | C14: 212392 | D14: B4X3RF7 | E14: SIHUAN PHARMACEUTICAL HLDGS | F14: Dividend | G14: 4.296 | H14: 1000000 | I14: 0.65126729 | J14: 651267.29 | O14: N/A | Q14: 2017-06-22 | R14: 2017-07-05 | S14: 0.01319261 | T14: 13192.61 | Z14: 13192.61 | AA14: 13192.61 | AF14: 1000000 | AG14: 0.63807468 | AH14: 638074.68 | AJ14: 2017-07-05 | AM14: 2015-07-01 | AN14: 1 | AQ14: 201606_B682TF7 | AR14: 6
A15: 201507_B4X3RF7 | B15: 1 | C15: 212392 | D15: B4X3RF7 | E15: SIHUAN PHARMACEUTICAL HLDGS | F15: Dividend | G15: 4.191 | H15: 1000000 | I15: 0.63807468 | J15: 638074.68 | O15: N/A | Q15: 2017-09-01 | R15: 2017-09-13 | S15: 0.00268845 | T15: 2688.45 | Z15: 2688.45 | AA15: 2688.45 | AF15: 1000000 | AG15: 0.63538623 | AH15: 635386.23 | AJ15: 2017-09-13 | AM15: 2015-07-01 | AN15: 1 | AQ15: 201609_B1VT035 | AR15: 7
A16: 201603_6582483 | B16: 1 | C16: 212392 | D16: 6582483 | E16: Sun Pharmaceutical Industries Limited | F16: Dividend | G16: 4.1325 | H16: 75866 | I16: 15.00915548 | J16: 1138684.59 | O16: N/A | Q16: 2016-09-08 | R16: 2016-09-21 | S16: 0.01492196768 | T16: 1132.07 | Z16: 1132.07 | AA16: 1132.07 | AF16: 75866 | AG16: 14.99423352 | AH16: 1137552.52 | AJ16: 2016-09-21 | AM16: 2016-03-01 | AN16: 2 | AQ16: 201609_6164472 | AR16: 8
A17: 201603_6582483 | B17: 1 | C17: 212392 | D17: 6582483 | E17: Sun Pharmaceutical Industries Limited | F17: SELL | G17: 4.2165 | H17: 75866 | I17: 14.99423352 | J17: 1137552.52 | K17: 2016-10-17 | L17: 802 | M17: 13.46349127 | N17: 10797.72 | O17: 12025.37528 | P17: 32.4 | Y17: -1260.055281 | AF17: 75064 | AG17: 14.99423352 | AH17: 1125527.145 | AJ17: 2016-10-17 | AM17: 2016-03-01 | AN17: 2 | AQ17: 201609_6345783 | AR17: 9
A18: 201603_6582483 | B18: 1 | C18: 212392 | D18: 6582483 | E18: Sun Pharmaceutical Industries Limited | F18: SELL | G18: 4.2955 | H18: 75064 | I18: 14.99423352 | J18: 1125527.145 | K18: 2017-05-23 | L18: 18000 | M18: 9.399846667 | N18: 169197.24 | O18: 269896.2033 | P18: 507.59 | Y18: -101206.5533 | AF18: 57064 | AG18: 14.99423352 | AH18: 855630.9414 | AJ18: 2017-05-23 | AM18: 2016-03-01 | AN18: 2 | AQ18: 201706_6707899 | AR18: 10
A19: 201603_6582483 | B19: 1 | C19: 212392 | D19: 6582483 | E19: Sun Pharmaceutical Industries Limited | F19: SELL | G19: 4.277 | H19: 57064 | I19: 14.99423352 | J19: 855630.9414 | K19: 2017-05-25 | L19: 6000 | M19: 9.109455 | N19: 54656.73 | O19: 89965.4011 | P19: 163.97 | Y19: -35472.6411 | AF19: 51064 | AG19: 14.99423352 | AH19: 765665.5403 | AJ19: 2017-05-25 | AM19: 2016-03-01 | AN19: 2 | AQ19: 201706_B02PY22 | AR19: 11
A20: 201603_6582483 | B20: 1 | C20: 212392 | D20: 6582483 | E20: Sun Pharmaceutical Industries Limited | F20: SELL | G20: 4.276 | H20: 51064 | I20: 14.99423352 | J20: 765665.5403 | K20: 2017-05-29 | L20: 650 | M20: 7.793892308 | N20: 5066.03 | O20: 9746.251786 | P20: 15.2 | Y20: -4695.421786 | AF20: 50414 | AG20: 14.99423352 | AH20: 755919.2885 | AJ20: 2017-05-29 | AM20: 2016-03-01 | AN20: 2 | AQ20: 201706_6291767 | AR20: 12
A21: 201603_6582483 | B21: 1 | C21: 212392 | D21: 6582483 | E21: Sun Pharmaceutical Industries Limited | F21: Dividend | G21: 4.1895 | H21: 50414 | I21: 14.99423352 | J21: 755919.2885 | O21: N/A | Q21: 2017-09-18 | R21: 2017-09-29 | S21: 0.05358233824 | T21: 2701.3 | Z21: 2701.3 | AA21: 2701.3 | AF21: 50414 | AG21: 14.94065118 | AH21: 753217.9885 | AJ21: 2017-09-29 | AM21: 2016-03-01 | AN21: 2 | AQ21: 201708_6193937 | AR21: 13
A22: 201603_6582483 | B22: 1 | C22: 212392 | D22: 6582483 | E22: Sun Pharmaceutical Industries Limited | F22: SELL | G22: 4.2355 | H22: 50414 | I22: 14.94065118 | J22: 753217.9885 | K22: 2017-11-03 | L22: 12000 | M22: 8.589041667 | N22: 103068.5 | O22: 179287.8141 | P22: 154.6 | Y22: -76373.91415 | AF22: 38414 | AG22: 14.94065118 | AH22: 573930.1744 | AJ22: 2017-11-03 | AM22: 2016-03-01 | AN22: 2 | AQ22: 201709_6193937 | AR22: 14
A23: 201603_6582483 | B23: 1 | C23: 212392 | D23: 6582483 | E23: Sun Pharmaceutical Industries Limited | F23: SELL | G23: 3.9875 | H23: 38414 | I23: 14.94065118 | J23: 573930.1744 | K23: 2018-06-08 | L23: 5000 | M23: 7.824202 | N23: 39121.01 | O23: 74703.25589 | P23: 78.25 | Y23: -35660.49589 | AF23: 33414 | AG23: 14.94065118 | AH23: 499226.9185 | AJ23: 2018-06-08 | AM23: 2016-03-01 | AN23: 2 | AQ23: 201710_BZ60JT0 | AR23: 15
A24: 201603_6582483 | B24: 1 | C24: 212392 | D24: 6582483 | E24: Sun Pharmaceutical Industries Limited | F24: SELL | G24: 4.0165 | H24: 33414 | I24: 14.94065118 | J24: 499226.9185 | K24: 2018-06-25 | L24: 11896 | M24: 8.615443006 | N24: 102489.31 | O24: 177733.9864 | P24: 204.98 | Y24: -75449.65642 | AF24: 21518 | AG24: 14.94065118 | AH24: 321492.9321 | AJ24: 2018-06-25 | AM24: 2016-03-01 | AN24: 2 | AQ24: 201803_B17KMY7 | AR24: 16
A25: 201603_6582483 | B25: 1 | C25: 212392 | D25: 6582483 | E25: Sun Pharmaceutical Industries Limited | F25: SELL | G25: 4.1283 | H25: 21518 | I25: 14.94065118 | J25: 321492.9321 | K25: 2018-09-03 | L25: 6111 | M25: 9.446853216 | N25: 57729.72 | O25: 91302.31935 | P25: 115.46 | Y25: -33688.05935 | AF25: 15407 | AG25: 14.94065118 | AH25: 230190.6127 | AJ25: 2018-09-03 | AM25: 2016-03-01 | AN25: 2 | AQ25: 201803_BZ8TP86 | AR25: 17
A26: 201603_6582483 | B26: 1 | C26: 212392 | D26: 6582483 | E26: Sun Pharmaceutical Industries Limited | F26: SELL | G26: 4.1475 | H26: 15407 | I26: 14.94065118 | J26: 230190.6127 | K26: 2018-09-05 | L26: 2189 | M26: 9.349853815 | N26: 20466.83 | O26: 32705.08543 | P26: 40.94 | Y26: -12279.19543 | AF26: 13218 | AG26: 14.94065118 | AH26: 197485.5273 | AJ26: 2018-09-05 | AM26: 2016-03-01 | AN26: 2 | AQ26: 201806_6535432 | AR26: 18
A27: 201603_6582483 | B27: 1 | C27: 212392 | D27: 6582483 | E27: Sun Pharmaceutical Industries Limited | F27: SELL | G27: 4.1455 | H27: 13218 | I27: 14.94065118 | J27: 197485.5273 | K27: 2018-09-06 | L27: 13218 | M27: 9.330776971 | N27: 123334.21 | O27: 197485.5273 | P27: 246.67 | Y27: -74397.98728 | AF27: 0 | AG27: 14.94065118 | AH27: 0 | AJ27: 2018-09-06 | AM27: 2016-03-01 | AN27: 2 | AQ27: 201806_6889106 | AR27: 19
A28: 201603_BDGN274 | B28: 1 | C28: 212392 | D28: BDGN274 | E28: Philippine Long Distance Telephone Co. (now known as PLDT Inc.) | F28: Dividend | G28: 4.077 | H28: 5000 | I28: 68.519392 | J28: 342596.96 | O28: N/A | Q28: 2016-08-11 | R28: 2016-09-01 | S28: 0.734082 | T28: 3670.41 | Z28: 3670.41 | AA28: 3670.41 | AF28: 5000 | AG28: 67.78531 | AH28: 338926.55 | AJ28: 2016-09-01 | AM28: 2016-03-01 | AN28: 3 | AQ28: 201806_BDQZP48 | AR28: 20
A29: 201603_BDGN274 | B29: 1 | C29: 212392 | D29: BDGN274 | E29: Philippine Long Distance Telephone Co. (now known as PLDT Inc.) | F29: Dividend | G29: 4.436 | H29: 5000 | I29: 67.78531 | J29: 338926.55 | O29: N/A | Q29: 2017-03-16 | R29: 2017-04-06 | S29: 0.390594 | T29: 1952.97 | Z29: 1952.97 | AA29: 1952.97 | AF29: 5000 | AG29: 67.394716 | AH29: 336973.58 | AJ29: 2017-04-06 | AM29: 2016-03-01 | AN29: 3 | AQ29: 201809_BS7JP33 | AR29: 21
A30: 201603_BDGN274 | B30: 1 | C30: 212392 | D30: BDGN274 | E30: Philippine Long Distance Telephone Co. (now known as PLDT Inc.) | F30: Dividend | G30: 4.196 | H30: 5000 | I30: 67.394716 | J30: 336973.58 | O30: N/A | Q30: 2017-08-22 | R30: 2017-09-08 | S30: 0.66041 | T30: 3302.05 | Z30: 3302.05 | AA30: 3302.05 | AF30: 5000 | AG30: 66.734306 | AH30: 333671.53 | AJ30: 2017-09-08 | AM30: 2016-03-01 | AN30: 3 | AQ30: 201903_6592943 | AR30: 22
A31: 201603_BDGN274 | B31: 1 | C31: 212392 | D31: BDGN274 | E31: Philippine Long Distance Telephone Co. (now known as PLDT Inc.) | F31: Dividend | G31: 3.9183 | H31: 5000 | I31: 66.734306 | J31: 333671.53 | Q31: 2018-04-10 | R31: 2018-04-27 | S31: 0.377104 | T31: 1885.52 | Z31: 1885.52 | AA31: 1885.52 | AF31: 5000 | AG31: 66.357202 | AH31: 331786.01 | AJ31: 2018-04-27 | AM31: 2016-03-01 | AN31: 3 | AQ31: 201905_6538527 | AR31: 23
A32: 201603_BDGN274 | B32: 1 | C32: 212392 | D32: BDGN274 | E32: Philippine Long Distance Telephone Co. (now known as PLDT Inc.) | F32: Dividend | G32: 4.1445 | H32: 5000 | I32: 66.357202 | J32: 331786.01 | Q32: 2018-08-22 | R32: 2018-09-11 | S32: 0.467216 | T32: 2336.08 | Z32: 2336.08 | AA32: 2336.08 | AF32: 5000 | AG32: 65.889986 | AH32: 329449.93 | AJ32: 2018-09-11 | AM32: 2016-03-01 | AN32: 3 | AQ32: 201905_6603737 | AR32: 24
A33: 201603_BDGN274 | B33: 1 | C33: 212392 | D33: BDGN274 | E33: Philippine Long Distance Telephone Co. (now known as PLDT Inc.) | F33: Dividend | G33: 4.128 | H33: 5000 | I33: 65.889986 | J33: 329449.93 | Q33: 2019-04-01 | R33: 2019-04-23 | S33: 0.48415 | T33: 2420.75 | Z33: 2420.75 | AA33: 2420.75 | AF33: 5000 | AG33: 65.405836 | AH33: 327029.18 | AJ33: 2019-04-23 | AM33: 2016-03-01 | AN33: 3 | AQ33: 201905_6434915 | AR33: 25
A34: 201603_BDGN274 | B34: 1 | C34: 212392 | D34: BDGN274 | E34: Philippine Long Distance Telephone Co. (now known as PLDT Inc.) | F34: Dividend | G34: 4.1735 | H34: 5000 | I34: 65.405836 | J34: 327029.18 | Q34: 2019-08-20 | R34: 2019-09-10 | S34: 0.484708 | T34: 2423.54 | Z34: 2423.54 | AA34: 2423.54 | AF34: 5000 | AG34: 64.921128 | AH34: 324605.64 | AJ34: 2019-09-10 | AM34: 2016-03-01 | AN34: 3 | AQ34: 201908_B1VQ5C0 | AR34: 26
A35: 201603_BDGN274 | B35: 1 | C35: 212392 | D35: BDGN274 | E35: Philippine Long Distance Telephone Co. (now known as PLDT Inc.) | F35: SELL | G35: 4.137 | H35: 5000 | I35: 64.921128 | J35: 324605.64 | K35: 2020-02-07 | L35: 5000 | M35: 20.945754 | N35: 104728.77 | O35: 324605.64 | P35: 774.99 | Y35: -220651.86 | AF35: 0 | AG35: 64.921128 | AH35: 0 | AJ35: 2020-02-07 | AM35: 2016-03-01 | AN35: 3 | AQ35: 201911_6015644 | AR35: 27
A36: 201603_B08X163 | B36: 1 | C36: 212392 | D36: B08X163 | E36: Sembcorp Industries Ltd | F36: Dividend | G36: 4.0185 | H36: 204000 | I36: 4.31570549 | J36: 880403.92 | O36: N/A | Q36: 2016-04-22 | R36: 2016-05-17 | S36: 0.0438725 | T36: 8949.99 | Z36: 8949.99 | AA36: 8949.99 | AF36: 204000 | AG36: 4.27183299 | AH36: 871453.93 | AJ36: 2016-05-17 | AM36: 2016-03-01 | AN36: 4 | AQ36: 201911_6272483 | AR36: 28
A37: 201603_B08X163 | B37: 1 | C37: 212392 | D37: B08X163 | E37: Sembcorp Industries Ltd | F37: Dividend | G37: 4.054 | H37: 204000 | I37: 4.27183299 | J37: 871453.93 | O37: N/A | Q37: 2016-08-16 | R37: 2016-08-31 | S37: 0.0293502451 | T37: 5987.45 | Z37: 5987.45 | AA37: 5987.45 | AF37: 204000 | AG37: 4.242482745 | AH37: 865466.48 | AJ37: 2016-08-31 | AM37: 2016-03-01 | AN37: 4 | AQ37: 201911_B1BL581 | AR37: 29
A38: 201603_B08X163 | B38: 1 | C38: 212392 | D38: B08X163 | E38: Sembcorp Industries Ltd | F38: SELL | G38: 4.4545 | H38: 204000 | I38: 4.242482745 | J38: 865466.48 | K38: 2017-03-03 | L38: 24000 | M38: 2.314109167 | N38: 55538.62 | O38: 101819.5859 | P38: 133.29 | Y38: -46414.25588 | AF38: 180000 | AG38: 4.242482745 | AH38: 763646.8941 | AJ38: 2017-03-03 | AM38: 2016-03-01 | AN38: 4 | AQ38: 201911_B4X3RF7 | AR38: 30
A39: 201603_B08X163 | B39: 1 | C39: 212392 | D39: B08X163 | E39: Sembcorp Industries Ltd | F39: SELL | G39: 4.4605 | H39: 180000 | I39: 4.242482745 | J39: 763646.8941 | K39: 2017-03-09 | L39: 18000 | M39: 2.259930556 | N39: 40678.75 | O39: 76364.68941 | P39: 97.64 | Y39: -35783.57941 | AF39: 162000 | AG39: 4.242482745 | AH39: 687282.2047 | AJ39: 2017-03-09 | AM39: 2016-03-01 | AN39: 4 | AQ39: 202003_B01VZN9 | AR39: 31
A40: 201603_B08X163 | B40: 1 | C40: 212392 | D40: B08X163 | E40: Sembcorp Industries Ltd | F40: Dividend | G40: 4.3185 | H40: 162000 | I40: 4.242482745 | J40: 687282.2047 | O40: N/A | Q40: 2017-04-24 | R40: 2017-05-16 | S40: 0.02867895062 | T40: 4645.99 | Z40: 4645.99 | AA40: 4645.99 | AF40: 162000 | AG40: 4.213803794 | AH40: 682636.2147 | AJ40: 2017-05-16 | AM40: 2016-03-01 | AN40: 4 | AQ40: 202006_6916628 | AR40: 32
A41: 201603_B08X163 | B41: 1 | C41: 212392 | D41: B08X163 | E41: Sembcorp Industries Ltd | F41: SELL | G41: 4.2705 | H41: 162000 | I41: 4.213803794 | J41: 682636.2147 | K41: 2017-08-31 | L41: 32000 | M41: 2.194919062 | N41: 70237.41 | O41: 134841.7214 | P41: 63.21 | Y41: -64667.52142 | AF41: 130000 | AG41: 4.213803794 | AH41: 547794.4933 | AJ41: 2017-08-31 | AM41: 2016-03-01 | AN41: 4 | AQ41: 202006_6454861 | AR41: 33
A42: 201603_B08X163 | B42: 1 | C42: 212392 | D42: B08X163 | E42: Sembcorp Industries Ltd | F42: Dividend | G42: 4.2705 | H42: 130000 | I42: 4.213803794 | J42: 547794.4933 | O42: N/A | Q42: 2017-08-15 | R42: 2017-08-31 | S42: 0.0220912963 | T42: 3578.79 | Z42: 3578.79 | AA42: 3578.79 | AF42: 130000 | AG42: 4.186274641 | AH42: 544215.7033 | AJ42: 2017-08-31 | AM42: 2016-03-01 | AN42: 4 | AQ42: 202006_6495428 | AR42: 34
A43: 201603_B08X163 | B43: 1 | C43: 212392 | D43: B08X163 | E43: Sembcorp Industries Ltd | F43: Dividend | G43: 3.9575 | H43: 130000 | I43: 4.186274641 | J43: 544215.7033 | Q43: 2018-04-25 | R43: 2018-05-15 | S43: 0.01488369231 | T43: 1934.88 | Z43: 1934.88 | AA43: 1934.88 | AF43: 130000 | AG43: 4.171390948 | AH43: 542280.8233 | AJ43: 2018-05-15 | AM43: 2016-03-01 | AN43: 4 | AQ43: 202006_B2RJPM0 | AR43: 35
A44: 201603_B08X163 | B44: 1 | C44: 212392 | D44: B08X163 | E44: Sembcorp Industries Ltd | F44: Dividend | G44: 4.1105 | H44: 130000 | I44: 4.171390948 | J44: 542280.8233 | Q44: 2018-08-14 | R44: 2018-08-31 | S44: 0.014598 | T44: 1897.74 | Z44: 1897.74 | AA44: 1897.74 | AF44: 130000 | AG44: 4.156792948 | AH44: 540383.0833 | AJ44: 2018-08-31 | AM44: 2016-03-01 | AN44: 4 | AQ44: 202009_B1VKYN6 | AR44: 36
A45: 201603_B08X163 | B45: 1 | C45: 212392 | D45: B08X163 | E45: Sembcorp Industries Ltd | F45: Dividend | G45: 4.166 | H45: 130000 | I45: 4.156792948 | J45: 540383.0833 | Q45: 2019-04-24 | R45: 2019-05-13 | S45: 0.01460546154 | T45: 1898.71 | Z45: 1898.71 | AA45: 1898.71 | AF45: 130000 | AG45: 4.142187487 | AH45: 538484.3733 | AJ45: 2019-05-13 | AM45: 2016-03-01 | AN45: 4 | AQ45: 202009_6080396 | AR45: 37
A46: 201603_B08X163 | B46: 1 | C46: 212392 | D46: B08X163 | E46: Sembcorp Industries Ltd | F46: Dividend | G46: 4.203 | H46: 130000 | I46: 4.142187487 | J46: 538484.3733 | Q46: 2019-08-21 | R46: 2019-09-04 | S46: 0.01444353846 | T46: 1877.66 | Z46: 1877.66 | AA46: 1877.66 | AF46: 130000 | AG46: 4.127743948 | AH46: 536606.7133 | AJ46: 2019-09-04 | AM46: 2016-03-01 | AN46: 4 | AQ46: 202009_B232R05 | AR46: 38
A47: 201603_B08X163 | B47: 1 | C47: 212392 | D47: B08X163 | E47: Sembcorp Industries Ltd | F47: Dividend | G47: 4.203 | H47: 130000 | I47: 4.127743948 | J47: 536606.7133 | Q47: 2020-05-26 | R47: 2020-06-03 | S47: 0.02147461538 | T47: 2791.7 | Z47: 2791.7 | AA47: 2791.7 | AF47: 130000 | AG47: 4.106269333 | AH47: 533815.0133 | AJ47: 2020-06-03 | AM47: 2016-03-01 | AN47: 4 | AQ47: 202009_6687872 | AR47: 39
A48: 201603_B08X163 | B48: 1 | C48: 212392 | D48: B08X163 | E48: Sembcorp Industries Ltd | F48: Corporate Action | G48: 4.154 | H48: 130000 | I48: 4.106269333 | J48: 533815.0133 | U48: Spin Off | V48: 2020-09-11 | W48: 130000 | X48: 193483.95 | AF48: 130000 | AG48: 3.193410718 | AH48: 415143 | AJ48: 2020-09-11 | AM48: 2016-03-01 | AN48: 4 | AQ48: 202009_6205133 | AR48: 40
A49: 201603_B08X163 | B49: 1 | C49: 212392 | D49: B08X163 | E49: Sembcorp Industries Ltd | F49: Dividend | G49: 4.122 | H49: 130000 | I49: 3.193410718 | J49: 415143.3933 | Q49: 2021-04-27 | R49: 2021-05-06 | S49: 0.02999061538 | T49: 3898.78 | Z49: 3898.78 | AA49: 3898.78 | AF49: 130000 | AG49: 3.163420102 | AH49: 411244.6133 | AJ49: 2021-05-06 | AM49: 2016-03-01 | AN49: 4 | AQ49: 202009_BYVS6J1 | AR49: 41
A50: 201603_B08X163 | B50: 1 | C50: 212392 | D50: B08X163 | E50: Sembcorp Industries Ltd | F50: Dividend | G50: 4.2175 | H50: 130000 | I50: 3.163420102 | J50: 411244.6133 | Q50: 2021-08-16 | R50: 2021-08-24 | S50: 0.01477107692 | T50: 1920.24 | Z50: 1920.24 | AA50: 1920.24 | AF50: 130000 | AG50: 3.148649025 | AH50: 409324.3733 | AJ50: 2021-08-24 | AM50: 2016-03-01 | AN50: 4 | AQ50: 202012_BDFBM13 | AR50: 42
A51: 201606_6490928 | B51: 1 | C51: 212392 | D51: 6490928 | E51: KIA Motors Corporation | F51: Dividend | G51: 4.398 | H51: 13339 | I51: 43.08911613 | J51: 574765.72 | O51: N/A | Q51: 2016-12-28 | R51: 2017-04-24 | S51: 0.8275065597 | T51: 11038.11 | Z51: 11038.11 | AA51: 11038.11 | AF51: 13339 | AG51: 42.26160957 | AH51: 563727.61 | AJ51: 2017-04-24 | AM51: 2016-06-01 | AN51: 5 | AQ51: 202012_BJVBTY1 | AR51: 43
A52: 201606_B682TF7 | B52: 1 | C52: 212392 | D52: B682TF7 | E52: E-Mart, Inc. | F52: SELL | G52: 4.4605 | H52: 3668 | I52: 208.8493948 | J52: 766059.58 | K52: 2017-03-09 | L52: 451 | M52: 179.2492683 | N52: 80841.42 | O52: 94191.07704 | P52: 404.2 | Y52: -13753.85704 | AF52: 3217 | AG52: 208.8493948 | AH52: 671868.503 | AJ52: 2017-03-09 | AM52: 2016-06-01 | AN52: 6 | AQ52: 202012_B1638D8 | AR52: 44
A53: 201606_B682TF7 | B53: 1 | C53: 212392 | D53: B682TF7 | E53: E-Mart, Inc. | F53: SELL | G53: 4.408 | H53: 3217 | I53: 208.8493948 | J53: 671868.503 | K53: 2017-03-27 | L53: 260 | M53: 190.5139615 | N53: 49533.63 | O53: 54300.84264 | P53: 247.67 | Y53: -5014.882639 | AF53: 2957 | AG53: 208.8493948 | AH53: 617567.6603 | AJ53: 2017-03-27 | AM53: 2016-06-01 | AN53: 6 | AQ53: 202012_6100476 | AR53: 45
A54: 201606_B682TF7 | B54: 1 | C54: 212392 | D54: B682TF7 | E54: E-Mart, Inc. | F54: Dividend | G54: 4.43 | H54: 2957 | I54: 208.8493948 | J54: 617567.6603 | O54: N/A | Q54: 2016-12-28 | R54: 2017-04-05 | S54: 1.13398855 | T54: 4159.47 | Z54: 4159.47 | AA54: 4159.47 | AF54: 2957 | AG54: 207.4427428 | AH54: 613408.1903 | AJ54: 2017-04-05 | AM54: 2016-06-01 | AN54: 6
A55: 201606_B682TF7 | B55: 1 | C55: 212392 | D55: B682TF7 | E55: E-Mart, Inc. | F55: SELL | G55: 4.4355 | H55: 2957 | I55: 207.4427428 | J55: 613408.1903 | K55: 2017-04-07 | L55: 500 | M55: 196.75966 | N55: 98379.83 | O55: 103721.3714 | P55: 491.9 | Y55: -5833.441377 | AF55: 2457 | AG55: 207.4427428 | AH55: 509686.8189 | AJ55: 2017-04-07 | AM55: 2016-06-01 | AN55: 6
A56: 201606_B682TF7 | B56: 1 | C56: 212392 | D56: B682TF7 | E56: E-Mart, Inc. | F56: SELL | G56: 4.4365 | H56: 2457 | I56: 207.4427428 | J56: 509686.8189 | K56: 2017-04-10 | L56: 2457 | M56: 198.3199227 | N56: 487272.05 | O56: 509686.8189 | P56: 2436.36 | Y56: -24851.12895 | AF56: 0 | AG56: 207.4427428 | AH56: 0 | AJ56: 2017-04-10 | AM56: 2016-06-01 | AN56: 6
A57: 201609_B1VT035 | B57: 1 | C57: 212392 | D57: B1VT035 | E57: Yangzijiang Shipbuilding (Holdings) Ltd. | F57: SELL | G57: 4.4545 | H57: 300000 | I57: 1.103220633 | J57: 330966.19 | K57: 2017-03-03 | L57: 300000 | M57: 0.7355112333 | N57: 220653.37 | O57: 330966.19 | P57: 529.57 | Y57: -110842.39 | AF57: 0 | AG57: 1.103220633 | AH57: 0 | AJ57: 2017-03-03 | AM57: 2016-09-01 | AN57: 7
A58: 201609_6164472 | B58: 1 | C58: 212392 | D58: 6164472 | E58: Golden Agri-Resources Ltd | F58: SELL | G58: 4.466 | H58: 2000000 | I58: 0.359262435 | J58: 718524.87 | K58: 2016-11-30 | L58: 500000 | M58: 0.30019548 | N58: 150097.74 | O58: 179631.2175 | P58: 135.1 | Y58: -29668.5775 | AF58: 1500000 | AG58: 0.359262435 | AH58: 538893.6525 | AJ58: 2016-11-30 | AM58: 2016-09-01 | AN58: 8
A59: 201609_6164472 | B59: 1 | C59: 212392 | D59: 6164472 | E59: Golden Agri-Resources Ltd | F59: SELL | G59: 4.422 | H59: 1500000 | I59: 0.359262435 | J59: 538893.6525 | K59: 2016-12-08 | L59: 200000 | M59: 0.30968515 | N59: 61937.03 | O59: 71852.487 | P59: 55.75 | Y59: -9971.207 | AF59: 1300000 | AG59: 0.359262435 | AH59: 467041.1655 | AJ59: 2016-12-08 | AM59: 2016-09-01 | AN59: 8
A60: 201609_6164472 | B60: 1 | C60: 212392 | D60: 6164472 | E60: Golden Agri-Resources Ltd | F60: SELL | G60: 4.4985 | H60: 1300000 | I60: 0.359262435 | J60: 467041.1655 | K60: 2017-01-04 | L60: 260000 | M60: 0.2950569615 | N60: 76714.81 | O60: 93408.2331 | P60: 184.12 | Y60: -16877.5431 | AF60: 1040000 | AG60: 0.359262435 | AH60: 373632.9324 | AJ60: 2017-01-04 | AM60: 2016-09-01 | AN60: 8
A61: 201609_6164472 | B61: 1 | C61: 212392 | D61: 6164472 | E61: Golden Agri-Resources Ltd | F61: SELL | G61: 4.4705 | H61: 1040000 | I61: 0.359262435 | J61: 373632.9324 | K61: 2017-01-11 | L61: 100000 | M61: 0.2988705 | N61: 29887.05 | O61: 35926.2435 | P61: 71.73 | Y61: -6110.9235 | AF61: 940000 | AG61: 0.359262435 | AH61: 337706.6889 | AJ61: 2017-01-11 | AM61: 2016-09-01 | AN61: 8
A62: 201609_6164472 | B62: 1 | C62: 212392 | D62: 6164472 | E62: Golden Agri-Resources Ltd | F62: SELL | G62: 4.4355 | H62: 940000 | I62: 0.359262435 | J62: 337706.6889 | K62: 2017-01-24 | L62: 100000 | M62: 0.2999824 | N62: 29998.24 | O62: 35926.2435 | P62: 72 | Y62: -6000.0035 | AF62: 840000 | AG62: 0.359262435 | AH62: 301780.4454 | AJ62: 2017-01-24 | AM62: 2016-09-01 | AN62: 8
A63: 201609_6164472 | B63: 1 | C63: 212392 | D63: 6164472 | E63: Golden Agri-Resources Ltd | F63: SELL | G63: 4.429 | H63: 840000 | I63: 0.359262435 | J63: 301780.4454 | K63: 2017-01-31 | L63: 100000 | M63: 0.3052243 | N63: 30522.43 | O63: 35926.2435 | P63: 75.93 | Y63: -5479.7435 | AF63: 740000 | AG63: 0.359262435 | AH63: 265854.2019 | AJ63: 2017-01-31 | AM63: 2016-09-01 | AN63: 8
A64: 201609_6164472 | B64: 1 | C64: 212392 | D64: 6164472 | E64: Golden Agri-Resources Ltd | F64: SELL | G64: 4.4345 | H64: 740000 | I64: 0.359262435 | J64: 265854.2019 | K64: 2017-02-07 | L64: 120000 | M64: 0.2999505833 | N64: 35994.07 | O64: 43111.4922 | P64: 83.68 | Y64: -7201.1022 | AF64: 620000 | AG64: 0.359262435 | AH64: 222742.7097 | AJ64: 2017-02-07 | AM64: 2016-09-01 | AN64: 8
A65: 201609_6164472 | B65: 1 | C65: 212392 | D65: 6164472 | E65: Golden Agri-Resources Ltd | F65: SELL | G65: 4.456 | H65: 620000 | I65: 0.359262435 | J65: 222742.7097 | K65: 2017-02-16 | L65: 620000 | M65: 0.3103399516 | N65: 192410.77 | O65: 222742.7097 | P65: 447.35 | Y65: -30779.2897 | AF65: 0 | AG65: 0.359262435 | AH65: 0 | AJ65: 2017-02-16 | AM65: 2016-09-01 | AN65: =IF(A65="","",IF(ISNA(VLOOKUP(A65,$AQ$9:$AR$53,2,0)),100,VLOOKUP(A65,$AQ$9:$AR$53,2,0))) -> 8
A66: 201609_6345783 | B66: 1 | C66: 212392 | D66: 6345783 | E66: Eclat Textile Co., Ltd. | F66: SELL | G66: 4.2975 | H66: 10230 | I66: 16.20956305 | J66: 165823.83 | K66: 2017-07-04 | L66: 10230 | M66: 12.55853177 | N66: 128473.78 | O66: 165823.83 | P66: 642.38 | Y66: -37992.43 | AF66: 0 | AG66: 16.20956305 | AH66: 0 | AJ66: 2017-07-04 | AM66: 2016-09-01 | AN66: 9
A67: 201706_6707899 | B67: 1 | C67: 212392 | D67: 6707899 | E67: AVICHINA INDUSTRY & TECH-H | F67: SELL | G67: 4.2605 | H67: 800000 | I67: 0.974845 | J67: 779876 | K67: 2017-09-05 | L67: 116000 | M67: 0.5859366379 | N67: 67968.65 | O67: 113082.02 | P67: 107.21 | Y67: -45220.58 | AF67: 684000 | AG67: 0.974845 | AH67: 666793.98 | AJ67: 2017-09-05 | AM67: 2017-06-01 | AN67: 10
A68: 201706_6707899 | B68: 1 | C68: 212392 | D68: 6707899 | E68: AVICHINA INDUSTRY & TECH-H | F68: SELL | G68: 4.152 | H68: 684000 | I68: 0.974845 | J68: 666793.98 | K68: 2017-11-20 | L68: 75000 | M68: 0.5229006667 | N68: 39217.55 | O68: 73113.375 | P68: 61.93 | Y68: -33957.755 | AF68: 609000 | AG68: 0.974845 | AH68: 593680.605 | AJ68: 2017-11-20 | AM68: 2017-06-01 | AN68: 10
A69: 201706_6707899 | B69: 1 | C69: 212392 | D69: 6707899 | E69: AVICHINA INDUSTRY & TECH-H | F69: SELL | G69: 3.9035 | H69: 609000 | I69: 0.974845 | J69: 593680.605 | K69: 2018-03-06 | L69: 609000 | M69: 0.6268487192 | N69: 381750.87 | O69: 593680.605 | P69: 792.99 | Y69: -212722.725 | AF69: 0 | AG69: 0.974845 | AH69: 0 | AJ69: 2018-03-06 | AM69: 2017-06-01 | AN69: 10
A70: 201706_B02PY22 | B70: 1 | C70: 212392 | D70: B02PY22 | E70: SINGAPORE TELECOMMUNICATIONS | F70: SELL | G70: 4.282 | H70: 203000 | I70: 2.913295123 | J70: 591398.91 | K70: 2017-07-25 | L70: 203000 | M70: 2.887599557 | N70: 586182.71 | O70: 591398.91 | P70: 1406.83 | Y70: -6623.03 | AF70: 0 | AG70: 2.913295123 | AH70: 0 | AJ70: 2017-07-25 | AM70: 2017-06-01 | AN70: 11
A71: 201706_6291767 | B71: 1 | C71: 212392 | D71: 6291767 | E71: CIPUTRA DEVELOPMENT TBK PT | F71: SELL | G71: 4.281 | H71: 3132400 | I71: 0.09802205019 | J71: 307044.27 | K71: 2017-06-02 | L71: 132400 | M71: 0.08459086103 | N71: 11199.83 | O71: 12978.11944 | P71: 46.82 | Y71: -1825.109445 | AF71: 3000000 | AG71: 0.09802205019 | AH71: 294066.1506 | AJ71: 2017-06-02 | AM71: 2017-06-01 | AN71: 12
A72: 201706_6291767 | B72: 1 | C72: 212392 | D72: 6291767 | E72: CIPUTRA DEVELOPMENT TBK PT | F72: Dividend | G72: 4.293 | H72: 3000000 | I72: 0.09802205019 | J72: 294066.1506 | O72: N/A | Q72: 2017-07-03 | R72: 2017-07-14 | S72: 0.0003205 | T72: 961.5 | Z72: 961.5 | AA72: 961.5 | AF72: 3000000 | AG72: 0.09770155019 | AH72: 293104.6506 | AJ72: 2017-07-14 | AM72: 2017-06-01 | AN72: 12
A73: 201706_6291767 | B73: 1 | C73: 212392 | D73: 6291767 | E73: CIPUTRA DEVELOPMENT TBK PT | F73: SELL | G73: 4.2915 | H73: 3000000 | I73: 0.09770155019 | J73: 293104.6506 | K73: 2017-08-09 | L73: 599600 | M73: 0.0885694463 | N73: 53106.24 | O73: 58581.84949 | P73: 106.74 | Y73: -5582.349491 | AF73: 2400400 | AG73: 0.09770155019 | AH73: 234522.8011 | AJ73: 2017-08-09 | AM73: 2017-06-01 | AN73: 12
A74: 201706_6291767 | B74: 1 | C74: 212392 | D74: 6291767 | E74: CIPUTRA DEVELOPMENT TBK PT | F74: SELL | G74: 4.2915 | H74: 2400400 | I74: 0.09770155019 | J74: 234522.8011 | K74: 2017-08-10 | L74: 1058400 | M74: 0.08788301209 | N74: 93015.38 | O74: 103407.3207 | P74: 188.83 | Y74: -10580.77072 | AF74: 1342000 | AG74: 0.09770155019 | AH74: 131115.4803 | AJ74: 2017-08-10 | AM74: 2017-06-01 | AN74: 12
A75: 201706_6291767 | B75: 1 | C75: 212392 | D75: 6291767 | E75: CIPUTRA DEVELOPMENT TBK PT | F75: SELL | G75: 4.295 | H75: 1342000 | I75: 0.09770155019 | J75: 131115.4803 | K75: 2017-08-11 | L75: 1342000 | M75: 0.08409929955 | N75: 112861.26 | O75: 131115.4803 | P75: 229.11 | Y75: -18483.33035 | AF75: 0 | AG75: 0.09770155019 | AH75: 0 | AJ75: =IF(K75="",IF(V75="",IF(R75="","",R75),V75),K75) -> 2017-08-11 | AM75: 2017-06-01 | AN75: 12
A76: 201708_6193937 | B76: 1 | C76: 212392 | D76: 6193937 | E76: I-CABLE COMMUNICATIONS LTD | F76: SELL | G76: 4.191 | H76: 85161 | I76: 0.03935075915 | J76: 3351.15 | K76: 2017-09-13 | L76: 85161 | M76: 0.03085309003 | N76: 2627.48 | O76: 3351.15 | P76: 4.2 | Y76: -727.87 | AF76: 0 | AG76: 0.03935075915 | AH76: 0 | AI76: Spin off from WHEELOCK & CO. LTD (ex-date 25Aug17, paid date: 11Sep17) .Disposed by 13-Sep-2017 | AJ76: 2017-09-13 | AM76: 2017-08-25 | AN76: 13
A77: 201709_6193937 | B77: 1 | C77: 212392 | D77: 6193937 | E77: I-CABLE COMMUNICATIONS LTD | F77: SELL | G77: 4.234 | H77: 45990 | I77: 0.03469819526 | J77: 1595.77 | K77: 2017-10-26 | L77: 45990 | M77: 0.02887519026 | N77: 1327.97 | O77: 1595.77 | P77: 2.18 | Y77: -269.98 | AF77: 0 | AG77: 0.03469819526 | AH77: 0 | AI77: Received from spin off event of Wheelock & Co (Ex-date 22Sep17). Disposed within 14 business date from distribution date. | AJ77: 2017-10-26 | AM77: 2017-09-22 | AN77: 14
A78: 201710_BZ60JT0 | B78: 1 | C78: 212392 | D78: BZ60JT0 | E78: LOTTE CONFECTIONERY CO/NEW | F78: SELL | G78: 4.231 | H78: 829 | I78: 207.7828468 | J78: 172251.98 | K78: 2017-10-31 | L78: 829 | M78: 166.6531846 | N78: 138155.49 | O78: 172251.98 | P78: 483.55 | Y78: -34580.04 | AF78: 0 | AG78: 207.7828468 | AH78: 0 | AI78: Received from spin off event of Lotte Confectionery (paid-date 27Oct17). Disposed within 14 business date from distribution date. | AJ78: 2017-10-31 | AM78: 2017-10-30 | AN78: 15
A79: 201710_BZ60JT0 | B79: 1 | C79: 212392 | D79: BZ60JT0 | E79: LOTTE CONFECTIONERY CO/NEW | F79: Corporate Action | U79: Cash in lieu of fraction shares | V79: 2017-11-02 | W79: 0.14664 | X79: 25 | Z79: 25 | AA79: 25 | AI79: Received cash in lieu of fraction shares for 0.14664 shares following Lotte Confectionery spin-off | AJ79: 2017-11-02 | AM79: 2017-10-30 | AN79: 15
A80: 201803_B17KMY7 | B80: 1 | C80: 212392 | D80: B17KMY7 | E80: YANLORD LAND GROUP LTD | F80: SELL | G80: 3.969 | H80: 300000 | I80: 1.4049777 | J80: 421493.31 | K80: 2018-05-17 | L80: 22800 | M80: 1.318337281 | N80: 30058.09 | O80: 32033.49156 | P80: 39.82 | Y80: -2015.22156 | AF80: 277200 | AG80: 1.4049777 | AH80: 389459.8184 | AJ80: 2018-05-17 | AM80: 2018-03-01 | AN80: 16
A81: 201803_B17KMY7 | B81: 1 | C81: 212392 | D81: B17KMY7 | E81: YANLORD LAND GROUP LTD | F81: Dividend | G81: 3.9735 | H81: 277200 | I81: 1.4049777 | J81: 389459.8184 | Q81: 2018-05-18 | R81: 2018-06-05 | S81: 0.05088106061 | T81: 14104.23 | AA81: 14104.23 | AF81: 277200 | AG81: 1.354096639 | AH81: 375355.5884 | AJ81: 2018-06-05 | AM81: 2018-03-01 | AN81: 16
A82: 201803_B17KMY7 | B82: 1 | C82: 212392 | D82: B17KMY7 | E82: YANLORD LAND GROUP LTD | F82: Dividend | G82: 4.1755 | H82: 277200 | I82: 1.354096639 | J82: 375355.5884 | Q82: 2019-05-21 | R82: 2019-06-06 | S82: 0.04985703463 | T82: 13820.37 | AA82: 13820.37 | AF82: 277200 | AG82: 1.304239605 | AH82: 361535.2184 | AJ82: 2019-06-06 | AM82: 2018-03-01 | AN82: 16
A83: 201803_B17KMY7 | B83: 1 | C83: 212392 | D83: B17KMY7 | E83: YANLORD LAND GROUP LTD | F83: Dividend | G83: 4.1905 | H83: 277200 | I83: 1.304239605 | J83: 361535.2184 | Q83: 2020-07-21 | R83: 2020-08-07 | S83: 0.04953740981 | T83: 13731.77 | AA83: 13731.77 | AF83: 277200 | AG83: 1.254702195 | AH83: 347803.4484 | AJ83: 2020-08-07 | AM83: 2018-03-01 | AN83: 16
A84: 201803_B17KMY7 | B84: 1 | C84: 212392 | D84: B17KMY7 | E84: YANLORD LAND GROUP LTD | F84: Dividend | G84: 4.128 | H84: 277200 | I84: 1.254702195 | J84: 347803.4484 | Q84: 2021-05-19 | R84: 2021-06-07 | S84: 0.05138279221 | T84: 14243.31 | AA84: 14243.31 | AF84: 277200 | AG84: 1.203319403 | AH84: 333560.1384 | AJ84: 2021-06-07 | AM84: 2018-03-01 | AN84: 16
A85: 201803_BZ8TP86 | B85: 1 | C85: 212392 | D85: BZ8TP86 | E85: WONIK IPS CO LTD | F85: SELL | G85: 3.9045 | H85: 10300 | I85: 33.46877573 | J85: 344728.39 | K85: 2018-03-02 | L85: 10300 | M85: 32.63990485 | N85: 336191.02 | O85: 344728.39 | P85: 1412 | Y85: -9949.37 | AF85: 0 | AG85: 33.46877573 | AH85: 0 | AJ85: 2018-03-02 | AM85: 2018-03-01 | AN85: 17
A86: 201806_6535432 | B86: 1 | C86: 212392 | D86: 6535432 | E86: Lotte Holdings | F86: Dividend | G86: 4.1315 | H86: 4928 | I86: 73.74439732 | J86: 363412.39 | O86: N/A | Q86: 2018-12-27 | R86: 2019-04-26 | S86: 0.5857021104 | T86: 2886.34 | Z86: 2886.34 | AA86: 2886.34 | AF86: 4928 | AG86: 73.15869521 | AH86: 360526.05 | AJ86: 2019-04-26 | AM86: 2018-06-01 | AN86: 18
A87: 201806_6535432 | B87: 1 | C87: 212392 | D87: 6535432 | E87: Lotte Holdings | F87: Dividend | G87: 4.19 | H87: 4928 | I87: 73.15869521 | J87: 360526.05 | O87: N/A | Q87: 2019-06-27 | R87: 2019-08-23 | S87: 0.2106310877 | T87: 1037.99 | Z87: 1037.99 | AA87: 1037.99 | AF87: 4928 | AG87: 72.94806412 | AH87: 359488.06 | AJ87: 2019-08-23 | AM87: 2018-06-01 | AN87: 18
A88: 201806_6535432 | B88: 1 | C88: 212392 | D88: 6535432 | E88: Lotte Holdings | F88: Dividend | G88: 4.364 | H88: 4928 | I88: 72.94806412 | J88: 359488.06 | O88: N/A | Q88: 2019-12-27 | R88: 2020-04-24 | S88: 0.5504058442 | T88: 2712.4 | Z88: 2712.4 | AA88: 2712.4 | AF88: 4928 | AG88: 72.39765828 | AH88: 356775.66 | AJ88: 2020-04-24 | AM88: 2018-06-01 | AN88: 18
A89: 201806_6535432 | B89: 1 | C89: 212392 | D89: 6535432 | E89: Lotte Holdings | F89: SELL | G89: 4.2655 | H89: 4928 | I89: 72.39765828 | J89: 356775.66 | K89: 2020-07-13 | L89: 4928 | M89: 25.53275771 | N89: 125825.43 | O89: 356775.66 | P89: 427.8 | Y89: -231378.03 | AF89: 0 | AG89: 72.39765828 | AH89: 0 | AJ89: 2020-07-13 | AM89: 2018-06-01 | AN89: 18
A90: 201806_6889106 | B90: 1 | C90: 212392 | D90: 6889106 | E90: Taiwan Semiconductor Manufacturing Co., Ltd. | F90: SELL | G90: 3.9735 | H90: 1050000 | I90: 8.347990152 | J90: 8765389.66 | K90: 2018-06-05 | L90: 50000 | M90: 7.6549178 | N90: 382745.89 | O90: 417399.5076 | P90: 1607.52 | Y90: -36261.13762 | AF90: 1000000 | AG90: 8.347990152 | AH90: 8347990.152 | AJ90: 2018-06-05 | AM90: 2018-06-01 | AN90: 19
A91: 201806_6889106 | B91: 1 | C91: 212392 | D91: 6889106 | E91: Taiwan Semiconductor Manufacturing Co., Ltd. | F91: SELL | G91: 3.9755 | H91: 1000000 | I91: 8.347990152 | J91: 8347990.152 | K91: 2018-06-07 | L91: 24000 | M91: 7.7227225 | N91: 185345.34 | O91: 200351.7637 | P91: 778.47 | Y91: -15784.89366 | AF91: 976000 | AG91: 8.347990152 | AH91: 8147638.389 | AJ91: 2018-06-07 | AM91: 2018-06-01 | AN91: 19
A92: 201806_6889106 | B92: 1 | C92: 212392 | D92: 6889106 | E92: Taiwan Semiconductor Manufacturing Co., Ltd. | F92: SELL | G92: 3.9875 | H92: 976000 | I92: 8.347990152 | J92: 8147638.389 | K92: 2018-06-08 | L92: 19000 | M92: 7.603173158 | N92: 144460.29 | O92: 158611.8129 | P92: 606.73 | Y92: -14758.2529 | AF92: 957000 | AG92: 8.347990152 | AH92: 7989026.576 | AJ92: 2018-06-08 | AM92: 2018-06-01 | AN92: 19
A93: 201806_6889106 | B93: 1 | C93: 212392 | D93: 6889106 | E93: Taiwan Semiconductor Manufacturing Co., Ltd. | F93: Dividend | G93: 4.0655 | H93: 957000 | I93: 8.347990152 | J93: 7989026.576 | Q93: 2018-06-25 | R93: 2018-07-19 | S93: 0.2063302926 | T93: 197458.09 | AA93: 197458.09 | AF93: 957000 | AG93: 8.14165986 | AH93: 7791568.486 | AJ93: 2018-07-19 | AM93: 2018-06-01 | AN93: 19
A94: 201806_6889106 | B94: 1 | C94: 212392 | D94: 6889106 | E94: Taiwan Semiconductor Manufacturing Co., Ltd. | F94: SELL | G94: 4.0615 | H94: 957000 | I94: 8.14165986 | J94: 7791568.486 | K94: 2018-07-20 | L94: 27000 | M94: 7.640427407 | N94: 206291.54 | O94: 219824.8162 | P94: 866.45 | Y94: -14399.72621 | AF94: 930000 | AG94: 8.14165986 | AH94: 7571743.67 | AJ94: 2018-07-20 | AM94: 2018-06-01 | AN94: 19
A95: 201806_6889106 | B95: 1 | C95: 212392 | D95: 6889106 | E95: Taiwan Semiconductor Manufacturing Co., Ltd. | F95: SELL | G95: 4.062 | H95: 930000 | I95: 8.14165986 | J95: 7571743.67 | K95: 2018-07-23 | L95: 50000 | M95: 7.9490736 | N95: 397453.68 | O95: 407082.993 | P95: 1669.3 | Y95: -11298.61299 | AF95: 880000 | AG95: 8.14165986 | AH95: 7164660.677 | AJ95: 2018-07-23 | AM95: 2018-06-01 | AN95: 19
A96: 201806_6889106 | B96: 1 | C96: 212392 | D96: 6889106 | E96: Taiwan Semiconductor Manufacturing Co., Ltd. | F96: SELL | G96: 4.06 | H96: 880000 | I96: 8.14165986 | J96: 7164660.677 | K96: 2018-07-25 | L96: 45000 | M96: 7.859999556 | N96: 353699.98 | O96: 366374.6937 | P96: 1485.53 | Y96: -14160.24369 | AF96: 835000 | AG96: 8.14165986 | AH96: 6798285.983 | AJ96: 2018-07-25 | AM96: 2018-06-01 | AN96: 19
A97: 201806_6889106 | B97: 1 | C97: 212392 | D97: 6889106 | E97: Taiwan Semiconductor Manufacturing Co., Ltd. | F97: SELL | G97: 4.0645 | H97: 835000 | I97: 8.14165986 | J97: 6798285.983 | K97: 2018-07-30 | L97: 26000 | M97: 7.988368462 | N97: 207697.58 | O97: 211683.1564 | P97: 872.31 | Y97: -4857.886355 | AF97: 809000 | AG97: 8.14165986 | AH97: 6586602.827 | AJ97: 2018-07-30 | AM97: 2018-06-01 | AN97: 19
A98: 201806_6889106 | B98: 1 | C98: 212392 | D98: 6889106 | E98: Taiwan Semiconductor Manufacturing Co., Ltd. | F98: SELL | G98: 4.065 | H98: 809000 | I98: 8.14165986 | J98: 6586602.827 | K98: 2018-07-31 | L98: 40000 | M98: 7.9991995 | N98: 319967.98 | O98: 325666.3944 | P98: 1343.89 | Y98: -7042.304392 | AF98: 769000 | AG98: 8.14165986 | AH98: 6260936.432 | AJ98: 2018-07-31 | AM98: 2018-06-01 | AN98: 19
A99: 201806_6889106 | B99: 1 | C99: 212392 | D99: 6889106 | E99: Taiwan Semiconductor Manufacturing Co., Ltd. | F99: SELL | G99: 4.0675 | H99: 769000 | I99: 8.14165986 | J99: 6260936.432 | K99: 2018-08-01 | L99: 26000 | M99: 8.094123077 | N99: 210447.2 | O99: 211683.1564 | P99: 883.88 | Y99: -2119.836355 | AF99: 743000 | AG99: 8.14165986 | AH99: 6049253.276 | AJ99: 2018-08-01 | AM99: 2018-06-01 | AN99: 19
A100: 201806_6889106 | B100: 1 | C100: 212392 | D100: 6889106 | E100: Taiwan Semiconductor Manufacturing Co., Ltd. | F100: SELL | G100: 4.0745 | H100: 743000 | I100: 8.14165986 | J100: 6049253.276 | K100: 2018-08-02 | L100: 32000 | M100: 8.03391125 | N100: 257085.16 | O100: 260533.1155 | P100: 1079.78 | Y100: -4527.735514 | AF100: 711000 | AG100: 8.14165986 | AH100: 5788720.16 | AJ100: 2018-08-02 | AM100: 2018-06-01 | AN100: 19
A101: 201806_6889106 | B101: 1 | C101: 212392 | D101: 6889106 | E101: Taiwan Semiconductor Manufacturing Co., Ltd. | F101: SELL | G101: 4.0735 | H101: 711000 | I101: 8.14165986 | J101: 5788720.16 | K101: 2018-08-08 | L101: 30000 | M101: 8.034489333 | N101: 241034.68 | O101: 244249.7958 | P101: 1012.34 | Y101: -4227.455794 | AF101: 681000 | AG101: 8.14165986 | AH101: 5544470.365 | AJ101: 2018-08-08 | AM101: 2018-06-01 | AN101: 19
A102: 201806_6889106 | B102: 1 | C102: 212392 | D102: 6889106 | E102: Taiwan Semiconductor Manufacturing Co., Ltd. | F102: SELL | G102: 4.0865 | H102: 681000 | I102: 8.14165986 | J102: 5544470.365 | K102: 2018-08-10 | L102: 472000 | M102: 8.023578496 | N102: 3787129.05 | O102: 3842863.454 | P102: 15905.92 | Y102: -71640.32383 | AF102: 209000 | AG102: 8.14165986 | AH102: 1701606.911 | AJ102: 2018-08-10 | AM102: 2018-06-01 | AN102: 19
A103: 201806_6889106 | B103: 1 | C103: 212392 | D103: 6889106 | E103: Taiwan Semiconductor Manufacturing Co., Ltd. | F103: SELL | G103: 4.0955 | H103: 209000 | I103: 8.14165986 | J103: 1701606.911 | K103: 2018-08-28 | L103: 209000 | M103: 8.111777321 | N103: 1695361.46 | O103: 1701606.911 | P103: 7120.54 | Y103: -13365.9907 | AF103: 0 | AG103: 8.14165986 | AH103: 0 | AJ103: 2018-08-28 | AM103: 2018-06-01 | AN103: 19
A104: 201806_BDQZP48 | B104: 1 | C104: 212392 | D104: BDQZP48 | E104: COUNTRY GARDEN SERVICES HOLD | F104: SELL | G104: 4.001 | H104: 49540 | I104: 0.936072063 | J104: 46373.01 | K104: 2018-06-19 | L104: 49540 | M104: 1.299688535 | N104: 64386.57 | O104: 46373.01 | P104: 133.81 | Y104: 17879.75 | AF104: 0 | AG104: 0.936072063 | AH104: 0 | AI104: Received from spin off event of COUNTRY GARDEN HOLDINGS CO (Ex-date 11Jun18). Disposed within 14 business date from distribution date. Any capital gain derived from the disposal shall be recognized as shariah income. | AJ104: 2018-06-19 | AM104: 2018-06-11 | AN104: 20
A105: 201809_BS7JP33 | B105: 1 | C105: 212392 | D105: BS7JP33 | E105: GLOBALWAFERS CO LTD | F105: Dividend | G105: 4.1845 | H105: 38000 | I105: 17.55899763 | J105: 667241.91 | O105: N/A | Q105: 2019-07-17 | R105: 2019-08-12 | S105: 0.6293415789 | T105: 23914.98 | Z105: 23914.98 | AA105: 23914.98 | AF105: 38000 | AG105: 16.92965605 | AH105: 643326.93 | AJ105: 2019-08-12 | AM105: 2018-09-03 | AN105: 21
A106: 201809_BS7JP33 | B106: 1 | C106: 212392 | D106: BS7JP33 | E106: GLOBALWAFERS CO LTD | F106: Dividend | G106: 4.1905 | H106: 38000 | I106: 16.92965605 | J106: 643326.93 | O106: N/A | Q106: 2020-07-16 | R106: 2020-08-07 | S106: 0.5914986842 | T106: 22476.95 | Z106: 22476.95 | AA106: 22476.95 | AF106: 38000 | AG106: 16.33815737 | AH106: 620849.98 | AJ106: 2020-08-07 | AM106: 2018-09-03 | AN106: 21
A107: 201809_BS7JP33 | B107: 1 | C107: 212392 | D107: BS7JP33 | E107: GLOBALWAFERS CO LTD | F107: Corporate Action | G107: 4.1905 | H107: 38000 | I107: 16.33815737 | J107: 620849.98 | O107: N/A | U107: Capital Repayment | V107: 2020-08-08 | W107: 38000 | X107: 4659.15 | AF107: 38000 | AG107: 16.21554816 | AH107: 616190.83 | AJ107: 2020-08-08 | AM107: 2018-09-03 | AN107: 21
A108: 201809_BS7JP33 | B108: 1 | C108: 212392 | D108: BS7JP33 | E108: GLOBALWAFERS CO LTD | F108: SELL | G108: 4.0675 | H108: 38000 | I108: 16.21554816 | J108: 616190.83 | K108: 2020-11-26 | L108: 38000 | M108: 17.40107289 | N108: 661240.77 | O108: 616190.83 | P108: 2578.83 | Y108: 42471.11 | AB108: 42471.11 | AC108: 172751.2299 | AF108: 0 | AG108: 16.21554816 | AH108: 0 | AJ108: 2020-11-26 | AM108: 2018-09-03 | AN108: 21
A109: 201903_6592943 | B109: 1 | C109: 212392 | D109: 6592943 | E109: AMATA CORP PUBLIC CO LTD-FOR | F109: SELL | G109: 4.1365 | H109: 240000 | I109: 0.7008871667 | J109: 168212.92 | K109: 2019-04-17 | L109: 120000 | M109: 0.70197525 | N109: 84237.03 | O109: 84106.46 | P109: 93.08 | Y109: 37.49 | AB109: 37.49 | AC109: 155.077385 | AF109: 120000 | AG109: 0.7008871667 | AH109: 84106.46 | AJ109: 2019-04-17 | AM109: 2019-03-01 | AN109: 22
A110: 201903_6592943 | B110: 1 | C110: 212392 | D110: 6592943 | E110: AMATA CORP PUBLIC CO LTD-FOR | F110: SELL | G110: 4.1365 | H110: 120000 | I110: 0.7008871667 | J110: 84106.46 | K110: 2019-04-22 | L110: 120000 | M110: 0.7091865 | N110: 85102.38 | O110: 84106.46 | P110: 94.04 | Y110: 901.88 | AB110: 901.88 | AC110: 3730.62662 | AF110: 0 | AG110: 0.7008871667 | AH110: 0 | AJ110: 2019-04-22 | AM110: 2019-03-01 | AN110: 22
A111: 201905_6538527 | B111: 1 | C111: 212392 | D111: 6538527 | E111: SUMMARECON AGUNG TBK PT | F111: SELL | G111: 4.134 | H111: 4377100 | I111: 0.08657177355 | J111: 378933.31 | K111: 2019-07-01 | L111: 3025000 | M111: 0.08758638347 | N111: 264948.81 | O111: 261879.615 | P111: 663.7 | Y111: 2405.495015 | AB111: 2405.495015 | AC111: 9944.316393 | AF111: 1352100 | AG111: 0.08657177355 | AH111: 117053.695 | AJ111: 2019-07-01 | AM111: 2019-05-29 | AN111: 23
A112: 201905_6538527 | B112: 1 | C112: 212392 | D112: 6538527 | E112: SUMMARECON AGUNG TBK PT | F112: SELL | G112: 4.1385 | H112: 1352100 | I112: 0.08657177355 | J112: 117053.695 | K112: 2019-07-10 | L112: 1352100 | M112: 0.08704883515 | N112: 117698.73 | O112: 117053.695 | P112: 297.78 | Y112: 347.2549848 | AB112: 347.2549848 | AC112: 1437.114755 | AF112: 0 | AG112: 0.08657177355 | AH112: 0 | AJ112: 2019-07-10 | AM112: 2019-05-29 | AN112: 23
A113: 201905_6538527 | B113: 1 | C113: 212392 | D113: 6538527 | E113: SUMMARECON AGUNG TBK PT | F113: Dividend | G113: 4.1105 | H113: 0 | I113: 0 | J113: 0 | Q113: 2019-07-01 | R113: 2019-07-19 | S113: 0.0003229284229 | T113: 1413.49 | AD113: 1413.49 | AE113: 5810.150645 | AF113: 0 | AG113: - | AH113: 0 | AJ113: 2019-07-19 | AM113: 2019-05-29 | AN113: 23
A114: 201905_6603737 | B114: 1 | C114: 212392 | D114: 6603737 | E114: COMFORTDELGRO CORP LTD | F114: SELL | G114: 4.1355 | H114: 187400 | I114: 2.002597759 | J114: 375286.82 | K114: 2019-07-04 | L114: 187400 | M114: 2.01983778 | N114: 378517.6 | O114: 375286.82 | P114: 454.23 | Y114: 2776.55 | AB114: 2776.55 | AC114: 11482.42253 | AF114: 0 | AG114: 2.002597759 | AH114: 0 | AJ114: 2019-07-04 | AM114: 2019-05-29 | AN114: 24
A115: 201905_6434915 | B115: 1 | C115: 212392 | D115: 6434915 | E115: HONGKONG LAND HOLDINGS LTD | F115: Dividend | G115: 4.1845 | H115: 196900 | I115: 7.218657643 | J115: 1421353.69 | O115: N/A | Q115: 2019-08-22 | R115: 2019-10-17 | S115: 0.06 | T115: 11814 | Z115: 11814 | AA115: 11814 | AF115: 196900 | AG115: 7.158657643 | AH115: 1409539.69 | AJ115: 2019-10-17 | AM115: 2019-05-29 | AN115: 25
A116: 201905_6434915 | B116: 1 | C116: 212392 | D116: 6434915 | E116: HONGKONG LAND HOLDINGS LTD | F116: Dividend | G116: 4.328 | H116: 196900 | I116: 7.158657643 | J116: 1409539.69 | O116: N/A | Q116: 2020-03-19 | R116: 2020-05-13 | S116: 0.16 | T116: 31504 | Z116: 31504 | AA116: 31504 | AF116: 196900 | AG116: 6.998657643 | AH116: 1378035.69 | AJ116: 2020-05-13 | AM116: 2019-05-29 | AN116: 25
A117: 201905_6434915 | B117: 1 | C117: 212392 | D117: 6434915 | E117: HONGKONG LAND HOLDINGS LTD | F117: Dividend | G117: 4.1485 | H117: 196900 | I117: 6.998657643 | J117: 1378035.69 | O117: N/A | Q117: 2020-08-20 | R117: 2020-10-14 | S117: 0.06 | T117: 11814 | Z117: 11814 | AA117: 11814 | AF117: 196900 | AG117: 6.938657643 | AH117: 1366221.69 | AJ117: 2020-10-14 | AM117: 2019-05-29 | AN117: 25
A118: 201905_6434915 | B118: 1 | C118: 212392 | D118: 6434915 | E118: HONGKONG LAND HOLDINGS LTD | F118: Dividend | G118: 4.1255 | H118: 196900 | I118: 6.938657643 | J118: 1366221.69 | O118: N/A | Q118: 2021-03-25 | R118: 2021-05-12 | S118: 0.16 | T118: 31504 | Z118: 31504 | AA118: 31504 | AF118: 196900 | AG118: 6.778657643 | AH118: 1334717.69 | AJ118: 2021-05-12 | AM118: 2019-05-29 | AN118: 25
A119: 201905_6434915 | B119: 1 | C119: 212392 | D119: 6434915 | E119: HONGKONG LAND HOLDINGS LTD | F119: Dividend | G119: 4.16 | H119: 196900 | I119: 6.778657643 | J119: 1334717.69 | O119: N/A | Q119: 2021-08-19 | R119: 2021-10-13 | S119: 0.06 | T119: 11814 | Z119: 11814 | AA119: 11814 | AF119: 196900 | AG119: 6.718657643 | AH119: 1322903.69 | AJ119: 2021-10-13 | AM119: 2019-05-29 | AN119: 25
A120: 201908_B1VQ5C0 | B120: 1 | C120: 212392 | D120: B1VQ5C0 | E120: KEPPEL CORP LTD | F120: Dividend | G120: 4.2755 | H120: 263000 | I120: 5.634034183 | J120: 1481750.99 | O120: N/A | Q120: 2020-06-08 | R120: 2020-06-18 | S120: 0.08615117871 | T120: 22657.76 | Z120: 22657.76 | AA120: 22657.76 | AF120: 263000 | AG120: 5.547883004 | AH120: 1459093.23 | AJ120: 2020-06-18 | AM120: 2019-08-28 | AN120: 26
A121: 201908_B1VQ5C0 | B121: 1 | C121: 212392 | D121: B1VQ5C0 | E121: KEPPEL CORP LTD | F121: Dividend | G121: 4.1755 | H121: 263000 | I121: 5.547883004 | J121: 1459093.23 | O121: N/A | Q121: 2020-08-07 | R121: 2020-08-20 | S121: 0.02192422053 | T121: 5766.07 | Z121: 5766.07 | AA121: 5766.07 | AF121: 263000 | AG121: 5.525958783 | AH121: 1453327.16 | AJ121: 2020-08-20 | AM121: 2019-08-28 | AN121: 26
A122: 201908_B1VQ5C0 | B122: 1 | C122: 212392 | D122: B1VQ5C0 | E122: KEPPEL CORP LTD | F122: Dividend | G122: 4.1185 | H122: 263000 | I122: 5.525958783 | J122: 1453327.16 | O122: N/A | Q122: 2021-04-29 | R122: 2021-05-11 | S122: 0.05279631179 | T122: 13885.43 | Z122: 13885.43 | AA122: 13885.43 | AF122: 263000 | AG122: 5.473162471 | AH122: 1439441.73 | AJ122: 2021-05-11 | AM122: 2019-08-28 | AN122: 26
A123: 201908_B1VQ5C0 | B123: 1 | C123: 212392 | D123: B1VQ5C0 | E123: KEPPEL CORP LTD | F123: Dividend | G123: 4.2385 | H123: 263000 | I123: 5.473162471 | J123: 1439441.73 | O123: N/A | Q123: 2021-08-06 | R123: 2021-08-19 | S123: 0.08795718631 | T123: 23132.74 | Z123: 23132.74 | AA123: 23132.74 | AF123: 263000 | AG123: 5.385205285 | AH123: 1416308.99 | AJ123: 2021-08-19 | AM123: 2019-08-28 | AN123: 26
A124: 201911_6015644 | B124: 1 | C124: 212392 | D124: 6015644 | E124: ANGANG STEEL CO LTD-H | F124: Dividend | G124: 4.2825 | H124: 3584669 | I124: 0.4301734219 | J124: 1542029.33 | O124: N/A | Q124: 2020-06-01 | R124: 2020-06-30 | S124: 0.007199582444 | T124: 25808.12 | Z124: 25808.12 | AA124: 25808.12 | AF124: 3584669 | AG124: 0.4229738394 | AH124: 1516221.21 | AJ124: 2020-06-30 | AM124: 2019-11-27 | AN124: 27
A125: 201911_6015644 | B125: 1 | C125: 212392 | D125: 6015644 | E125: ANGANG STEEL CO LTD-H | F125: SELL | G125: 4.069 | H125: 3584669 | I125: 0.4229738394 | J125: 1516221.21 | K125: 2020-11-27 | L125: 236000 | M125: 0.432396822 | N125: 102045.65 | O125: 99821.8261 | P125: 130.31 | Y125: 2093.513896 | AB125: 2093.513896 | AC125: 8518.508041 | AF125: 3348669 | AG125: 0.4229738394 | AH125: 1416399.384 | AJ125: 2020-11-27 | AM125: 2019-11-27 | AN125: 27
A126: 201911_6015644 | B126: 1 | C126: 212392 | D126: 6015644 | E126: ANGANG STEEL CO LTD-H | F126: SELL | G126: 4.074 | H126: 3348669 | I126: 0.4229738394 | J126: 1416399.384 | K126: 2020-11-30 | L126: 1086000 | M126: 0.4325185451 | N126: 469715.14 | O126: 459349.5896 | P126: 599.89 | Y126: 9765.660384 | AB126: 9765.660384 | AC126: 39785.2904 | AF126: 2262669 | AG126: 0.4229738394 | AH126: 957049.7943 | AJ126: 2020-11-30 | AM126: 2019-11-27 | AN126: 27
A127: 201911_6015644 | B127: 1 | C127: 212392 | D127: 6015644 | E127: ANGANG STEEL CO LTD-H | F127: SELL | G127: 4.078 | H127: 2262669 | I127: 0.4229738394 | J127: 957049.7943 | K127: 2020-12-01 | L127: 498000 | M127: 0.4308648996 | N127: 214570.72 | O127: 210640.972 | P127: 263.37 | Y127: 3666.367966 | AB127: 3666.367966 | AC127: 14951.46857 | AF127: 1764669 | AG127: 0.4229738394 | AH127: 746408.8222 | AJ127: 2020-12-01 | AM127: 2019-11-27 | AN127: 27
A128: 201911_6015644 | B128: 1 | C128: 212392 | D128: 6015644 | E128: ANGANG STEEL CO LTD-H | F128: SELL | G128: 4.0765 | H128: 1764669 | I128: 0.4229738394 | J128: 746408.8222 | K128: 2020-12-02 | L128: 1764669 | M128: 0.4338078303 | N128: 765527.23 | O128: 746408.8222 | P128: 977.65 | Y128: 18140.75775 | AB128: 18140.75775 | AC128: 73950.80899 | AF128: 0 | AG128: 0.4229738394 | AH128: 0 | AJ128: 2020-12-02 | AM128: 2019-11-27 | AN128: 27
A129: 201911_6272483 | B129: 1 | C129: 212392 | D129: 6272483 | E129: DMCI HOLDINGS INC | F129: Dividend | G129: 4.357 | H129: 1004000 | I129: 0.2968347012 | J129: 298022.04 | O129: N/A | Q129: 2020-03-18 | R129: 2020-04-02 | S129: 0.003174920319 | T129: 3187.62 | Z129: 3187.62 | AA129: 3187.62 | AF129: 1004000 | AG129: 0.2936597809 | AH129: 294834.42 | AJ129: 2020-04-02 | AM129: 2019-11-27 | AN129: =IF(A129="","",IF(ISNA(VLOOKUP(A129,$AQ$9:$AR$53,2,0)),100,VLOOKUP(A129,$AQ$9:$AR$53,2,0))) -> 28
A130: 201911_6272483 | B130: 1 | C130: 212392 | D130: 6272483 | E130: DMCI HOLDINGS INC | F130: Dividend | G130: 4.357 | H130: 1004000 | I130: 0.2936597809 | J130: 294834.42 | O130: N/A | Q130: 2020-03-18 | R130: 2020-04-03 | S130: 0.003450996016 | T130: 3464.8 | Z130: 3464.8 | AA130: 3464.8 | AF130: 1004000 | AG130: 0.2902087849 | AH130: 291369.62 | AJ130: 2020-04-03 | AM130: 2019-11-27 | AN130: 28
A131: 201911_6272483 | B131: 1 | C131: 212392 | D131: 6272483 | E131: DMCI HOLDINGS INC | F131: SELL | G131: 4.2655 | H131: 1004000 | I131: 0.2902087849 | J131: 291369.62 | K131: 2020-07-13 | L131: 1004000 | M131: 0.08215311753 | N131: 82481.73 | O131: 291369.62 | P131: 610.36 | Y131: -209498.25 | AF131: 0 | AG131: 0.2902087849 | AH131: 0 | AJ131: 2020-07-13 | AM131: 2019-11-27 | AN131: 28
A132: 201911_B1BL581 | B132: 1 | C132: 212392 | D132: B1BL581 | E132: SOBHA LTD | F132: Dividend | G132: 4.1925 | H132: 85809 | I132: 7.461241478 | J132: 640241.67 | O132: N/A | Q132: 2020-07-23 | R132: 2020-08-12 | S132: 0.07401496347 | T132: 6351.15 | Z132: 6351.15 | AA132: 6351.15 | AF132: 85809 | AG132: 7.387226515 | AH132: 633890.52 | AJ132: 2020-08-12 | AM132: 2019-11-27 | AN132: 29
A133: 201911_B4X3RF7 | B133: 1 | C133: 212392 | D133: B4X3RF7 | E133: SIHUAN PHARMACEUTICAL HLDGS | F133: SELL | G133: 4.137 | H133: 870000 | I133: 0.3594592184 | J133: 312729.52 | K133: 2020-02-07 | L133: 870000 | M133: 0.1210599195 | N133: 105322.13 | O133: 312729.52 | P133: 176.65 | Y133: -207584.04 | AF133: 0 | AG133: 0.3594592184 | AH133: 0 | AJ133: 2020-02-07 | AM133: 2019-11-27 | AN133: =IF(A133="","",IF(ISNA(VLOOKUP(A133,$AQ$9:$AR$53,2,0)),100,VLOOKUP(A133,$AQ$9:$AR$53,2,0))) -> 30
A134: 202003_B01VZN9 | B134: 1 | C134: 212392 | D134: B01VZN9 | E134: LG DISPLAY CO | F134: SELL | G134: 4.2655 | H134: 25659 | I134: 27.86389688 | J134: 714959.73 | K134: 2020-07-13 | L134: 25659 | M134: 10.32377489 | N134: 264897.74 | O134: 714959.73 | P134: 900.64 | Y134: -450962.63 | AF134: 0 | AG134: 27.86389688 | AH134: 0 | AJ134: 2020-07-13 | AM134: 2020-03-02 | AN134: 31
A135: 202006_6916628 | B135: 1 | C135: 212392 | D135: 6916628 | E135: UNITED MICROELECTRONICS | F135: SELL | G135: 4.269 | H135: 3175000 | I135: 0.5700636913 | J135: 1809952.22 | K135: 2020-06-08 | L135: 3175000 | M135: 0.5746715969 | N135: 1824582.32 | O135: 1809952.22 | P135: 7115.87 | Y135: 7514.23 | AB135: 7514.23 | AC135: 32078.24787 | AF135: 0 | AG135: 0.5700636913 | AH135: 0 | AJ135: 2020-06-08 | AM135: 2020-06-01 | AN135: 32
A136: 202006_6454861 | B136: 1 | C136: 212392 | D136: 6454861 | E136: INDOCEMENT TUNGGAL | F136: Dividend | G136: 4.1725 | H136: 1403766 | I136: 1.39309501 | J136: 1955579.41 | O136: N/A | Q136: 2020-08-07 | R136: 2020-08-28 | S136: 0.03076923077 | T136: 43192.8 | Z136: 43192.8 | AA136: 43192.8 | AF136: 1403766 | AG136: 1.362325779 | AH136: 1912386.61 | AJ136: 2020-08-28 | AM136: 2020-06-01 | AN136: 33
A137: 202006_6454861 | B137: 1 | C137: 212392 | D137: 6454861 | E137: INDOCEMENT TUNGGAL | F137: Dividend | G137: 4.0395 | H137: 1403766 | I137: 1.362325779 | J137: 1912386.61 | O137: N/A | Q137: 2020-12-08 | R137: 2020-12-18 | S137: 0.01435152297 | T137: 20146.19 | Z137: 20146.19 | AA137: 20146.19 | AF137: 1403766 | AG137: 1.347974249 | AH137: 1892240.42 | AJ137: 2020-12-18 | AM137: 2020-06-01 | AN137: 33
A138: 202006_6454861 | B138: 1 | C138: 212392 | D138: 6454861 | E138: INDOCEMENT TUNGGAL | F138: Dividend | G138: 4.2285 | H138: 1403766 | I138: 1.347974249 | J138: 1892240.42 | O138: N/A | Q138: 2021-07-19 | R138: 2021-08-10 | S138: 0.03128802094 | T138: 43921.06 | Z138: 43921.06 | AA138: 43921.06 | AF138: 1403766 | AG138: 1.316686228 | AH138: 1848319.36 | AJ138: 2021-08-10 | AM138: 2020-06-01 | AN138: 33
A139: 202006_6495428 | B139: 1 | C139: 212392 | D139: 6495428 | E139: KOREA ZINC | F139: SELL | G139: 4.253 | H139: 1291 | I139: 370.5115492 | J139: 478330.41 | K139: 2020-07-28 | L139: 420 | M139: 371.0562143 | N139: 155843.61 | O139: 155614.8507 | P139: 529.82 | Y139: -301.0606584 | AF139: 871 | AG139: 370.5115492 | AH139: 322715.5593 | AJ139: =IF(K139="",IF(V139="",IF(R139="","",R139),V139),K139) -> 2020-07-28 | AM139: 2020-06-01 | AN139: 34
A140: 202006_6495428 | B140: 1 | C140: 212392 | D140: 6495428 | E140: KOREA ZINC | F140: SELL | G140: 4.19 | H140: 871 | I140: 370.5115492 | J140: 322715.5593 | K140: 2020-08-06 | L140: 871 | M140: 373.4843054 | N140: 325304.83 | O140: 322715.5593 | P140: 1106.03 | Y140: 1483.240658 | AB140: 1483.240658 | AC140: 6214.778359 | AF140: 0 | AG140: 370.5115492 | AH140: 0 | AJ140: 2020-08-06 | AM140: 2020-06-01 | AN140: 34
A141: 202006_B2RJPM0 | B141: 1 | C141: 212392 | D141: B2RJPM0 | E141: BUMI SERPONG DAMAI | H141: 7843837 | I141: 0.1023010932 | J141: 802433.1 | O141: N/A | AM141: 2020-06-01 | AN141: 35
A142: 202009_B1VKYN6 | B142: 1 | C142: 212392 | D142: B1VKYN6 | E142: COUNTRY GARDEN HLDGS | F142: Corporate Action | H142: 1226000 | I142: 1.644295196 | J142: 2015905.91 | O142: N/A | U142: Spin Off | V142: 2018-06-15 | AF142: 1226000 | AG142: 1.644295196 | AH142: 2015905.91 | AJ142: 2018-06-15 | AM142: 2020-09-01 | AN142: 36
A143: 202009_B1VKYN6 | B143: 1 | C143: 212392 | D143: B1VKYN6 | E143: COUNTRY GARDEN HLDGS | F143: Dividend | G143: 4.1325 | H143: 1226000 | I143: 1.644295196 | J143: 2015905.91 | O143: N/A | Q143: 2020-09-16 | R143: 2020-11-06 | S143: 0.03103526101 | T143: 38049.23 | Z143: 38049.23 | AA143: 38049.23 | AF143: 1226000 | AG143: 1.613259935 | AH143: 1977856.68 | AJ143: 2020-11-06 | AM143: 2020-09-01 | AN143: 36
A144: 202009_B1VKYN6 | B144: 1 | C144: 212392 | D144: B1VKYN6 | E144: COUNTRY GARDEN HLDGS | F144: Dividend | G144: 4.233 | H144: 1226000 | I144: 1.613259935 | J144: 1977856.68 | O144: N/A | Q144: 2021-06-03 | R144: 2021-08-12 | S144: 0.03856852365 | T144: 47283.07 | Z144: 47283.07 | AA144: 47283.07 | AF144: 1226000 | AG144: 1.574692993 | AH144: 1930573.61 | AJ144: 2021-08-12 | AM144: 2020-09-01 | AN144: 36
A145: 202009_B1VKYN6 | B145: 1 | C145: 212392 | D145: B1VKYN6 | E145: COUNTRY GARDEN HLDGS | F145: Dividend | G145: 4.239 | H145: 1226000 | I145: 1.574692993 | J145: 1930573.61 | O145: N/A | Q145: 2021-09-14 | R145: 2021-11-26 | S145: 0.03278835237 | T145: 40244.21 | Z145: 40244.21 | AA145: 40244.21 | AF145: 1226000 | AG145: 1.541867374 | AH145: 1890329.4 | AJ145: 2021-11-26 | AM145: 2020-09-01 | AN145: 36
A146: 202009_6080396 | B146: 1 | C146: 212392 | D146: 6080396 | E146: ANHUI CONCH CEMENT H | F146: Dividend | G146: 4.1625 | H146: 78500 | I146: 7.703125987 | J146: 604695.39 | O146: N/A | Q146: 2021-06-01 | R146: 2021-06-24 | S146: 0.2970648408 | T146: 23319.59 | Z146: 23319.59 | AA146: 23319.59 | AF146: 78500 | AG146: 7.406061146 | AH146: 581375.8 | AJ146: 2021-06-24 | AM146: 2020-09-01 | AN146: 37
A147: 202009_B232R05 | B147: 1 | C147: 212392 | D147: B232R05 | E147: SK INNOVATION CO | F147: SELL | G147: 4.1205 | H147: 16536 | I147: 142.0809126 | J147: 2349449.97 | K147: 2020-11-10 | L147: 16536 | M147: 144.1080146 | N147: 2382970.13 | O147: 2349449.97 | P147: 8102.1 | Y147: 25418.07 | AB147: 25418.08 | AC147: 104735.1686 | AF147: 0 | AG147: 142.0809126 | AH147: 0 | AJ147: 2020-11-10 | AM147: 2020-09-01 | AN147: 38
A148: 202009_6687872 | B148: 1 | C148: 212392 | D148: 6687872 | E148: KINSUS INTERCONNECT TECH | F148: SELL | G148: 4.1515 | H148: 700000 | I148: 2.486042771 | J148: 1740229.94 | K148: 2020-10-14 | L148: 700000 | M148: 2.511434786 | N148: 1758004.35 | O148: 1740229.94 | P148: 5625.61 | Y148: 12148.8 | AB148: 12148.8 | AC148: 50435.7332 | AF148: 0 | AG148: 2.486042771 | AH148: 0 | AJ148: 2020-10-14 | AM148: 2020-09-01 | AN148: 39
A149: 202009_6205133 | B149: 1 | C149: 212392 | D149: 6205133 | E149: SEMBCORP MARINE LTD | F149: Corporate Action | G149: 4.194 | H149: 638430 | I149: 0.3030621211 | J149: 193483.95 | U149: Rights Issue | V149: 2021-08-27 | W149: 957645 | X149: 1778.224667 | AF149: 638430 | AG149: 0.3002768124 | AH149: 191705.7253 | AJ149: 2021-08-27 | AM149: 2020-09-09 | AN149: 40
A150: 202009_6205133 | B150: 1 | C150: 212392 | D150: 6205133 | E150: SEMBCORP MARINE LTD | F150: SELL | G150: 4.18475 | H150: 638430 | I150: 0.3002768124 | J150: 191705.7253 | K150: 2021-09-29 | L150: 638430 | M150: 0.06011832151 | N150: 38381.34 | P150: 35.5 | Y150: 38345.84 | AB150: 38345.84 | AC150: 160467.7539 | AF150: 0 | AG150: 0.3002768124 | AH150: 0 | AJ150: 2021-09-29 | AM150: 2020-09-09 | AN150: 40
A151: 202009_BYVS6J1 | B151: 1 | C151: 212392 | D151: BYVS6J1 | E151: CK INFRASTRUCTURE HOLDINGS | F151: Dividend | G151: 4.125 | H151: 105500 | I151: 8.723014882 | J151: 920278.07 | O151: N/A | Q151: 2021-05-17 | R151: 2021-06-02 | S151: 0.2306938389 | T151: 24338.2 | Z151: 24338.2 | AA151: 24338.2 | AF151: 105500 | AG151: 8.492321043 | AH151: 895939.87 | AJ151: 2021-06-02 | AM151: 2020-09-29 | AN151: 41
A152: 202009_BYVS6J1 | B152: 1 | C152: 212392 | D152: BYVS6J1 | E152: CK INFRASTRUCTURE HOLDINGS | F152: Dividend | G152: 4.1585 | H152: 105500 | I152: 8.492321043 | J152: 895939.87 | O152: N/A | Q152: 2021-09-03 | R152: 2021-09-15 | S152: 0.08867469194 | T152: 9355.18 | Z152: 9355.18 | AA152: 9355.18 | AF152: 105500 | AG152: 8.403646351 | AH152: 886584.69 | AJ152: 2021-09-15 | AM152: 2020-09-29 | AN152: 41
A153: 202012_BDFBM13 | B153: 1 | C153: 212392 | D153: BDFBM13 | E153: SEMICONDUCTOR MANUFACTURING | F153: SELL | G153: 4.052 | H153: 780500 | I153: 3.351379795 | J153: 2615751.93 | K153: 2021-01-11 | L153: 780500 | M153: 3.380659795 | N153: 2638604.98 | O153: 2615751.93 | P153: 4425.03 | Y153: 18428.02 | AB153: 18428.02 | AC153: 74670.31704 | AF153: 0 | AG153: 3.351379795 | AH153: 0 | AJ153: 2021-01-11 | AM153: 2020-12-01 | AN153: 42
A154: 202012_BJVBTY1 | B154: 1 | C154: 212392 | D154: BJVBTY1 | E154: SHENZHEN INTL HOLDINGS | F154: Dividend | G154: 4.1615 | H154: 1280483 | I154: 1.891267826 | J154: 2421736.3 | O154: N/A | Q154: 2021-05-21 | R154: 2021-06-22 | S154: 0.01571182905 | T154: 20118.73 | Z154: 20118.73 | AA154: 20118.73 | AF154: 1280483 | AG154: 1.875555997 | AH154: 2401617.57 | AJ154: 2021-06-22 | AM154: 2020-12-01 | AN154: 43
A155: 202012_BJVBTY1 | B155: 1 | C155: 212392 | D155: BJVBTY1 | E155: SHENZHEN INTL HOLDINGS | F155: Dividend | G155: 4.1615 | H155: 1280483 | I155: 1.875555997 | J155: 2401617.57 | O155: N/A | Q155: 2021-05-21 | R155: 2021-06-23 | S155: 0.1079222372 | T155: 138192.59 | Z155: 138192.59 | AA155: 138192.59 | AF155: 1280483 | AG155: 1.76763376 | AH155: 2263424.98 | AJ155: 2021-06-23 | AM155: 2020-12-01 | AN155: 43 | AO155: ShowRecord | AP155: 1
A156: 202012_B1638D8 | B156: 1 | C156: 212392 | D156: B1638D8 | E156: AMOREPAC CORP PREF (NEW) | F156: SELL | G156: 4.0365 | H156: 31976 | I156: 62.28354922 | J156: 1991578.77 | K156: 2021-01-15 | L156: 31976 | M156: 63.44831499 | N156: 2028823.32 | O156: 1991578.77 | P156: 6492.23 | Y156: 30752.32 | AB156: 30752.32 | AC156: 124131.7497 | AF156: 0 | AG156: 62.28354922 | AH156: 0 | AJ156: 2021-01-15 | AM156: 2020-12-01 | AN156: 44 | AO156: FilterInOut | AP156: 1
A157: 202012_B1638D8 | B157: 1 | C157: 212392 | D157: B1638D8 | E157: AMOREPAC CORP PREF (NEW) | F157: Dividend | G157: 4.127 | H157: 0 | I157: 62.28354922 | J157: 0 | O157: N/A | Q157: 2020-12-29 | R157: 2021-04-16 | S157: 0.6129350138 | T157: 19599.21 | Z157: 19599.21 | AD157: 19599.21 | AE157: 80885.93967 | AF157: 0 | AG157: 0 | AH157: 0 | AJ157: 2021-04-16 | AM157: 2020-12-01 | AN157: 44
A158: 202012_6100476 | B158: 1 | C158: 212392 | D158: 6100476 | E158: HINDUSTAN PETROLEUM CORP | F158: SELL | G158: 4.0395 | H158: 309844 | I158: 3.434772563 | J158: 1064243.67 | K158: 2021-02-25 | L158: 309844 | M158: 3.482254748 | N158: 1078955.74 | O158: 1064243.67 | P158: 2050.01 | Y158: 12662.06 | AB158: 12662.06 | AC158: 51148.39137 | AF158: 0 | AG158: 3.434772563 | AH158: 0 | AJ158: 2021-02-25 | AM158: 2020-12-01 | AN158: 45 | AO158: Row Labels | AP158: PayDate | AQ158: CustNo | AR158: qStockCode | AS158: StockName | AT158: TranType | AU158: ExRate | AV158: BeginUFV | AW158: BeginCostPrice | AX158: BeginCostFC | AY158: UnitFaceValue | AZ158: TranPrice | BA158: FCNetProceed | BB158: FCGrossProceed | BC158: TradeDate | BD158: qTrnCode | BE158: TranDesc | BF158: row_num | BG158: ImportCost | BH158: ReclassDt
A159: =IF(AO159="","",AO159) -> 201603_B08X163 | B159: =IF(AND(AP159="",E159<>""),1,"") ->  | C159: =IF(OR(AO159="",AQ159=""),"",AQ159) -> 212392 | D159: =IF(OR(AO159="",AR159=""),"",AR159) -> B08X163 | E159: =IF(OR(AO159="",AS159=""),"",AS159) -> SEMBCORP INDUSTRIES LTD | F159: =IF(OR(AT159="",AT159="(blank)"),"",AT159) -> Dividend | G159: =IF(OR(AU159="",AU159=0),"",AU159) -> 4.3825 | H159: =IF(AV159="","",IF(F159="Corporate Action",AY159,AV159)) -> 130000 | I159: =IF(BF159="","",IF(BF159=1,AW159,AW159)) -> 1.510880231 | J159: =IF(H159="","",H159*I159) -> 196414.43 | K159: =IF(OR(BC159="",BD159<>"SS"),"",BC159) ->  | L159: =IF(OR(AY159="",BD159<>"SS"),"",AY159) ->  | M159: =IF(OR(AZ159="",BD159<>"SS"),"",AZ159) ->  | N159: =IF(OR(BB159="",BD159<>"SS"),"",BB159) ->  | O159: =IF(L159="","",L159*I159) ->  | P159: =IF(OR(BB159="",BD159<>"SS"),"",BB159-BA159) ->  | Q159: =IF(OR(BC159="",BD159<>"SI"),"",BC159) -> 2022-04-26 | R159: =IF(OR(AP159="",BD159<>"SI"),"",AP159) -> 2022-05-10 | S159: =IF(OR(AZ159="",BD159<>"SI"),"",T159/H159) -> 0.02157264615 | T159: =IF(OR(BA159="",BD159<>"SI"),"",BA159) -> 2804.444 | U159: =IF(OR(BE159="",BE159="(blank)",BD159="SI",BD159="SS"),"",BE159) ->  | V159: =IF(OR(BC159="",BC159="(blank)",BD159="SI",BD159="SS",BE159="(blank)"),"",BC159) ->  | W159: =IF(OR(AY159="",AY159="(blank)",BD159="SI",BD159="SS",BE159="(blank)"),"",AY159) ->  | X159: =IF(OR(BA159="",BA159="(blank)",BD159="SI",BD159="SS",BE159="(blank)"),"",BA159) ->  | Y159: =IF(N159="","",N159-O159-P159) ->  | Z159: =IF(T159="","",T159) -> 2804.444 | AA159: =IF(Z159="","",IF(J159>0,Z159,"")) -> 2804.444 | AB159: =IF(Y159="","",IF(Y159>=0,Y159,"")) ->  | AC159: =IF(AB159="","",IF(G159="","",AB159*G159)) ->  | AD159: =IF(Z159="","",IF(J159<=0,Z159,"")) ->  | AE159: =IF(AD159="","",IF(G159="","",AD159*G159)) ->  | AF159: =IF(H159="","",IF(BD159="SS",H159-L159,IF(F159="","",H159))) -> 130000 | AG159: =IF($F159="","",IF($F159="Dividend",$AH159/$AF159,IF($F159="SELL",$I159,($J159-IF($X159="",0,$X159))/$AF159))) -> 1.444468692 | AH159: =IF($F159="","",IF($F159="Dividend",$AX159,AG159*AF159)) -> 187780.93 | AJ159: 2022-05-10 | AK159: =IF(BF159="","",BF159) -> 1 | AL159: =IF(BG159="","",BG159) -> 880403.92 | AM159: =IF(BH159="","",BH159) -> 2016-03-01 | AN159: 4 | AO159: 201603_B08X163 | AP159: 2022-05-10 | AQ159: 212392 | AR159: B08X163 | AS159: SEMBCORP INDUSTRIES LTD | AT159: Dividend | AU159: 4.3825 | AV159: 130000 | AW159: 1.510880231 | AX159: 187780.93 | AY159: 0 | AZ159: 0.02157264589 | BA159: 2804.444 | BB159: 2804.444 | BC159: 2022-04-26 | BD159: SI | BE159: Share Income-Dividend | BF159: 1 | BG159: 880403.92 | BH159: 2016-03-01
A160: 201905_6434915 | C160: 212392 | D160: 6434915 | E160: HONGKONG LAND HOLDINGS LTD | F160: Dividend | G160: 4.3765 | H160: 196900 | I160: 7.218657643 | J160: 1421353.69 | Q160: 2022-03-17 | R160: 2022-05-11 | S160: 0.16 | T160: 31504 | Z160: 31504 | AA160: 31504 | AF160: 196900 | AG160: 7.218657643 | AH160: 1421353.69 | AJ160: 2022-05-11 | AK160: 1 | AL160: 1421353.69 | AM160: 2019-05-29 | AN160: 25 | AO160: 201905_6434915 | AP160: 2022-05-11 | AQ160: 212392 | AR160: 6434915 | AS160: HONGKONG LAND HOLDINGS LTD | AT160: Dividend | AU160: 4.3765 | AV160: 196900 | AW160: 7.218657643 | AX160: 1421353.69 | AY160: 0 | AZ160: 0.16 | BA160: 31504 | BB160: 31504 | BC160: 2022-03-17 | BD160: SI | BE160: Share Income-Dividend | BF160: 1 | BG160: 1421353.69 | BH160: 2019-05-29
A161: 201908_B1VQ5C0 | C161: 212392 | D161: B1VQ5C0 | E161: KEPPEL CORP LTD | F161: Dividend | G161: 4.3923 | H161: 263000 | I161: 5.631416236 | J161: 1481062.47 | Q161: 2022-04-28 | R161: 2022-05-12 | S161: 0.1505484262 | T161: 39594.2361 | Z161: 39594.2361 | AA161: 39594.2361 | AF161: 263000 | AG161: 5.339243042 | AH161: 1404220.92 | AJ161: 2022-05-12 | AK161: 1 | AL161: 1481750.99 | AM161: 2019-08-28 | AN161: 26 | AO161: 201908_B1VQ5C0 | AP161: 2022-05-12 | AQ161: 212392 | AR161: B1VQ5C0 | AS161: KEPPEL CORP LTD | AT161: Dividend | AU161: 4.3923 | AV161: 263000 | AW161: 5.631416236 | AX161: 1404220.92 | AY161: 0 | AZ161: 0.1505484264 | BA161: 39594.2361 | BB161: 39594.2361 | BC161: 2022-04-28 | BD161: SI | BE161: Share Income-Dividend | BF161: 1 | BG161: 1481750.99 | BH161: 2019-08-28
A162: 202103_6283979 | C162: 212392 | D162: 6283979 | E162: INDOFOOD SUKSES MAKMUR TBK P | F162: Dividend | G162: 4.1845 | H162: 4158729 | I162: 0.5019407444 | J162: 2087435.53 | Q162: 2021-09-07 | R162: 2021-09-29 | S162: 0.01750568481 | T162: 72801.3991 | Z162: 72801.3991 | AA162: 72801.3991 | AF162: 4158729 | AG162: 0.4844105278 | AH162: 2014532.11 | AJ162: 2021-09-29 | AK162: 1 | AL162: 2087435.53 | AM162: 2021-03-01 | AN162: 100 | AO162: 202103_6283979 | AP162: 2021-09-29 | AQ162: 212392 | AR162: 6283979 | AS162: INDOFOOD SUKSES MAKMUR TBK P | AT162: Dividend | AU162: 4.1845 | AV162: 4158729 | AW162: 0.5019407444 | AX162: 2014532.11 | AY162: 0 | AZ162: 0.0194780184 | BA162: 72801.3991 | BB162: 80890.4434 | BC162: 2021-09-07 | BD162: SI | BE162: Share Income-Dividend | BF162: 1 | BG162: 2087435.53 | BH162: 2021-03-01
A163: 202103_B03VZ37 | C163: 212392 | D163: B03VZ37 | E163: MITRA ADIPERKASA TBK PT | F163: SELL | G163: 4.1715 | H163: 28535022 | I163: 0.063006878 | J163: 1797902.65 | K163: 2021-10-19 | L163: 3553500 | M163: 0.06324144166 | N163: 224728.463 | O163: 223894.941 | P163: 568.563 | Y163: 264.9590122 | AB163: 264.9590122 | AC163: 1105.276519 | AF163: 24981522 | AG163: 0.063006878 | AH163: 1574007.709 | AJ163: 2021-10-19 | AK163: 1 | AL163: 1797902.65 | AM163: 2021-03-01 | AN163: 100 | AO163: 202103_B03VZ37 | AP163: 2021-10-19 | AQ163: 212392 | AR163: B03VZ37 | AS163: MITRA ADIPERKASA TBK PT | AT163: SELL | AU163: 4.1715 | AV163: 28535022 | AW163: 0.063006878 | AX163: 1797902.65 | AY163: 3553500 | AZ163: 0.06324144166 | BA163: 224159.9 | BB163: 224728.463 | BC163: 2021-10-19 | BD163: SS | BE163: Share Sale | BF163: 1 | BG163: 1797902.65 | BH163: 2021-03-01
A164: 202103_B03VZ37 | C164: 212392 | D164: B03VZ37 | E164: MITRA ADIPERKASA TBK PT | F164: SELL | G164: 4.158 | H164: 24981522 | I164: 0.06300687804 | J164: 1574007.71 | K164: 2021-10-21 | L164: 6534000 | M164: 0.06329270307 | N164: 413554.5219 | O164: 411686.9411 | P164: 1038.0219 | Y164: 829.5588625 | AB164: 829.5588625 | AC164: 3449.30575 | AF164: 18447522 | AG164: 0.06300687804 | AH164: 1162320.769 | AJ164: 2021-10-21 | AK164: 2 | AL164: 0 | AM164: 2021-03-01 | AN164: 100 | AO164: 202103_B03VZ37 | AP164: 2021-10-21 | AQ164: 212392 | AR164: B03VZ37 | AS164: MITRA ADIPERKASA TBK PT | AT164: SELL | AU164: 4.158 | AV164: 24981522 | AW164: 0.06300687804 | AX164: 1574007.71 | AY164: 6534000 | AZ164: 0.06329270307 | BA164: 412516.5 | BB164: 413554.5219 | BC164: 2021-10-21 | BD164: SS | BE164: Share Sale | BF164: 2 | BG164: 0 | BH164: 2021-03-01
A165: 202103_B03VZ37 | C165: 212392 | D165: B03VZ37 | E165: MITRA ADIPERKASA TBK PT | F165: SELL | G165: 4.1515 | H165: 18447522 | I165: 0.06300687811 | J165: 1162320.77 | K165: 2021-11-01 | L165: 2987700 | M165: 0.0634129702 | N165: 189458.9311 | O165: 188245.6497 | P165: 479.3311 | Y165: 733.9502846 | AB165: 733.9502846 | AC165: 3046.994607 | AF165: 15459822 | AG165: 0.06300687811 | AH165: 974075.1203 | AJ165: 2021-11-01 | AK165: 3 | AL165: 0 | AM165: 2021-03-01 | AN165: 100 | AO165: 202103_B03VZ37 | AP165: 2021-11-01 | AQ165: 212392 | AR165: B03VZ37 | AS165: MITRA ADIPERKASA TBK PT | AT165: SELL | AU165: 4.1515 | AV165: 18447522 | AW165: 0.06300687811 | AX165: 1162320.77 | AY165: 2987700 | AZ165: 0.0634129702 | BA165: 188979.6 | BB165: 189458.9311 | BC165: 2021-11-01 | BD165: SS | BE165: Share Sale | BF165: 3 | BG165: 0 | BH165: 2021-03-01
A166: 202103_B03VZ37 | C166: 212392 | D166: B03VZ37 | E166: MITRA ADIPERKASA TBK PT | F166: SELL | G166: 4.1535 | H166: 15459822 | I166: 0.06300688261 | J166: 974075.19 | K166: 2021-11-03 | L166: 1519200 | M166: 0.06294806849 | N166: 95630.7057 | O166: 95720.05607 | P166: 241.9457 | Y166: -331.2960684 | AF166: 13940622 | AG166: 0.06300688261 | AH166: 878355.1339 | AJ166: 2021-11-03 | AK166: 4 | AL166: 0 | AM166: 2021-03-01 | AN166: 100 | AO166: 202103_B03VZ37 | AP166: 2021-11-03 | AQ166: 212392 | AR166: B03VZ37 | AS166: MITRA ADIPERKASA TBK PT | AT166: SELL | AU166: 4.1535 | AV166: 15459822 | AW166: 0.06300688261 | AX166: 974075.19 | AY166: 1519200 | AZ166: 0.06294806849 | BA166: 95388.76 | BB166: 95630.7057 | BC166: 2021-11-03 | BD166: SS | BE166: Share Sale | BF166: 4 | BG166: 0 | BH166: 2021-03-01
A167: 202103_B03VZ37 | C167: 212392 | D167: B03VZ37 | E167: MITRA ADIPERKASA TBK PT | F167: SELL | G167: 4.2545 | H167: 13940622 | I167: 0.06300689596 | J167: 878355.32 | K167: 2022-04-19 | L167: 6810600 | M167: 0.06305082384 | N167: 429413.9409 | O167: 429114.7656 | P167: 1080.1908 | Y167: -781.015539 | AF167: 7130022 | AG167: 0.06300689596 | AH167: 449240.5544 | AJ167: 2022-04-19 | AK167: 5 | AL167: 0 | AM167: 2021-03-01 | AN167: 100 | AO167: 202103_B03VZ37 | AP167: 2022-04-19 | AQ167: 212392 | AR167: B03VZ37 | AS167: MITRA ADIPERKASA TBK PT | AT167: SELL | AU167: 4.2545 | AV167: 13940622 | AW167: 0.06300689596 | AX167: 878355.32 | AY167: 6810600 | AZ167: 0.06305082384 | BA167: 428333.7501 | BB167: 429413.9409 | BC167: 2022-04-19 | BD167: SS | BE167: Share Sale | BF167: 5 | BG167: 0 | BH167: 2021-03-01
A168: 202103_B03VZ37 | C168: 212392 | D168: B03VZ37 | E168: MITRA ADIPERKASA TBK PT | F168: SELL | G168: 4.291 | H168: 7130022 | I168: 0.06300689535 | J168: 449240.55 | K168: 2022-04-21 | L168: 3993200 | M168: 0.06413831567 | N168: 256117.1221 | O168: 251599.1345 | P168: 645.6712 | Y168: 3872.316387 | AB168: 3872.316387 | AC168: 16616.10962 | AF168: 3136822 | AG168: 0.06300689535 | AH168: 197641.4155 | AJ168: 2022-04-21 | AK168: 6 | AL168: 0 | AM168: 2021-03-01 | AN168: 100 | AO168: 202103_B03VZ37 | AP168: 2022-04-21 | AQ168: 212392 | AR168: B03VZ37 | AS168: MITRA ADIPERKASA TBK PT | AT168: SELL | AU168: 4.291 | AV168: 7130022 | AW168: 0.06300689535 | AX168: 449240.55 | AY168: 3993200 | AZ168: 0.06413831567 | BA168: 255471.4509 | BB168: 256117.1221 | BC168: 2022-04-21 | BD168: SS | BE168: Share Sale | BF168: 6 | BG168: 0 | BH168: 2021-03-01
A169: 202103_B03VZ37 | C169: 212392 | D169: B03VZ37 | E169: MITRA ADIPERKASA TBK PT | F169: SELL | G169: 4.323 | H169: 3136822 | I169: 0.06300689679 | J169: 197641.42 | K169: 2022-04-22 | L169: 3136822 | M169: 0.06431050359 | N169: 201730.6025 | O169: 197641.42 | P169: 508.5629 | Y169: 3580.6196 | AB169: 3580.6196 | AC169: 15479.01853 | AF169: 0 | AG169: 0.06300689679 | AH169: 0 | AJ169: 2022-04-22 | AK169: 7 | AL169: 0 | AM169: 2021-03-01 | AN169: 100 | AO169: 202103_B03VZ37 | AP169: 2022-04-22 | AQ169: 212392 | AR169: B03VZ37 | AS169: MITRA ADIPERKASA TBK PT | AT169: SELL | AU169: 4.323 | AV169: 3136822 | AW169: 0.06300689679 | AX169: 197641.42 | AY169: 3136822 | AZ169: 0.06431050359 | BA169: 201222.0396 | BB169: 201730.6025 | BC169: 2022-04-22 | BD169: SS | BE169: Share Sale | BF169: 7 | BG169: 0 | BH169: 2021-03-01
A170: 202103_BYWPGC4 | C170: 212392 | D170: BYWPGC4 | E170: CHINA YUHUA EDUCATION CORP L | F170: SELL | G170: 4.10425 | H170: 628000 | I170: 0.9761559076 | J170: 613025.91 | K170: 2021-05-03 | L170: 22000 | M170: 0.9579665566 | N170: 21075.2642 | O170: 21475.42997 | P170: 35.3842 | Y170: -435.5499682 | AF170: 606000 | AG170: 0.9761559076 | AH170: 591550.48 | AJ170: 2021-05-03 | AK170: 1 | AL170: 613025.91 | AM170: 2021-03-01 | AN170: 100 | AO170: 202103_BYWPGC4 | AP170: 2021-05-03 | AQ170: 212392 | AR170: BYWPGC4 | AS170: CHINA YUHUA EDUCATION CORP L | AT170: SELL | AU170: 4.10425 | AV170: 628000 | AW170: 0.9761559076 | AX170: 613025.91 | AY170: 22000 | AZ170: 0.9579665566 | BA170: 21039.88 | BB170: 21075.2642 | BC170: 2021-05-03 | BD170: SS | BE170: Share Sale | BF170: 1 | BG170: 613025.91 | BH170: 2021-03-01
A171: 202103_BYWPGC4 | C171: 212392 | D171: BYWPGC4 | E171: CHINA YUHUA EDUCATION CORP L | F171: SELL | G171: 4.1175 | H171: 606000 | I171: 0.9761559076 | J171: 591550.48 | K171: 2021-05-05 | L171: 118000 | M171: 0.9581569287 | N171: 113062.5176 | O171: 115186.3971 | P171: 189.6776 | Y171: -2313.557096 | AF171: 488000 | AG171: 0.9761559076 | AH171: 476364.0829 | AJ171: 2021-05-05 | AK171: 2 | AL171: 0 | AM171: 2021-03-01 | AN171: 100 | AO171: 202103_BYWPGC4 | AP171: 2021-05-05 | AQ171: 212392 | AR171: BYWPGC4 | AS171: CHINA YUHUA EDUCATION CORP L | AT171: SELL | AU171: 4.1175 | AV171: 606000 | AW171: 0.9761559076 | AX171: 591550.48 | AY171: 118000 | AZ171: 0.9581569287 | BA171: 112872.84 | BB171: 113062.5176 | BC171: 2021-05-05 | BD171: SS | BE171: Share Sale | BF171: 2 | BG171: 0 | BH171: 2021-03-01
A172: 202103_BYWPGC4 | C172: 212392 | D172: BYWPGC4 | E172: CHINA YUHUA EDUCATION CORP L | F172: SELL | G172: 4.122 | H172: 488000 | I172: 0.9761559016 | J172: 476364.08 | K172: 2021-05-06 | L172: 278000 | M172: 0.9643094055 | N172: 268078.0147 | O172: 271371.3407 | P172: 449.6347 | Y172: -3742.960656 | AF172: 210000 | AG172: 0.9761559016 | AH172: 204992.7393 | AJ172: 2021-05-06 | AK172: 3 | AL172: 0 | AM172: 2021-03-01 | AN172: 100 | AO172: 202103_BYWPGC4 | AP172: 2021-05-06 | AQ172: 212392 | AR172: BYWPGC4 | AS172: CHINA YUHUA EDUCATION CORP L | AT172: SELL | AU172: 4.122 | AV172: 488000 | AW172: 0.9761559016 | AX172: 476364.08 | AY172: 278000 | AZ172: 0.9643094055 | BA172: 267628.38 | BB172: 268078.0147 | BC172: 2021-05-06 | BD172: SS | BE172: Share Sale | BF172: 3 | BG172: 0 | BH172: 2021-03-01
A173: 202103_BYWPGC4 | C173: 212392 | D173: BYWPGC4 | E173: CHINA YUHUA EDUCATION CORP L | F173: SELL | G173: 4.1185 | H173: 210000 | I173: 0.9761559048 | J173: 204992.74 | K173: 2021-05-11 | L173: 210000 | M173: 0.9579658926 | N173: 201172.8374 | O173: 204992.74 | P173: 337.4174 | Y173: -4157.32 | AF173: 0 | AG173: 0.9761559048 | AH173: 0 | AJ173: 2021-05-11 | AK173: 4 | AL173: 0 | AM173: 2021-03-01 | AN173: 100 | AO173: 202103_BYWPGC4 | AP173: 2021-05-11 | AQ173: 212392 | AR173: BYWPGC4 | AS173: CHINA YUHUA EDUCATION CORP L | AT173: SELL | AU173: 4.1185 | AV173: 210000 | AW173: 0.9761559048 | AX173: 204992.74 | AY173: 210000 | AZ173: 0.9579658926 | BA173: 200835.42 | BB173: 201172.8374 | BC173: 2021-05-11 | BD173: SS | BE173: Share Sale | BF173: 4 | BG173: 0 | BH173: 2021-03-01
A174: 202105_6420129 | C174: 212392 | D174: 6420129 | E174: CAPITALAND INTEGRATED COMMER | F174: Dividend | G174: 4.148 | H174: 1882800 | I174: 1.688891518 | J174: 3179844.95 | Q174: 2021-08-04 | R174: 2021-09-09 | S174: 0.03477321734 | T174: 65471.0136 | Z174: 65471.0136 | AA174: 65471.0136 | AF174: 1882800 | AG174: 1.654118303 | AH174: 3114373.94 | AJ174: 2021-09-09 | AK174: 1 | AL174: 3179842.8 | AM174: 2021-05-28 | AN174: 100 | AO174: 202105_6420129 | AP174: 2021-09-09 | AQ174: 212392 | AR174: 6420129 | AS174: CAPITALAND INTEGRATED COMMER | AT174: Dividend | AU174: 4.148 | AV174: 1882800 | AW174: 1.688891518 | AX174: 3114373.94 | AY174: 0 | AZ174: 0.03857898051 | BA174: 65471.0136 | BB174: 72636.5085 | BC174: 2021-08-04 | BD174: SI | BE174: Share Income-Dividend | BF174: 1 | BG174: 3179842.8 | BH174: 2021-05-28
A175: 202105_6420129 | C175: 212392 | D175: 6420129 | E175: CAPITALAND INTEGRATED COMMER | F175: Dividend | G175: 4.196 | H175: 1882800 | I175: 1.688891518 | J175: 3179844.95 | Q175: 2021-12-14 | R175: 2022-01-28 | S175: 0.03238678351 | T175: 60977.836 | Z175: 60977.836 | AA175: 60977.836 | AF175: 1882800 | AG175: 1.622064866 | AH175: 3054023.73 | AJ175: 2022-01-28 | AK175: 2 | AL175: 0 | AM175: 2021-05-28 | AN175: 100 | AO175: 202105_6420129 | AP175: 2022-01-28 | AQ175: 212392 | AR175: 6420129 | AS175: CAPITALAND INTEGRATED COMMER | AT175: Dividend | AU175: 4.196 | AV175: 1882800 | AW175: 1.688891518 | AX175: 3054023.73 | AY175: 0 | AZ175: 0.03540404409 | BA175: 60977.836 | BB175: 67351.9693 | BC175: 2021-12-14 | BD175: SI | BE175: Share Income-Dividend | BF175: 2 | BG175: 0 | BH175: 2021-05-28
A176: 202105_6420129 | C176: 212392 | D176: 6420129 | E176: CAPITALAND INTEGRATED COMMER | F176: Dividend | G176: 4.209 | H176: 1882800 | I176: 1.688891518 | J176: 3179844.95 | Q176: 2022-02-08 | R176: 2022-03-15 | S176: 0.002510795624 | T176: 4727.326 | Z176: 4727.326 | AA176: 4727.326 | AF176: 1882800 | AG176: 1.619554068 | AH176: 3049296.4 | AJ176: 2022-03-15 | AK176: 3 | AL176: 0 | AM176: 2021-05-28 | AN176: 100 | AO176: 202105_6420129 | AP176: 2022-03-15 | AQ176: 212392 | AR176: 6420129 | AS176: CAPITALAND INTEGRATED COMMER | AT176: Dividend | AU176: 4.209 | AV176: 1882800 | AW176: 1.688891518 | AX176: 3049296.4 | AY176: 0 | AZ176: 0.002708440085 | BA176: 4727.326 | BB176: 5099.451 | BC176: 2022-02-08 | BD176: SI | BE176: Share Income-Dividend | BF176: 3 | BG176: 0 | BH176: 2021-05-28
A177: 202105_6420129 | C177: 212392 | D177: 6420129 | E177: CAPITALAND INTEGRATED COMMER | F177: SELL | G177: 4.2045 | H177: 1882800 | I177: 1.688891518 | J177: 3179844.95 | K177: 2022-03-21 | L177: 376000 | M177: 1.639201505 | N177: 616339.7661 | O177: 635023.2107 | P177: 616.3389 | Y177: -19299.78355 | AF177: 1506800 | AG177: 1.688891518 | AH177: 2544821.739 | AJ177: 2022-03-21 | AK177: 4 | AL177: 0 | AM177: 2021-05-28 | AN177: 100 | AO177: 202105_6420129 | AP177: 2022-03-21 | AQ177: 212392 | AR177: 6420129 | AS177: CAPITALAND INTEGRATED COMMER | AT177: SELL | AU177: 4.2045 | AV177: 1882800 | AW177: 1.688891518 | AX177: 3049296.4 | AY177: 376000 | AZ177: 1.639201505 | BA177: 615723.4272 | BB177: 616339.7661 | BC177: 2022-03-21 | BD177: SS | BE177: Share Sale | BF177: 4 | BG177: 0 | BH177: 2021-05-28
A178: 202105_6420129 | C178: 212392 | D178: 6420129 | E178: CAPITALAND INTEGRATED COMMER | F178: SELL | G178: 4.2175 | H178: 1506800 | I178: 1.688891518 | J178: 2544821.74 | K178: 2022-03-29 | L178: 376700 | M178: 1.666912524 | N178: 627925.9478 | O178: 636205.435 | P178: 580.8305 | Y178: -8860.3177 | AF178: 1130100 | AG178: 1.688891518 | AH178: 1908616.305 | AJ178: 2022-03-29 | AK178: 5 | AL178: 0 | AM178: 2021-05-28 | AN178: 100 | AO178: 202105_6420129 | AP178: 2022-03-29 | AQ178: 212392 | AR178: 6420129 | AS178: CAPITALAND INTEGRATED COMMER | AT178: SELL | AU178: 4.2175 | AV178: 1506800 | AW178: 1.688891518 | AX178: 2414273.19 | AY178: 376700 | AZ178: 1.666912524 | BA178: 627345.1173 | BB178: 627925.9478 | BC178: 2022-03-29 | BD178: SS | BE178: Share Sale | BF178: 5 | BG178: 0 | BH178: 2021-05-28
A179: 202105_6420129 | C179: 212392 | D179: 6420129 | E179: CAPITALAND INTEGRATED COMMER | F179: SELL | G179: 4.2045 | H179: 1130100 | I179: 1.688891514 | J179: 1908616.3 | K179: 2022-03-30 | L179: 1130100 | M179: 1.677657844 | N179: 1895921.13 | O179: 1908616.3 | P179: 1753.7188 | Y179: -14448.8891 | AF179: 0 | AG179: 1.688891514 | AH179: 0 | AJ179: 2022-03-30 | AK179: 6 | AL179: 0 | AM179: 2021-05-28 | AN179: 100 | AO179: 202105_6420129 | AP179: 2022-03-30 | AQ179: 212392 | AR179: 6420129 | AS179: CAPITALAND INTEGRATED COMMER | AT179: SELL | AU179: 4.2045 | AV179: 1130100 | AW179: 1.688891514 | AX179: 1778067.75 | AY179: 1130100 | AZ179: 1.677657844 | BA179: 1894167.411 | BB179: 1895921.13 | BC179: 2022-03-30 | BD179: SS | BE179: Share Sale | BF179: 6 | BG179: 0 | BH179: 2021-05-28
A180: 202109_6099875 | C180: 212392 | D180: 6099875 | E180: ESCORTS LTD | F180: SELL | G180: 4.158 | H180: 85051 | I180: 18.83267251 | J180: 1601737.63 | K180: 2021-09-02 | L180: 85051 | M180: 17.80878266 | N180: 1514654.774 | O180: 1601737.63 | P180: 2877.8438 | Y180: -89960.7 | AF180: 0 | AG180: 18.83267251 | AH180: 0 | AJ180: 2021-09-02 | AK180: 1 | AL180: 1601737.63 | AM180: 2021-09-01 | AN180: 100 | AO180: 202109_6099875 | AP180: 2021-09-02 | AQ180: 212392 | AR180: 6099875 | AS180: ESCORTS LTD | AT180: SELL | AU180: 4.158 | AV180: 85051 | AW180: 18.83267251 | AX180: 1601737.63 | AY180: 85051 | AZ180: 17.80878266 | BA180: 1511776.93 | BB180: 1514654.774 | BC180: 2021-09-02 | BD180: SS | BE180: Share Sale | BF180: 1 | BG180: 1601737.63 | BH180: 2021-09-01
A181: 202109_6771720 | C181: 212392 | D181: 6771720 | E181: SAMSUNG ELECTRONICS CO LTD | F181: SELL | G181: 4.188 | H181: 767261 | I181: 71.94648818 | J181: 55201734.47 | K181: 2021-09-27 | L181: 15789 | M181: 65.93873446 | N181: 1041106.678 | O181: 1135963.102 | P181: 3331.5384 | Y181: -98187.96193 | AF181: 751472 | AG181: 71.94648818 | AH181: 54065771.37 | AJ181: 2021-09-27 | AK181: 1 | AL181: 55202618.87 | AM181: 2021-09-01 | AN181: 100 | AO181: 202109_6771720 | AP181: 2021-09-27 | AQ181: 212392 | AR181: 6771720 | AS181: SAMSUNG ELECTRONICS CO LTD | AT181: SELL | AU181: 4.188 | AV181: 767261 | AW181: 71.94648818 | AX181: 55201734.47 | AY181: 15789 | AZ181: 65.93873446 | BA181: 1037775.14 | BB181: 1041106.678 | BC181: 2021-09-27 | BD181: SS | BE181: Share Sale | BF181: 1 | BG181: 55202618.87 | BH181: 2021-09-01
A182: 202109_6771720 | C182: 212392 | D182: 6771720 | E182: SAMSUNG ELECTRONICS CO LTD | F182: Dividend | G182: 4.179 | H182: 751472 | I182: 71.94648819 | J182: 54065771.37 | Q182: 2021-09-29 | R182: 2021-11-17 | S182: 0.2594926104 | T182: 195001.4309 | Z182: 195001.4309 | AA182: 195001.4309 | AF182: 751472 | AG182: 71.68699558 | AH182: 53870769.94 | AJ182: 2021-11-17 | AK182: 2 | AL182: 0 | AM182: 2021-09-01 | AN182: 100 | AO182: 202109_6771720 | AP182: 2021-11-17 | AQ182: 212392 | AR182: 6771720 | AS182: SAMSUNG ELECTRONICS CO LTD | AT182: Dividend | AU182: 4.179 | AV182: 751472 | AW182: 71.94648819 | AX182: 53870769.94 | AY182: 0 | AZ182: 0.3052854109 | BA182: 195001.4309 | BB182: 229413.4393 | BC182: 2021-09-29 | BD182: SI | BE182: Share Income-Dividend | BF182: 2 | BG182: 0 | BH182: 2021-09-01
A183: 202109_B736PF3 | C183: 212392 | D183: B736PF3 | E183: PTT GLOBAL CHEMICAL PCL-FOR | F183: Dividend | G183: 4.1925 | H183: 1109100 | I183: 2.068871184 | J183: 2294585.03 | Q183: 2021-09-03 | R183: 2021-09-22 | S183: 0.05381367018 | T183: 59684.7416 | Z183: 59684.7416 | AA183: 59684.7416 | AF183: 1109100 | AG183: 2.013242656 | AH183: 2232887.43 | AJ183: 2021-09-22 | AK183: 1 | AL183: 2300278.3 | AM183: 2021-09-01 | AN183: 100 | AO183: 202109_B736PF3 | AP183: 2021-09-22 | AQ183: 212392 | AR183: B736PF3 | AS183: PTT GLOBAL CHEMICAL PCL-FOR | AT183: Dividend | AU183: 4.1925 | AV183: 1109100 | AW183: 2.068871184 | AX183: 2232887.43 | AY183: 0 | AZ183: 0.06180947515 | BA183: 59684.7416 | BB183: 66316.3795 | BC183: 2021-09-03 | BD183: SI | BE183: Share Income-Dividend | BF183: 1 | BG183: 2300278.3 | BH183: 2021-09-01
A184: 202109_B736PF3 | C184: 212392 | D184: B736PF3 | E184: PTT GLOBAL CHEMICAL PCL-FOR | F184: Dividend | G184: 4.323 | H184: 1109100 | I184: 2.068871184 | J184: 2294585.03 | Q184: 2022-02-28 | R184: 2022-04-22 | S184: 0.04639516906 | T184: 51456.882 | Z184: 51456.882 | AA184: 51456.882 | AF184: 1109100 | AG184: 1.967342692 | AH184: 2181979.78 | AJ184: 2022-04-22 | AK184: 2 | AL184: 0 | AM184: 2021-09-01 | AN184: 100 | AO184: 202109_B736PF3 | AP184: 2022-04-22 | AQ184: 212392 | AR184: B736PF3 | AS184: PTT GLOBAL CHEMICAL PCL-FOR | AT184: Dividend | AU184: 4.323 | AV184: 1109100 | AW184: 2.068871184 | AX184: 2181979.78 | AY184: 0 | AZ184: 0.05099996357 | BA184: 51456.882 | BB184: 57174.3133 | BC184: 2022-02-28 | BD184: SI | BE184: Share Income-Dividend | BF184: 2 | BG184: 0 | BH184: 2021-09-01
A185: 202112_6230845 | C185: 212392 | D185: 6230845 | E185: UNITED TRACTORS TBK PT | F185: SELL | G185: 4.201 | H185: 1212300 | I185: 1.712077176 | J185: 2075551.16 | K185: 2022-02-24 | L185: 1212300 | M185: 1.729050652 | N185: 2096128.105 | O185: 2075551.16 | P185: 5250.8009 | Y185: 15326.1443 | AB185: 15326.1443 | AC185: 64385.1322 | AF185: 0 | AG185: 1.712077176 | AH185: 0 | AJ185: 2022-02-24 | AK185: 1 | AL185: 2075551.16 | AM185: 2021-12-01 | AN185: 100 | AO185: 202112_6230845 | AP185: 2022-02-24 | AQ185: 212392 | AR185: 6230845 | AS185: UNITED TRACTORS TBK PT | AT185: SELL | AU185: 4.201 | AV185: 1212300 | AW185: 1.712077176 | AX185: 2075551.16 | AY185: 1212300 | AZ185: 1.729050652 | BA185: 2090877.304 | BB185: 2096128.105 | BC185: 2022-02-24 | BD185: SS | BE185: Share Sale | BF185: 1 | BG185: 2075551.16 | BH185: 2021-12-01
A186: 202112_BS7JP33 | C186: 212392 | D186: BS7JP33 | E186: GLOBALWAFERS CO LTD | F186: SELL | G186: 4.2065 | H186: 10000 | I186: 29.687173 | J186: 296871.73 | K186: 2021-12-16 | L186: 10000 | M186: 29.66398755 | N186: 296639.8755 | O186: 296871.73 | P186: 1156.8955 | Y186: -1388.75 | AF186: 0 | AG186: 29.687173 | AH186: 0 | AJ186: 2021-12-16 | AK186: 1 | AL186: 296868.44 | AM186: 2021-12-01 | AN186: 100 | AO186: 202112_BS7JP33 | AP186: 2021-12-16 | AQ186: 212392 | AR186: BS7JP33 | AS186: GLOBALWAFERS CO LTD | AT186: SELL | AU186: 4.2065 | AV186: 10000 | AW186: 29.687173 | AX186: 296871.73 | AY186: 10000 | AZ186: 29.66398755 | BA186: 295482.98 | BB186: 296639.8755 | BC186: 2021-12-16 | BD186: SS | BE186: Share Sale | BF186: 1 | BG186: 296868.44 | BH186: 2021-12-01

Sheet Descriptions
B1: =FundCode -> EPF-SHASIA
B4: Worksheet Name | C4: Descriptions
B5: 1) List of Reclassed Securities | C5: Listing of all securities in the portfolio that are reclassified from shariah to non-shariah on the effective date of reclassification (MMYYYY) based on the periodic review by the shariah index used as performance benchmark as stated in the mandate (i.e. FTSE and MSCI).
B6: 2) ITM Reclassed Securities | C6: Disclosure of all the transactions related to the in-the-money (ITM)1 reclassed securites for the month.
B7: 3) OTM Reclassed Securities | C7: Disclosure of all the transactions related to the out-of-the-money (OTM)2 reclassed securites for the month.
B8: 4) Reclassed Sec Not Disposed | C8: Listing of the remaining reclassed securities that have yet to be disposed in the following month.
B10: Note :
B12: 1. In-the-money (ITM) = Average investment cost per share on the Reclass Date more than or equal to Investment Cost per share.
B14: 2. Out-of-the-money (OTM) = Average investment cost per share on the Reclass Date less than Investment Cost per share.

Sheet 1) List of Reclassed Securities
C1: =IF(OR(U1="",U1="(blank)"),"",U1) ->  | D1: =IF(OR(N1="",N1="(blank)"),"",N1) ->  | E1: =IF(OR(O1="",O1="(blank)"),"",O1) ->  | F1: =IF(OR(P1="",P1="(blank)"),"",P1) ->  | G1: =IF(OR(M1="",M1="(blank)"),"",M1) ->  | H1: =IF(OR(W1="",W1="(blank)"),"",ROUND(W1,2)) ->  | I1: =IF(OR(Q1="",Q1="(blank)"),"",ROUND(SUMIFS(BNYM_NAV_HistCost_RCdate!$AA:$AA,BNYM_NAV_HistCost_RCdate!C:C,G1,BNYM_NAV_HistCost_RCdate!I:I,D1),2)) ->  | J1: =IF(OR(V1="",V1="(blank)"),"",IF(F1=0,0,ROUND(I1/F1,2))) ->  | K1: =IF(D1="","",IF(H1>=J1,"IN-THE-MONEY","OUT-OF-THE-MONEY")) ->  | L1: =IF(OR(R1="",R1="(blank)"),"",R1) -> 
B2: ="LIST OF SECURITIES RECLASSIFIED FROM SHARIAH TO NON-SHARIAH IN " & UPPER(TEXT(EndDate,"MMMm-yyyy")) -> LIST OF SECURITIES RECLASSIFIED FROM SHARIAH TO NON-SHARIAH IN MAY-2022
B4: Mandate : | D4: =FundName -> EPF SHARIAH ASIA NOMURA ISLAMIC
B5: Portfolio Manager : | D5: NOMURA ISLAMIC ASSET MANAGEMENT SDN BHD
B7: No. | C7: Custody Account No. | D7: Security Identifier (Sedol) | E7: Security Name | F7: Total No. of Shares1 [a] | G7: Reclass Date2 (DD/MM/YY) | H7: Reclass Price3 Per Share [b] | I7: Investment Cost4 as of Reclass Date [c] | J7: Average Investment Cost Per Share [d = c / a] | K7: In-the-money or Out-of-the-money (Reclass Date) | L7: Trading Currency
B8: 1 | C8: 212392 | D8: B4X3RF7 | E8: SIHUAN PHARMACEUTICAL HLDGS | F8: 1000000 | G8: 2015-07-01 | H8: 0.56885977 | I8: 664420.27 | J8: 0.66442027 | K8: OUT-OF-THE-MONEY | L8: HKD
B9: 2 | C9: 212392 | D9: 6582483 | E9: Sun Pharmaceutical Industries Limited | F9: 75866 | G9: 2016-03-01 | H9: 12.78468906 | I9: 1138684.59 | J9: 15.00915548 | K9: OUT-OF-THE-MONEY | L9: INR
B10: 3 | C10: 212392 | D10: BDGN274 | E10: Philippine Long Distance Telephone Co. (now known as PLDT Inc.) | F10: 5000 | G10: 2016-03-01 | H10: 37.072244 | I10: 342596.96 | J10: 68.519392 | K10: OUT-OF-THE-MONEY | L10: PHP
B11: 4 | C11: 212392 | D11: B08X163 | E11: Sembcorp Industries Ltd | F11: 204000 | G11: 2016-03-01 | H11: 1.99543902 | I11: 880403.92 | J11: 4.31570549 | K11: OUT-OF-THE-MONEY | L11: SGD
B12: 5 | C12: 212392 | D12: 6490928 | E12: KIA Motors Corporation | F12: 13339 | G12: 2016-06-01 | H12: 38.97573431 | I12: 574765.72 | J12: 43.08911613 | K12: OUT-OF-THE-MONEY | L12: KRW
B13: 6 | C13: 212392 | D13: B682TF7 | E13: E-Mart, Inc. | F13: 3668 | G13: 2016-06-01 | H13: 151.2929035 | I13: 766059.58 | J13: 208.8493948 | K13: OUT-OF-THE-MONEY | L13: KRW
B14: 7 | C14: 212392 | D14: B1VT035 | E14: Yangzijiang Shipbuilding (Holdings) Ltd. | F14: 300000 | G14: 2016-09-01 | H14: 0.559173 | I14: 330966.19 | J14: 1.103220633 | K14: OUT-OF-THE-MONEY | L14: SGD
B15: 8 | C15: 212392 | D15: 6164472 | E15: Golden Agri-Resources Ltd | F15: 2000000 | G15: 2016-09-01 | H15: 0.261192655 | I15: 718524.87 | J15: 0.359262435 | K15: OUT-OF-THE-MONEY | L15: SGD
B16: 9 | C16: 212392 | D16: 6345783 | E16: Eclat Textile Co., Ltd. | F16: 10230 | G16: 2016-09-01 | H16: 12.61993646 | I16: 165823.83 | J16: 16.20956305 | K16: OUT-OF-THE-MONEY | L16: TWD
B17: 10 | C17: 212392 | D17: 6707899 | E17: AVICHINA INDUSTRY & TECH-H | F17: 800000 | G17: 2017-06-01 | H17: 0.6147448875 | I17: 779876 | J17: 0.974845 | K17: OUT-OF-THE-MONEY | L17: HKD
B18: 11 | C18: 212392 | D18: B02PY22 | E18: SINGAPORE TELECOMMUNICATIONS | F18: 203000 | G18: 2017-06-01 | H18: 2.741702759 | I18: 591398.91 | J18: 2.913295123 | K18: OUT-OF-THE-MONEY | L18: SGD
B19: 12 | C19: 212392 | D19: 6291767 | E19: CIPUTRA DEVELOPMENT TBK PT | F19: 3132400 | G19: 2017-06-01 | H19: 0.08408408249 | I19: 307044.27 | J19: 0.09802205019 | K19: OUT-OF-THE-MONEY | L19: IDR
B20: 13 | C20: 212392 | D20: BYVKT10 | E20: ADITYA BIRLA CAPITAL LTD | F20: 28000 | G20: 2017-07-19 | H20: 2.407417857 | I20: 59046.69 | J20: 2.108810357 | K20: IN-THE-MONEY | L20: INR
B21: 14 | C21: 212392 | D21: 6193937 | E21: I-CABLE COMMUNICATIONS LTD | F21: 85161 | G21: 2017-08-25 | H21: 0.0370756567 | I21: 3351.15 | J21: 0.03935075915 | K21: OUT-OF-THE-MONEY | L21: HKD
B22: 15 | C22: 212392 | D22: 6193937 | E22: I-CABLE COMMUNICATIONS LTD | F22: 45990 | G22: 2017-09-22 | H22: 0.03201413351 | I22: 1595.77 | J22: 0.03469819526 | K22: OUT-OF-THE-MONEY | L22: HKD
B23: 16 | C23: 212392 | D23: BZ60JT0 | E23: LOTTE CONFECTIONERY CO/NEW | F23: 829 | G23: 2017-10-30 | H23: 168.9414475 | I23: 172251.98 | J23: 207.7828468 | K23: OUT-OF-THE-MONEY | L23: KRW
B24: 17 | C24: 212392 | D24: B17KMY7 | E24: YANLORD LAND GROUP LTD | F24: 300000 | G24: 2018-03-01 | H24: 1.2432188 | I24: 421493.31 | J24: 1.4049777 | K24: OUT-OF-THE-MONEY | L24: SGD
B25: 18 | C25: 212392 | D25: BZ8TP86 | E25: WONIK IPS CO LTD | F25: 10300 | G25: 2018-03-01 | H25: 32.87468835 | I25: 344728.39 | J25: 33.46877573 | K25: OUT-OF-THE-MONEY | L25: KRW
B26: 19 | C26: 212392 | D26: 6535432 | E26: Lotte Holdings | F26: 4928 | G26: 2018-06-01 | H26: 54.14457183 | I26: 363412.39 | J26: 73.74439732 | K26: OUT-OF-THE-MONEY | L26: KRW
B27: 20 | C27: 212392 | D27: 6889106 | E27: Taiwan Semiconductor Manufacturing Co., Ltd. | F27: 1050000 | G27: 2018-06-01 | H27: 7.502679524 | I27: 8765389.66 | J27: 8.347990152 | K27: OUT-OF-THE-MONEY | L27: TWD
B28: 21 | C28: 212392 | D28: BDQZP48 | E28: COUNTRY GARDEN SERVICES HOLD | F28: 49540 | G28: 2018-06-11 | H28: 0.9313231732 | I28: 46373.01 | J28: 0.936072063 | K28: OUT-OF-THE-MONEY | L28: HKD
B29: 22 | C29: 212392 | D29: BS7JP33 | E29: GLOBALWAFERS CO LTD | F29: 38000 | G29: 2018-09-03 | H29: 11.56257632 | I29: 667241.91 | J29: 17.55899763 | K29: OUT-OF-THE-MONEY | L29: TWD
B30: 23 | C30: 212392 | D30: 6592943 | E30: AMATA CORP PUBLIC CO LTD-FOR | F30: 240000 | G30: 2019-03-01 | H30: 0.658838375 | I30: 168212.92 | J30: 0.7008871667 | K30: OUT-OF-THE-MONEY | L30: THB
B31: 24 | C31: 212392 | D31: 6538527 | E31: SUMMARECON AGUNG TBK PT | F31: 4377100 | G31: 2019-05-29 | H31: 0.07569444381 | I31: 378933.31 | J31: 0.08657177355 | K31: OUT-OF-THE-MONEY | L31: IDR
B32: 25 | C32: 212392 | D32: 6603737 | E32: COMFORTDELGRO CORP LTD | F32: 187400 | G32: 2019-05-29 | H32: 1.765301708 | I32: 375286.82 | J32: 2.002597759 | K32: OUT-OF-THE-MONEY | L32: SGD
B33: 26 | C33: 212392 | D33: 6434915 | E33: HONGKONG LAND HOLDINGS LTD | F33: 196900 | G33: 2019-05-29 | H33: 6.77 | I33: 1421353.69 | J33: 7.218657643 | K33: OUT-OF-THE-MONEY | L33: USD
B34: 27 | C34: 212392 | D34: 6541826 | E34: POYA INTERNATIONAL CO LTD | F34: 20360 | G34: 2019-08-28 | H34: 13.10134037 | I34: 253148.69 | J34: 12.43362917 | K34: IN-THE-MONEY | L34: TWD
B35: 28 | C35: 212392 | D35: 6795236 | E35: SEMEN INDONESIA PERSERO TBK | F35: 721200 | G35: 2019-08-28 | H35: 0.9084531753 | I35: 641597.24 | J35: 0.8896245702 | K35: IN-THE-MONEY | L35: IDR
B36: 29 | C36: 212392 | D36: B1VQ5C0 | E36: KEPPEL CORP LTD | F36: 263000 | G36: 2019-08-28 | H36: 4.120295323 | I36: 1481750.99 | J36: 5.634034183 | K36: OUT-OF-THE-MONEY | L36: SGD
B37: 30 | C37: 212392 | D37: 6015644 | E37: ANGANG STEEL CO LTD-H | F37: 3584669 | G37: 2019-11-27 | H37: 0.3832004908 | I37: 1542029.33 | J37: 0.4301734219 | K37: OUT-OF-THE-MONEY | L37: HKD
B38: 31 | C38: 212392 | D38: 6272483 | E38: DMCI HOLDINGS INC | F38: 1004000 | G38: 2019-11-27 | H38: 0.1337529482 | I38: 298022.04 | J38: 0.2968347012 | K38: OUT-OF-THE-MONEY | L38: PHP
B39: 32 | C39: 212392 | D39: B1BL581 | E39: SOBHA LTD | F39: 85809 | G39: 2019-11-27 | H39: 5.495009847 | I39: 640241.67 | J39: 7.461241478 | K39: OUT-OF-THE-MONEY | L39: INR
B40: 33 | C40: 212392 | D40: B4X3RF7 | E40: SIHUAN PHARMACEUTICAL HLDGS | F40: 870000 | G40: 2019-11-27 | H40: 0.1213468276 | I40: 312729.52 | J40: 0.3594592184 | K40: OUT-OF-THE-MONEY | L40: HKD
B41: 34 | C41: 212392 | D41: B01VZN9 | E41: LG DISPLAY CO | F41: 25659 | G41: 2020-03-02 | H41: 11.30890058 | I41: 714959.73 | J41: 27.86389688 | K41: OUT-OF-THE-MONEY | L41: KRW
B42: 35 | C42: 212392 | D42: 6916628 | E42: UNITED MICROELECTRONICS | F42: 3175000 | G42: 2020-06-01 | H42: 0.5231576661 | I42: 1809952.22 | J42: 0.5700636913 | K42: OUT-OF-THE-MONEY | L42: TWD
B43: 36 | C43: 212392 | D43: 6454861 | E43: INDOCEMENT TUNGGAL | F43: 1403766 | G43: 2020-06-01 | H43: 0.8281998638 | I43: 1955579.41 | J43: 1.39309501 | K43: OUT-OF-THE-MONEY | L43: IDR
B44: 37 | C44: 212392 | D44: 6495428 | E44: KOREA ZINC | F44: 1291 | G44: 2020-06-01 | H44: 308.9922076 | I44: 478330.41 | J44: 370.5115492 | K44: OUT-OF-THE-MONEY | L44: KRW
B45: 38 | C45: 212392 | D45: B2RJPM0 | E45: BUMI SERPONG DAMAI | F45: 7843837 | G45: 2020-06-01 | H45: 0.04346338151 | I45: 802433.1 | J45: 0.1023010932 | K45: OUT-OF-THE-MONEY | L45: IDR
B46: 39 | C46: 212392 | D46: B0MP1B0 | E46: SHENZHOU INTERNATIONAL | F46: 224446 | G46: 2020-09-01 | H46: 16.50311932 | I46: 3134986.16 | J46: 13.96766331 | K46: IN-THE-MONEY | L46: HKD
B47: 40 | C47: 212392 | D47: B1VKYN6 | E47: COUNTRY GARDEN HLDGS | F47: 1226000 | G47: 2020-09-01 | H47: 1.22579854 | I47: 2015905.91 | J47: 1.644295196 | K47: OUT-OF-THE-MONEY | L47: HKD
B48: 41 | C48: 212392 | D48: 6080396 | E48: ANHUI CONCH CEMENT H | F48: 78500 | G48: 2020-09-01 | H48: 7.341888153 | I48: 604695.39 | J48: 7.703125987 | K48: OUT-OF-THE-MONEY | L48: HKD
B49: 42 | C49: 212392 | D49: B232R05 | E49: SK INNOVATION CO | F49: 16536 | G49: 2020-09-01 | H49: 125.5336236 | I49: 2349449.97 | J49: 142.0809126 | K49: OUT-OF-THE-MONEY | L49: KRW
B50: 43 | C50: 212392 | D50: 6288190 | E50: AU OPTRONICS CORP | F50: 4411000 | G50: 2020-09-01 | H50: 0.3663752709 | I50: 1592434.06 | J50: 0.3610142961 | K50: IN-THE-MONEY | L50: TWD
B51: 44 | C51: 212392 | D51: 6580432 | E51: MAKALOT INDUSTRIAL CO | F51: 184640 | G51: 2020-09-01 | H51: 6.714039861 | I51: 1130066 | J51: 6.120374783 | K51: IN-THE-MONEY | L51: TWD
B52: 45 | C52: 212392 | D52: 6687872 | E52: KINSUS INTERCONNECT TECH | F52: 700000 | G52: 2020-09-01 | H52: 2.3175366 | I52: 1740229.94 | J52: 2.486042771 | K52: OUT-OF-THE-MONEY | L52: TWD
B53: 46 | C53: 212392 | D53: 6205133 | E53: SEMBCORP MARINE LTD | F53: 638430 | G53: 2020-09-09 | H53: 0.1389701612 | I53: 193483.95 | J53: 0.3030621211 | K53: OUT-OF-THE-MONEY | L53: SGD
B54: 47 | C54: 212392 | D54: BYVS6J1 | E54: CK INFRASTRUCTURE HOLDINGS | F54: 105500 | G54: 2020-09-29 | H54: 4.677358957 | I54: 920278.07 | J54: 8.723014882 | K54: OUT-OF-THE-MONEY | L54: HKD
B55: 48 | C55: 212392 | D55: B01B1L9 | E55: CHINA MENGNIU DAIRY CO | F55: 489774 | G55: 2020-12-01 | H55: 5.140708347 | I55: 2173400.83 | J55: 4.437558609 | K55: IN-THE-MONEY | L55: HKD
B56: 49 | C56: 212392 | D56: BDFBM13 | E56: SEMICONDUCTOR MANUFACTURING | F56: 780500 | G56: 2020-12-01 | H56: 2.77353148 | I56: 2615751.93 | J56: 3.351379795 | K56: OUT-OF-THE-MONEY | L56: HKD
B57: 50 | C57: 212392 | D57: BJVBTY1 | E57: SHENZHEN INTL HOLDINGS | F57: 1280483 | G57: 2020-12-01 | H57: 1.679599065 | I57: 2421736.3 | J57: 1.891267826 | K57: OUT-OF-THE-MONEY | L57: HKD
B58: 51 | C58: 212392 | D58: B1638D8 | E58: AMOREPAC CORP PREF (NEW) | F58: 31976 | G58: 2020-12-01 | H58: 50.26443082 | I58: 1991578.77 | J58: 62.28354922 | K58: OUT-OF-THE-MONEY | L58: KRW
B59: 52 | C59: 212392 | D59: 6100476 | E59: HINDUSTAN PETROLEUM CORP | F59: 309844 | G59: 2020-12-01 | H59: 2.872463175 | I59: 1064243.67 | J59: 3.434772563 | K59: OUT-OF-THE-MONEY | L59: INR
B60: 53 | C60: 212392 | D60: 6283601 | E60: NANYA TECHNOLOGY | F60: 1083000 | G60: 2020-12-01 | H60: 2.696778947 | I60: 2423643.72 | J60: 2.237898172 | K60: IN-THE-MONEY | L60: TWD
B61: 54 | C61: 212392 | D61: 6073556 | E61: CHINA MOBILE LTD | F61: 433536 | G61: 2021-01-11 | H61: 5.660608485 | I61: 3962929.65 | J61: 9.140947119 | K61: OUT-OF-THE-MONEY | L61: HKD
B62: 55 | C62: 212392 | D62: 6263830 | E62: CHINA UNICOM HONG KONG LTD | F62: 2082000 | G62: 2021-01-11 | H62: 0.6008755235 | I62: 1796645.25 | J62: 0.8629420029 | K62: OUT-OF-THE-MONEY | L62: HKD
B63: 56 | C63: 212392 | D63: 6559335 | E63: CHINA TELECOM CORP LTD-H | F63: 6667546 | G63: 2021-01-11 | H63: 0.2565970583 | I63: 2557442.51 | J63: 0.3835657842 | K63: OUT-OF-THE-MONEY | L63: HKD
B64: 57 | C64: 212392 | D64: B00G0S5 | E64: CNOOC LTD | F64: 3281010 | G64: 2021-01-27 | H64: 1.039724975 | I64: 4286128.23 | J64: 1.306344153 | K64: OUT-OF-THE-MONEY | L64: HKD
B65: 58 | C65: 212392 | D65: B1BL581 | E65: SOBHA LTD | F65: 85809 | G65: 2021-02-19 | H65: 6.249032153 | I65: 640241.67 | J65: 7.461241478 | K65: OUT-OF-THE-MONEY | L65: INR
B66: 59 | C66: 212392 | D66: 6283979 | E66: INDOFOOD SUKSES MAKMUR TBK P | F66: 4158729 | G66: 2021-03-01 | H66: 0.427920028 | I66: 2087435.53 | J66: 0.5019407444 | K66: OUT-OF-THE-MONEY | L66: IDR
B67: 60 | C67: 212392 | D67: B03VZ37 | E67: MITRA ADIPERKASA TBK PT | F67: 28535022 | G67: 2021-03-01 | H67: 0.06068046312 | I67: 1797902.65 | J67: 0.063006878 | K67: OUT-OF-THE-MONEY | L67: IDR
B68: 61 | C68: 212392 | D68: BYWPGC4 | E68: CHINA YUHUA EDUCATION CORP L | F68: 628000 | G68: 2021-03-01 | H68: 0.8418311465 | I68: 613025.91 | J68: 0.9761559076 | K68: OUT-OF-THE-MONEY | L68: HKD
B69: 62 | C69: 212392 | D69: 6420129 | E69: CAPITALAND INTEGRATED COMMER | F69: 1882800 | G69: 2021-05-28 | H69: 1.549274485 | I69: 3179842.8 | J69: 1.688890376 | K69: OUT-OF-THE-MONEY | L69: SGD
B70: 63 | C70: 212392 | D70: BN0ZCV0 | E70: BRITANNIA INDUSTRIES LTD 5.5 2024/06/03 | F70: 692288 | G70: 2021-05-25 | H70: 0.01342900643 | I70: 9296.74 | J70: 0.01342900643 | K70: IN-THE-MONEY | L70: HKD
B71: 64 | C71: 212392 | D71: BP6K4Y0 | E71: SEMBCORP MARINE LTD-RTS | F71: 957645 | G71: 2021-08-25 | H71: 0.0096026085 | I71: 0 | J71: 0 | K71: IN-THE-MONEY | L71: INR
B72: 65 | C72: 212392 | D72: BGHH0L6 | E72: WUXI APPTEC CO LTD-H | F72: 196440 | G72: 2021-05-28 | H72: 20.70476069 | I72: 3280107.43 | J72: 16.69775723 | K72: IN-THE-MONEY | L72: SGD
B73: 66 | C73: 212392 | D73: 6099875 | E73: ESCORTS LTD | F73: 85051 | G73: 2021-09-01 | H73: 18.44122526 | I73: 1601737.63 | J73: 18.83267251 | K73: OUT-OF-THE-MONEY | L73: INR
B74: 67 | C74: 212392 | D74: 6139340 | E74: TITAN CO LTD | F74: 106008 | G74: 2021-09-01 | H74: 26.53577107 | I74: 2179366.87 | J74: 20.55851323 | K74: IN-THE-MONEY | L74: INR
B75: 68 | C75: 212392 | D75: 6771720 | E75: SAMSUNG ELECTRONICS CO LTD | F75: 767261 | G75: 2021-09-01 | H75: 66.36996068 | I75: 55202618.87 | J75: 71.94764085 | K75: OUT-OF-THE-MONEY | L75: KRW
B76: 69 | C76: 212392 | D76: B736PF3 | E76: PTT GLOBAL CHEMICAL PCL-FOR | F76: 1109100 | G76: 2021-09-01 | H76: 1.854284167 | I76: 2300278.3 | J76: 2.074004418 | K76: OUT-OF-THE-MONEY | L76: THB | M76: Row Labels | N76: qStockCode | O76: StockName | P76: UnitFaceValue | Q76: costfc | R76: StockCurrency | S76: MarketValueFC | T76: ExchgRate | U76: CustNo | V76: CostPrice | W76: MVPrice
B77: 70 | C77: 212392 | D77: 6230845 | E77: UNITED TRACTORS TBK PT | F77: 1212300 | G77: 2021-12-01 | H77: 1.54 | I77: 2075551.16 | J77: 1.71 | K77: OUT-OF-THE-MONEY | L77: IDR | M77: 2021-12-01 | N77: 6230845 | O77: UNITED TRACTORS TBK PT | P77: 1212300 | Q77: 2075551.16 | R77: IDR | S77: 1861663.41 | T77: 14342.5 | U77: 212392 | V77: 1.712077176 | W77: 1.535645805
B78: 71 | C78: 212392 | D78: BDFLHY1 | E78: AIRPORTS OF THAILAND PCL-FOR | F78: 1309400 | G78: 2021-12-01 | H78: 1.78 | I78: 2818229.28 | J78: 2.15 | K78: OUT-OF-THE-MONEY | L78: THB | M78: 2021-12-01 | N78: BDFLHY1 | O78: AIRPORTS OF THAILAND PCL-FOR | P78: 1309400 | Q78: 2818229.31 | R78: THB | S78: 2329547.81 | T78: 33.725 | U78: 212392 | V78: 2.152305873 | W78: 1.779095624
B79: 72 | C79: 212392 | D79: BS7JP33 | E79: GLOBALWAFERS CO LTD | F79: 10000 | G79: 2021-12-01 | H79: 29.29 | I79: 296868.44 | J79: 29.69 | K79: OUT-OF-THE-MONEY | L79: TWD | M79: 2021-12-01 | N79: BS7JP33 | O79: GLOBALWAFERS CO LTD | P79: 10000 | Q79: 296871.73 | R79: TWD | S79: 292930.75 | T79: 27.754 | U79: 212392 | V79: 29.687173 | W79: 29.293075
B80: 73 | C80: 212392 | D80: B58Y4R3 | E80: GUDENG PRECISION INDUSTRIAL | F80: 80000 | G80: 2022-03-01 | H80: 9.52 | I80: 840314.14 | J80: 10.5 | K80: OUT-OF-THE-MONEY | L80: TWD | M80: 2022-03-01 | N80: B58Y4R3 | O80: GUDENG PRECISION INDUSTRIAL | P80: 80000 | Q80: 840314.14 | R80: TWD | S80: 761524.48 | T80: 28.049 | U80: 212392 | V80: 10.50392675 | W80: 9.519056
M81: (blank) | N81: (blank) | O81: (blank) | P81: (blank) | Q81: (blank) | R81: (blank) | S81: (blank) | T81: (blank) | U81: (blank) | V81: (blank) | W81: (blank)
B83: Note :
B85: All transactions are in USD unless stated otherwise.
B87: 1. Total no. of shares are as at ending of the Reclass Date.
B89: 2. Reclass Date = Effective date of reclassification (MMYYYY) based on the periodic review by the shariah index used as performance benchmark as stated in the mandate (i.e. FTSE and MSCI).
B91: 3. Reclass Price = Closing market price on Reclass Date.
B93: 4. Investment Cost = Original investment cost excluding impairment.

Sheet 2) ITM Reclassed Securities
C1: =IF(OR(AR1="",AT1=""),"",AT1) ->  | D1: =IF(OR(AR1="",AU1=""),"",AU1) ->  | E1: =IF(OR(AR1="",AV1=""),"",AV1) ->  | F1: =IF(OR(AW1="",AW1="(blank)"),"",AW1) ->  | G1: =IF(OR(AX1="",AX1=0),"",ROUND(AX1,4)) ->  | H1: =IF(OR(AY1="",AY1=0),"",IF(F1="Corporate Action",BB1,AY1)) ->  | I1: =IF(BM1="","",IF(BM1=1,AZ1,AZ1)) ->  | J1: =IF(H1="","",H1*I1) ->  | K1: =IF(OR(BG1="",BH1<>"SS"),"",BG1) ->  | L1: =IF(OR(BB1="",BH1<>"SS"),"",BB1) ->  | M1: =IF(OR(BC1="",BH1<>"SS"),"",BC1) ->  | N1: =IF(OR(BE1="",BH1<>"SS"),"",BE1) ->  | O1: =IF(L1="","",L1*I1) ->  | P1: =IF(OR(BE1="",BH1<>"SS"),"",BE1-BD1) ->  | Q1: =IF(OR(BI1=0,BI1=""),"",BI1) ->  | R1: =IF(OR(BJ1="",BJ1=0),"",BJ1) ->  | S1: =IF(OR(R1="",L1=""),"",R1*L1) ->  | T1: =IF(OR(BG1="",BH1<>"SI"),"",BG1) ->  | U1: =IF(OR(AS1="",BH1<>"SI"),"",AS1) ->  | V1: =IF(OR(BC1="",BH1<>"SI"),"",W1/H1) ->  | W1: =IF(OR(BD1="",BH1<>"SI"),"",BD1) ->  | X1: =IF(OR(BL1="",BL1="(blank)",BH1="SI",BH1="SS"),"",BL1) ->  | Y1: =IF(OR(BG1="",BG1="(blank)",BH1="SI",BH1="SS",BL1="(blank)"),"",BG1) ->  | Z1: =IF(OR(BB1="",BB1="(blank)",BH1="SI",BH1="SS",BL1="(blank)"),"",BB1) ->  | AA1: =IF(OR(BD1="",BD1="(blank)",BH1="SI",BH1="SS",BL1="(blank)"),"",BD1) ->  | AB1: =IF(N1="","",N1-O1-P1) ->  | AC1: =IF(W1="","",W1) ->  | AD1: =IF(S1="","",IF(S1="",0,S1)-IF(O1="",0,O1)-IF(P1="",0,P1)) ->  | AE1: =IF(AC1="","",AC1) ->  | AF1: =IF(N1="","",N1-S1) ->  | AG1: =IF(OR(AF1="",G1=""),"",AF1*G1) ->  | AH1: =IF(AE1="","",AE1) ->  | AI1: =IF(OR(AH1="",G1=""),"",AH1*G1) ->  | AJ1: =IF(H1="","",IF(BH1="SS",H1-L1,IF(F1<>"",H1,""))) ->  | AK1: =IF($F1="","",IF($F1="Dividend",$AL1/$AJ1,IF($F1="SELL",IF($I1=0,AZ1,I1),($J1-IF($AA1="",0,$AA1))/$AJ1))) ->  | AL1: =IF($F1="","",IF($F1="Dividend",$BA1,AK1*AJ1)) ->  | AM1: =IF(R1="","",IF(BH1="SS",R1,IF(F1<>"",R1,""))) -> 
B2: ="TRANSACTIONS OF THE IN-THE-MONEY (ITM) RECLASSED SECURITIES FOR THE MONTH OF "&UPPER(TEXT(EndDate,"MMMm-yyyy")) -> TRANSACTIONS OF THE IN-THE-MONEY (ITM) RECLASSED SECURITIES FOR THE MONTH OF MAY-2022
B4: Mandate : | D4: =FundName -> EPF SHARIAH ASIA NOMURA ISLAMIC
B5: Portfolio Manager : | D5: NOMURA ISLAMIC ASSET MANAGEMENT SDN BHD
H6: Beginning Holdings | K6: Disposal of Reclassed Securities | Q6: Details of Reclassed Securities | T6: Dividend Received from Reclassed Securities | X6: Corporate Action Events of the Reclassed Securities | AB6: Total Income | AD6: Shariah Income | AF6: Non-Compliant Income (NCI) | AJ6: Remaining Holdings | AN6: Note
G7: USD to Ringgit Malaysia Exchange Rate1 | H7: No. of Shares [a] | I7: Average Investment Cost Per Share2 [b] | J7: Total Investment Cost [c = a x b] | K7: Disposal Date (DD/MM/YY) | L7: No. of Shares Disposed [d] | M7: Disposal Price [e] | N7: Disposal Value [f = d x e] | O7: Investment Cost [g = b x d] | P7: Commission and Trade Expense [h] | Q7: Reclass Date (DD/MM/YY) | R7: Reclass Price [i] | S7: Reclass Value [j = d x i] | T7: Ex Date | U7: Payment Date | V7: Dividend Per Share [k] | W7: Entitlement Value [l = a x k] | X7: Type | Y7: Date (DD/MM/YY) | Z7: No. of Shares (If applicable) | AA7: Entitlement Value | AB7: Total Capital Gain/Loss [m = f - g - h] | AC7: Dividend Income | AD7: Capital Gain3 [n = j - g - h] | AE7: Dividend Income4 | AF7: Capital Gain5 | AH7: Dividend Income6 | AJ7: No. of Shares [o] | AK7: Average Investment Cost Per Share [p] | AL7: Total Investment Cost [q = o x p] | AM7: Reclass Price
B8: No. | C8: Custody Account No. | D8: Security Identifier (Sedol) | E8: Security Name | F8: Type of Transaction
AF9: =FundCur -> USD | AG9: RM | AH9: =FundCur -> USD | AI9: RM | BP9: Stock Code | BQ9: ReClassDt | BR9: Unit | BS9: Price | BT9: Cost | BU9: Last
B10: 1 | C10: 212392 | D10: BYVKT10 | E10: ADITYA BIRLA CAPITAL LTD | F10: SELL | G10: 4.2105 | H10: 28000 | I10: 2.108810357 | J10: 59046.69 | K10: 2017-09-07 | L10: 28000 | M10: 3.022211786 | N10: 84621.93 | O10: 59046.69 | P10: 126.93 | Q10: 2017-07-19 | R10: 2.407417857 | S10: 67407.7 | AB10: 25448.31 | AD10: 8234.08 | AF10: 17214.23 | AG10: =AF10*G10 -> 72480.51541 | AJ10: 0 | AK10: 2.108810357 | AL10: 0 | AM10: 2.407417857 | BP10: BYVKT10 | BQ10: 2017-07-19 | BR10: 0 | BS10: 2.108810357 | BT10: 0 | BU10: 1
B12: 2 | C12: 212392 | D12: 6541826 | E12: POYA INTERNATIONAL CO LTD | F12: SELL | G12: 4.2225 | H12: 20360 | I12: 12.43362917 | J12: 253148.69 | K12: 2019-09-03 | L12: 20360 | M12: 13.213639 | N12: 269029.69 | O12: 253148.69 | P12: 1049.23 | Q12: 2019-08-28 | R12: 13.10134037 | S12: 266743.29 | AB12: 14831.77 | AD12: 12545.37 | AF12: 2286.4 | AG12: =AF12*G12 -> 9654.324 | AJ12: 0 | AK12: 12.43362917 | AL12: 0 | AM12: 13.10134037 | BP12: 6541826 | BQ12: 2019-08-28 | BR12: 0 | BS12: 12.43362917 | BT12: 0 | BU12: 1
B14: 3 | C14: 212392 | D14: 6795236 | E14: SEMEN INDONESIA PERSERO TBK | F14: SELL | G14: 4.215 | H14: 721200 | I14: 0.8896245702 | J14: 641597.24 | K14: 2019-09-02 | L14: 360600 | M14: 0.9370156406 | N14: 337887.84 | O14: 320798.62 | P14: 854.86 | Q14: 2019-08-28 | R14: 0.9084531753 | S14: 327588.215 | AB14: 16234.36 | AD14: 5934.735 | AF14: 10299.625 | AG14: =AF14*G14 -> 43412.91937 | AJ14: 360600 | AK14: 0.8896245702 | AL14: 320798.62 | AM14: 0.9084531753 | BP14: 6795236 | BQ14: 2019-08-28 | BR14: 360600 | BS14: 0.8896245702 | BT14: 320798.62
F15: SELL | G15: 4.203 | H15: 360600 | I15: 0.8896245702 | J15: 320798.62 | K15: 2019-09-04 | L15: 360600 | M15: 0.9503621187 | N15: 342700.58 | O15: 320798.62 | P15: 860.18 | Q15: 2019-08-28 | R15: 0.9084531753 | S15: 327588.215 | AB15: 21041.78 | AD15: 5929.415 | AF15: 15112.365 | AG15: 63517.27009 | AJ15: 0 | AK15: 0.8896245702 | AL15: 0 | AM15: 0.9084531753 | BP15: 6795236 | BQ15: 2019-08-28 | BR15: 0 | BS15: 0.8896245702 | BT15: 0 | BU15: 1
B17: 4 | C17: 212392 | D17: B0MP1B0 | E17: SHENZHOU INTERNATIONAL | F17: SELL | G17: 4.146 | H17: 224446 | I17: 13.96766331 | J17: 3134986.16 | K17: 2020-09-02 | L17: 224446 | M17: 16.8614285 | N17: 3784480.18 | O17: 3134986.16 | P17: 6346.66 | Q17: 2020-09-01 | R17: 16.50311932 | S17: 3704059.12 | AB17: 643147.36 | AD17: 562726.3 | AF17: 80421.06 | AG17: 333425.7148 | AJ17: 0 | AK17: 13.96766331 | AL17: 0 | AM17: 16.50311932 | BP17: B0MP1B0 | BQ17: 2020-09-01 | BR17: 0 | BS17: 13.96766331 | BT17: 0 | BU17: 1
B19: 5 | C19: 212392 | D19: 6288190 | E19: AU OPTRONICS CORP | F19: SELL | G19: 4.1455 | H19: 4411000 | I19: 0.3610142961 | J19: 1592434.06 | K19: 2020-09-02 | L19: 4411000 | M19: 0.3647147041 | N19: 1608756.56 | O19: 1592434.06 | P19: 6274.15 | Q19: 2020-09-01 | R19: 0.3663752709 | S19: 1616081.32 | AB19: 10048.35 | AD19: 17373.11 | AJ19: 0 | AK19: 0.3610142961 | AL19: 0 | AM19: 0.3663752709 | BP19: 6288190 | BQ19: 2020-09-01 | BR19: 0 | BS19: 0.3610142961 | BT19: 0 | BU19: 1
B21: 6 | C21: 212392 | D21: 6580432 | E21: MAKALOT INDUSTRIAL CO | F21: SELL | G21: 4.146 | H21: 184640 | I21: 6.120374783 | J21: 1130066 | K21: 2020-09-02 | L21: 184640 | M21: 6.830639352 | N21: 1261209.25 | O21: 1130066 | P21: 4918.71 | Q21: 2020-09-01 | R21: 6.714039861 | S21: 1239680.32 | AB21: 126224.54 | AD21: 104695.61 | AF21: 21528.93 | AG21: 89258.94378 | AJ21: 0 | AK21: 6.120374783 | AL21: 0 | AM21: 6.714039861 | BP21: 6580432 | BQ21: 2020-09-01 | BR21: 0 | BS21: 6.120374783 | BT21: 0 | BU21: 1
B23: 7 | C23: 212392 | D23: B01B1L9 | E23: CHINA MENGNIU DAIRY CO | F23: SELL | G23: 4.0765 | H23: 489774 | I23: 4.437558609 | J23: 2173400.83 | K23: 2020-12-02 | L23: 489774 | M23: 5.075341362 | N23: 2485770.24 | O23: 2173400.83 | P23: 3174.35 | Q23: 2020-12-01 | R23: 5.140708347 | S23: 2517785.29 | AB23: 309195.06 | AD23: 341210.11 | AJ23: 0 | AK23: 4.437558609 | AL23: 0 | AM23: 5.140708347 | BP23: B01B1L9 | BQ23: 2020-12-01 | BR23: 0 | BS23: 4.437558609 | BT23: 0 | BU23: 1
B25: 8 | C25: 212392 | D25: 6283601 | E25: NANYA TECHNOLOGY | F25: SELL | G25: 4.0765 | H25: 1083000 | I25: 2.237898172 | J25: 2423643.72 | K25: 2020-12-02 | L25: 1083000 | M25: 2.861651551 | N25: 3099168.63 | O25: 2423643.72 | P25: 9917.37 | Q25: 2020-12-01 | R25: 2.696778947 | S25: 2920611.6 | AB25: 665607.54 | AD25: 487050.51 | AF25: 178557.03 | AG25: 727887.7328 | AJ25: 0 | AK25: 2.237898172 | AL25: 0 | AM25: 2.696778947 | BP25: 6283601 | BQ25: 2020-12-01 | BR25: 0 | BS25: 2.237898172 | BT25: 0 | BU25: 1
B27: 9 | C27: 212392 | D27: BN0ZCV0 | E27: BRITANNIA INDUSTRIES LTD 5.5 2024/06/03 | F27: SELL | G27: 4.2245 | H27: 692288 | I27: 0.01342900643 | J27: 9296.74 | K27: 2021-07-22 | L27: 692288 | M27: 0.01354940429 | N27: 9380.09 | O27: 9296.74 | P27: 8.44 | Q27: 2021-05-25 | R27: 0.01342900643 | S27: 9296.740001 | AB27: 75 | AD27: -8 | AF27: 75 | AG27: 316.8375 | AJ27: 692288 | AK27: 0.01342900643 | AL27: 9296.74 | AM27: 0.01342900643 | AR27: ShowRecord | AS27: 1 | BP27: BN0ZCV0 | BQ27: 2021-05-25 | BR27: 692288 | BS27: 0.01342900643 | BT27: 9296.74 | BU27: 1
AR28: FilterInOut | AS28: 0
B29: 10 | C29: 212392 | D29: BP6K4Y0 | E29: SEMBCORP MARINE LTD-RTS | F29: SELL | G29: 4.157 | H29: 957645 | I29: 0 | J29: 0 | K29: 2021-08-31 | L29: 957645 | M29: 0.001858590605 | N29: 1779.87 | O29: 0 | P29: 1.65 | Q29: 2021-08-25 | R29: 0.0096026085 | S29: 9195.890017 | AB29: 1778.22 | AD29: 9194.240017 | AJ29: 957645 | AK29: 0 | AL29: 0 | AM29: 0.0096026085 | BP29: BP6K4Y0 | BQ29: 2021-08-25 | BR29: 957645 | BS29: 0 | BT29: 0 | BU29: 1
AR30: Row Labels | AS30: PayDate | AT30: CustNo | AU30: qStockCode | AV30: StockName | AW30: TranType | AX30: ExRate | AY30: BeginUFV | AZ30: BeginCostPrice | BA30: BeginCostFC | BB30: UnitFaceValue | BC30: TranPrice | BD30: FCNetProceed | BE30: FCGrossProceed | BF30: MVPrice | BG30: TradeDate | BH30: qTrnCode | BI30: ReclassDt | BJ30: ReclassPrice | BK30: ReClassMV | BL30: TranDesc | BM30: row_num | BN30: ImportCost
B31: 11 | C31: 212392 | D31: BGHH0L6 | E31: WUXI APPTEC CO LTD-H | F31: SELL | G31: 4.1245 | H31: 196440 | I31: =IF(BB31="","",IF(BM31=1,BN31/H31,AK30)) -> 16.69775723 | J31: =IF(H31="","",IF(BM31=1,BN31,H31*I31)) -> 3280107.43 | K31: 2021-05-31 | L31: 163700 | M31: 21.21229692 | N31: 3472453.006 | O31: =IF(L31="","",L31*I31) -> 2733422.858 | P31: 5823.3363 | Q31: 2021-05-28 | R31: 20.70476069 | S31: 3389369.325 | AB31: =IF(N31="","",N31-O31-P31) -> 733206.8117 | AD31: =IF(S31="","",IF(S31="",0,S31)-IF(O31="",0,O31)-IF(P31="",0,P31)) -> 650123.1304 | AF31: 83083.6813 | AG31: 342678.6435 | AJ31: 32740 | AK31: =IF(F31="","",IF(F31="Dividend",AL31/AJ31,IF(F31="SELL",IF(I31=0,AZ31,$I31),(J31-IF(AA31="",0,AA31))/$AJ31))) -> 16.69775723 | AL31: =IF(F31="","",IF(F31="Dividend",IF(BM31=1,BN31-AE31,AL30-AE31),AK31*AJ31)) -> 546684.5717 | AM31: 20.70476069 | AR31: 202105_BGHH0L6 | AS31: 2021-05-31 | AT31: 212392 | AU31: BGHH0L6 | AV31: WUXI APPTEC CO LTD-H | AW31: SELL | AX31: 4.1245 | AY31: 196440 | AZ31: 16.69775718 | BA31: 3271805.19 | BB31: 163700 | BC31: 21.21229692 | BD31: 3466629.67 | BE31: 3472453.006 | BF31: 20.70476069 | BG31: 2021-05-31 | BH31: SS | BI31: 2021-05-28 | BJ31: 20.70476069 | BK31: 4067243.19 | BL31: Share Sale | BM31: 1 | BN31: 3280107.43 | BP31: BGHH0L6 | BQ31: 2021-05-28 | BR31: 32740 | BS31: 16.69775723 | BT31: 546684.5717
F32: Corporate Action | H32: 32740 | I32: =IF(BB32="","",IF(BM32=1,BN32/H32,AK31)) -> 16.69775723 | J32: =IF(H32="","",IF(BM32=1,BN32,H32*I32)) -> 546684.5717 | O32: =IF(L32="","",L32*I32) ->  | Q32: 2021-05-28 | R32: 20.70476069 | X32: Bonus Issue | Y32: 2021-05-28 | Z32: 32740 | AA32: 0 | AB32: =IF(N32="","",N32-O32-P32) ->  | AD32: =IF(S32="","",IF(S32="",0,S32)-IF(O32="",0,O32)-IF(P32="",0,P32)) ->  | AJ32: 32740 | AK32: =IF(F32="","",IF(F32="Dividend",AL32/AJ32,IF(F32="SELL",IF(I32=0,AZ32,$I32),(J32-IF(AA32="",0,AA32))/$AJ32))) -> 16.69775723 | AL32: =IF(F32="","",IF(F32="Dividend",IF(BM32=1,BN32-AE32,AL31-AE32),AK32*AJ32)) -> 546684.5717 | AM32: 20.70476069 | AS32: 2021-06-08 | AT32: 212392 | AU32: BGHH0L6 | AV32: WUXI APPTEC CO LTD-H | AW32: Corporate Action | AX32: 0 | AY32: 163700 | AZ32: 20.03730861 | BA32: 3271805.19 | BB32: 32740 | BC32: 0.02577402623 | BD32: 0 | BE32: 0 | BF32: 25.2482617 | BG32: 2021-05-28 | BH32: SB | BI32: 2021-05-28 | BJ32: 20.70476069 | BK32: 4067243.19 | BL32: Bonus Issue | BM32: 2 | BN32: 0 | BP32: BGHH0L6 | BQ32: 2021-05-28 | BR32: 32740 | BS32: 16.69775723 | BT32: 546684.5717
F33: SELL | G33: 4.1175 | H33: 32740 | I33: =IF(BB33="","",IF(BM33=1,BN33/H33,AK32)) -> 16.69775723 | J33: =IF(H33="","",IF(BM33=1,BN33,H33*I33)) -> 546684.5717 | K33: 2021-06-09 | L33: 32740 | M33: 21.60243288 | N33: 707263.6523 | O33: =IF(L33="","",L33*I33) -> 546684.5717 | P33: 903.2623 | Q33: 2021-05-28 | R33: 20.70476069 | S33: 677873.865 | AB33: =IF(N33="","",N33-O33-P33) -> 159675.8183 | AD33: =IF(S33="","",IF(S33="",0,S33)-IF(O33="",0,O33)-IF(P33="",0,P33)) -> 130286.031 | AF33: 29389.7873 | AG33: 121012.4492 | AJ33: 0 | AK33: =IF(F33="","",IF(F33="Dividend",AL33/AJ33,IF(F33="SELL",IF(I33=0,AZ33,$I33),(J33-IF(AA33="",0,AA33))/$AJ33))) -> 16.69775723 | AL33: =IF(F33="","",IF(F33="Dividend",IF(BM33=1,BN33-AE33,AL32-AE33),AK33*AJ33)) -> 0 | AM33: 20.70476069 | AS33: 2021-06-09 | AT33: 212392 | AU33: BGHH0L6 | AV33: WUXI APPTEC CO LTD-H | AW33: SELL | AX33: 4.1175 | AY33: 32740 | AZ33: 16.69775657 | BA33: 538382.32 | BB33: 32740 | BC33: 21.60243288 | BD33: 706360.39 | BE33: 707263.6523 | BF33: 21.48265089 | BG33: 2021-06-09 | BH33: SS | BI33: 2021-05-28 | BJ33: 20.70476069 | BK33: 4067243.19 | BL33: Share Sale | BM33: 3 | BN33: 0 | BP33: BGHH0L6 | BQ33: 2021-05-28 | BR33: 0 | BS33: 16.69775723 | BT33: 0 | BU33: 1
I34: =IF(BB34="","",IF(BM34=1,BN34/H34,AK33)) ->  | J34: =IF(H34="","",IF(BM34=1,BN34,H34*I34)) ->  | O34: =IF(L34="","",L34*I34) ->  | AB34: =IF(N34="","",N34-O34-P34) ->  | AD34: =IF(S34="","",IF(S34="",0,S34)-IF(O34="",0,O34)-IF(P34="",0,P34)) ->  | AK34: =IF(F34="","",IF(F34="Dividend",AL34/AJ34,IF(F34="SELL",IF(I34=0,AZ34,$I34),(J34-IF(AA34="",0,AA34))/$AJ34))) ->  | AL34: =IF(F34="","",IF(F34="Dividend",IF(BM34=1,BN34-AE34,AL33-AE34),AK34*AJ34)) -> 
B35: 12 | C35: 212392 | D35: 6139340 | E35: TITAN CO LTD | F35: SELL | G35: 4.158 | H35: 106008 | I35: =IF(BB35="","",IF(BM35=1,BN35/H35,AK34)) -> 20.55851323 | J35: =IF(H35="","",IF(BM35=1,BN35,H35*I35)) -> 2179366.87 | K35: 2021-09-02 | L35: 106008 | M35: 26.90870376 | N35: 2852537.868 | O35: =IF(L35="","",L35*I35) -> 2179366.87 | P35: 3993.5577 | Q35: 2021-09-01 | R35: 26.53577107 | S35: 2813004.02 | AB35: =IF(N35="","",N35-O35-P35) -> 669177.44 | AD35: =IF(S35="","",IF(S35="",0,S35)-IF(O35="",0,O35)-IF(P35="",0,P35)) -> 629643.5923 | AF35: 39533.8477 | AG35: 164381.7387 | AJ35: 0 | AK35: =IF(F35="","",IF(F35="Dividend",AL35/AJ35,IF(F35="SELL",IF(I35=0,AZ35,$I35),(J35-IF(AA35="",0,AA35))/$AJ35))) -> 20.55851323 | AL35: =IF(F35="","",IF(F35="Dividend",IF(BM35=1,BN35-AE35,AL34-AE35),AK35*AJ35)) -> 0 | AM35: 26.53577107 | AR35: 202109_6139340 | AS35: 2021-09-02 | AT35: 212392 | AU35: 6139340 | AV35: TITAN CO LTD | AW35: SELL | AX35: 4.158 | AY35: 106008 | AZ35: 20.55851332 | BA35: 2179366.88 | BB35: 106008 | BC35: 26.90870376 | BD35: 2848544.31 | BE35: 2852537.868 | BF35: 26.53577107 | BG35: 2021-09-02 | BH35: SS | BI35: 2021-09-01 | BJ35: 26.53577107 | BK35: 2813004.02 | BL35: Share Sale | BM35: 1 | BN35: 2179366.87 | BP35: 6139340 | BQ35: 2021-09-01 | BR35: 0 | BS35: 20.55851323 | BT35: 0 | BU35: 1
AE37: Total NCI | AF37: 477501.9563 | AG37: 1968027.089 | AH37: 0 | AI37: 0
AF38: Grand total NCI (USD) | AI38: 477501.9563
AF39: Grand total NCI (RM) | AI39: 1968027.089
B41: Important:
B42: When the reclassed securities are "in-the-money" on the Reclass Date, all holdings need to be disposed immediately.
B43: Disposal in stages is allowed only if there is no liquidity in the market or any other reasons that could prevent the Portfolio Manager from trading on the Reclass Date and any entitlement of shares resulting from corporate action must be disposed immediately.
B45: Note :
B47: All transactions are in USD unless stated otherwise.
B49: 1. Except for corporate action involving dividend, exchange rate is based on the rate on the transaction date. For dividend, exchange rate is based on the payment date.
B51: 2. Average Investment Cost Per Share should reflect the latest (adjusted, if any) average investment cost excluding impairment.
B53: 3. Any capital gain up to Reclass Price is deemed shariah-compliant.
B55: 4. Dividend income (net of withholding tax) are deemed shariah-compliant if the ex-date is before/on the Reclass Date
B57: 5. Any excess capital gain above Reclass Price is considered as NCI.
B59: 6. Dividend income (net of withholding tax) is deemed as NCI when the Ex-Date is after the Reclass Date

Sheet 3) OTM Reclassed Securities
B1: =IF(OR(AJ1="",AJ1="(blank)",AK1=""),"",AJ1) ->  | C1: =IF(OR(AN1="",AN1="(blank)",AK1=""),"",AN1) ->  | D1: =IF(OR(AO1="",AO1="(blank)",AK1=""),"",AO1) ->  | E1: =IF(OR(AP1="",AP1="(blank)",AK1=""),"",AP1) ->  | F1: =IF(OR(AQ1="",AQ1="(blank)"),"",AQ1) ->  | G1: =IF(OR(AR1="",AR1="(blank)"),"",AR1) -> 
B2: ="TRANSACTIONS OF THE OUT-OF-THE-MONEY (OTM) RECLASSED SECURITIES FOR THE MONTH OF "&UPPER(TEXT(EndDate,"MMMm-yyyy")) -> TRANSACTIONS OF THE OUT-OF-THE-MONEY (OTM) RECLASSED SECURITIES FOR THE MONTH OF MAY-2022
B4: Mandate : | D4: =FundName -> EPF SHARIAH ASIA NOMURA ISLAMIC
B5: Portfolio Manager : | D5: NOMURA ISLAMIC ASSET MANAGEMENT SDN BHD
H6: Beginning Holdings | K6: Disposal of Reclassed Securities | Q6: Dividend Received from Reclassed Securities | U6: Corporate Action Events of the Reclassed Securities | Y6: Total Income | AA6: Shariah Income | AB6: Non-Compliant Income (NCI) | AF6: Remaining Holdings | AI6: Note
G7: USD to Ringgit Malaysia Exchange Rate1 | H7: No. of Shares [a] | I7: Recoverable Average Investment Cost Per Share2 [b] | J7: Total Recoverable Investment Cost [c = a x b] | K7: Disposal Date (DD/MM/YY) | L7: No. of Shares Disposed [d] | M7: Disposal Price [e] | N7: Disposal Value [f = d x e] | O7: Investment Cost [g = b x d] | P7: Commission and Trade Expense [h] | Q7: Ex Date | R7: Payment Date | S7: Dividend Per Share [k] | T7: Entitlement Value [l = a x k] | U7: Type | V7: Date (DD/MM/YY) | W7: No. of Shares (If applicable) | X7: Entitlement Value | Y7: Total Capital Gain/Loss [m = f - g - h] | Z7: Dividend Income | AA7: Dividend Income3 | AB7: Capital Gain4 | AD7: Dividend Income5 | AF7: No. of Shares [n] | AG7: Recoverable Average Investment Cost Per Share (adjusted, if any) [o] | AH7: Total Recoverable Investment Cost [p = n x o]
B8: No. | C8: Custody Account No. | D8: Security Identifier (Sedol) | E8: Security Name | F8: Type of Transaction
AB9: =FundCur -> USD | AC9: RM | AD9: =FundCur -> USD | AE9: RM | AJ9: Row Labels | AK9: SeqName | AL9: TradeDT | AM9: No. | AN9: AccNo | AO9: StockCode | AP9: StockName | AQ9: TranType | AR9: ExRate | AS9: BeginUFV | AT9: BeginCostPrice | AU9: BeginCost | AV9: DisposeDt | AW9: DisposeShare | AX9: DisposePrice | AY9: DisposeValue | AZ9: DisposeCost | BA9: DisposeExpense | BB9: DivExDt | BC9: DivPayDt | BD9: DivPrice | BE9: DivValue | BF9: CorpType | BG9: CorpDt | BH9: CorpShare | BI9: CorpValue | BJ9: TotalGnL | BK9: TotalIncome | BL9: ShariahIncome | BM9: FundCurGain | BN9: RMGain | BO9: FundCurIncome | BP9: RMIncome | BQ9: EndUFV | BR9: EndCostPrice | BS9: EndCost | BT9: Remarks | BU9: row_num | BV9: ImportCost | BW9: ReclassDt | BX9: Stock Code | BY9: ReClassDt | BZ9: Unit | CA9: Price | CB9: Cost | CC9: Last
B10: 1 | C10: 212392 | D10: B4X3RF7 | E10: SIHUAN PHARMACEUTICAL HLDGS | F10: Dividend | G10: 4.3465 | H10: 1000000 | I10: 0.66442027 | J10: 664420.27 | O10: N/A | Q10: 2015-09-11 | R10: 2015-09-23 | S10: 0.00219353 | T10: 2193.53 | Z10: 2193.53 | AA10: 2193.53 | AF10: 1000000 | AG10: 0.66222674 | AH10: 662226.74 | AJ10: 1 | AK10: 201507_B4X3RF7 | AL10: 2015-09-23 | AM10: 1 | AN10: 212392 | AO10: B4X3RF7 | AP10: SIHUAN PHARMACEUTICAL HLDGS | AQ10: Dividend | AR10: 4.3465 | AS10: 1000000 | AT10: 0.66442027 | AU10: 664420.27 | AZ10: N/A | BB10: 2015-09-11 | BC10: 2015-09-23 | BD10: 0.00219353 | BE10: 2193.53 | BK10: 2193.53 | BL10: 2193.53 | BQ10: 1000000 | BR10: 0.66222674 | BS10: 662226.74 | BT10: (blank) | BU10: (blank) | BV10: (blank) | BW10: 2015-07-01 | BX10: B4X3RF7 | BY10: 2015-07-01 | BZ10: 1000000 | CA10: 0.66222674 | CB10: 662226.74
F11: Dividend | G11: 4.292 | H11: 1000000 | I11: 0.66222674 | J11: 662226.74 | O11: N/A | Q11: 2015-12-17 | R11: 2015-12-30 | S11: 0.00206428 | T11: 2064.28 | Z11: 2064.28 | AA11: 2064.28 | AF11: 1000000 | AG11: 0.66016246 | AH11: 660162.46 | AJ11: 1 | AL11: 2015-12-30 | AM11: 1 | AN11: 212392 | AO11: B4X3RF7 | AP11: SIHUAN PHARMACEUTICAL HLDGS | AQ11: Dividend | AR11: 4.292 | AS11: 1000000 | AT11: 0.66222674 | AU11: 662226.74 | AZ11: N/A | BB11: 2015-12-17 | BC11: 2015-12-30 | BD11: 0.00206428 | BE11: 2064.28 | BK11: 2064.28 | BL11: 2064.28 | BQ11: 1000000 | BR11: 0.66016246 | BS11: 660162.46 | BT11: (blank) | BU11: (blank) | BV11: (blank) | BW11: 2015-07-01 | BX11: B4X3RF7 | BY11: 2015-07-01 | BZ11: 1000000 | CA11: 0.66016246 | CB11: 660162.46
F12: Dividend | G12: 3.9715 | H12: 1000000 | I12: 0.66016246 | J12: 660162.46 | O12: N/A | Q12: 2016-06-30 | R12: 2016-07-13 | S12: 0.00683298 | T12: 6832.98 | Z12: 6832.98 | AA12: 6832.98 | AF12: 1000000 | AG12: 0.65332948 | AH12: 653329.48 | AJ12: 1 | AL12: 2016-07-13 | AM12: 1 | AN12: 212392 | AO12: B4X3RF7 | AP12: SIHUAN PHARMACEUTICAL HLDGS | AQ12: Dividend | AR12: 3.9715 | AS12: 1000000 | AT12: 0.66016246 | AU12: 660162.46 | AZ12: N/A | BB12: 2016-06-30 | BC12: 2016-07-13 | BD12: 0.00683298 | BE12: 6832.98 | BK12: 6832.98 | BL12: 6832.98 | BQ12: 1000000 | BR12: 0.65332948 | BS12: 653329.48 | BT12: (blank) | BU12: (blank) | BV12: (blank) | BW12: 2015-07-01 | BX12: B4X3RF7 | BY12: 2015-07-01 | BZ12: 1000000 | CA12: 0.65332948 | CB12: 653329.48
F13: Dividend | G13: 4.1445 | H13: 1000000 | I13: 0.65332948 | J13: 653329.48 | O13: N/A | Q13: 2016-09-05 | R13: 2016-09-15 | S13: 0.00206219 | T13: 2062.19 | Z13: 2062.19 | AA13: 2062.19 | AF13: 1000000 | AG13: 0.65126729 | AH13: 651267.29 | AJ13: 1 | AL13: 2016-09-15 | AM13: 1 | AN13: 212392 | AO13: B4X3RF7 | AP13: SIHUAN PHARMACEUTICAL HLDGS | AQ13: Dividend | AR13: 4.1445 | AS13: 1000000 | AT13: 0.65332948 | AU13: 653329.48 | AZ13: N/A | BB13: 2016-09-05 | BC13: 2016-09-15 | BD13: 0.00206219 | BE13: 2062.19 | BK13: 2062.19 | BL13: 2062.19 | BQ13: 1000000 | BR13: 0.65126729 | BS13: 651267.29 | BT13: (blank) | BU13: (blank) | BV13: (blank) | BW13: 2015-07-01 | BX13: B4X3RF7 | BY13: 2015-07-01 | BZ13: 1000000 | CA13: 0.65126729 | CB13: 651267.29
F14: Dividend | G14: 4.296 | H14: 1000000 | I14: 0.65126729 | J14: 651267.29 | O14: N/A | Q14: 2017-06-22 | R14: 2017-07-05 | S14: 0.01319261 | T14: 13192.61 | Z14: 13192.61 | AA14: 13192.61 | AF14: 1000000 | AG14: 0.63807468 | AH14: 638074.68 | AJ14: 1 | AL14: 2017-07-05 | AM14: 1 | AN14: 212392 | AO14: B4X3RF7 | AP14: SIHUAN PHARMACEUTICAL HLDGS | AQ14: Dividend | AR14: 4.296 | AS14: 1000000 | AT14: 0.65126729 | AU14: 651267.29 | AZ14: N/A | BB14: 2017-06-22 | BC14: 2017-07-05 | BD14: 0.01319261 | BE14: 13192.61 | BK14: 13192.61 | BL14: 13192.61 | BQ14: 1000000 | BR14: 0.63807468 | BS14: 638074.68 | BT14: (blank) | BU14: (blank) | BV14: (blank) | BW14: 2015-07-01 | BX14: B4X3RF7 | BY14: 2015-07-01 | BZ14: 1000000 | CA14: 0.63807468 | CB14: 638074.68
F15: Dividend | G15: 4.191 | H15: 1000000 | I15: 0.63807468 | J15: 638074.68 | O15: N/A | Q15: 2017-09-01 | R15: 2017-09-13 | S15: 0.00268845 | T15: 2688.45 | Z15: 2688.45 | AA15: 2688.45 | AF15: 1000000 | AG15: 0.63538623 | AH15: 635386.23 | AJ15: 1 | AL15: 2017-09-13 | AM15: 1 | AN15: 212392 | AO15: B4X3RF7 | AP15: SIHUAN PHARMACEUTICAL HLDGS | AQ15: Dividend | AR15: 4.191 | AS15: 1000000 | AT15: 0.63807468 | AU15: 638074.68 | AZ15: N/A | BB15: 2017-09-01 | BC15: 2017-09-13 | BD15: 0.00268845 | BE15: 2688.45 | BK15: 2688.45 | BL15: 2688.45 | BQ15: 1000000 | BR15: 0.63538623 | BS15: 635386.23 | BT15: (blank) | BU15: (blank) | BV15: (blank) | BW15: 2015-07-01 | BX15: B4X3RF7 | BY15: 2015-07-01 | BZ15: 1000000 | CA15: 0.63538623 | CB15: 635386.23 | CC15: 1
B17: 2 | C17: 212392 | D17: 6582483 | E17: Sun Pharmaceutical Industries Limited | F17: Dividend | G17: 4.1325 | H17: 75866 | I17: 15.00915548 | J17: 1138684.59 | O17: N/A | Q17: 2016-09-08 | R17: 2016-09-21 | S17: 0.01492196768 | T17: 1132.07 | Z17: 1132.07 | AA17: 1132.07 | AF17: 75866 | AG17: 14.99423352 | AH17: 1137552.52 | AJ17: 2 | AK17: 201603_6582483 | AL17: 2016-09-21 | AM17: 1 | AN17: 212392 | AO17: 6582483 | AP17: Sun Pharmaceutical Industries Limited | AQ17: Dividend | AR17: 4.1325 | AS17: 75866 | AT17: 15.00915548 | AU17: 1138684.59 | AZ17: N/A | BB17: 2016-09-08 | BC17: 2016-09-21 | BD17: 0.01492196768 | BE17: 1132.07 | BK17: 1132.07 | BL17: 1132.07 | BQ17: 75866 | BR17: 14.99423352 | BS17: 1137552.52 | BT17: (blank) | BU17: (blank) | BV17: (blank) | BW17: 2016-03-01 | BX17: 6582483 | BY17: 2016-03-01 | BZ17: 75866 | CA17: 14.99423352 | CB17: 1137552.52
F18: SELL | G18: 4.2165 | H18: 75866 | I18: 14.99423352 | J18: 1137552.52 | K18: 2016-10-17 | L18: 802 | M18: 13.46349127 | N18: 10797.72 | O18: 12025.37528 | P18: 32.4 | Y18: -1260.055281 | AF18: 75064 | AG18: 14.99423352 | AH18: 1125527.145 | AJ18: 2 | AL18: 2016-10-17 | AM18: 1 | AN18: 212392 | AO18: 6582483 | AP18: Sun Pharmaceutical Industries Limited | AQ18: SELL | AR18: 4.2165 | AS18: 75866 | AT18: 14.99423352 | AU18: 1137552.52 | AV18: 2016-10-17 | AW18: 802 | AX18: 13.46349127 | AY18: 10797.72 | AZ18: 12025.37528 | BA18: 32.4 | BJ18: -1260.055281 | BQ18: 75064 | BR18: 14.99423352 | BS18: 1125527.145 | BT18: (blank) | BU18: (blank) | BV18: (blank) | BW18: 2016-03-01 | BX18: 6582483 | BY18: 2016-03-01 | BZ18: 75064 | CA18: 14.99423352 | CB18: 1125527.145
F19: SELL | G19: 4.2955 | H19: 75064 | I19: 14.99423352 | J19: 1125527.145 | K19: 2017-05-23 | L19: 18000 | M19: 9.399846667 | N19: 169197.24 | O19: 269896.2033 | P19: 507.59 | Y19: -101206.5533 | AF19: 57064 | AG19: 14.99423352 | AH19: 855630.9414 | AJ19: 2 | AL19: 2017-05-23 | AM19: 1 | AN19: 212392 | AO19: 6582483 | AP19: Sun Pharmaceutical Industries Limited | AQ19: SELL | AR19: 4.2955 | AS19: 75064 | AT19: 14.99423352 | AU19: 1125527.145 | AV19: 2017-05-23 | AW19: 18000 | AX19: 9.399846667 | AY19: 169197.24 | AZ19: 269896.2033 | BA19: 507.59 | BJ19: -101206.5533 | BQ19: 57064 | BR19: 14.99423352 | BS19: 855630.9414 | BT19: (blank) | BU19: (blank) | BV19: (blank) | BW19: 2016-03-01 | BX19: 6582483 | BY19: 2016-03-01 | BZ19: 57064 | CA19: 14.99423352 | CB19: 855630.9414
F20: SELL | G20: 4.277 | H20: 57064 | I20: 14.99423352 | J20: 855630.9414 | K20: 2017-05-25 | L20: 6000 | M20: 9.109455 | N20: 54656.73 | O20: 89965.4011 | P20: 163.97 | Y20: -35472.6411 | AF20: 51064 | AG20: 14.99423352 | AH20: 765665.5403 | AJ20: 2 | AL20: 2017-05-25 | AM20: 1 | AN20: 212392 | AO20: 6582483 | AP20: Sun Pharmaceutical Industries Limited | AQ20: SELL | AR20: 4.277 | AS20: 57064 | AT20: 14.99423352 | AU20: 855630.9414 | AV20: 2017-05-25 | AW20: 6000 | AX20: 9.109455 | AY20: 54656.73 | AZ20: 89965.4011 | BA20: 163.97 | BJ20: -35472.6411 | BQ20: 51064 | BR20: 14.99423352 | BS20: 765665.5403 | BT20: (blank) | BU20: (blank) | BV20: (blank) | BW20: 2016-03-01 | BX20: 6582483 | BY20: 2016-03-01 | BZ20: 51064 | CA20: 14.99423352 | CB20: 765665.5403
F21: SELL | G21: 4.276 | H21: 51064 | I21: 14.99423352 | J21: 765665.5403 | K21: 2017-05-29 | L21: 650 | M21: 7.793892308 | N21: 5066.03 | O21: 9746.251786 | P21: 15.2 | Y21: -4695.421786 | AF21: 50414 | AG21: 14.99423352 | AH21: 755919.2885 | AJ21: 2 | AL21: 2017-05-29 | AM21: 1 | AN21: 212392 | AO21: 6582483 | AP21: Sun Pharmaceutical Industries Limited | AQ21: SELL | AR21: 4.276 | AS21: 51064 | AT21: 14.99423352 | AU21: 765665.5403 | AV21: 2017-05-29 | AW21: 650 | AX21: 7.793892308 | AY21: 5066.03 | AZ21: 9746.251786 | BA21: 15.2 | BJ21: -4695.421786 | BQ21: 50414 | BR21: 14.99423352 | BS21: 755919.2885 | BT21: (blank) | BU21: (blank) | BV21: (blank) | BW21: 2016-03-01 | BX21: 6582483 | BY21: 2016-03-01 | BZ21: 50414 | CA21: 14.99423352 | CB21: 755919.2885
F22: Dividend | G22: 4.1895 | H22: 50414 | I22: 14.99423352 | J22: 755919.2885 | O22: N/A | Q22: 2017-09-18 | R22: 2017-09-29 | S22: 0.05358233824 | T22: 2701.3 | Z22: 2701.3 | AA22: 2701.3 | AF22: 50414 | AG22: 14.94065118 | AH22: 753217.9885 | AJ22: 2 | AL22: 2017-09-29 | AM22: 1 | AN22: 212392 | AO22: 6582483 | AP22: Sun Pharmaceutical Industries Limited | AQ22: Dividend | AR22: 4.1895 | AS22: 50414 | AT22: 14.99423352 | AU22: 755919.2885 | AZ22: N/A | BB22: 2017-09-18 | BC22: 2017-09-29 | BD22: 0.05358233824 | BE22: 2701.3 | BK22: 2701.3 | BL22: 2701.3 | BQ22: 50414 | BR22: 14.94065118 | BS22: 753217.9885 | BT22: (blank) | BU22: (blank) | BV22: (blank) | BW22: 2016-03-01 | BX22: 6582483 | BY22: 2016-03-01 | BZ22: 50414 | CA22: 14.94065118 | CB22: 753217.9885
F23: SELL | G23: 4.2355 | H23: 50414 | I23: 14.94065118 | J23: 753217.9885 | K23: 2017-11-03 | L23: 12000 | M23: 8.589041667 | N23: 103068.5 | O23: 179287.8141 | P23: 154.6 | Y23: -76373.91415 | AF23: 38414 | AG23: 14.94065118 | AH23: 573930.1744 | AJ23: 2 | AL23: 2017-11-03 | AM23: 1 | AN23: 212392 | AO23: 6582483 | AP23: Sun Pharmaceutical Industries Limited | AQ23: SELL | AR23: 4.2355 | AS23: 50414 | AT23: 14.94065118 | AU23: 753217.9885 | AV23: 2017-11-03 | AW23: 12000 | AX23: 8.589041667 | AY23: 103068.5 | AZ23: 179287.8141 | BA23: 154.6 | BJ23: -76373.91415 | BQ23: 38414 | BR23: 14.94065118 | BS23: 573930.1744 | BT23: (blank) | BU23: (blank) | BV23: (blank) | BW23: 2016-03-01 | BX23: 6582483 | BY23: 2016-03-01 | BZ23: 38414 | CA23: 14.94065118 | CB23: 573930.1744
F24: SELL | G24: 3.9875 | H24: 38414 | I24: 14.94065118 | J24: 573930.1744 | K24: 2018-06-08 | L24: 5000 | M24: 7.824202 | N24: 39121.01 | O24: 74703.25589 | P24: 78.25 | Y24: -35660.49589 | AF24: 33414 | AG24: 14.94065118 | AH24: 499226.9185 | AJ24: 2 | AL24: 2018-06-08 | AM24: 1 | AN24: 212392 | AO24: 6582483 | AP24: Sun Pharmaceutical Industries Limited | AQ24: SELL | AR24: 3.9875 | AS24: 38414 | AT24: 14.94065118 | AU24: 573930.1744 | AV24: 2018-06-08 | AW24: 5000 | AX24: 7.824202 | AY24: 39121.01 | AZ24: 74703.25589 | BA24: 78.25 | BB24: (blank) | BC24: (blank) | BD24: (blank) | BE24: (blank) | BF24: (blank) | BG24: (blank) | BH24: (blank) | BI24: (blank) | BJ24: -35660.49589 | BK24: (blank) | BL24: (blank) | BM24: (blank) | BN24: (blank) | BO24: (blank) | BP24: (blank) | BQ24: 33414 | BR24: 14.94065118 | BS24: 499226.9185 | BT24: (blank) | BU24: (blank) | BV24: (blank) | BW24: 2016-03-01 | BX24: 6582483 | BY24: 2016-03-01 | BZ24: 33414 | CA24: 14.94065118 | CB24: 499226.9185
F25: SELL | G25: 4.0165 | H25: 33414 | I25: 14.94065118 | J25: 499226.9185 | K25: 2018-06-25 | L25: 11896 | M25: 8.615443006 | N25: 102489.31 | O25: 177733.9864 | P25: 204.98 | Y25: -75449.65642 | AF25: 21518 | AG25: 14.94065118 | AH25: 321492.9321 | AJ25: 2 | AL25: 2018-06-25 | AM25: 1 | AN25: 212392 | AO25: 6582483 | AP25: Sun Pharmaceutical Industries Limited | AQ25: SELL | AR25: 4.0165 | AS25: 33414 | AT25: 14.94065118 | AU25: 499226.9185 | AV25: 2018-06-25 | AW25: 11896 | AX25: 8.615443006 | AY25: 102489.31 | AZ25: 177733.9864 | BA25: 204.98 | BB25: (blank) | BC25: (blank) | BD25: (blank) | BE25: (blank) | BF25: (blank) | BG25: (blank) | BH25: (blank) | BI25: (blank) | BJ25: -75449.65642 | BK25: (blank) | BL25: (blank) | BM25: (blank) | BN25: (blank) | BO25: (blank) | BP25: (blank) | BQ25: 21518 | BR25: 14.94065118 | BS25: 321492.9321 | BT25: (blank) | BU25: (blank) | BV25: (blank) | BW25: 2016-03-01 | BX25: 6582483 | BY25: 2016-03-01 | BZ25: 21518 | CA25: 14.94065118 | CB25: 321492.9321
F26: SELL | G26: 4.1283 | H26: 21518 | I26: 14.94065118 | J26: 321492.9321 | K26: 2018-09-03 | L26: 6111 | M26: 9.446853216 | N26: 57729.72 | O26: 91302.31935 | P26: 115.46 | Y26: -33688.05935 | AF26: 15407 | AG26: 14.94065118 | AH26: 230190.6127 | AJ26: 2 | AL26: 2018-09-03 | AM26: 1 | AN26: 212392 | AO26: 6582483 | AP26: Sun Pharmaceutical Industries Limited | AQ26: SELL | AR26: 4.1283 | AS26: 21518 | AT26: 14.94065118 | AU26: 321492.9321 | AV26: 2018-09-03 | AW26: 6111 | AX26: 9.446853216 | AY26: 57729.72 | AZ26: 91302.31935 | BA26: 115.46 | BB26: (blank) | BC26: (blank) | BD26: (blank) | BE26: (blank) | BF26: (blank) | BG26: (blank) | BH26: (blank) | BI26: (blank) | BJ26: -33688.05935 | BK26: (blank) | BL26: (blank) | BM26: (blank) | BN26: (blank) | BO26: (blank) | BP26: (blank) | BQ26: 15407 | BR26: 14.94065118 | BS26: 230190.6127 | BT26: (blank) | BU26: (blank) | BV26: (blank) | BW26: 2016-03-01 | BX26: 6582483 | BY26: 2016-03-01 | BZ26: 15407 | CA26: 14.94065118 | CB26: 230190.6127
F27: SELL | G27: 4.1475 | H27: 15407 | I27: 14.94065118 | J27: 230190.6127 | K27: 2018-09-05 | L27: 2189 | M27: 9.349853815 | N27: 20466.83 | O27: 32705.08543 | P27: 40.94 | Y27: -12279.19543 | AF27: 13218 | AG27: 14.94065118 | AH27: 197485.5273 | AJ27: 2 | AL27: 2018-09-05 | AM27: 1 | AN27: 212392 | AO27: 6582483 | AP27: Sun Pharmaceutical Industries Limited | AQ27: SELL | AR27: 4.1475 | AS27: 15407 | AT27: 14.94065118 | AU27: 230190.6127 | AV27: 2018-09-05 | AW27: 2189 | AX27: 9.349853815 | AY27: 20466.83 | AZ27: 32705.08543 | BA27: 40.94 | BB27: (blank) | BC27: (blank) | BD27: (blank) | BE27: (blank) | BF27: (blank) | BG27: (blank) | BH27: (blank) | BI27: (blank) | BJ27: -12279.19543 | BK27: (blank) | BL27: (blank) | BM27: (blank) | BN27: (blank) | BO27: (blank) | BP27: (blank) | BQ27: 13218 | BR27: 14.94065118 | BS27: 197485.5273 | BT27: (blank) | BU27: (blank) | BV27: (blank) | BW27: 2016-03-01 | BX27: 6582483 | BY27: 2016-03-01 | BZ27: 13218 | CA27: 14.94065118 | CB27: 197485.5273
F28: SELL | G28: 4.1455 | H28: 13218 | I28: 14.94065118 | J28: 197485.5273 | K28: 2018-09-06 | L28: 13218 | M28: 9.330776971 | N28: 123334.21 | O28: 197485.5273 | P28: 246.67 | Y28: -74397.98728 | AF28: 0 | AG28: 14.94065118 | AH28: 0 | AJ28: 2 | AL28: 2018-09-06 | AM28: 1 | AN28: 212392 | AO28: 6582483 | AP28: Sun Pharmaceutical Industries Limited | AQ28: SELL | AR28: 4.1455 | AS28: 13218 | AT28: 14.94065118 | AU28: 197485.5273 | AV28: 2018-09-06 | AW28: 13218 | AX28: 9.330776971 | AY28: 123334.21 | AZ28: 197485.5273 | BA28: 246.67 | BB28: (blank) | BC28: (blank) | BD28: (blank) | BE28: (blank) | BF28: (blank) | BG28: (blank) | BH28: (blank) | BI28: (blank) | BJ28: -74397.98728 | BK28: (blank) | BL28: (blank) | BM28: (blank) | BN28: (blank) | BO28: (blank) | BP28: (blank) | BQ28: 0 | BR28: 14.94065118 | BS28: 0 | BT28: (blank) | BU28: (blank) | BV28: (blank) | BW28: 2016-03-01 | BX28: 6582483 | BY28: 2016-03-01 | BZ28: 0 | CA28: 14.94065118 | CB28: 0 | CC28: 1
B30: 3 | C30: 212392 | D30: BDGN274 | E30: Philippine Long Distance Telephone Co. (now known as PLDT Inc.) | F30: Dividend | G30: 4.077 | H30: 5000 | I30: 68.519392 | J30: 342596.96 | O30: N/A | Q30: 2016-08-11 | R30: 2016-09-01 | S30: 0.734082 | T30: 3670.41 | Z30: 3670.41 | AA30: 3670.41 | AF30: 5000 | AG30: 67.78531 | AH30: 338926.55 | AJ30: 3 | AK30: 201603_BDGN274 | AL30: 2016-09-01 | AM30: 1 | AN30: 212392 | AO30: BDGN274 | AP30: Philippine Long Distance Telephone Co. (now known as PLDT Inc.) | AQ30: Dividend | AR30: 4.077 | AS30: 5000 | AT30: 68.519392 | AU30: 342596.96 | AZ30: N/A | BB30: 2016-08-11 | BC30: 2016-09-01 | BD30: 0.734082 | BE30: 3670.41 | BK30: 3670.41 | BL30: 3670.41 | BQ30: 5000 | BR30: 67.78531 | BS30: 338926.55 | BT30: (blank) | BU30: (blank) | BV30: (blank) | BW30: 2016-03-01 | BX30: BDGN274 | BY30: 2016-03-01 | BZ30: 5000 | CA30: 67.78531 | CB30: 338926.55
F31: Dividend | G31: 4.436 | H31: 5000 | I31: 67.78531 | J31: 338926.55 | O31: N/A | Q31: 2017-03-16 | R31: 2017-04-06 | S31: 0.390594 | T31: 1952.97 | Z31: 1952.97 | AA31: 1952.97 | AF31: 5000 | AG31: 67.394716 | AH31: 336973.58 | AJ31: 3 | AL31: 2017-04-06 | AM31: 1 | AN31: 212392 | AO31: BDGN274 | AP31: Philippine Long Distance Telephone Co. (now known as PLDT Inc.) | AQ31: Dividend | AR31: 4.436 | AS31: 5000 | AT31: 67.78531 | AU31: 338926.55 | AZ31: N/A | BB31: 2017-03-16 | BC31: 2017-04-06 | BD31: 0.390594 | BE31: 1952.97 | BK31: 1952.97 | BL31: 1952.97 | BQ31: 5000 | BR31: 67.394716 | BS31: 336973.58 | BT31: (blank) | BU31: (blank) | BV31: (blank) | BW31: 2016-03-01 | BX31: BDGN274 | BY31: 2016-03-01 | BZ31: 5000 | CA31: 67.394716 | CB31: 336973.58
F32: Dividend | G32: 4.196 | H32: 5000 | I32: 67.394716 | J32: 336973.58 | O32: N/A | Q32: 2017-08-22 | R32: 2017-09-08 | S32: 0.66041 | T32: 3302.05 | Z32: 3302.05 | AA32: 3302.05 | AF32: 5000 | AG32: 66.734306 | AH32: 333671.53 | AJ32: 3 | AL32: 2017-09-08 | AM32: 1 | AN32: 212392 | AO32: BDGN274 | AP32: Philippine Long Distance Telephone Co. (now known as PLDT Inc.) | AQ32: Dividend | AR32: 4.196 | AS32: 5000 | AT32: 67.394716 | AU32: 336973.58 | AZ32: N/A | BB32: 2017-08-22 | BC32: 2017-09-08 | BD32: 0.66041 | BE32: 3302.05 | BK32: 3302.05 | BL32: 3302.05 | BQ32: 5000 | BR32: 66.734306 | BS32: 333671.53 | BT32: (blank) | BU32: (blank) | BV32: (blank) | BW32: 2016-03-01 | BX32: BDGN274 | BY32: 2016-03-01 | BZ32: 5000 | CA32: 66.734306 | CB32: 333671.53
F33: Dividend | G33: 3.9183 | H33: 5000 | I33: 66.734306 | J33: 333671.53 | Q33: 2018-04-10 | R33: 2018-04-27 | S33: 0.377104 | T33: 1885.52 | Z33: 1885.52 | AA33: 1885.52 | AF33: 5000 | AG33: 66.357202 | AH33: 331786.01 | AJ33: 3 | AL33: 2018-04-27 | AM33: 1 | AN33: 212392 | AO33: BDGN274 | AP33: Philippine Long Distance Telephone Co. (now known as PLDT Inc.) | AQ33: Dividend | AR33: 3.9183 | AS33: 5000 | AT33: 66.734306 | AU33: 333671.53 | AV33: (blank) | AW33: (blank) | AX33: (blank) | AY33: (blank) | AZ33: (blank) | BA33: (blank) | BB33: 2018-04-10 | BC33: 2018-04-27 | BD33: 0.377104 | BE33: 1885.52 | BF33: (blank) | BG33: (blank) | BH33: (blank) | BI33: (blank) | BJ33: (blank) | BK33: 1885.52 | BL33: 1885.52 | BM33: (blank) | BN33: (blank) | BO33: (blank) | BP33: (blank) | BQ33: 5000 | BR33: 66.357202 | BS33: 331786.01 | BT33: (blank) | BU33: (blank) | BV33: (blank) | BW33: 2016-03-01 | BX33: BDGN274 | BY33: 2016-03-01 | BZ33: 5000 | CA33: 66.357202 | CB33: 331786.01
F34: Dividend | G34: 4.1445 | H34: 5000 | I34: 66.357202 | J34: 331786.01 | Q34: 2018-08-22 | R34: 2018-09-11 | S34: 0.467216 | T34: 2336.08 | Z34: 2336.08 | AA34: 2336.08 | AF34: 5000 | AG34: 65.889986 | AH34: 329449.93 | AJ34: 3 | AL34: 2018-09-11 | AM34: 1 | AN34: 212392 | AO34: BDGN274 | AP34: Philippine Long Distance Telephone Co. (now known as PLDT Inc.) | AQ34: Dividend | AR34: 4.1445 | AS34: 5000 | AT34: 66.357202 | AU34: 331786.01 | AV34: (blank) | AW34: (blank) | AX34: (blank) | AY34: (blank) | AZ34: (blank) | BA34: (blank) | BB34: 2018-08-22 | BC34: 2018-09-11 | BD34: 0.467216 | BE34: 2336.08 | BF34: (blank) | BG34: (blank) | BH34: (blank) | BI34: (blank) | BJ34: (blank) | BK34: 2336.08 | BL34: 2336.08 | BM34: (blank) | BN34: (blank) | BO34: (blank) | BP34: (blank) | BQ34: 5000 | BR34: 65.889986 | BS34: 329449.93 | BT34: (blank) | BU34: (blank) | BV34: (blank) | BW34: 2016-03-01 | BX34: BDGN274 | BY34: 2016-03-01 | BZ34: 5000 | CA34: 65.889986 | CB34: 329449.93
F35: Dividend | G35: 4.128 | H35: 5000 | I35: 65.889986 | J35: 329449.93 | Q35: 2019-04-01 | R35: 2019-04-23 | S35: 0.48415 | T35: 2420.75 | Z35: 2420.75 | AA35: 2420.75 | AF35: 5000 | AG35: 65.405836 | AH35: 327029.18 | AJ35: 3 | AL35: 2019-04-23 | AM35: 1 | AN35: 212392 | AO35: BDGN274 | AP35: Philippine Long Distance Telephone Co. (now known as PLDT Inc.) | AQ35: Dividend | AR35: 4.128 | AS35: 5000 | AT35: 65.889986 | AU35: 329449.93 | AV35: (blank) | AW35: (blank) | AX35: (blank) | AY35: (blank) | AZ35: (blank) | BA35: (blank) | BB35: 2019-04-01 | BC35: 2019-04-23 | BD35: 0.48415 | BE35: 2420.75 | BF35: (blank) | BG35: (blank) | BH35: (blank) | BI35: (blank) | BJ35: (blank) | BK35: 2420.75 | BL35: 2420.75 | BM35: (blank) | BN35: (blank) | BO35: (blank) | BP35: (blank) | BQ35: 5000 | BR35: 65.405836 | BS35: 327029.18 | BT35: (blank) | BU35: (blank) | BV35: (blank) | BW35: 2016-03-01 | BX35: BDGN274 | BY35: 2016-03-01 | BZ35: 5000 | CA35: 65.405836 | CB35: 327029.18
F36: Dividend | G36: 4.1735 | H36: 5000 | I36: 65.405836 | J36: 327029.18 | Q36: 2019-08-20 | R36: 2019-09-10 | S36: 0.484708 | T36: 2423.54 | Z36: 2423.54 | AA36: 2423.54 | AF36: 5000 | AG36: 64.921128 | AH36: 324605.64 | AJ36: 3 | AL36: 2019-09-10 | AM36: 1 | AN36: 212392 | AO36: BDGN274 | AP36: Philippine Long Distance Telephone Co. (now known as PLDT Inc.) | AQ36: Dividend | AR36: 4.1735 | AS36: 5000 | AT36: 65.405836 | AU36: 327029.18 | AV36: (blank) | AW36: (blank) | AX36: (blank) | AY36: (blank) | AZ36: (blank) | BA36: (blank) | BB36: 2019-08-20 | BC36: 2019-09-10 | BD36: 0.484708 | BE36: 2423.54 | BF36: (blank) | BG36: (blank) | BH36: (blank) | BI36: (blank) | BJ36: (blank) | BK36: 2423.54 | BL36: 2423.54 | BM36: (blank) | BN36: (blank) | BO36: (blank) | BP36: (blank) | BQ36: 5000 | BR36: 64.921128 | BS36: 324605.64 | BT36: (blank) | BU36: (blank) | BV36: (blank) | BW36: 2016-03-01 | BX36: BDGN274 | BY36: 2016-03-01 | BZ36: 5000 | CA36: 64.921128 | CB36: 324605.64
F37: SELL | G37: 4.137 | H37: 5000 | I37: 64.921128 | J37: 324605.64 | K37: 2020-02-07 | L37: 5000 | M37: 20.945754 | N37: 104728.77 | O37: 324605.64 | P37: 774.99 | Y37: -220651.86 | AF37: 0 | AG37: 64.921128 | AH37: 0 | AJ37: 3 | AL37: 2020-02-07 | AM37: 1 | AN37: 212392 | AO37: BDGN274 | AP37: Philippine Long Distance Telephone Co. (now known as PLDT Inc.) | AQ37: SELL | AR37: 4.137 | AS37: 5000 | AT37: 64.921128 | AU37: 324605.64 | AV37: 2020-02-07 | AW37: 5000 | AX37: 20.945754 | AY37: 104728.77 | AZ37: 324605.64 | BA37: 774.99 | BB37: (blank) | BC37: (blank) | BD37: (blank) | BE37: (blank) | BF37: (blank) | BG37: (blank) | BH37: (blank) | BI37: (blank) | BJ37: -220651.86 | BK37: (blank) | BL37: (blank) | BM37: (blank) | BN37: (blank) | BO37: (blank) | BP37: (blank) | BQ37: 0 | BR37: 64.921128 | BS37: 0 | BT37: (blank) | BU37: (blank) | BV37: (blank) | BW37: 2016-03-01 | BX37: BDGN274 | BY37: 2016-03-01 | BZ37: 0 | CA37: 64.921128 | CB37: 0 | CC37: 1
B39: 4 | C39: 212392 | D39: B08X163 | E39: Sembcorp Industries Ltd | F39: Dividend | G39: 4.0185 | H39: 204000 | I39: 4.31570549 | J39: 880403.92 | O39: N/A | Q39: 2016-04-22 | R39: 2016-05-17 | S39: 0.0438725 | T39: 8949.99 | Z39: 8949.99 | AA39: 8949.99 | AF39: 204000 | AG39: 4.27183299 | AH39: 871453.93 | AJ39: 4 | AK39: 201603_B08X163 | AL39: 2016-05-17 | AM39: 1 | AN39: 212392 | AO39: B08X163 | AP39: Sembcorp Industries Ltd | AQ39: Dividend | AR39: 4.0185 | AS39: 204000 | AT39: 4.31570549 | AU39: 880403.92 | AZ39: N/A | BB39: 2016-04-22 | BC39: 2016-05-17 | BD39: 0.0438725 | BE39: 8949.99 | BK39: 8949.99 | BL39: 8949.99 | BQ39: 204000 | BR39: 4.27183299 | BS39: 871453.93 | BT39: (blank) | BU39: (blank) | BV39: (blank) | BW39: 2016-03-01 | BX39: B08X163 | BY39: 2016-03-01 | BZ39: 204000 | CA39: 4.27183299 | CB39: 871453.93
F40: Dividend | G40: 4.054 | H40: 204000 | I40: 4.27183299 | J40: 871453.93 | O40: N/A | Q40: 2016-08-16 | R40: 2016-08-31 | S40: 0.0293502451 | T40: 5987.45 | Z40: 5987.45 | AA40: 5987.45 | AF40: 204000 | AG40: 4.242482745 | AH40: 865466.48 | AJ40: 4 | AL40: 2016-08-31 | AM40: 1 | AN40: 212392 | AO40: B08X163 | AP40: Sembcorp Industries Ltd | AQ40: Dividend | AR40: 4.054 | AS40: 204000 | AT40: 4.27183299 | AU40: 871453.93 | AZ40: N/A | BB40: 2016-08-16 | BC40: 2016-08-31 | BD40: 0.0293502451 | BE40: 5987.45 | BK40: 5987.45 | BL40: 5987.45 | BQ40: 204000 | BR40: 4.242482745 | BS40: 865466.48 | BT40: (blank) | BU40: (blank) | BV40: (blank) | BW40: 2016-03-01 | BX40: B08X163 | BY40: 2016-03-01 | BZ40: 204000 | CA40: 4.242482745 | CB40: 865466.48
F41: SELL | G41: 4.4545 | H41: 204000 | I41: 4.242482745 | J41: 865466.48 | K41: 2017-03-03 | L41: 24000 | M41: 2.314109167 | N41: 55538.62 | O41: 101819.5859 | P41: 133.29 | Y41: -46414.25588 | AF41: 180000 | AG41: 4.242482745 | AH41: 763646.8941 | AJ41: 4 | AL41: 2017-03-03 | AM41: 1 | AN41: 212392 | AO41: B08X163 | AP41: Sembcorp Industries Ltd | AQ41: SELL | AR41: 4.4545 | AS41: 204000 | AT41: 4.242482745 | AU41: 865466.48 | AV41: 2017-03-03 | AW41: 24000 | AX41: 2.314109167 | AY41: 55538.62 | AZ41: 101819.5859 | BA41: 133.29 | BJ41: -46414.25588 | BQ41: 180000 | BR41: 4.242482745 | BS41: 763646.8941 | BT41: (blank) | BU41: (blank) | BV41: (blank) | BW41: 2016-03-01 | BX41: B08X163 | BY41: 2016-03-01 | BZ41: 180000 | CA41: 4.242482745 | CB41: 763646.8941
F42: SELL | G42: 4.4605 | H42: 180000 | I42: 4.242482745 | J42: 763646.8941 | K42: 2017-03-09 | L42: 18000 | M42: 2.259930556 | N42: 40678.75 | O42: 76364.68941 | P42: 97.64 | Y42: -35783.57941 | AF42: 162000 | AG42: 4.242482745 | AH42: 687282.2047 | AJ42: 4 | AL42: 2017-03-09 | AM42: 1 | AN42: 212392 | AO42: B08X163 | AP42: Sembcorp Industries Ltd | AQ42: SELL | AR42: 4.4605 | AS42: 180000 | AT42: 4.242482745 | AU42: 763646.8941 | AV42: 2017-03-09 | AW42: 18000 | AX42: 2.259930556 | AY42: 40678.75 | AZ42: 76364.68941 | BA42: 97.64 | BJ42: -35783.57941 | BQ42: 162000 | BR42: 4.242482745 | BS42: 687282.2047 | BT42: (blank) | BU42: (blank) | BV42: (blank) | BW42: 2016-03-01 | BX42: B08X163 | BY42: 2016-03-01 | BZ42: 162000 | CA42: 4.242482745 | CB42: 687282.2047
F43: Dividend | G43: 4.3185 | H43: 162000 | I43: 4.242482745 | J43: 687282.2047 | O43: N/A | Q43: 2017-04-24 | R43: 2017-05-16 | S43: 0.02867895062 | T43: 4645.99 | Z43: 4645.99 | AA43: 4645.99 | AF43: 162000 | AG43: 4.213803794 | AH43: 682636.2147 | AJ43: 4 | AL43: 2017-05-16 | AM43: 1 | AN43: 212392 | AO43: B08X163 | AP43: Sembcorp Industries Ltd | AQ43: Dividend | AR43: 4.3185 | AS43: 162000 | AT43: 4.242482745 | AU43: 687282.2047 | AZ43: N/A | BB43: 2017-04-24 | BC43: 2017-05-16 | BD43: 0.02867895062 | BE43: 4645.99 | BK43: 4645.99 | BL43: 4645.99 | BQ43: 162000 | BR43: 4.213803794 | BS43: 682636.2147 | BT43: (blank) | BU43: (blank) | BV43: (blank) | BW43: 2016-03-01 | BX43: B08X163 | BY43: 2016-03-01 | BZ43: 162000 | CA43: 4.213803794 | CB43: 682636.2147
F44: Dividend | G44: 4.2705 | H44: 130000 | I44: 4.213803794 | J44: 547794.4933 | O44: N/A | Q44: 2017-08-15 | R44: 2017-08-31 | S44: 0.0220912963 | T44: 3578.79 | Z44: 3578.79 | AA44: 3578.79 | AF44: 130000 | AG44: 4.186274641 | AH44: 544215.7033 | AJ44: 4 | AL44: 2017-08-31 | AM44: 1 | AN44: 212392 | AO44: B08X163 | AP44: Sembcorp Industries Ltd | AQ44: Dividend | AR44: 4.2705 | AS44: 130000 | AT44: 4.213803794 | AU44: 547794.4933 | AZ44: N/A | BB44: 2017-08-15 | BC44: 2017-08-31 | BD44: 0.0220912963 | BE44: 3578.79 | BK44: 3578.79 | BL44: 3578.79 | BQ44: 130000 | BR44: 4.186274641 | BS44: 544215.7033 | BT44: (blank) | BU44: (blank) | BV44: (blank) | BW44: 2016-03-01 | BX44: B08X163 | BY44: 2016-03-01 | BZ44: 130000 | CA44: 4.186274641 | CB44: 544215.7033
F45: SELL | G45: 4.2705 | H45: 162000 | I45: 4.213803794 | J45: 682636.2147 | K45: 2017-08-31 | L45: 32000 | M45: 2.194919062 | N45: 70237.41 | O45: 134841.7214 | P45: 63.21 | Y45: -64667.52142 | AF45: 130000 | AG45: 4.213803794 | AH45: 547794.4933 | AJ45: 4 | AL45: 2017-08-31 | AM45: 1 | AN45: 212392 | AO45: B08X163 | AP45: Sembcorp Industries Ltd | AQ45: SELL | AR45: 4.2705 | AS45: 162000 | AT45: 4.213803794 | AU45: 682636.2147 | AV45: 2017-08-31 | AW45: 32000 | AX45: 2.194919062 | AY45: 70237.41 | AZ45: 134841.7214 | BA45: 63.21 | BJ45: -64667.52142 | BQ45: 130000 | BR45: 4.213803794 | BS45: 547794.4933 | BT45: (blank) | BU45: (blank) | BV45: (blank) | BW45: 2016-03-01 | BX45: B08X163 | BY45: 2016-03-01 | BZ45: 130000 | CA45: 4.213803794 | CB45: 547794.4933
F46: Dividend | G46: 3.9575 | H46: 130000 | I46: 4.186274641 | J46: 544215.7033 | Q46: 2018-04-25 | R46: 2018-05-15 | S46: 0.01488369231 | T46: 1934.88 | Z46: 1934.88 | AA46: 1934.88 | AF46: 130000 | AG46: 4.171390948 | AH46: 542280.8233 | AJ46: 4 | AL46: 2018-05-15 | AM46: 1 | AN46: 212392 | AO46: B08X163 | AP46: Sembcorp Industries Ltd | AQ46: Dividend | AR46: 3.9575 | AS46: 130000 | AT46: 4.186274641 | AU46: 544215.7033 | AV46: (blank) | AW46: (blank) | AX46: (blank) | AY46: (blank) | AZ46: (blank) | BA46: (blank) | BB46: 2018-04-25 | BC46: 2018-05-15 | BD46: 0.01488369231 | BE46: 1934.88 | BF46: (blank) | BG46: (blank) | BH46: (blank) | BI46: (blank) | BJ46: (blank) | BK46: 1934.88 | BL46: 1934.88 | BM46: (blank) | BN46: (blank) | BO46: (blank) | BP46: (blank) | BQ46: 130000 | BR46: 4.171390948 | BS46: 542280.8233 | BT46: (blank) | BU46: (blank) | BV46: (blank) | BW46: 2016-03-01 | BX46: B08X163 | BY46: 2016-03-01 | BZ46: 130000 | CA46: 4.171390948 | CB46: 542280.8233
F47: Dividend | G47: 4.1105 | H47: 130000 | I47: 4.171390948 | J47: 542280.8233 | Q47: 2018-08-14 | R47: 2018-08-31 | S47: 0.014598 | T47: 1897.74 | Z47: 1897.74 | AA47: 1897.74 | AF47: 130000 | AG47: 4.156792948 | AH47: 540383.0833 | AJ47: 4 | AL47: 2018-08-31 | AM47: 1 | AN47: 212392 | AO47: B08X163 | AP47: Sembcorp Industries Ltd | AQ47: Dividend | AR47: 4.1105 | AS47: 130000 | AT47: 4.171390948 | AU47: 542280.8233 | AV47: (blank) | AW47: (blank) | AX47: (blank) | AY47: (blank) | AZ47: (blank) | BA47: (blank) | BB47: 2018-08-14 | BC47: 2018-08-31 | BD47: 0.014598 | BE47: 1897.74 | BF47: (blank) | BG47: (blank) | BH47: (blank) | BI47: (blank) | BJ47: (blank) | BK47: 1897.74 | BL47: 1897.74 | BM47: (blank) | BN47: (blank) | BO47: (blank) | BP47: (blank) | BQ47: 130000 | BR47: 4.156792948 | BS47: 540383.0833 | BT47: (blank) | BU47: (blank) | BV47: (blank) | BW47: 2016-03-01 | BX47: B08X163 | BY47: 2016-03-01 | BZ47: 130000 | CA47: 4.156792948 | CB47: 540383.0833
F48: Dividend | G48: 4.166 | H48: 130000 | I48: 4.156792948 | J48: 540383.0833 | Q48: 2019-04-24 | R48: 2019-05-13 | S48: 0.01460546154 | T48: 1898.71 | Z48: 1898.71 | AA48: 1898.71 | AF48: 130000 | AG48: 4.142187487 | AH48: 538484.3733 | AJ48: 4 | AL48: 2019-05-13 | AM48: 1 | AN48: 212392 | AO48: B08X163 | AP48: Sembcorp Industries Ltd | AQ48: Dividend | AR48: 4.166 | AS48: 130000 | AT48: 4.156792948 | AU48: 540383.0833 | AV48: (blank) | AW48: (blank) | AX48: (blank) | AY48: (blank) | AZ48: (blank) | BA48: (blank) | BB48: 2019-04-24 | BC48: 2019-05-13 | BD48: 0.01460546154 | BE48: 1898.71 | BF48: (blank) | BG48: (blank) | BH48: (blank) | BI48: (blank) | BJ48: (blank) | BK48: 1898.71 | BL48: 1898.71 | BM48: (blank) | BN48: (blank) | BO48: (blank) | BP48: (blank) | BQ48: 130000 | BR48: 4.142187487 | BS48: 538484.3733 | BT48: (blank) | BU48: (blank) | BV48: (blank) | BW48: 2016-03-01 | BX48: B08X163 | BY48: 2016-03-01 | BZ48: 130000 | CA48: 4.142187487 | CB48: 538484.3733
F49: Dividend | G49: 4.203 | H49: 130000 | I49: 4.142187487 | J49: 538484.3733 | Q49: 2019-08-21 | R49: 2019-09-04 | S49: 0.01444353846 | T49: 1877.66 | Z49: 1877.66 | AA49: 1877.66 | AF49: 130000 | AG49: 4.127743948 | AH49: 536606.7133 | AJ49: 4 | AL49: 2019-09-04 | AM49: 1 | AN49: 212392 | AO49: B08X163 | AP49: Sembcorp Industries Ltd | AQ49: Dividend | AR49: 4.203 | AS49: 130000 | AT49: 4.142187487 | AU49: 538484.3733 | AV49: (blank) | AW49: (blank) | AX49: (blank) | AY49: (blank) | AZ49: (blank) | BA49: (blank) | BB49: 2019-08-21 | BC49: 2019-09-04 | BD49: 0.01444353846 | BE49: 1877.66 | BF49: (blank) | BG49: (blank) | BH49: (blank) | BI49: (blank) | BJ49: (blank) | BK49: 1877.66 | BL49: 1877.66 | BM49: (blank) | BN49: (blank) | BO49: (blank) | BP49: (blank) | BQ49: 130000 | BR49: 4.127743948 | BS49: 536606.7133 | BT49: (blank) | BU49: (blank) | BV49: (blank) | BW49: 2016-03-01 | BX49: B08X163 | BY49: 2016-03-01 | BZ49: 130000 | CA49: 4.127743948 | CB49: 536606.7133
F50: Dividend | G50: 4.203 | H50: 130000 | I50: 4.127743948 | J50: 536606.7133 | Q50: 2020-05-26 | R50: 2020-06-03 | S50: 0.02147461538 | T50: 2791.7 | Z50: 2791.7 | AA50: 2791.7 | AF50: 130000 | AG50: 4.106269333 | AH50: 533815.0133 | AJ50: 4 | AL50: 2020-06-03 | AM50: 1 | AN50: 212392 | AO50: B08X163 | AP50: Sembcorp Industries Ltd | AQ50: Dividend | AR50: 4.203 | AS50: 130000 | AT50: 4.127743948 | AU50: 536606.7133 | AV50: (blank) | AW50: (blank) | AX50: (blank) | AY50: (blank) | AZ50: (blank) | BA50: (blank) | BB50: 2020-05-26 | BC50: 2020-06-03 | BD50: 0.02147461538 | BE50: 2791.7 | BF50: (blank) | BG50: (blank) | BH50: (blank) | BI50: (blank) | BJ50: (blank) | BK50: 2791.7 | BL50: 2791.7 | BM50: (blank) | BN50: (blank) | BO50: (blank) | BP50: (blank) | BQ50: 130000 | BR50: 4.106269333 | BS50: 533815.0133 | BT50: (blank) | BU50: (blank) | BV50: (blank) | BW50: 2016-03-01 | BX50: B08X163 | BY50: 2016-03-01 | BZ50: 130000 | CA50: 4.106269333 | CB50: 533815.0133
F51: Corporate Action | G51: 4.154 | H51: 130000 | I51: 4.106269333 | J51: 533815.0133 | U51: Spin Off | V51: 2020-09-11 | W51: 130000 | X51: 193483.95 | AF51: 130000 | AG51: 3.193410718 | AH51: 415143 | AJ51: 4 | AL51: 2020-09-11 | AM51: 1 | AN51: 212392 | AO51: B08X163 | AP51: Sembcorp Industries Ltd | AQ51: Corporate Action | AR51: 4.154 | AS51: 130000 | AT51: 4.106269333 | AU51: 533815.0133 | AV51: (blank) | AW51: (blank) | AX51: (blank) | AY51: (blank) | AZ51: (blank) | BA51: (blank) | BF51: Spin Off | BG51: 2020-09-11 | BH51: 130000 | BI51: 193483.95 | BJ51: (blank) | BM51: (blank) | BN51: (blank) | BO51: (blank) | BP51: (blank) | BQ51: 130000 | BR51: 3.193410718 | BS51: 415143 | BT51: (blank) | BU51: (blank) | BV51: (blank) | BW51: 2016-03-01 | BX51: B08X163 | BY51: 2016-03-01 | BZ51: 130000 | CA51: 3.193410718 | CB51: 415143
F52: Dividend | G52: 4.122 | H52: 130000 | I52: 3.193410718 | J52: 415143.3933 | Q52: 2021-04-27 | R52: 2021-05-06 | S52: 0.02999061538 | T52: 3898.78 | Z52: 3898.78 | AA52: 3898.78 | AF52: 130000 | AG52: 3.163420102 | AH52: 411244.6133 | AJ52: 4 | AL52: 2021-05-06 | AM52: 1 | AN52: 212392 | AO52: B08X163 | AP52: Sembcorp Industries Ltd | AQ52: Dividend | AR52: 4.122 | AS52: 130000 | AT52: 3.193410718 | AU52: 415143.3933 | AV52: (blank) | AW52: (blank) | AX52: (blank) | AY52: (blank) | AZ52: (blank) | BA52: (blank) | BB52: 2021-04-27 | BC52: 2021-05-06 | BD52: 0.02999061538 | BE52: 3898.78 | BF52: (blank) | BG52: (blank) | BH52: (blank) | BI52: (blank) | BJ52: (blank) | BK52: 3898.78 | BL52: 3898.78 | BM52: (blank) | BN52: (blank) | BO52: (blank) | BP52: (blank) | BQ52: 130000 | BR52: 3.163420102 | BS52: 411244.6133 | BT52: (blank) | BU52: (blank) | BV52: (blank) | BW52: 2016-03-01 | BX52: B08X163 | BY52: 2016-03-01 | BZ52: 130000 | CA52: 3.163420102 | CB52: 411244.6133
F53: Dividend | G53: 4.2175 | H53: 130000 | I53: 3.163420102 | J53: 411244.6133 | Q53: 2021-08-16 | R53: 2021-08-24 | S53: 0.01477107692 | T53: 1920.24 | Z53: 1920.24 | AA53: 1920.24 | AF53: 130000 | AG53: 3.148649025 | AH53: 409324.3733 | AJ53: 4 | AL53: 2021-08-24 | AM53: 1 | AN53: 212392 | AO53: B08X163 | AP53: Sembcorp Industries Ltd | AQ53: Dividend | AR53: 4.2175 | AS53: 130000 | AT53: 3.163420102 | AU53: 411244.6133 | AV53: (blank) | AW53: (blank) | AX53: (blank) | AY53: (blank) | AZ53: (blank) | BA53: (blank) | BB53: 2021-08-16 | BC53: 2021-08-24 | BD53: 0.01477107692 | BE53: 1920.24 | BF53: (blank) | BG53: (blank) | BH53: (blank) | BI53: (blank) | BJ53: (blank) | BK53: 1920.24 | BL53: 1920.24 | BM53: (blank) | BN53: (blank) | BO53: (blank) | BP53: (blank) | BQ53: 130000 | BR53: 3.148649025 | BS53: 409324.3733 | BT53: (blank) | BU53: (blank) | BV53: (blank) | BW53: 2016-03-01 | BX53: B08X163 | BY53: 2016-03-01 | BZ53: 130000 | CA53: 3.148649025 | CB53: 409324.3733
F54: Dividend | G54: 4.3825 | H54: 130000 | I54: 3.148649025 | J54: 409324.3733 | Q54: 2022-04-26 | R54: 2022-05-10 | S54: 0.02157264615 | T54: 2804.444 | Z54: 2804.444 | AA54: 2804.444 | AF54: 130000 | AG54: 3.127076379 | AH54: 406519.9293 | AJ54: 4 | AL54: 2022-05-10 | AN54: 212392 | AO54: B08X163 | AP54: Sembcorp Industries Ltd | AQ54: Dividend | AR54: 4.3825 | AS54: 130000 | AT54: 1.510880231 | AU54: 196414.43 | BB54: 2022-04-26 | BC54: 2022-05-10 | BD54: 0.02157264615 | BE54: 2804.444 | BK54: 2804.444 | BL54: 2804.444 | BQ54: 130000 | BR54: 1.444468692 | BS54: 187780.93 | BT54: (blank) | BU54: 1 | BV54: 880403.92 | BW54: 2016-03-01 | BX54: B08X163 | BY54: 2016-03-01 | BZ54: 130000 | CA54: 3.127076379 | CB54: 406519.9293 | CC54: 1
B56: 5 | C56: 212392 | D56: 6490928 | E56: KIA Motors Corporation | F56: Dividend | G56: 4.398 | H56: 13339 | I56: 43.08911613 | J56: 574765.72 | O56: N/A | Q56: 2016-12-28 | R56: 2017-04-24 | S56: 0.8275065597 | T56: 11038.11 | Z56: 11038.11 | AA56: 11038.11 | AF56: 13339 | AG56: 42.26160957 | AH56: 563727.61 | AJ56: 5 | AK56: 201606_6490928 | AL56: 2017-04-24 | AM56: 1 | AN56: 212392 | AO56: 6490928 | AP56: KIA Motors Corporation | AQ56: Dividend | AR56: 4.398 | AS56: 13339 | AT56: 43.08911613 | AU56: 574765.72 | AZ56: N/A | BB56: 2016-12-28 | BC56: 2017-04-24 | BD56: 0.8275065597 | BE56: 11038.11 | BK56: 11038.11 | BL56: 11038.11 | BQ56: 13339 | BR56: 42.26160957 | BS56: 563727.61 | BT56: (blank) | BU56: (blank) | BV56: (blank) | BW56: 2016-06-01 | BX56: 6490928 | BY56: 2016-06-01 | BZ56: 13339 | CA56: 42.26160957 | CB56: 563727.61 | CC56: 1
B58: 6 | C58: 212392 | D58: B682TF7 | E58: E-Mart, Inc. | F58: SELL | G58: 4.4605 | H58: 3668 | I58: 208.8493948 | J58: 766059.58 | K58: 2017-03-09 | L58: 451 | M58: 179.2492683 | N58: 80841.42 | O58: 94191.07704 | P58: 404.2 | Y58: -13753.85704 | AF58: 3217 | AG58: 208.8493948 | AH58: 671868.503 | AJ58: 6 | AK58: 201606_B682TF7 | AL58: 2017-03-09 | AM58: 1 | AN58: 212392 | AO58: B682TF7 | AP58: E-Mart, Inc. | AQ58: SELL | AR58: 4.4605 | AS58: 3668 | AT58: 208.8493948 | AU58: 766059.58 | AV58: 2017-03-09 | AW58: 451 | AX58: 179.2492683 | AY58: 80841.42 | AZ58: 94191.07704 | BA58: 404.2 | BJ58: -13753.85704 | BQ58: 3217 | BR58: 208.8493948 | BS58: 671868.503 | BT58: (blank) | BU58: (blank) | BV58: (blank) | BW58: 2016-06-01 | BX58: B682TF7 | BY58: 2016-06-01 | BZ58: 3217 | CA58: 208.8493948 | CB58: 671868.503
F59: SELL | G59: 4.408 | H59: 3217 | I59: 208.8493948 | J59: 671868.503 | K59: 2017-03-27 | L59: 260 | M59: 190.5139615 | N59: 49533.63 | O59: 54300.84264 | P59: 247.67 | Y59: -5014.882639 | AF59: 2957 | AG59: 208.8493948 | AH59: 617567.6603 | AJ59: 6 | AL59: 2017-03-27 | AM59: 1 | AN59: 212392 | AO59: B682TF7 | AP59: E-Mart, Inc. | AQ59: SELL | AR59: 4.408 | AS59: 3217 | AT59: 208.8493948 | AU59: 671868.503 | AV59: 2017-03-27 | AW59: 260 | AX59: 190.5139615 | AY59: 49533.63 | AZ59: 54300.84264 | BA59: 247.67 | BJ59: -5014.882639 | BQ59: 2957 | BR59: 208.8493948 | BS59: 617567.6603 | BT59: (blank) | BU59: (blank) | BV59: (blank) | BW59: 2016-06-01 | BX59: B682TF7 | BY59: 2016-06-01 | BZ59: 2957 | CA59: 208.8493948 | CB59: 617567.6603
F60: Dividend | G60: 4.43 | H60: 2957 | I60: 208.8493948 | J60: 617567.6603 | O60: N/A | Q60: 2016-12-28 | R60: 2017-04-05 | S60: 1.13398855 | T60: 4159.47 | Z60: 4159.47 | AA60: 4159.47 | AF60: 2957 | AG60: 207.4427428 | AH60: 613408.1903 | AJ60: 6 | AL60: 2017-04-05 | AM60: 1 | AN60: 212392 | AO60: B682TF7 | AP60: E-Mart, Inc. | AQ60: Dividend | AR60: 4.43 | AS60: 2957 | AT60: 208.8493948 | AU60: 617567.6603 | AZ60: N/A | BB60: 2016-12-28 | BC60: 2017-04-05 | BD60: 1.13398855 | BE60: 4159.47 | BK60: 4159.47 | BL60: 4159.47 | BQ60: 2957 | BR60: 207.4427428 | BS60: 613408.1903 | BT60: (blank) | BU60: (blank) | BV60: (blank) | BW60: 2016-06-01 | BX60: B682TF7 | BY60: 2016-06-01 | BZ60: 2957 | CA60: 207.4427428 | CB60: 613408.1903
F61: SELL | G61: 4.4355 | H61: 2957 | I61: 207.4427428 | J61: 613408.1903 | K61: 2017-04-07 | L61: 500 | M61: 196.75966 | N61: 98379.83 | O61: 103721.3714 | P61: 491.9 | Y61: -5833.441377 | AF61: 2457 | AG61: 207.4427428 | AH61: 509686.8189 | AJ61: 6 | AL61: 2017-04-07 | AM61: 1 | AN61: 212392 | AO61: B682TF7 | AP61: E-Mart, Inc. | AQ61: SELL | AR61: 4.4355 | AS61: 2957 | AT61: 207.4427428 | AU61: 613408.1903 | AV61: 2017-04-07 | AW61: 500 | AX61: 196.75966 | AY61: 98379.83 | AZ61: 103721.3714 | BA61: 491.9 | BJ61: -5833.441377 | BQ61: 2457 | BR61: 207.4427428 | BS61: 509686.8189 | BT61: (blank) | BU61: (blank) | BV61: (blank) | BW61: 2016-06-01 | BX61: B682TF7 | BY61: 2016-06-01 | BZ61: 2457 | CA61: 207.4427428 | CB61: 509686.8189
F62: SELL | G62: 4.4365 | H62: 2457 | I62: 207.4427428 | J62: 509686.8189 | K62: 2017-04-10 | L62: 2457 | M62: 198.3199227 | N62: 487272.05 | O62: 509686.8189 | P62: 2436.36 | Y62: -24851.12895 | AF62: 0 | AG62: 207.4427428 | AH62: 0 | AJ62: 6 | AL62: 2017-04-10 | AM62: 1 | AN62: 212392 | AO62: B682TF7 | AP62: E-Mart, Inc. | AQ62: SELL | AR62: 4.4365 | AS62: 2457 | AT62: 207.4427428 | AU62: 509686.8189 | AV62: 2017-04-10 | AW62: 2457 | AX62: 198.3199227 | AY62: 487272.05 | AZ62: 509686.8189 | BA62: 2436.36 | BJ62: -24851.12895 | BQ62: 0 | BR62: 207.4427428 | BS62: 0 | BT62: (blank) | BU62: (blank) | BV62: (blank) | BW62: 2016-06-01 | BX62: B682TF7 | BY62: 2016-06-01 | BZ62: 0 | CA62: 207.4427428 | CB62: 0 | CC62: 1
B64: 7 | C64: 212392 | D64: B1VT035 | E64: Yangzijiang Shipbuilding (Holdings) Ltd. | F64: SELL | G64: 4.4545 | H64: 300000 | I64: 1.103220633 | J64: 330966.19 | K64: 2017-03-03 | L64: 300000 | M64: 0.7355112333 | N64: 220653.37 | O64: 330966.19 | P64: 529.57 | Y64: -110842.39 | AF64: 0 | AG64: 1.103220633 | AH64: 0 | AJ64: 7 | AK64: 201609_B1VT035 | AL64: 2017-03-03 | AM64: 1 | AN64: 212392 | AO64: B1VT035 | AP64: Yangzijiang Shipbuilding (Holdings) Ltd. | AQ64: SELL | AR64: 4.4545 | AS64: 300000 | AT64: 1.103220633 | AU64: 330966.19 | AV64: 2017-03-03 | AW64: 300000 | AX64: 0.7355112333 | AY64: 220653.37 | AZ64: 330966.19 | BA64: 529.57 | BJ64: -110842.39 | BQ64: 0 | BR64: 1.103220633 | BS64: 0 | BT64: (blank) | BU64: (blank) | BV64: (blank) | BW64: 2016-09-01 | BX64: B1VT035 | BY64: 2016-09-01 | BZ64: 0 | CA64: 1.103220633 | CB64: 0 | CC64: 1
B66: 8 | C66: 212392 | D66: 6164472 | E66: Golden Agri-Resources Ltd | F66: SELL | G66: 4.466 | H66: 2000000 | I66: 0.359262435 | J66: 718524.87 | K66: 2016-11-30 | L66: 500000 | M66: 0.30019548 | N66: 150097.74 | O66: 179631.2175 | P66: 135.1 | Y66: -29668.5775 | AF66: 1500000 | AG66: 0.359262435 | AH66: 538893.6525 | AJ66: 8 | AK66: 201609_6164472 | AL66: 2016-11-30 | AM66: 1 | AN66: 212392 | AO66: 6164472 | AP66: Golden Agri-Resources Ltd | AQ66: SELL | AR66: 4.466 | AS66: 2000000 | AT66: 0.359262435 | AU66: 718524.87 | AV66: 2016-11-30 | AW66: 500000 | AX66: 0.30019548 | AY66: 150097.74 | AZ66: 179631.2175 | BA66: 135.1 | BJ66: -29668.5775 | BQ66: 1500000 | BR66: 0.359262435 | BS66: 538893.6525 | BT66: (blank) | BU66: (blank) | BV66: (blank) | BW66: 2016-09-01 | BX66: 6164472 | BY66: 2016-09-01 | BZ66: 1500000 | CA66: 0.359262435 | CB66: 538893.6525
F67: SELL | G67: 4.422 | H67: 1500000 | I67: 0.359262435 | J67: 538893.6525 | K67: 2016-12-08 | L67: 200000 | M67: 0.30968515 | N67: 61937.03 | O67: 71852.487 | P67: 55.75 | Y67: -9971.207 | AF67: 1300000 | AG67: 0.359262435 | AH67: 467041.1655 | AJ67: 8 | AL67: 2016-12-08 | AM67: 1 | AN67: 212392 | AO67: 6164472 | AP67: Golden Agri-Resources Ltd | AQ67: SELL | AR67: 4.422 | AS67: 1500000 | AT67: 0.359262435 | AU67: 538893.6525 | AV67: 2016-12-08 | AW67: 200000 | AX67: 0.30968515 | AY67: 61937.03 | AZ67: 71852.487 | BA67: 55.75 | BJ67: -9971.207 | BQ67: 1300000 | BR67: 0.359262435 | BS67: 467041.1655 | BT67: (blank) | BU67: (blank) | BV67: (blank) | BW67: 2016-09-01 | BX67: 6164472 | BY67: 2016-09-01 | BZ67: 1300000 | CA67: 0.359262435 | CB67: 467041.1655
F68: SELL | G68: 4.4985 | H68: 1300000 | I68: 0.359262435 | J68: 467041.1655 | K68: 2017-01-04 | L68: 260000 | M68: 0.2950569615 | N68: 76714.81 | O68: 93408.2331 | P68: 184.12 | Y68: -16877.5431 | AF68: 1040000 | AG68: 0.359262435 | AH68: 373632.9324 | AJ68: 8 | AL68: 2017-01-04 | AM68: 1 | AN68: 212392 | AO68: 6164472 | AP68: Golden Agri-Resources Ltd | AQ68: SELL | AR68: 4.4985 | AS68: 1300000 | AT68: 0.359262435 | AU68: 467041.1655 | AV68: 2017-01-04 | AW68: 260000 | AX68: 0.2950569615 | AY68: 76714.81 | AZ68: 93408.2331 | BA68: 184.12 | BJ68: -16877.5431 | BQ68: 1040000 | BR68: 0.359262435 | BS68: 373632.9324 | BT68: (blank) | BU68: (blank) | BV68: (blank) | BW68: 2016-09-01 | BX68: 6164472 | BY68: 2016-09-01 | BZ68: 1040000 | CA68: 0.359262435 | CB68: 373632.9324
F69: SELL | G69: 4.4705 | H69: 1040000 | I69: 0.359262435 | J69: 373632.9324 | K69: 2017-01-11 | L69: 100000 | M69: 0.2988705 | N69: 29887.05 | O69: 35926.2435 | P69: 71.73 | Y69: -6110.9235 | AF69: 940000 | AG69: 0.359262435 | AH69: 337706.6889 | AJ69: 8 | AL69: 2017-01-11 | AM69: 1 | AN69: 212392 | AO69: 6164472 | AP69: Golden Agri-Resources Ltd | AQ69: SELL | AR69: 4.4705 | AS69: 1040000 | AT69: 0.359262435 | AU69: 373632.9324 | AV69: 2017-01-11 | AW69: 100000 | AX69: 0.2988705 | AY69: 29887.05 | AZ69: 35926.2435 | BA69: 71.73 | BJ69: -6110.9235 | BQ69: 940000 | BR69: 0.359262435 | BS69: 337706.6889 | BT69: (blank) | BU69: (blank) | BV69: (blank) | BW69: 2016-09-01 | BX69: 6164472 | BY69: 2016-09-01 | BZ69: 940000 | CA69: 0.359262435 | CB69: 337706.6889
F70: SELL | G70: 4.4355 | H70: 940000 | I70: 0.359262435 | J70: 337706.6889 | K70: 2017-01-24 | L70: 100000 | M70: 0.2999824 | N70: 29998.24 | O70: 35926.2435 | P70: 72 | Y70: -6000.0035 | AF70: 840000 | AG70: 0.359262435 | AH70: 301780.4454 | AJ70: 8 | AL70: 2017-01-24 | AM70: 1 | AN70: 212392 | AO70: 6164472 | AP70: Golden Agri-Resources Ltd | AQ70: SELL | AR70: 4.4355 | AS70: 940000 | AT70: 0.359262435 | AU70: 337706.6889 | AV70: 2017-01-24 | AW70: 100000 | AX70: 0.2999824 | AY70: 29998.24 | AZ70: 35926.2435 | BA70: 72 | BJ70: -6000.0035 | BQ70: 840000 | BR70: 0.359262435 | BS70: 301780.4454 | BT70: (blank) | BU70: (blank) | BV70: (blank) | BW70: 2016-09-01 | BX70: 6164472 | BY70: 2016-09-01 | BZ70: 840000 | CA70: 0.359262435 | CB70: 301780.4454
F71: SELL | G71: 4.429 | H71: 840000 | I71: 0.359262435 | J71: 301780.4454 | K71: 2017-01-31 | L71: 100000 | M71: 0.3052243 | N71: 30522.43 | O71: 35926.2435 | P71: 75.93 | Y71: -5479.7435 | AF71: 740000 | AG71: 0.359262435 | AH71: 265854.2019 | AJ71: 8 | AL71: 2017-01-31 | AM71: 1 | AN71: 212392 | AO71: 6164472 | AP71: Golden Agri-Resources Ltd | AQ71: SELL | AR71: 4.429 | AS71: 840000 | AT71: 0.359262435 | AU71: 301780.4454 | AV71: 2017-01-31 | AW71: 100000 | AX71: 0.3052243 | AY71: 30522.43 | AZ71: 35926.2435 | BA71: 75.93 | BJ71: -5479.7435 | BQ71: 740000 | BR71: 0.359262435 | BS71: 265854.2019 | BT71: (blank) | BU71: (blank) | BV71: (blank) | BW71: 2016-09-01 | BX71: 6164472 | BY71: 2016-09-01 | BZ71: 740000 | CA71: 0.359262435 | CB71: 265854.2019
F72: SELL | G72: 4.4345 | H72: 740000 | I72: 0.359262435 | J72: 265854.2019 | K72: 2017-02-07 | L72: 120000 | M72: 0.2999505833 | N72: 35994.07 | O72: 43111.4922 | P72: 83.68 | Y72: -7201.1022 | AF72: 620000 | AG72: 0.359262435 | AH72: 222742.7097 | AJ72: 8 | AL72: 2017-02-07 | AM72: 1 | AN72: 212392 | AO72: 6164472 | AP72: Golden Agri-Resources Ltd | AQ72: SELL | AR72: 4.4345 | AS72: 740000 | AT72: 0.359262435 | AU72: 265854.2019 | AV72: 2017-02-07 | AW72: 120000 | AX72: 0.2999505833 | AY72: 35994.07 | AZ72: 43111.4922 | BA72: 83.68 | BJ72: -7201.1022 | BQ72: 620000 | BR72: 0.359262435 | BS72: 222742.7097 | BT72: (blank) | BU72: (blank) | BV72: (blank) | BW72: 2016-09-01 | BX72: 6164472 | BY72: 2016-09-01 | BZ72: 620000 | CA72: 0.359262435 | CB72: 222742.7097
F73: SELL | G73: 4.456 | H73: 620000 | I73: 0.359262435 | J73: 222742.7097 | K73: 2017-02-16 | L73: 620000 | M73: 0.3103399516 | N73: 192410.77 | O73: 222742.7097 | P73: 447.35 | Y73: -30779.2897 | AF73: 0 | AG73: 0.359262435 | AH73: 0 | AJ73: 8 | AL73: 2017-02-16 | AM73: 1 | AN73: 212392 | AO73: 6164472 | AP73: Golden Agri-Resources Ltd | AQ73: SELL | AR73: 4.456 | AS73: 620000 | AT73: 0.359262435 | AU73: 222742.7097 | AV73: 2017-02-16 | AW73: 620000 | AX73: 0.3103399516 | AY73: 192410.77 | AZ73: 222742.7097 | BA73: 447.35 | BJ73: -30779.2897 | BQ73: 0 | BR73: 0.359262435 | BS73: 0 | BT73: (blank) | BU73: (blank) | BV73: (blank) | BW73: 2016-09-01 | BX73: 6164472 | BY73: 2016-09-01 | BZ73: 0 | CA73: 0.359262435 | CB73: 0 | CC73: 1
B75: 9 | C75: 212392 | D75: 6345783 | E75: Eclat Textile Co., Ltd. | F75: SELL | G75: 4.2975 | H75: 10230 | I75: 16.20956305 | J75: 165823.83 | K75: 2017-07-04 | L75: 10230 | M75: 12.55853177 | N75: 128473.78 | O75: 165823.83 | P75: 642.38 | Y75: -37992.43 | AF75: 0 | AG75: 16.20956305 | AH75: 0 | AJ75: 9 | AK75: 201609_6345783 | AL75: 2017-07-04 | AM75: 1 | AN75: 212392 | AO75: 6345783 | AP75: Eclat Textile Co., Ltd. | AQ75: SELL | AR75: 4.2975 | AS75: 10230 | AT75: 16.20956305 | AU75: 165823.83 | AV75: 2017-07-04 | AW75: 10230 | AX75: 12.55853177 | AY75: 128473.78 | AZ75: 165823.83 | BA75: 642.38 | BJ75: -37992.43 | BQ75: 0 | BR75: 16.20956305 | BS75: 0 | BT75: (blank) | BU75: (blank) | BV75: (blank) | BW75: 2016-09-01 | BX75: 6345783 | BY75: 2016-09-01 | BZ75: 0 | CA75: 16.20956305 | CB75: 0 | CC75: 1
B77: 10 | C77: 212392 | D77: 6707899 | E77: AVICHINA INDUSTRY & TECH-H | F77: SELL | G77: 4.2605 | H77: 800000 | I77: 0.974845 | J77: 779876 | K77: 2017-09-05 | L77: 116000 | M77: 0.5859366379 | N77: 67968.65 | O77: 113082.02 | P77: 107.21 | Y77: -45220.58 | AF77: 684000 | AG77: 0.974845 | AH77: 666793.98 | AJ77: 10 | AK77: 201706_6707899 | AL77: 2017-09-05 | AM77: 1 | AN77: 212392 | AO77: 6707899 | AP77: AVICHINA INDUSTRY & TECH-H | AQ77: SELL | AR77: 4.2605 | AS77: 800000 | AT77: 0.974845 | AU77: 779876 | AV77: 2017-09-05 | AW77: 116000 | AX77: 0.5859366379 | AY77: 67968.65 | AZ77: 113082.02 | BA77: 107.21 | BJ77: -45220.58 | BQ77: 684000 | BR77: 0.974845 | BS77: 666793.98 | BT77: (blank) | BU77: (blank) | BV77: (blank) | BW77: 2017-06-01 | BX77: 6707899 | BY77: 2017-06-01 | BZ77: 684000 | CA77: 0.974845 | CB77: 666793.98
F78: SELL | G78: 4.152 | H78: 684000 | I78: 0.974845 | J78: 666793.98 | K78: 2017-11-20 | L78: 75000 | M78: 0.5229006667 | N78: 39217.55 | O78: 73113.375 | P78: 61.93 | Y78: -33957.755 | AF78: 609000 | AG78: 0.974845 | AH78: 593680.605 | AJ78: 10 | AL78: 2017-11-20 | AM78: 1 | AN78: 212392 | AO78: 6707899 | AP78: AVICHINA INDUSTRY & TECH-H | AQ78: SELL | AR78: 4.152 | AS78: 684000 | AT78: 0.974845 | AU78: 666793.98 | AV78: 2017-11-20 | AW78: 75000 | AX78: 0.5229006667 | AY78: 39217.55 | AZ78: 73113.375 | BA78: 61.93 | BJ78: -33957.755 | BQ78: 609000 | BR78: 0.974845 | BS78: 593680.605 | BT78: (blank) | BU78: (blank) | BV78: (blank) | BW78: 2017-06-01 | BX78: 6707899 | BY78: 2017-06-01 | BZ78: 609000 | CA78: 0.974845 | CB78: 593680.605
F79: SELL | G79: 3.9035 | H79: 609000 | I79: 0.974845 | J79: 593680.605 | K79: 2018-03-06 | L79: 609000 | M79: 0.6268487192 | N79: 381750.87 | O79: 593680.605 | P79: 792.99 | Y79: -212722.725 | AF79: 0 | AG79: 0.974845 | AH79: 0 | AJ79: 10 | AL79: 2018-03-06 | AM79: 1 | AN79: 212392 | AO79: 6707899 | AP79: AVICHINA INDUSTRY & TECH-H | AQ79: SELL | AR79: 3.9035 | AS79: 609000 | AT79: 0.974845 | AU79: 593680.605 | AV79: 2018-03-06 | AW79: 609000 | AX79: 0.6268487192 | AY79: 381750.87 | AZ79: 593680.605 | BA79: 792.99 | BB79: (blank) | BC79: (blank) | BD79: (blank) | BE79: (blank) | BF79: (blank) | BG79: (blank) | BH79: (blank) | BI79: (blank) | BJ79: -212722.725 | BK79: (blank) | BL79: (blank) | BM79: (blank) | BN79: (blank) | BO79: (blank) | BP79: (blank) | BQ79: 0 | BR79: 0.974845 | BS79: 0 | BT79: (blank) | BU79: (blank) | BV79: (blank) | BW79: 2017-06-01 | BX79: 6707899 | BY79: 2017-06-01 | BZ79: 0 | CA79: 0.974845 | CB79: 0 | CC79: 1
B81: 11 | C81: 212392 | D81: B02PY22 | E81: SINGAPORE TELECOMMUNICATIONS | F81: SELL | G81: 4.282 | H81: 203000 | I81: 2.913295123 | J81: 591398.91 | K81: 2017-07-25 | L81: 203000 | M81: 2.887599557 | N81: 586182.71 | O81: 591398.91 | P81: 1406.83 | Y81: -6623.03 | AF81: 0 | AG81: 2.913295123 | AH81: 0 | AJ81: 11 | AK81: 201706_B02PY22 | AL81: 2017-07-25 | AM81: 1 | AN81: 212392 | AO81: B02PY22 | AP81: SINGAPORE TELECOMMUNICATIONS | AQ81: SELL | AR81: 4.282 | AS81: 203000 | AT81: 2.913295123 | AU81: 591398.91 | AV81: 2017-07-25 | AW81: 203000 | AX81: 2.887599557 | AY81: 586182.71 | AZ81: 591398.91 | BA81: 1406.83 | BJ81: -6623.03 | BQ81: 0 | BR81: 2.913295123 | BS81: 0 | BT81: (blank) | BU81: (blank) | BV81: (blank) | BW81: 2017-06-01 | BX81: B02PY22 | BY81: 2017-06-01 | BZ81: 0 | CA81: 2.913295123 | CB81: 0 | CC81: 1
B83: 12 | C83: 212392 | D83: 6291767 | E83: CIPUTRA DEVELOPMENT TBK PT | F83: SELL | G83: 4.281 | H83: 3132400 | I83: 0.09802205019 | J83: 307044.27 | K83: 2017-06-02 | L83: 132400 | M83: 0.08459086103 | N83: 11199.83 | O83: 12978.11944 | P83: 46.82 | Y83: -1825.109445 | AF83: 3000000 | AG83: 0.09802205019 | AH83: 294066.1506 | AJ83: 12 | AK83: 201706_6291767 | AL83: 2017-06-02 | AM83: 1 | AN83: 212392 | AO83: 6291767 | AP83: CIPUTRA DEVELOPMENT TBK PT | AQ83: SELL | AR83: 4.281 | AS83: 3132400 | AT83: 0.09802205019 | AU83: 307044.27 | AV83: 2017-06-02 | AW83: 132400 | AX83: 0.08459086103 | AY83: 11199.83 | AZ83: 12978.11944 | BA83: 46.82 | BJ83: -1825.109445 | BQ83: 3000000 | BR83: 0.09802205019 | BS83: 294066.1506 | BT83: (blank) | BU83: (blank) | BV83: (blank) | BW83: 2017-06-01 | BX83: 6291767 | BY83: 2017-06-01 | BZ83: 3000000 | CA83: 0.09802205019 | CB83: 294066.1506
F84: Dividend | G84: 4.293 | H84: 3000000 | I84: 0.09802205019 | J84: 294066.1506 | O84: N/A | Q84: 2017-07-03 | R84: 2017-07-14 | S84: 0.0003205 | T84: 961.5 | Z84: 961.5 | AA84: 961.5 | AF84: 3000000 | AG84: 0.09770155019 | AH84: 293104.6506 | AJ84: 12 | AL84: 2017-07-14 | AM84: 1 | AN84: 212392 | AO84: 6291767 | AP84: CIPUTRA DEVELOPMENT TBK PT | AQ84: Dividend | AR84: 4.293 | AS84: 3000000 | AT84: 0.09802205019 | AU84: 294066.1506 | AZ84: N/A | BB84: 2017-07-03 | BC84: 2017-07-14 | BD84: 0.0003205 | BE84: 961.5 | BK84: 961.5 | BL84: 961.5 | BQ84: 3000000 | BR84: 0.09770155019 | BS84: 293104.6506 | BT84: (blank) | BU84: (blank) | BV84: (blank) | BW84: 2017-06-01 | BX84: 6291767 | BY84: 2017-06-01 | BZ84: 3000000 | CA84: 0.09770155019 | CB84: 293104.6506
F85: SELL | G85: 4.2915 | H85: 3000000 | I85: 0.09770155019 | J85: 293104.6506 | K85: 2017-08-09 | L85: 599600 | M85: 0.0885694463 | N85: 53106.24 | O85: 58581.84949 | P85: 106.74 | Y85: -5582.349491 | AF85: 2400400 | AG85: 0.09770155019 | AH85: 234522.8011 | AJ85: 12 | AL85: 2017-08-09 | AM85: 1 | AN85: 212392 | AO85: 6291767 | AP85: CIPUTRA DEVELOPMENT TBK PT | AQ85: SELL | AR85: 4.2915 | AS85: 3000000 | AT85: 0.09770155019 | AU85: 293104.6506 | AV85: 2017-08-09 | AW85: 599600 | AX85: 0.0885694463 | AY85: 53106.24 | AZ85: 58581.84949 | BA85: 106.74 | BJ85: -5582.349491 | BQ85: 2400400 | BR85: 0.09770155019 | BS85: 234522.8011 | BT85: (blank) | BU85: (blank) | BV85: (blank) | BW85: 2017-06-01 | BX85: 6291767 | BY85: 2017-06-01 | BZ85: 2400400 | CA85: 0.09770155019 | CB85: 234522.8011
F86: SELL | G86: 4.2915 | H86: 2400400 | I86: 0.09770155019 | J86: 234522.8011 | K86: 2017-08-10 | L86: 1058400 | M86: 0.08788301209 | N86: 93015.38 | O86: 103407.3207 | P86: 188.83 | Y86: -10580.77072 | AF86: 1342000 | AG86: 0.09770155019 | AH86: 131115.4803 | AJ86: 12 | AL86: 2017-08-10 | AM86: 1 | AN86: 212392 | AO86: 6291767 | AP86: CIPUTRA DEVELOPMENT TBK PT | AQ86: SELL | AR86: 4.2915 | AS86: 2400400 | AT86: 0.09770155019 | AU86: 234522.8011 | AV86: 2017-08-10 | AW86: 1058400 | AX86: 0.08788301209 | AY86: 93015.38 | AZ86: 103407.3207 | BA86: 188.83 | BJ86: -10580.77072 | BQ86: 1342000 | BR86: 0.09770155019 | BS86: 131115.4803 | BT86: (blank) | BU86: (blank) | BV86: (blank) | BW86: 2017-06-01 | BX86: 6291767 | BY86: 2017-06-01 | BZ86: 1342000 | CA86: 0.09770155019 | CB86: 131115.4803
F87: SELL | G87: 4.295 | H87: 1342000 | I87: 0.09770155019 | J87: 131115.4803 | K87: 2017-08-11 | L87: 1342000 | M87: 0.08409929955 | N87: 112861.26 | O87: 131115.4803 | P87: 229.11 | Y87: -18483.33035 | AF87: 0 | AG87: 0.09770155019 | AH87: 0 | AJ87: 12 | AL87: 2017-08-11 | AM87: 1 | AN87: 212392 | AO87: 6291767 | AP87: CIPUTRA DEVELOPMENT TBK PT | AQ87: SELL | AR87: 4.295 | AS87: 1342000 | AT87: 0.09770155019 | AU87: 131115.4803 | AV87: 2017-08-11 | AW87: 1342000 | AX87: 0.08409929955 | AY87: 112861.26 | AZ87: 131115.4803 | BA87: 229.11 | BJ87: -18483.33035 | BQ87: 0 | BR87: 0.09770155019 | BS87: 0 | BT87: (blank) | BU87: (blank) | BV87: (blank) | BW87: 2017-06-01 | BX87: 6291767 | BY87: 2017-06-01 | BZ87: 0 | CA87: 0.09770155019 | CB87: 0 | CC87: 1
B89: 13 | C89: 212392 | D89: 6193937 | E89: I-CABLE COMMUNICATIONS LTD | F89: SELL | G89: 4.191 | H89: 85161 | I89: 0.03935075915 | J89: 3351.15 | K89: 2017-09-13 | L89: 85161 | M89: 0.03085309003 | N89: 2627.48 | O89: 3351.15 | P89: 4.2 | Y89: -727.87 | AF89: 0 | AG89: 0.03935075915 | AH89: 0 | AI89: Spin off from WHEELOCK & CO. LTD (ex-date 25Aug17, paid date: 11Sep17) .Disposed by 13-Sep-2017 | AJ89: 13 | AK89: 201708_6193937 | AL89: 2017-09-13 | AM89: 1 | AN89: 212392 | AO89: 6193937 | AP89: I-CABLE COMMUNICATIONS LTD | AQ89: SELL | AR89: 4.191 | AS89: 85161 | AT89: 0.03935075915 | AU89: 3351.15 | AV89: 2017-09-13 | AW89: 85161 | AX89: 0.03085309003 | AY89: 2627.48 | AZ89: 3351.15 | BA89: 4.2 | BJ89: -727.87 | BQ89: 0 | BR89: 0.03935075915 | BS89: 0 | BT89: Spin off from WHEELOCK & CO. LTD (ex-date 25Aug17, paid date: 11Sep17) .Disposed by 13-Sep-2017 | BU89: (blank) | BV89: (blank) | BW89: 2017-08-25 | BX89: 6193937 | BY89: 2017-08-25 | BZ89: 0 | CA89: 0.03935075915 | CB89: 0 | CC89: 1
B91: 14 | C91: 212392 | D91: 6193937 | E91: I-CABLE COMMUNICATIONS LTD | F91: SELL | G91: 4.234 | H91: 45990 | I91: 0.03469819526 | J91: 1595.77 | K91: 2017-10-26 | L91: 45990 | M91: 0.02887519026 | N91: 1327.97 | O91: 1595.77 | P91: 2.18 | Y91: -269.98 | AF91: 0 | AG91: 0.03469819526 | AH91: 0 | AI91: Received from spin off event of Wheelock & Co (Ex-date 22Sep17). Disposed within 14 business date from distribution date. | AJ91: 14 | AK91: 201709_6193937 | AL91: 2017-10-26 | AM91: 1 | AN91: 212392 | AO91: 6193937 | AP91: I-CABLE COMMUNICATIONS LTD | AQ91: SELL | AR91: 4.234 | AS91: 45990 | AT91: 0.03469819526 | AU91: 1595.77 | AV91: 2017-10-26 | AW91: 45990 | AX91: 0.02887519026 | AY91: 1327.97 | AZ91: 1595.77 | BA91: 2.18 | BJ91: -269.98 | BQ91: 0 | BR91: 0.03469819526 | BS91: 0 | BT91: Received from spin off event of Wheelock & Co (Ex-date 22Sep17). Disposed within 14 business date from distribution date. | BU91: (blank) | BV91: (blank) | BW91: 2017-09-22 | BX91: 6193937 | BY91: 2017-09-22 | BZ91: 0 | CA91: 0.03469819526 | CB91: 0 | CC91: 1
B93: 15 | C93: 212392 | D93: BZ60JT0 | E93: LOTTE CONFECTIONERY CO/NEW | F93: SELL | G93: 4.231 | H93: 829 | I93: 207.7828468 | J93: 172251.98 | K93: 2017-10-31 | L93: 829 | M93: 166.6531846 | N93: 138155.49 | O93: 172251.98 | P93: 483.55 | Y93: -34580.04 | AF93: 0 | AG93: 207.7828468 | AH93: 0 | AI93: Received from spin off event of Lotte Confectionery (paid-date 27Oct17). Disposed within 14 business date from distribution date. | AJ93: 15 | AK93: 201710_BZ60JT0 | AL93: 2017-10-31 | AM93: 1 | AN93: 212392 | AO93: BZ60JT0 | AP93: LOTTE CONFECTIONERY CO/NEW | AQ93: SELL | AR93: 4.231 | AS93: 829 | AT93: 207.7828468 | AU93: 172251.98 | AV93: 2017-10-31 | AW93: 829 | AX93: 166.6531846 | AY93: 138155.49 | AZ93: 172251.98 | BA93: 483.55 | BJ93: -34580.04 | BQ93: 0 | BR93: 207.7828468 | BS93: 0 | BT93: Received from spin off event of Lotte Confectionery (paid-date 27Oct17). Disposed within 14 business date from distribution date. | BU93: (blank) | BV93: (blank) | BW93: 2017-10-30 | BX93: BZ60JT0 | BY93: 2017-10-30 | BZ93: 0 | CA93: 207.7828468 | CB93: 0
F94: Corporate Action | U94: Cash in lieu of fraction shares | V94: 2017-11-02 | W94: 0.14664 | X94: 25 | Z94: 25 | AA94: 25 | AI94: Received cash in lieu of fraction shares for 0.14664 shares following Lotte Confectionery spin-off | AJ94: 15 | AL94: 2017-11-02 | AM94: 1 | AN94: 212392 | AO94: BZ60JT0 | AP94: LOTTE CONFECTIONERY CO/NEW | AQ94: Corporate Action | AR94: (blank) | AS94: (blank) | AT94: (blank) | AU94: (blank) | AZ94: (blank) | BF94: Cash in lieu of fraction shares | BG94: 2017-11-02 | BH94: 0.14664 | BI94: 25 | BK94: 25 | BL94: 25 | BQ94: (blank) | BR94: (blank) | BS94: (blank) | BT94: Received cash in lieu of fraction shares for 0.14664 shares following Lotte Confectionery spin-off | BU94: (blank) | BV94: (blank) | BW94: 2017-10-30 | BX94: BZ60JT0 | BY94: 2017-10-30 | CC94: 1
B96: 16 | C96: 212392 | D96: B17KMY7 | E96: YANLORD LAND GROUP LTD | F96: SELL | G96: 3.969 | H96: 300000 | I96: 1.4049777 | J96: 421493.31 | K96: 2018-05-17 | L96: 22800 | M96: 1.318337281 | N96: 30058.09 | O96: 32033.49156 | P96: 39.82 | Y96: -2015.22156 | AF96: 277200 | AG96: 1.4049777 | AH96: 389459.8184 | AJ96: 16 | AK96: 201803_B17KMY7 | AL96: 2018-05-17 | AM96: 1 | AN96: 212392 | AO96: B17KMY7 | AP96: YANLORD LAND GROUP LTD | AQ96: SELL | AR96: 3.969 | AS96: 300000 | AT96: 1.4049777 | AU96: 421493.31 | AV96: 2018-05-17 | AW96: 22800 | AX96: 1.318337281 | AY96: 30058.09 | AZ96: 32033.49156 | BA96: 39.82 | BJ96: -2015.22156 | BQ96: 277200 | BR96: 1.4049777 | BS96: 389459.8184 | BT96: (blank) | BU96: (blank) | BV96: (blank) | BW96: 2018-03-01 | BX96: B17KMY7 | BY96: 2018-03-01 | BZ96: 277200 | CA96: 1.4049777 | CB96: 389459.8184
F97: Dividend | G97: 3.9735 | H97: 277200 | I97: 1.4049777 | J97: 389459.8184 | Q97: 2018-05-18 | R97: 2018-06-05 | S97: 0.05088106061 | T97: 14104.23 | AA97: 14104.23 | AF97: 277200 | AG97: 1.354096639 | AH97: 375355.5884 | AJ97: 16 | AL97: 2018-06-05 | AM97: 1 | AN97: 212392 | AO97: B17KMY7 | AP97: YANLORD LAND GROUP LTD | AQ97: Dividend | AR97: 3.9735 | AS97: 277200 | AT97: 1.4049777 | AU97: 389459.8184 | AV97: (blank) | AW97: (blank) | AX97: (blank) | AY97: (blank) | AZ97: (blank) | BA97: (blank) | BB97: 2018-05-18 | BC97: 2018-06-05 | BD97: 0.05088106061 | BE97: 14104.23 | BF97: (blank) | BG97: (blank) | BH97: (blank) | BI97: (blank) | BJ97: (blank) | BK97: (blank) | BL97: 14104.23 | BM97: (blank) | BN97: (blank) | BO97: (blank) | BP97: (blank) | BQ97: 277200 | BR97: 1.354096639 | BS97: 375355.5884 | BT97: (blank) | BU97: (blank) | BV97: (blank) | BW97: 2018-03-01 | BX97: B17KMY7 | BY97: 2018-03-01 | BZ97: 277200 | CA97: 1.354096639 | CB97: 375355.5884
F98: Dividend | G98: 4.1755 | H98: 277200 | I98: 1.354096639 | J98: 375355.5884 | Q98: 2019-05-21 | R98: 2019-06-06 | S98: 0.04985703463 | T98: 13820.37 | AA98: 13820.37 | AF98: 277200 | AG98: 1.304239605 | AH98: 361535.2184 | AJ98: 16 | AL98: 2019-06-06 | AM98: 1 | AN98: 212392 | AO98: B17KMY7 | AP98: YANLORD LAND GROUP LTD | AQ98: Dividend | AR98: 4.1755 | AS98: 277200 | AT98: 1.354096639 | AU98: 375355.5884 | AV98: (blank) | AW98: (blank) | AX98: (blank) | AY98: (blank) | AZ98: (blank) | BA98: (blank) | BB98: 2019-05-21 | BC98: 2019-06-06 | BD98: 0.04985703463 | BE98: 13820.37 | BF98: (blank) | BG98: (blank) | BH98: (blank) | BI98: (blank) | BJ98: (blank) | BK98: (blank) | BL98: 13820.37 | BM98: (blank) | BN98: (blank) | BO98: (blank) | BP98: (blank) | BQ98: 277200 | BR98: 1.304239605 | BS98: 361535.2184 | BT98: (blank) | BU98: (blank) | BV98: (blank) | BW98: 2018-03-01 | BX98: B17KMY7 | BY98: 2018-03-01 | BZ98: 277200 | CA98: 1.304239605 | CB98: 361535.2184
F99: Dividend | G99: 4.1905 | H99: 277200 | I99: 1.304239605 | J99: 361535.2184 | Q99: 2020-07-21 | R99: 2020-08-07 | S99: 0.04953740981 | T99: 13731.77 | AA99: 13731.77 | AF99: 277200 | AG99: 1.254702195 | AH99: 347803.4484 | AJ99: 16 | AL99: 2020-08-07 | AM99: 1 | AN99: 212392 | AO99: B17KMY7 | AP99: YANLORD LAND GROUP LTD | AQ99: Dividend | AR99: 4.1905 | AS99: 277200 | AT99: 1.304239605 | AU99: 361535.2184 | AV99: (blank) | AW99: (blank) | AX99: (blank) | AY99: (blank) | AZ99: (blank) | BA99: (blank) | BB99: 2020-07-21 | BC99: 2020-08-07 | BD99: 0.04953740981 | BE99: 13731.77 | BF99: (blank) | BG99: (blank) | BH99: (blank) | BI99: (blank) | BJ99: (blank) | BK99: (blank) | BL99: 13731.77 | BM99: (blank) | BN99: (blank) | BO99: (blank) | BP99: (blank) | BQ99: 277200 | BR99: 1.254702195 | BS99: 347803.4484 | BT99: (blank) | BU99: (blank) | BV99: (blank) | BW99: 2018-03-01 | BX99: B17KMY7 | BY99: 2018-03-01 | BZ99: 277200 | CA99: 1.254702195 | CB99: 347803.4484
F100: Dividend | G100: 4.128 | H100: 277200 | I100: 1.254702195 | J100: 347803.4484 | Q100: 2021-05-19 | R100: 2021-06-07 | S100: 0.05138279221 | T100: 14243.31 | AA100: 14243.31 | AF100: 277200 | AG100: 1.203319403 | AH100: 333560.1384 | AJ100: 16 | AL100: 2021-06-07 | AM100: 1 | AN100: 212392 | AO100: B17KMY7 | AP100: YANLORD LAND GROUP LTD | AQ100: Dividend | AR100: 4.128 | AS100: 277200 | AT100: 1.254702195 | AU100: 347803.4484 | AV100: (blank) | AW100: (blank) | AX100: (blank) | AY100: (blank) | AZ100: (blank) | BA100: (blank) | BB100: 2021-05-19 | BC100: 2021-06-07 | BD100: 0.05138279221 | BE100: 14243.31 | BF100: (blank) | BG100: (blank) | BH100: (blank) | BI100: (blank) | BJ100: (blank) | BK100: (blank) | BL100: 14243.31 | BM100: (blank) | BN100: (blank) | BO100: (blank) | BP100: (blank) | BQ100: 277200 | BR100: 1.203319403 | BS100: 333560.1384 | BT100: (blank) | BU100: (blank) | BV100: (blank) | BW100: 2018-03-01 | BX100: B17KMY7 | BY100: 2018-03-01 | BZ100: 277200 | CA100: 1.203319403 | CB100: 333560.1384 | CC100: 1
B102: 17 | C102: 212392 | D102: BZ8TP86 | E102: WONIK IPS CO LTD | F102: SELL | G102: 3.9045 | H102: 10300 | I102: 33.46877573 | J102: 344728.39 | K102: 2018-03-02 | L102: 10300 | M102: 32.63990485 | N102: 336191.02 | O102: 344728.39 | P102: 1412 | Y102: -9949.37 | AF102: 0 | AG102: 33.46877573 | AH102: 0 | AJ102: 17 | AK102: 201803_BZ8TP86 | AL102: 2018-03-02 | AM102: 1 | AN102: 212392 | AO102: BZ8TP86 | AP102: WONIK IPS CO LTD | AQ102: SELL | AR102: 3.9045 | AS102: 10300 | AT102: 33.46877573 | AU102: 344728.39 | AV102: 2018-03-02 | AW102: 10300 | AX102: 32.63990485 | AY102: 336191.02 | AZ102: 344728.39 | BA102: 1412 | BJ102: -9949.37 | BQ102: 0 | BR102: 33.46877573 | BS102: 0 | BT102: (blank) | BU102: (blank) | BV102: (blank) | BW102: 2018-03-01 | BX102: BZ8TP86 | BY102: 2018-03-01 | BZ102: 0 | CA102: 33.46877573 | CB102: 0 | CC102: 1
B104: 18 | C104: 212392 | D104: 6535432 | E104: Lotte Holdings | F104: Dividend | G104: 4.1315 | H104: 4928 | I104: 73.74439732 | J104: 363412.39 | O104: N/A | Q104: 2018-12-27 | R104: 2019-04-26 | S104: 0.5857021104 | T104: 2886.34 | Z104: 2886.34 | AA104: 2886.34 | AF104: 4928 | AG104: 73.15869521 | AH104: 360526.05 | AJ104: 18 | AK104: 201806_6535432 | AL104: 2019-04-26 | AM104: 1 | AN104: 212392 | AO104: 6535432 | AP104: Lotte Holdings | AQ104: Dividend | AR104: 4.1315 | AS104: 4928 | AT104: 73.74439732 | AU104: 363412.39 | AZ104: N/A | BB104: 2018-12-27 | BC104: 2019-04-26 | BD104: 0.5857021104 | BE104: 2886.34 | BK104: 2886.34 | BL104: 2886.34 | BQ104: 4928 | BR104: 73.15869521 | BS104: 360526.05 | BT104: (blank) | BU104: (blank) | BV104: (blank) | BW104: 2018-06-01 | BX104: 6535432 | BY104: 2018-06-01 | BZ104: 4928 | CA104: 73.15869521 | CB104: 360526.05
F105: Dividend | G105: 4.19 | H105: 4928 | I105: 73.15869521 | J105: 360526.05 | O105: N/A | Q105: 2019-06-27 | R105: 2019-08-23 | S105: 0.2106310877 | T105: 1037.99 | Z105: 1037.99 | AA105: 1037.99 | AF105: 4928 | AG105: 72.94806412 | AH105: 359488.06 | AJ105: 18 | AL105: 2019-08-23 | AM105: 1 | AN105: 212392 | AO105: 6535432 | AP105: Lotte Holdings | AQ105: Dividend | AR105: 4.19 | AS105: 4928 | AT105: 73.15869521 | AU105: 360526.05 | AZ105: N/A | BB105: 2019-06-27 | BC105: 2019-08-23 | BD105: 0.2106310877 | BE105: 1037.99 | BK105: 1037.99 | BL105: 1037.99 | BQ105: 4928 | BR105: 72.94806412 | BS105: 359488.06 | BT105: (blank) | BU105: (blank) | BV105: (blank) | BW105: 2018-06-01 | BX105: 6535432 | BY105: 2018-06-01 | BZ105: 4928 | CA105: 72.94806412 | CB105: 359488.06
F106: Dividend | G106: 4.364 | H106: 4928 | I106: 72.94806412 | J106: 359488.06 | O106: N/A | Q106: 2019-12-27 | R106: 2020-04-24 | S106: 0.5504058442 | T106: 2712.4 | Z106: 2712.4 | AA106: 2712.4 | AF106: 4928 | AG106: 72.39765828 | AH106: 356775.66 | AJ106: 18 | AL106: 2020-04-24 | AM106: 1 | AN106: 212392 | AO106: 6535432 | AP106: Lotte Holdings | AQ106: Dividend | AR106: 4.364 | AS106: 4928 | AT106: 72.94806412 | AU106: 359488.06 | AZ106: N/A | BB106: 2019-12-27 | BC106: 2020-04-24 | BD106: 0.5504058442 | BE106: 2712.4 | BK106: 2712.4 | BL106: 2712.4 | BQ106: 4928 | BR106: 72.39765828 | BS106: 356775.66 | BT106: (blank) | BU106: (blank) | BV106: (blank) | BW106: 2018-06-01 | BX106: 6535432 | BY106: 2018-06-01 | BZ106: 4928 | CA106: 72.39765828 | CB106: 356775.66
F107: SELL | G107: 4.2655 | H107: 4928 | I107: 72.39765828 | J107: 356775.66 | K107: 2020-07-13 | L107: 4928 | M107: 25.53275771 | N107: 125825.43 | O107: 356775.66 | P107: 427.8 | Y107: -231378.03 | AF107: 0 | AG107: 72.39765828 | AH107: 0 | AJ107: 18 | AL107: 2020-07-13 | AM107: 1 | AN107: 212392 | AO107: 6535432 | AP107: Lotte Holdings | AQ107: SELL | AR107: 4.2655 | AS107: 4928 | AT107: 72.39765828 | AU107: 356775.66 | AV107: 2020-07-13 | AW107: 4928 | AX107: 25.53275771 | AY107: 125825.43 | AZ107: 356775.66 | BA107: 427.8 | BJ107: -231378.03 | BQ107: 0 | BR107: 72.39765828 | BS107: 0 | BT107: (blank) | BU107: (blank) | BV107: (blank) | BW107: 2018-06-01 | BX107: 6535432 | BY107: 2018-06-01 | BZ107: 0 | CA107: 72.39765828 | CB107: 0 | CC107: 1
B109: 19 | C109: 212392 | D109: 6889106 | E109: Taiwan Semiconductor Manufacturing Co., Ltd. | F109: SELL | G109: 3.9735 | H109: 1050000 | I109: 8.347990152 | J109: 8765389.66 | K109: 2018-06-05 | L109: 50000 | M109: 7.6549178 | N109: 382745.89 | O109: 417399.5076 | P109: 1607.52 | Y109: -36261.13762 | AF109: 1000000 | AG109: 8.347990152 | AH109: 8347990.152 | AJ109: 19 | AK109: 201806_6889106 | AL109: 2018-06-05 | AM109: 1 | AN109: 212392 | AO109: 6889106 | AP109: Taiwan Semiconductor Manufacturing Co., Ltd. | AQ109: SELL | AR109: 3.9735 | AS109: 1050000 | AT109: 8.347990152 | AU109: 8765389.66 | AV109: 2018-06-05 | AW109: 50000 | AX109: 7.6549178 | AY109: 382745.89 | AZ109: 417399.5076 | BA109: 1607.52 | BJ109: -36261.13762 | BQ109: 1000000 | BR109: 8.347990152 | BS109: 8347990.152 | BT109: (blank) | BU109: (blank) | BV109: (blank) | BW109: 2018-06-01 | BX109: 6889106 | BY109: 2018-06-01 | BZ109: 1000000 | CA109: 8.347990152 | CB109: 8347990.152
F110: SELL | G110: 3.9755 | H110: 1000000 | I110: 8.347990152 | J110: 8347990.152 | K110: 2018-06-07 | L110: 24000 | M110: 7.7227225 | N110: 185345.34 | O110: 200351.7637 | P110: 778.47 | Y110: -15784.89366 | AF110: 976000 | AG110: 8.347990152 | AH110: 8147638.389 | AJ110: 19 | AL110: 2018-06-07 | AM110: 1 | AN110: 212392 | AO110: 6889106 | AP110: Taiwan Semiconductor Manufacturing Co., Ltd. | AQ110: SELL | AR110: 3.9755 | AS110: 1000000 | AT110: 8.347990152 | AU110: 8347990.152 | AV110: 2018-06-07 | AW110: 24000 | AX110: 7.7227225 | AY110: 185345.34 | AZ110: 200351.7637 | BA110: 778.47 | BB110: (blank) | BC110: (blank) | BD110: (blank) | BE110: (blank) | BF110: (blank) | BG110: (blank) | BH110: (blank) | BI110: (blank) | BJ110: -15784.89366 | BK110: (blank) | BL110: (blank) | BM110: (blank) | BN110: (blank) | BO110: (blank) | BP110: (blank) | BQ110: 976000 | BR110: 8.347990152 | BS110: 8147638.389 | BT110: (blank) | BU110: (blank) | BV110: (blank) | BW110: 2018-06-01 | BX110: 6889106 | BY110: 2018-06-01 | BZ110: 976000 | CA110: 8.347990152 | CB110: 8147638.389
F111: SELL | G111: 3.9875 | H111: 976000 | I111: 8.347990152 | J111: 8147638.389 | K111: 2018-06-08 | L111: 19000 | M111: 7.603173158 | N111: 144460.29 | O111: 158611.8129 | P111: 606.73 | Y111: -14758.2529 | AF111: 957000 | AG111: 8.347990152 | AH111: 7989026.576 | AJ111: 19 | AL111: 2018-06-08 | AM111: 1 | AN111: 212392 | AO111: 6889106 | AP111: Taiwan Semiconductor Manufacturing Co., Ltd. | AQ111: SELL | AR111: 3.9875 | AS111: 976000 | AT111: 8.347990152 | AU111: 8147638.389 | AV111: 2018-06-08 | AW111: 19000 | AX111: 7.603173158 | AY111: 144460.29 | AZ111: 158611.8129 | BA111: 606.73 | BB111: (blank) | BC111: (blank) | BD111: (blank) | BE111: (blank) | BF111: (blank) | BG111: (blank) | BH111: (blank) | BI111: (blank) | BJ111: -14758.2529 | BK111: (blank) | BL111: (blank) | BM111: (blank) | BN111: (blank) | BO111: (blank) | BP111: (blank) | BQ111: 957000 | BR111: 8.347990152 | BS111: 7989026.576 | BT111: (blank) | BU111: (blank) | BV111: (blank) | BW111: 2018-06-01 | BX111: 6889106 | BY111: 2018-06-01 | BZ111: 957000 | CA111: 8.347990152 | CB111: 7989026.576
F112: Dividend | G112: 4.0655 | H112: 957000 | I112: 8.347990152 | J112: 7989026.576 | Q112: 2018-06-25 | R112: 2018-07-19 | S112: 0.2063302926 | T112: 197458.09 | AA112: 197458.09 | AF112: 957000 | AG112: 8.14165986 | AH112: 7791568.486 | AJ112: 19 | AL112: 2018-07-19 | AM112: 1 | AN112: 212392 | AO112: 6889106 | AP112: Taiwan Semiconductor Manufacturing Co., Ltd. | AQ112: Dividend | AR112: 4.0655 | AS112: 957000 | AT112: 8.347990152 | AU112: 7989026.576 | AV112: (blank) | AW112: (blank) | AX112: (blank) | AY112: (blank) | AZ112: (blank) | BA112: (blank) | BB112: 2018-06-25 | BC112: 2018-07-19 | BD112: 0.2063302926 | BE112: 197458.09 | BF112: (blank) | BG112: (blank) | BH112: (blank) | BI112: (blank) | BJ112: (blank) | BK112: (blank) | BL112: 197458.09 | BM112: (blank) | BN112: (blank) | BO112: (blank) | BP112: (blank) | BQ112: 957000 | BR112: 8.14165986 | BS112: 7791568.486 | BT112: (blank) | BU112: (blank) | BV112: (blank) | BW112: 2018-06-01 | BX112: 6889106 | BY112: 2018-06-01 | BZ112: 957000 | CA112: 8.14165986 | CB112: 7791568.486
F113: SELL | G113: 4.0615 | H113: 957000 | I113: 8.14165986 | J113: 7791568.486 | K113: 2018-07-20 | L113: 27000 | M113: 7.640427407 | N113: 206291.54 | O113: 219824.8162 | P113: 866.45 | Y113: -14399.72621 | AF113: 930000 | AG113: 8.14165986 | AH113: 7571743.67 | AJ113: 19 | AL113: 2018-07-20 | AM113: 1 | AN113: 212392 | AO113: 6889106 | AP113: Taiwan Semiconductor Manufacturing Co., Ltd. | AQ113: SELL | AR113: 4.0615 | AS113: 957000 | AT113: 8.14165986 | AU113: 7791568.486 | AV113: 2018-07-20 | AW113: 27000 | AX113: 7.640427407 | AY113: 206291.54 | AZ113: 219824.8162 | BA113: 866.45 | BB113: (blank) | BC113: (blank) | BD113: (blank) | BE113: (blank) | BF113: (blank) | BG113: (blank) | BH113: (blank) | BI113: (blank) | BJ113: -14399.72621 | BK113: (blank) | BL113: (blank) | BM113: (blank) | BN113: (blank) | BO113: (blank) | BP113: (blank) | BQ113: 930000 | BR113: 8.14165986 | BS113: 7571743.67 | BT113: (blank) | BU113: (blank) | BV113: (blank) | BW113: 2018-06-01 | BX113: 6889106 | BY113: 2018-06-01 | BZ113: 930000 | CA113: 8.14165986 | CB113: 7571743.67
F114: SELL | G114: 4.062 | H114: 930000 | I114: 8.14165986 | J114: 7571743.67 | K114: 2018-07-23 | L114: 50000 | M114: 7.9490736 | N114: 397453.68 | O114: 407082.993 | P114: 1669.3 | Y114: -11298.61299 | AF114: 880000 | AG114: 8.14165986 | AH114: 7164660.677 | AJ114: 19 | AL114: 2018-07-23 | AM114: 1 | AN114: 212392 | AO114: 6889106 | AP114: Taiwan Semiconductor Manufacturing Co., Ltd. | AQ114: SELL | AR114: 4.062 | AS114: 930000 | AT114: 8.14165986 | AU114: 7571743.67 | AV114: 2018-07-23 | AW114: 50000 | AX114: 7.9490736 | AY114: 397453.68 | AZ114: 407082.993 | BA114: 1669.3 | BB114: (blank) | BC114: (blank) | BD114: (blank) | BE114: (blank) | BF114: (blank) | BG114: (blank) | BH114: (blank) | BI114: (blank) | BJ114: -11298.61299 | BK114: (blank) | BL114: (blank) | BM114: (blank) | BN114: (blank) | BO114: (blank) | BP114: (blank) | BQ114: 880000 | BR114: 8.14165986 | BS114: 7164660.677 | BT114: (blank) | BU114: (blank) | BV114: (blank) | BW114: 2018-06-01 | BX114: 6889106 | BY114: 2018-06-01 | BZ114: 880000 | CA114: 8.14165986 | CB114: 7164660.677
F115: SELL | G115: 4.06 | H115: 880000 | I115: 8.14165986 | J115: 7164660.677 | K115: 2018-07-25 | L115: 45000 | M115: 7.859999556 | N115: 353699.98 | O115: 366374.6937 | P115: 1485.53 | Y115: -14160.24369 | AF115: 835000 | AG115: 8.14165986 | AH115: 6798285.983 | AJ115: 19 | AL115: 2018-07-25 | AM115: 1 | AN115: 212392 | AO115: 6889106 | AP115: Taiwan Semiconductor Manufacturing Co., Ltd. | AQ115: SELL | AR115: 4.06 | AS115: 880000 | AT115: 8.14165986 | AU115: 7164660.677 | AV115: 2018-07-25 | AW115: 45000 | AX115: 7.859999556 | AY115: 353699.98 | AZ115: 366374.6937 | BA115: 1485.53 | BB115: (blank) | BC115: (blank) | BD115: (blank) | BE115: (blank) | BF115: (blank) | BG115: (blank) | BH115: (blank) | BI115: (blank) | BJ115: -14160.24369 | BK115: (blank) | BL115: (blank) | BM115: (blank) | BN115: (blank) | BO115: (blank) | BP115: (blank) | BQ115: 835000 | BR115: 8.14165986 | BS115: 6798285.983 | BT115: (blank) | BU115: (blank) | BV115: (blank) | BW115: 2018-06-01 | BX115: 6889106 | BY115: 2018-06-01 | BZ115: 835000 | CA115: 8.14165986 | CB115: 6798285.983
F116: SELL | G116: 4.0645 | H116: 835000 | I116: 8.14165986 | J116: 6798285.983 | K116: 2018-07-30 | L116: 26000 | M116: 7.988368462 | N116: 207697.58 | O116: 211683.1564 | P116: 872.31 | Y116: -4857.886355 | AF116: 809000 | AG116: 8.14165986 | AH116: 6586602.827 | AJ116: 19 | AL116: 2018-07-30 | AM116: 1 | AN116: 212392 | AO116: 6889106 | AP116: Taiwan Semiconductor Manufacturing Co., Ltd. | AQ116: SELL | AR116: 4.0645 | AS116: 835000 | AT116: 8.14165986 | AU116: 6798285.983 | AV116: 2018-07-30 | AW116: 26000 | AX116: 7.988368462 | AY116: 207697.58 | AZ116: 211683.1564 | BA116: 872.31 | BB116: (blank) | BC116: (blank) | BD116: (blank) | BE116: (blank) | BF116: (blank) | BG116: (blank) | BH116: (blank) | BI116: (blank) | BJ116: -4857.886355 | BK116: (blank) | BL116: (blank) | BM116: (blank) | BN116: (blank) | BO116: (blank) | BP116: (blank) | BQ116: 809000 | BR116: 8.14165986 | BS116: 6586602.827 | BT116: (blank) | BU116: (blank) | BV116: (blank) | BW116: 2018-06-01 | BX116: 6889106 | BY116: 2018-06-01 | BZ116: 809000 | CA116: 8.14165986 | CB116: 6586602.827
F117: SELL | G117: 4.065 | H117: 809000 | I117: 8.14165986 | J117: 6586602.827 | K117: 2018-07-31 | L117: 40000 | M117: 7.9991995 | N117: 319967.98 | O117: 325666.3944 | P117: 1343.89 | Y117: -7042.304392 | AF117: 769000 | AG117: 8.14165986 | AH117: 6260936.432 | AJ117: 19 | AL117: 2018-07-31 | AM117: 1 | AN117: 212392 | AO117: 6889106 | AP117: Taiwan Semiconductor Manufacturing Co., Ltd. | AQ117: SELL | AR117: 4.065 | AS117: 809000 | AT117: 8.14165986 | AU117: 6586602.827 | AV117: 2018-07-31 | AW117: 40000 | AX117: 7.9991995 | AY117: 319967.98 | AZ117: 325666.3944 | BA117: 1343.89 | BB117: (blank) | BC117: (blank) | BD117: (blank) | BE117: (blank) | BF117: (blank) | BG117: (blank) | BH117: (blank) | BI117: (blank) | BJ117: -7042.304392 | BK117: (blank) | BL117: (blank) | BM117: (blank) | BN117: (blank) | BO117: (blank) | BP117: (blank) | BQ117: 769000 | BR117: 8.14165986 | BS117: 6260936.432 | BT117: (blank) | BU117: (blank) | BV117: (blank) | BW117: 2018-06-01 | BX117: 6889106 | BY117: 2018-06-01 | BZ117: 769000 | CA117: 8.14165986 | CB117: 6260936.432
F118: SELL | G118: 4.0675 | H118: 769000 | I118: 8.14165986 | J118: 6260936.432 | K118: 2018-08-01 | L118: 26000 | M118: 8.094123077 | N118: 210447.2 | O118: 211683.1564 | P118: 883.88 | Y118: -2119.836355 | AF118: 743000 | AG118: 8.14165986 | AH118: 6049253.276 | AJ118: 19 | AL118: 2018-08-01 | AM118: 1 | AN118: 212392 | AO118: 6889106 | AP118: Taiwan Semiconductor Manufacturing Co., Ltd. | AQ118: SELL | AR118: 4.0675 | AS118: 769000 | AT118: 8.14165986 | AU118: 6260936.432 | AV118: 2018-08-01 | AW118: 26000 | AX118: 8.094123077 | AY118: 210447.2 | AZ118: 211683.1564 | BA118: 883.88 | BB118: (blank) | BC118: (blank) | BD118: (blank) | BE118: (blank) | BF118: (blank) | BG118: (blank) | BH118: (blank) | BI118: (blank) | BJ118: -2119.836355 | BK118: (blank) | BL118: (blank) | BM118: (blank) | BN118: (blank) | BO118: (blank) | BP118: (blank) | BQ118: 743000 | BR118: 8.14165986 | BS118: 6049253.276 | BT118: (blank) | BU118: (blank) | BV118: (blank) | BW118: 2018-06-01 | BX118: 6889106 | BY118: 2018-06-01 | BZ118: 743000 | CA118: 8.14165986 | CB118: 6049253.276
F119: SELL | G119: 4.0745 | H119: 743000 | I119: 8.14165986 | J119: 6049253.276 | K119: 2018-08-02 | L119: 32000 | M119: 8.03391125 | N119: 257085.16 | O119: 260533.1155 | P119: 1079.78 | Y119: -4527.735514 | AF119: 711000 | AG119: 8.14165986 | AH119: 5788720.16 | AJ119: 19 | AL119: 2018-08-02 | AM119: 1 | AN119: 212392 | AO119: 6889106 | AP119: Taiwan Semiconductor Manufacturing Co., Ltd. | AQ119: SELL | AR119: 4.0745 | AS119: 743000 | AT119: 8.14165986 | AU119: 6049253.276 | AV119: 2018-08-02 | AW119: 32000 | AX119: 8.03391125 | AY119: 257085.16 | AZ119: 260533.1155 | BA119: 1079.78 | BB119: (blank) | BC119: (blank) | BD119: (blank) | BE119: (blank) | BF119: (blank) | BG119: (blank) | BH119: (blank) | BI119: (blank) | BJ119: -4527.735514 | BK119: (blank) | BL119: (blank) | BM119: (blank) | BN119: (blank) | BO119: (blank) | BP119: (blank) | BQ119: 711000 | BR119: 8.14165986 | BS119: 5788720.16 | BT119: (blank) | BU119: (blank) | BV119: (blank) | BW119: 2018-06-01 | BX119: 6889106 | BY119: 2018-06-01 | BZ119: 711000 | CA119: 8.14165986 | CB119: 5788720.16
F120: SELL | G120: 4.0735 | H120: 711000 | I120: 8.14165986 | J120: 5788720.16 | K120: 2018-08-08 | L120: 30000 | M120: 8.034489333 | N120: 241034.68 | O120: 244249.7958 | P120: 1012.34 | Y120: -4227.455794 | AF120: 681000 | AG120: 8.14165986 | AH120: 5544470.365 | AJ120: 19 | AL120: 2018-08-08 | AM120: 1 | AN120: 212392 | AO120: 6889106 | AP120: Taiwan Semiconductor Manufacturing Co., Ltd. | AQ120: SELL | AR120: 4.0735 | AS120: 711000 | AT120: 8.14165986 | AU120: 5788720.16 | AV120: 2018-08-08 | AW120: 30000 | AX120: 8.034489333 | AY120: 241034.68 | AZ120: 244249.7958 | BA120: 1012.34 | BB120: (blank) | BC120: (blank) | BD120: (blank) | BE120: (blank) | BF120: (blank) | BG120: (blank) | BH120: (blank) | BI120: (blank) | BJ120: -4227.455794 | BK120: (blank) | BL120: (blank) | BM120: (blank) | BN120: (blank) | BO120: (blank) | BP120: (blank) | BQ120: 681000 | BR120: 8.14165986 | BS120: 5544470.365 | BT120: (blank) | BU120: (blank) | BV120: (blank) | BW120: 2018-06-01 | BX120: 6889106 | BY120: 2018-06-01 | BZ120: 681000 | CA120: 8.14165986 | CB120: 5544470.365
F121: SELL | G121: 4.0865 | H121: 681000 | I121: 8.14165986 | J121: 5544470.365 | K121: 2018-08-10 | L121: 472000 | M121: 8.023578496 | N121: 3787129.05 | O121: 3842863.454 | P121: 15905.92 | Y121: -71640.32383 | AF121: 209000 | AG121: 8.14165986 | AH121: 1701606.911 | AJ121: 19 | AL121: 2018-08-10 | AM121: 1 | AN121: 212392 | AO121: 6889106 | AP121: Taiwan Semiconductor Manufacturing Co., Ltd. | AQ121: SELL | AR121: 4.0865 | AS121: 681000 | AT121: 8.14165986 | AU121: 5544470.365 | AV121: 2018-08-10 | AW121: 472000 | AX121: 8.023578496 | AY121: 3787129.05 | AZ121: 3842863.454 | BA121: 15905.92 | BB121: (blank) | BC121: (blank) | BD121: (blank) | BE121: (blank) | BF121: (blank) | BG121: (blank) | BH121: (blank) | BI121: (blank) | BJ121: -71640.32383 | BK121: (blank) | BL121: (blank) | BM121: (blank) | BN121: (blank) | BO121: (blank) | BP121: (blank) | BQ121: 209000 | BR121: 8.14165986 | BS121: 1701606.911 | BT121: (blank) | BU121: (blank) | BV121: (blank) | BW121: 2018-06-01 | BX121: 6889106 | BY121: 2018-06-01 | BZ121: 209000 | CA121: 8.14165986 | CB121: 1701606.911
F122: SELL | G122: 4.0955 | H122: 209000 | I122: 8.14165986 | J122: 1701606.911 | K122: 2018-08-28 | L122: 209000 | M122: 8.111777321 | N122: 1695361.46 | O122: 1701606.911 | P122: 7120.54 | Y122: -13365.9907 | AF122: 0 | AG122: 8.14165986 | AH122: 0 | AJ122: 19 | AL122: 2018-08-28 | AM122: 1 | AN122: 212392 | AO122: 6889106 | AP122: Taiwan Semiconductor Manufacturing Co., Ltd. | AQ122: SELL | AR122: 4.0955 | AS122: 209000 | AT122: 8.14165986 | AU122: 1701606.911 | AV122: 2018-08-28 | AW122: 209000 | AX122: 8.111777321 | AY122: 1695361.46 | AZ122: 1701606.911 | BA122: 7120.54 | BB122: (blank) | BC122: (blank) | BD122: (blank) | BE122: (blank) | BF122: (blank) | BG122: (blank) | BH122: (blank) | BI122: (blank) | BJ122: -13365.9907 | BK122: (blank) | BL122: (blank) | BM122: (blank) | BN122: (blank) | BO122: (blank) | BP122: (blank) | BQ122: 0 | BR122: 8.14165986 | BS122: 0 | BT122: (blank) | BU122: (blank) | BV122: (blank) | BW122: 2018-06-01 | BX122: 6889106 | BY122: 2018-06-01 | BZ122: 0 | CA122: 8.14165986 | CB122: 0 | CC122: 1
B124: 20 | C124: 212392 | D124: BDQZP48 | E124: COUNTRY GARDEN SERVICES HOLD | F124: SELL | G124: 4.001 | H124: 49540 | I124: 0.936072063 | J124: 46373.01 | K124: 2018-06-19 | L124: 49540 | M124: 1.299688535 | N124: 64386.57 | O124: 46373.01 | P124: 133.81 | Y124: 17879.75 | AF124: 0 | AG124: 0.936072063 | AH124: 0 | AI124: Received from spin off event of COUNTRY GARDEN HOLDINGS CO (Ex-date 11Jun18). Disposed within 14 business date from distribution date. Any capital gain derived from the disposal shall be recognized as shariah income. | AJ124: 20 | AK124: 201806_BDQZP48 | AL124: 2018-06-19 | AM124: 1 | AN124: 212392 | AO124: BDQZP48 | AP124: COUNTRY GARDEN SERVICES HOLD | AQ124: SELL | AR124: 4.001 | AS124: 49540 | AT124: 0.936072063 | AU124: 46373.01 | AV124: 2018-06-19 | AW124: 49540 | AX124: 1.299688535 | AY124: 64386.57 | AZ124: 46373.01 | BA124: 133.81 | BJ124: 17879.75 | BM124: (blank) | BN124: (blank) | BQ124: 0 | BR124: 0.936072063 | BS124: 0 | BT124: Received from spin off event of COUNTRY GARDEN HOLDINGS CO (Ex-date 11Jun18). Disposed within 14 business date from distribution date. Any capital gain derived from the disposal shall be recognized as shariah income. | BU124: (blank) | BV124: (blank) | BW124: 2018-06-11 | BX124: BDQZP48 | BY124: 2018-06-11 | BZ124: 0 | CA124: 0.936072063 | CB124: 0 | CC124: 1
B126: 21 | C126: 212392 | D126: BS7JP33 | E126: GLOBALWAFERS CO LTD | F126: Dividend | G126: 4.1845 | H126: 38000 | I126: 17.55899763 | J126: 667241.91 | O126: N/A | Q126: 2019-07-17 | R126: 2019-08-12 | S126: 0.6293415789 | T126: 23914.98 | Z126: 23914.98 | AA126: 23914.98 | AF126: 38000 | AG126: 16.92965605 | AH126: 643326.93 | AJ126: 21 | AK126: 201809_BS7JP33 | AL126: 2019-08-12 | AM126: 1 | AN126: 212392 | AO126: BS7JP33 | AP126: GLOBALWAFERS CO LTD | AQ126: Dividend | AR126: 4.1845 | AS126: 38000 | AT126: 17.55899763 | AU126: 667241.91 | AZ126: N/A | BB126: 2019-07-17 | BC126: 2019-08-12 | BD126: 0.6293415789 | BE126: 23914.98 | BK126: 23914.98 | BL126: 23914.98 | BQ126: 38000 | BR126: 16.92965605 | BS126: 643326.93 | BT126: (blank) | BU126: (blank) | BV126: (blank) | BW126: 2018-09-03 | BX126: BS7JP33 | BY126: 2018-09-03 | BZ126: 38000 | CA126: 16.92965605 | CB126: 643326.93
F127: Dividend | G127: 4.1905 | H127: 38000 | I127: 16.92965605 | J127: 643326.93 | O127: N/A | Q127: 2020-07-16 | R127: 2020-08-07 | S127: 0.5914986842 | T127: 22476.95 | Z127: 22476.95 | AA127: 22476.95 | AF127: 38000 | AG127: 16.33815737 | AH127: 620849.98 | AJ127: 21 | AL127: 2020-08-07 | AM127: 1 | AN127: 212392 | AO127: BS7JP33 | AP127: GLOBALWAFERS CO LTD | AQ127: Dividend | AR127: 4.1905 | AS127: 38000 | AT127: 16.92965605 | AU127: 643326.93 | AZ127: N/A | BB127: 2020-07-16 | BC127: 2020-08-07 | BD127: 0.5914986842 | BE127: 22476.95 | BK127: 22476.95 | BL127: 22476.95 | BQ127: 38000 | BR127: 16.33815737 | BS127: 620849.98 | BT127: (blank) | BU127: (blank) | BV127: (blank) | BW127: 2018-09-03 | BX127: BS7JP33 | BY127: 2018-09-03 | BZ127: 38000 | CA127: 16.33815737 | CB127: 620849.98
F128: Corporate Action | G128: 4.1905 | H128: 38000 | I128: 16.33815737 | J128: 620849.98 | O128: N/A | U128: Capital Repayment | V128: 2020-08-08 | W128: 38000 | X128: 4659.15 | AF128: 38000 | AG128: 16.21554816 | AH128: 616190.83 | AJ128: 21 | AL128: 2020-08-08 | AM128: 1 | AN128: 212392 | AO128: BS7JP33 | AP128: GLOBALWAFERS CO LTD | AQ128: Corporate Action | AR128: 4.1905 | AS128: 38000 | AT128: 16.33815737 | AU128: 620849.98 | AZ128: N/A | BF128: Capital Repayment | BG128: 2020-08-08 | BH128: 38000 | BI128: 4659.15 | BQ128: 38000 | BR128: 16.21554816 | BS128: 616190.83 | BT128: (blank) | BU128: (blank) | BV128: (blank) | BW128: 2018-09-03 | BX128: BS7JP33 | BY128: 2018-09-03 | BZ128: 38000 | CA128: 16.21554816 | CB128: 616190.83
F129: SELL | G129: 4.0675 | H129: 38000 | I129: 16.21554816 | J129: 616190.83 | K129: 2020-11-26 | L129: 38000 | M129: 17.40107289 | N129: 661240.77 | O129: 616190.83 | P129: 2578.83 | Y129: 42471.11 | AB129: 42471.11 | AC129: 172751.2299 | AF129: 0 | AG129: 16.21554816 | AH129: 0 | AJ129: 21 | AL129: 2020-11-26 | AM129: 1 | AN129: 212392 | AO129: BS7JP33 | AP129: GLOBALWAFERS CO LTD | AQ129: SELL | AR129: 4.0675 | AS129: 38000 | AT129: 16.21554816 | AU129: 616190.83 | AV129: 2020-11-26 | AW129: 38000 | AX129: 17.40107289 | AY129: 661240.77 | AZ129: 616190.83 | BA129: 2578.83 | BJ129: 42471.11 | BM129: 42471.11 | BN129: 172751.2299 | BQ129: 0 | BR129: 16.21554816 | BS129: 0 | BT129: (blank) | BU129: (blank) | BV129: (blank) | BW129: 2018-09-03 | BX129: BS7JP33 | BY129: 2018-09-03 | BZ129: 0 | CA129: 16.21554816 | CB129: 0 | CC129: 1
B131: 22 | C131: 212392 | D131: 6592943 | E131: AMATA CORP PUBLIC CO LTD-FOR | F131: SELL | G131: 4.1365 | H131: 240000 | I131: 0.7008871667 | J131: 168212.92 | K131: 2019-04-17 | L131: 120000 | M131: 0.70197525 | N131: 84237.03 | O131: 84106.46 | P131: 93.08 | Y131: 37.49 | AB131: 37.49 | AC131: 155.077385 | AF131: 120000 | AG131: 0.7008871667 | AH131: 84106.46 | AJ131: 22 | AK131: 201903_6592943 | AL131: 2019-04-17 | AM131: 1 | AN131: 212392 | AO131: 6592943 | AP131: AMATA CORP PUBLIC CO LTD-FOR | AQ131: SELL | AR131: 4.1365 | AS131: 240000 | AT131: 0.7008871667 | AU131: 168212.92 | AV131: 2019-04-17 | AW131: 120000 | AX131: 0.70197525 | AY131: 84237.03 | AZ131: 84106.46 | BA131: 93.08 | BJ131: 37.49 | BM131: 37.49 | BN131: 155.077385 | BQ131: 120000 | BR131: 0.7008871667 | BS131: 84106.46 | BT131: (blank) | BU131: (blank) | BV131: (blank) | BW131: 2019-03-01 | BX131: 6592943 | BY131: 2019-03-01 | BZ131: 120000 | CA131: 0.7008871667 | CB131: 84106.46
F132: SELL | G132: 4.1365 | H132: 120000 | I132: 0.7008871667 | J132: 84106.46 | K132: 2019-04-22 | L132: 120000 | M132: 0.7091865 | N132: 85102.38 | O132: 84106.46 | P132: 94.04 | Y132: 901.88 | AB132: 901.88 | AC132: 3730.62662 | AF132: 0 | AG132: 0.7008871667 | AH132: 0 | AJ132: 22 | AL132: 2019-04-22 | AM132: 1 | AN132: 212392 | AO132: 6592943 | AP132: AMATA CORP PUBLIC CO LTD-FOR | AQ132: SELL | AR132: 4.1365 | AS132: 120000 | AT132: 0.7008871667 | AU132: 84106.46 | AV132: 2019-04-22 | AW132: 120000 | AX132: 0.7091865 | AY132: 85102.38 | AZ132: 84106.46 | BA132: 94.04 | BJ132: 901.88 | BM132: 901.88 | BN132: 3730.62662 | BQ132: 0 | BR132: 0.7008871667 | BS132: 0 | BT132: (blank) | BU132: (blank) | BV132: (blank) | BW132: 2019-03-01 | BX132: 6592943 | BY132: 2019-03-01 | BZ132: 0 | CA132: 0.7008871667 | CB132: 0 | CC132: 1
B134: 23 | C134: 212392 | D134: 6538527 | E134: SUMMARECON AGUNG TBK PT | F134: SELL | G134: 4.134 | H134: 4377100 | I134: 0.08657177355 | J134: 378933.31 | K134: 2019-07-01 | L134: 3025000 | M134: 0.08758638347 | N134: 264948.81 | O134: 261879.615 | P134: 663.7 | Y134: 2405.495015 | AB134: 2405.495015 | AC134: 9944.316393 | AF134: 1352100 | AG134: 0.08657177355 | AH134: 117053.695 | AJ134: 23 | AK134: 201905_6538527 | AL134: 2019-07-01 | AM134: 1 | AN134: 212392 | AO134: 6538527 | AP134: SUMMARECON AGUNG TBK PT | AQ134: SELL | AR134: 4.134 | AS134: 4377100 | AT134: 0.08657177355 | AU134: 378933.31 | AV134: 2019-07-01 | AW134: 3025000 | AX134: 0.08758638347 | AY134: 264948.81 | AZ134: 261879.615 | BA134: 663.7 | BJ134: 2405.495015 | BM134: 2405.495015 | BN134: 9944.316393 | BQ134: 1352100 | BR134: 0.08657177355 | BS134: 117053.695 | BT134: (blank) | BU134: (blank) | BV134: (blank) | BW134: 2019-05-29 | BX134: 6538527 | BY134: 2019-05-29 | BZ134: 1352100 | CA134: 0.08657177355 | CB134: 117053.695
F135: SELL | G135: 4.1385 | H135: 1352100 | I135: 0.08657177355 | J135: 117053.695 | K135: 2019-07-10 | L135: 1352100 | M135: 0.08704883515 | N135: 117698.73 | O135: 117053.695 | P135: 297.78 | Y135: 347.2549848 | AB135: 347.2549848 | AC135: 1437.114755 | AF135: 0 | AG135: 0.08657177355 | AH135: 0 | AJ135: 23 | AL135: 2019-07-10 | AM135: 1 | AN135: 212392 | AO135: 6538527 | AP135: SUMMARECON AGUNG TBK PT | AQ135: SELL | AR135: 4.1385 | AS135: 1352100 | AT135: 0.08657177355 | AU135: 117053.695 | AV135: 2019-07-10 | AW135: 1352100 | AX135: 0.08704883515 | AY135: 117698.73 | AZ135: 117053.695 | BA135: 297.78 | BJ135: 347.2549848 | BM135: 347.2549848 | BN135: 1437.114755 | BQ135: 0 | BR135: 0.08657177355 | BS135: 0 | BT135: (blank) | BU135: (blank) | BV135: (blank) | BW135: 2019-05-29 | BX135: 6538527 | BY135: 2019-05-29 | BZ135: 0 | CA135: 0.08657177355 | CB135: 0
F136: Dividend | G136: 4.1105 | H136: 0 | I136: 0 | J136: 0 | Q136: 2019-07-01 | R136: 2019-07-19 | S136: 0.0003229284229 | T136: 1413.49 | AD136: 1413.49 | AE136: 5810.150645 | AF136: 0 | AG136: - | AH136: 0 | AJ136: 23 | AL136: 2019-07-19 | AM136: 1 | AN136: 212392 | AO136: 6538527 | AP136: SUMMARECON AGUNG TBK PT | AQ136: Dividend | AR136: 4.1105 | AS136: 0 | AT136: 0 | AU136: 0 | AV136: (blank) | AW136: (blank) | AX136: (blank) | AY136: (blank) | AZ136: (blank) | BA136: (blank) | BB136: 2019-07-01 | BC136: 2019-07-19 | BD136: 0.0003229284229 | BE136: 1413.49 | BF136: (blank) | BG136: (blank) | BH136: (blank) | BI136: (blank) | BJ136: (blank) | BK136: (blank) | BM136: (blank) | BN136: (blank) | BO136: 1413.49 | BP136: 5810.150645 | BQ136: 0 | BR136: - | BS136: 0 | BT136: (blank) | BU136: (blank) | BV136: (blank) | BW136: 2019-05-29 | BX136: 6538527 | BY136: 2019-05-29 | BZ136: 0 | CA136: - | CB136: 0 | CC136: 1
B138: 24 | C138: 212392 | D138: 6603737 | E138: COMFORTDELGRO CORP LTD | F138: SELL | G138: 4.1355 | H138: 187400 | I138: 2.002597759 | J138: 375286.82 | K138: 2019-07-04 | L138: 187400 | M138: 2.01983778 | N138: 378517.6 | O138: 375286.82 | P138: 454.23 | Y138: 2776.55 | AB138: 2776.55 | AC138: 11482.42253 | AF138: 0 | AG138: 2.002597759 | AH138: 0 | AJ138: 24 | AK138: 201905_6603737 | AL138: 2019-07-04 | AM138: 1 | AN138: 212392 | AO138: 6603737 | AP138: COMFORTDELGRO CORP LTD | AQ138: SELL | AR138: 4.1355 | AS138: 187400 | AT138: 2.002597759 | AU138: 375286.82 | AV138: 2019-07-04 | AW138: 187400 | AX138: 2.01983778 | AY138: 378517.6 | AZ138: 375286.82 | BA138: 454.23 | BJ138: 2776.55 | BM138: 2776.55 | BN138: 11482.42253 | BQ138: 0 | BR138: 2.002597759 | BS138: 0 | BT138: (blank) | BU138: (blank) | BV138: (blank) | BW138: 2019-05-29 | BX138: 6603737 | BY138: 2019-05-29 | BZ138: 0 | CA138: 2.002597759 | CB138: 0 | CC138: 1
B140: 25 | C140: 212392 | D140: 6434915 | E140: HONGKONG LAND HOLDINGS LTD | F140: Dividend | G140: 4.1845 | H140: 196900 | I140: 7.218657643 | J140: 1421353.69 | O140: N/A | Q140: 2019-08-22 | R140: 2019-10-17 | S140: 0.06 | T140: 11814 | Z140: 11814 | AA140: 11814 | AF140: 196900 | AG140: 7.158657643 | AH140: 1409539.69 | AJ140: 25 | AK140: 201905_6434915 | AL140: 2019-10-17 | AM140: 1 | AN140: 212392 | AO140: 6434915 | AP140: HONGKONG LAND HOLDINGS LTD | AQ140: Dividend | AR140: 4.1845 | AS140: 196900 | AT140: 7.218657643 | AU140: 1421353.69 | AZ140: N/A | BB140: 2019-08-22 | BC140: 2019-10-17 | BD140: 0.06 | BE140: 11814 | BK140: 11814 | BL140: 11814 | BQ140: 196900 | BR140: 7.158657643 | BS140: 1409539.69 | BT140: (blank) | BU140: (blank) | BV140: (blank) | BW140: 2019-05-29 | BX140: 6434915 | BY140: 2019-05-29 | BZ140: 196900 | CA140: 7.158657643 | CB140: 1409539.69
F141: Dividend | G141: 4.328 | H141: 196900 | I141: 7.158657643 | J141: 1409539.69 | O141: N/A | Q141: 2020-03-19 | R141: 2020-05-13 | S141: 0.16 | T141: 31504 | Z141: 31504 | AA141: 31504 | AF141: 196900 | AG141: 6.998657643 | AH141: 1378035.69 | AJ141: 25 | AL141: 2020-05-13 | AM141: 1 | AN141: 212392 | AO141: 6434915 | AP141: HONGKONG LAND HOLDINGS LTD | AQ141: Dividend | AR141: 4.328 | AS141: 196900 | AT141: 7.158657643 | AU141: 1409539.69 | AZ141: N/A | BB141: 2020-03-19 | BC141: 2020-05-13 | BD141: 0.16 | BE141: 31504 | BK141: 31504 | BL141: 31504 | BQ141: 196900 | BR141: 6.998657643 | BS141: 1378035.69 | BT141: (blank) | BU141: (blank) | BV141: (blank) | BW141: 2019-05-29 | BX141: 6434915 | BY141: 2019-05-29 | BZ141: 196900 | CA141: 6.998657643 | CB141: 1378035.69
F142: Dividend | G142: 4.1485 | H142: 196900 | I142: 6.998657643 | J142: 1378035.69 | O142: N/A | Q142: 2020-08-20 | R142: 2020-10-14 | S142: 0.06 | T142: 11814 | Z142: 11814 | AA142: 11814 | AF142: 196900 | AG142: 6.938657643 | AH142: 1366221.69 | AJ142: 25 | AL142: 2020-10-14 | AM142: 1 | AN142: 212392 | AO142: 6434915 | AP142: HONGKONG LAND HOLDINGS LTD | AQ142: Dividend | AR142: 4.1485 | AS142: 196900 | AT142: 6.998657643 | AU142: 1378035.69 | AZ142: N/A | BB142: 2020-08-20 | BC142: 2020-10-14 | BD142: 0.06 | BE142: 11814 | BK142: 11814 | BL142: 11814 | BQ142: 196900 | BR142: 6.938657643 | BS142: 1366221.69 | BT142: (blank) | BU142: (blank) | BV142: (blank) | BW142: 2019-05-29 | BX142: 6434915 | BY142: 2019-05-29 | BZ142: 196900 | CA142: 6.938657643 | CB142: 1366221.69
F143: Dividend | G143: 4.1255 | H143: 196900 | I143: 6.938657643 | J143: 1366221.69 | O143: N/A | Q143: 2021-03-25 | R143: 2021-05-12 | S143: 0.16 | T143: 31504 | Z143: 31504 | AA143: 31504 | AF143: 196900 | AG143: 6.778657643 | AH143: 1334717.69 | AJ143: 25 | AL143: 2021-05-12 | AM143: 1 | AN143: 212392 | AO143: 6434915 | AP143: HONGKONG LAND HOLDINGS LTD | AQ143: Dividend | AR143: 4.1255 | AS143: 196900 | AT143: 6.938657643 | AU143: 1366221.69 | AZ143: N/A | BB143: 2021-03-25 | BC143: 2021-05-12 | BD143: 0.16 | BE143: 31504 | BK143: 31504 | BL143: 31504 | BQ143: 196900 | BR143: 6.778657643 | BS143: 1334717.69 | BT143: (blank) | BU143: (blank) | BV143: (blank) | BW143: 2019-05-29 | BX143: 6434915 | BY143: 2019-05-29 | BZ143: 196900 | CA143: 6.778657643 | CB143: 1334717.69
F144: Dividend | G144: 4.16 | H144: 196900 | I144: 6.778657643 | J144: 1334717.69 | O144: N/A | Q144: 2021-08-19 | R144: 2021-10-13 | S144: 0.06 | T144: 11814 | Z144: 11814 | AA144: 11814 | AF144: 196900 | AG144: 6.718657643 | AH144: 1322903.69 | AJ144: 25 | AL144: 2021-10-13 | AM144: 1 | AN144: 212392 | AO144: 6434915 | AP144: HONGKONG LAND HOLDINGS LTD | AQ144: Dividend | AR144: 4.16 | AS144: 196900 | AT144: 6.778657643 | AU144: 1334717.69 | AZ144: N/A | BB144: 2021-08-19 | BC144: 2021-10-13 | BD144: 0.06 | BE144: 11814 | BK144: 11814 | BL144: 11814 | BQ144: 196900 | BR144: 6.718657643 | BS144: 1322903.69 | BT144: (blank) | BU144: (blank) | BV144: (blank) | BW144: 2019-05-29 | BX144: 6434915 | BY144: 2019-05-29 | BZ144: 196900 | CA144: 6.718657643 | CB144: 1322903.69
F145: Dividend | G145: 4.3765 | H145: 196900 | I145: 6.718657643 | J145: 1322903.69 | Q145: 2022-03-17 | R145: 2022-05-11 | S145: 0.16 | T145: 31504 | Z145: 31504 | AA145: 31504 | AF145: 196900 | AG145: 6.558657643 | AH145: 1291399.69 | AJ145: 25 | AL145: 2022-05-11 | AN145: 212392 | AO145: 6434915 | AP145: HONGKONG LAND HOLDINGS LTD | AQ145: Dividend | AR145: 4.3765 | AS145: 196900 | AT145: 7.218657643 | AU145: 1421353.69 | BB145: 2022-03-17 | BC145: 2022-05-11 | BD145: 0.16 | BE145: 31504 | BK145: 31504 | BL145: 31504 | BQ145: 196900 | BR145: 7.218657643 | BS145: 1421353.69 | BT145: (blank) | BU145: 1 | BV145: 1421353.69 | BW145: 2019-05-29 | BX145: 6434915 | BY145: 2019-05-29 | BZ145: 196900 | CA145: 6.558657643 | CB145: 1291399.69 | CC145: 1
B147: 26 | C147: 212392 | D147: B1VQ5C0 | E147: KEPPEL CORP LTD | F147: Dividend | G147: 4.2755 | H147: 263000 | I147: 5.634034183 | J147: 1481750.99 | O147: N/A | Q147: 2020-06-08 | R147: 2020-06-18 | S147: 0.08615117871 | T147: 22657.76 | Z147: 22657.76 | AA147: 22657.76 | AF147: 263000 | AG147: 5.547883004 | AH147: 1459093.23 | AJ147: 26 | AK147: 201908_B1VQ5C0 | AL147: 2020-06-18 | AM147: 1 | AN147: 212392 | AO147: B1VQ5C0 | AP147: KEPPEL CORP LTD | AQ147: Dividend | AR147: 4.2755 | AS147: 263000 | AT147: 5.634034183 | AU147: 1481750.99 | AZ147: N/A | BB147: 2020-06-08 | BC147: 2020-06-18 | BD147: 0.08615117871 | BE147: 22657.76 | BK147: 22657.76 | BL147: 22657.76 | BQ147: 263000 | BR147: 5.547883004 | BS147: 1459093.23 | BT147: (blank) | BU147: (blank) | BV147: (blank) | BW147: 2019-08-28 | BX147: B1VQ5C0 | BY147: 2019-08-28 | BZ147: 263000 | CA147: 5.547883004 | CB147: 1459093.23
F148: Dividend | G148: 4.1755 | H148: 263000 | I148: 5.547883004 | J148: 1459093.23 | O148: N/A | Q148: 2020-08-07 | R148: 2020-08-20 | S148: 0.02192422053 | T148: 5766.07 | Z148: 5766.07 | AA148: 5766.07 | AF148: 263000 | AG148: 5.525958783 | AH148: 1453327.16 | AJ148: 26 | AL148: 2020-08-20 | AM148: 1 | AN148: 212392 | AO148: B1VQ5C0 | AP148: KEPPEL CORP LTD | AQ148: Dividend | AR148: 4.1755 | AS148: 263000 | AT148: 5.547883004 | AU148: 1459093.23 | AZ148: N/A | BB148: 2020-08-07 | BC148: 2020-08-20 | BD148: 0.02192422053 | BE148: 5766.07 | BK148: 5766.07 | BL148: 5766.07 | BQ148: 263000 | BR148: 5.525958783 | BS148: 1453327.16 | BT148: (blank) | BU148: (blank) | BV148: (blank) | BW148: 2019-08-28 | BX148: B1VQ5C0 | BY148: 2019-08-28 | BZ148: 263000 | CA148: 5.525958783 | CB148: 1453327.16
F149: Dividend | G149: 4.1185 | H149: 263000 | I149: 5.525958783 | J149: 1453327.16 | O149: N/A | Q149: 2021-04-29 | R149: 2021-05-11 | S149: 0.05279631179 | T149: 13885.43 | Z149: 13885.43 | AA149: 13885.43 | AF149: 263000 | AG149: 5.473162471 | AH149: 1439441.73 | AJ149: 26 | AL149: 2021-05-11 | AM149: 1 | AN149: 212392 | AO149: B1VQ5C0 | AP149: KEPPEL CORP LTD | AQ149: Dividend | AR149: 4.1185 | AS149: 263000 | AT149: 5.525958783 | AU149: 1453327.16 | AZ149: N/A | BB149: 2021-04-29 | BC149: 2021-05-11 | BD149: 0.05279631179 | BE149: 13885.43 | BK149: 13885.43 | BL149: 13885.43 | BQ149: 263000 | BR149: 5.473162471 | BS149: 1439441.73 | BT149: (blank) | BU149: (blank) | BV149: (blank) | BW149: 2019-08-28 | BX149: B1VQ5C0 | BY149: 2019-08-28 | BZ149: 263000 | CA149: 5.473162471 | CB149: 1439441.73
F150: Dividend | G150: 4.2385 | H150: 263000 | I150: 5.473162471 | J150: 1439441.73 | O150: N/A | Q150: 2021-08-06 | R150: 2021-08-19 | S150: 0.08795718631 | T150: 23132.74 | Z150: 23132.74 | AA150: 23132.74 | AF150: 263000 | AG150: 5.385205285 | AH150: 1416308.99 | AJ150: 26 | AL150: 2021-08-19 | AM150: 1 | AN150: 212392 | AO150: B1VQ5C0 | AP150: KEPPEL CORP LTD | AQ150: Dividend | AR150: 4.2385 | AS150: 263000 | AT150: 5.473162471 | AU150: 1439441.73 | AZ150: N/A | BB150: 2021-08-06 | BC150: 2021-08-19 | BD150: 0.08795718631 | BE150: 23132.74 | BK150: 23132.74 | BL150: 23132.74 | BQ150: 263000 | BR150: 5.385205285 | BS150: 1416308.99 | BT150: (blank) | BU150: (blank) | BV150: (blank) | BW150: 2019-08-28 | BX150: B1VQ5C0 | BY150: 2019-08-28 | BZ150: 263000 | CA150: 5.385205285 | CB150: 1416308.99
F151: Dividend | G151: 4.3923 | H151: 263000 | I151: 5.385205285 | J151: 1416308.99 | Q151: 2022-04-28 | R151: 2022-05-12 | S151: 0.1505484262 | T151: 39594.2361 | Z151: 39594.2361 | AA151: 39594.2361 | AF151: 263000 | AG151: 5.234656859 | AH151: 1376714.754 | AJ151: 26 | AL151: 2022-05-12 | AN151: 212392 | AO151: B1VQ5C0 | AP151: KEPPEL CORP LTD | AQ151: Dividend | AR151: 4.3923 | AS151: 263000 | AT151: 5.631416236 | AU151: 1481062.47 | BB151: 2022-04-28 | BC151: 2022-05-12 | BD151: 0.1505484262 | BE151: 39594.2361 | BK151: 39594.2361 | BL151: 39594.2361 | BQ151: 263000 | BR151: 5.339243042 | BS151: 1404220.92 | BT151: (blank) | BU151: 1 | BV151: 1481750.99 | BW151: 2019-08-28 | BX151: B1VQ5C0 | BY151: 2019-08-28 | BZ151: 263000 | CA151: 5.234656859 | CB151: 1376714.754 | CC151: 1
B153: 27 | C153: 212392 | D153: 6015644 | E153: ANGANG STEEL CO LTD-H | F153: Dividend | G153: 4.2825 | H153: 3584669 | I153: 0.4301734219 | J153: 1542029.33 | O153: N/A | Q153: 2020-06-01 | R153: 2020-06-30 | S153: 0.007199582444 | T153: 25808.12 | Z153: 25808.12 | AA153: 25808.12 | AF153: 3584669 | AG153: 0.4229738394 | AH153: 1516221.21 | AJ153: 27 | AK153: 201911_6015644 | AL153: 2020-06-30 | AM153: 1 | AN153: 212392 | AO153: 6015644 | AP153: ANGANG STEEL CO LTD-H | AQ153: Dividend | AR153: 4.2825 | AS153: 3584669 | AT153: 0.4301734219 | AU153: 1542029.33 | AZ153: N/A | BB153: 2020-06-01 | BC153: 2020-06-30 | BD153: 0.007199582444 | BE153: 25808.12 | BK153: 25808.12 | BL153: 25808.12 | BQ153: 3584669 | BR153: 0.4229738394 | BS153: 1516221.21 | BT153: (blank) | BU153: (blank) | BV153: (blank) | BW153: 2019-11-27 | BX153: 6015644 | BY153: 2019-11-27 | BZ153: 3584669 | CA153: 0.4229738394 | CB153: 1516221.21
F154: SELL | G154: 4.069 | H154: 3584669 | I154: 0.4229738394 | J154: 1516221.21 | K154: 2020-11-27 | L154: 236000 | M154: 0.432396822 | N154: 102045.65 | O154: 99821.8261 | P154: 130.31 | Y154: 2093.513896 | AB154: 2093.513896 | AC154: 8518.508041 | AF154: 3348669 | AG154: 0.4229738394 | AH154: 1416399.384 | AJ154: 27 | AL154: 2020-11-27 | AM154: 1 | AN154: 212392 | AO154: 6015644 | AP154: ANGANG STEEL CO LTD-H | AQ154: SELL | AR154: 4.069 | AS154: 3584669 | AT154: 0.4229738394 | AU154: 1516221.21 | AV154: 2020-11-27 | AW154: 236000 | AX154: 0.432396822 | AY154: 102045.65 | AZ154: 99821.8261 | BA154: 130.31 | BJ154: 2093.513896 | BM154: 2093.513896 | BN154: 8518.508041 | BQ154: 3348669 | BR154: 0.4229738394 | BS154: 1416399.384 | BT154: (blank) | BU154: (blank) | BV154: (blank) | BW154: 2019-11-27 | BX154: 6015644 | BY154: 2019-11-27 | BZ154: 3348669 | CA154: 0.4229738394 | CB154: 1416399.384
F155: SELL | G155: 4.074 | H155: 3348669 | I155: 0.4229738394 | J155: 1416399.384 | K155: 2020-11-30 | L155: 1086000 | M155: 0.4325185451 | N155: 469715.14 | O155: 459349.5896 | P155: 599.89 | Y155: 9765.660384 | AB155: 9765.660384 | AC155: 39785.2904 | AF155: 2262669 | AG155: 0.4229738394 | AH155: 957049.7943 | AJ155: 27 | AL155: 2020-11-30 | AM155: 1 | AN155: 212392 | AO155: 6015644 | AP155: ANGANG STEEL CO LTD-H | AQ155: SELL | AR155: 4.074 | AS155: 3348669 | AT155: 0.4229738394 | AU155: 1416399.384 | AV155: 2020-11-30 | AW155: 1086000 | AX155: 0.4325185451 | AY155: 469715.14 | AZ155: 459349.5896 | BA155: 599.89 | BJ155: 9765.660384 | BM155: 9765.660384 | BN155: 39785.2904 | BQ155: 2262669 | BR155: 0.4229738394 | BS155: 957049.7943 | BT155: (blank) | BU155: (blank) | BV155: (blank) | BW155: 2019-11-27 | BX155: 6015644 | BY155: 2019-11-27 | BZ155: 2262669 | CA155: 0.4229738394 | CB155: 957049.7943
